Workbook

Sheet Quick Start Guide
B7: ="Version "&ChangeLog!B23 -> Version 3.4.3.1
A11: The Spreadsheet Tabs | B11: Description
A12: Project Info | B12: Inputs required for a range of indicators
A13: Building Inputs | B13: Inputs for the building prototypes that form the building blocks for the Dev Types
A14: Dev Type Streets | B14: Inputs for the street and block characteristics of each Dev Type
A15: Dev Type Inputs | B15: Combine building types to create Dev Types
A16: Dev Type Attributes | B16: Detailed characteristics about each Dev Type
A17: Summary New | B17: New Growth Summary outputs for all 5 Scenarios
A18: Summary Total | B18: Total Development Summary outputs for all 5 Scenarios
A19: SCENARIO1 | B19: Detailed Development Type outputs of Scenario 1
A20: SCENARIO2 | B20: Detailed Development Type outputs of Scenario 2
A21: SCENARIO3 | B21: Detailed Development Type outputs of Scenario 3
A22: SCENARIO4 | B22: Detailed Development Type outputs of Scenario 4
A23: SCENARIO5 | B23: Detailed Development Type outputs of Scenario 5
A24: BUILDING1 | B24: Detailed Building-level outputs of Scenario 1
A25: BUILDING2 | B25: Detailed Building-level outputs of Scenario 2
A26: BUILDING3 | B26: Detailed Building-level outputs of Scenario 3
A27: BUILDING4 | B27: Detailed Building-level outputs of Scenario 4
A28: BUILDING5 | B28: Detailed Building-level outputs of Scenario 5
A30: Tab Color Definition
A31: Input Tab
A32: Output Tab
A33: Reference Tab
A35: Cell Color Definition
A36: Input Cell
A37: Header Cell
A38: Subheader Cell
A39: Output Cell | B39: [white]
A41: Available Indicators | B41: Location
A42: Developed Acres | B42: Summary New Tab, Summary Total Tab
A43: Infill Development | B43: Summary New Tab, Summary Total Tab
A44: Building Square Footage Mix | B44: Summary New Tab
A45: Land Area Mix | B45: Summary New Tab, Summary Total Tab
A46: Population | B46: Summary New Tab, Summary Total Tab
A47: Net New Growth | B47: Summary Total Tab
A48: Displacement From Redevelopment | B48: Summary Total Tab
A49: Housing Mix | B49: Summary New Tab, Summary Total Tab
A50: Affordability | B50: Summary New Tab, Summary Total Tab
A51: Housing Distribution By Income | B51: Summary New Tab
A52: Housing By Building Type | B52: Summary New Tab
A53: Employment Mix | B53: Summary New Tab, Summary Total Tab
A54: Jobs/Housing Balance | B54: Summary New Tab, Summary Total Tab
A55: Affordability (H+T+E) | B55: Summary Total Tab, MXD Travel App, HH Travel App
A56: Density | B56: Summary New Tab, Summary Total Tab
A57: Income | B57: Summary New Tab
A58: Walk and Transit Friendliness | B58: Summary New Tab
A59: Parking | B59: Summary New Tab
A60: Financial | B60: Summary New Tab
A61: Subsidy | B61: Summary New Tab
A62: New Infrastructure | B62: Summary New Tab
A63: Tax Revenue | B63: Summary New Tab, Summary Total Tab
A64: Sustainability | B64: Summary New Tab, Summary Total Tab
A65: Bike Trips | B65: MXD Travel App, HH Travel App
A66: Walk Trips | B66: MXD Travel App, HH Travel App
A67: Transit Trips | B67: MXD Travel App, HH Travel App
A68: Vehicle Trips | B68: MXD Travel App, HH Travel App
A69: Internal Trips | B69: MXD Travel App
A70: External Trips | B70: MXD Travel App, HH Travel App
A71: Vehicle Miles Traveled (VMT) | B71: MXD Travel App, HH Travel App
A72: Traffic Accidents | B72: MXD Travel App, HH Travel App
A73: ULI Shared Parking Savings | B73: MXD Travel App
A74: Transportation Affordability | B74: MXD Travel App
A75: Daily Emissions | B75: MXD Travel App, HH Travel App
A76: Tax Revenue Per New Housing Unit | B76: Fiscal Impact Tool (FIT) App
A77: Operations and Maintenance Costs | B77: Fiscal Impact Tool (FIT) App
A78: Capital Outlays | B78: Fiscal Impact Tool (FIT) App
A79: Cost to Revenue Ratio | B79: Fiscal Impact Tool (FIT) App

Sheet Project Info
A2: Select Project Location (or nearest location)
A3: Metro | B3: Austin-Round Rock-San Marcos, TX Metropolitan Statistical Area
A6: Household / Population Assumptions | B6: Existing Households | D6: New Development Population Generation Rates | G6: Avg. Household Size (New Development)
B7: Avg. Unit Size | C7: Avg. HH Size | D7: Gross Sq Ft per Resident | E7: Max Household Size | F7: Vacancy Rate | G7: Scenario 1 | H7: Scenario 2 | I7: Scenario 2 | J7: Scenario 4 | K7: Scenario 5
A8: Multifamily | B8: 800 | C8: 2.1 | D8: 499 | E8: 2 | F8: 0.06 | G8: ='Summary New'!B181 -> 2.001918816 | H8: ='Summary New'!D181 -> 0 | I8: ='Summary New'!F181 -> 0 | J8: ='Summary New'!H181 -> 0 | K8: ='Summary New'!J181 -> 0
A9: Townhome | B9: 1200 | C9: 2.5 | D9: 599 | E9: 2.5 | F9: 0.06
A10: Single Family Small Lot | B10: 1800 | C10: 2.85
A11: Single Family Conventional Lot | B11: 2500 | C11: 3 | D11: 699 | E11: 3 | F11: 0.08
A12: Single Family Large Lot | B12: 3000 | C12: 3.5
A13: Mobile Home | B13: 500 | C13: 3.25 | D13: 699 | E13: 2.8 | F13: 0.1
A16: Existing Average Household Incomes | B16: $ / Year
A18: Multifamily | B18: 50000
A19: Townhome | B19: 55000
A20: Single Family Small Lot | B20: 60000
A21: Single Family Conventional Lot | B21: 65000
A22: Single Family Large Lot | B22: 70000
A23: Mobile Home | B23: 45000
A26: Wage Estimator | F26: Envision Wage Estimates
A27: Industry description | B27: Annual payroll ($1,000) | C27: Number of paid employees for pay period | D27: Average Wage | F27: Envision Employment Categories | G27: Adjusted Income ($/yr)
A28: Forestry, fishing, and related activities | D28: =IF(C28=0,0,B28*1000/C28) -> 0 | F28: Retail | G28: =IFERROR(((C34*D34)+(C46*D46))/SUM(C34,C46),0) -> 0
A29: Mining | D29: 0 | F29: Office/Public | G29: =IFERROR(((C30*D30)+(C36*D36)+(C37*D37)+(C39*D39)+(C40*D40)+(C43*D43))/SUM(C30,C36,C37,C39,C40,C43),0) -> 0
A30: Utilities | D30: 0 | F30: Industrial | G30: =IFERROR(((C29*D29)+(C32*D32)+(C35*D35))/SUM(C29,C32,C35),0) -> 0
A31: Construction | D31: 0 | F31: Education | G31: =IFERROR(((C42*D42))/SUM(C42),0) -> 0
A32: Manufacturing | D32: 0 | F32: Hotel | G32: =IFERROR(((C46*D46))/SUM(C46),0) -> 0
A33: Wholesale trade | D33: 0
A34: Retail trade | D34: 0
A35: Transportation and warehousing | D35: 0
A36: Information | D36: 0
A37: Finance and insurance | D37: 0
A38: Real estate and rental and leasing | D38: 0
A39: Professional, scientific, and technical services | D39: 0
A40: Management of companies and enterprises | D40: 0
A41: Administrative and waste services | D41: 0
A42: Educational services | D42: 0
A43: Health care and social assistance | D43: 0
A44: Arts, entertainment, and recreation | D44: 0
A45: Accommodation and food services | D45: 0
A46: Accommodation | D46: 0
A47: Food Services | D47: 0
A48: Other services, except public administration | D48: 0
A49: Government and government enterprises | D49: 0
A50: Total | D50: =IFERROR((SUM(D28:D49*C28:C49)/SUM(C28:C49)),0) -> 0
A53: Existing Average Monthly Housing Costs (Rent or Mortgage) | B53: $ / Month
A55: Multifamily
A56: Townhome
A57: Single Family Small Lot
A58: Single Family Conventional Lot
A59: Single Family Large Lot
A60: Mobile Home
A61: Weighted Average | B61: =IFERROR(IF(B62=0,SUMPRODUCT(B55:B60,EX_Res_by_Type)/SUM(EX_Res_by_Type),B62),0) -> 0
A62: Manual Overide Average
A65: Affordability Standards | B65: Maxiumum Housing Expenditures
B66: Owner | C66: Renter
A67: % of Income for Housing | B67: 0.26 | C67: 0.3
A68: Maximum LTV | B68: 0.8
A69: Mortgage Years | B69: 30
A70: Mortgage Interest Rate | B70: 0.06
A73: Single Family Lot Size Assumptions | B73: Sq Ft
A74: Small Lot Single Family | B74: 5999 | C74: or below
A75: Conventional Lot Single Family | B75: =B74 & " - " & B76 -> 5999 - 10001
A76: Large Lot Single Family | B76: 10001 | C76: or above
A79: Student Generation Rates | B79: Units | C79: Public School | G79: Private School
A80: Residential Housing Type | C80: Public School Generation Rate | D80: K-5 | E80: ="6 - 8" -> 6 - 8 | F80: ="9 - 12" -> 9 - 12
A81: Fewer than 8 Units per Acre | B81: 8 | C81: 0.45 | D81: 0.157 | E81: 0.135 | F81: 0.1575 | G81: 0.0582
A82: 9-14 Units per Acre | B82: 14 | C82: 0.21 | D82: 0.0735 | E82: 0.063 | F82: 0.0735 | G82: 0.0482
A83: 15+ Unis per Acre | B83: 15 | C83: 0.15 | D83: 0.0525 | E83: 0.045 | F83: 0.0525 | G83: 0.0451
A84: Table 7-6. Planner's Estimating Guide. Projecting Land-Use and Facility Needs. Arthur C. Nelson. 2004.
A87: Property Tax | B87: Annual Property Tax Rate | C87: Assessment Ratio
A88: Residential
A89: Commercial
A91: Sales Tax | B91: Annual Sales Tax Revenue per Retail Sq Ft
A92: Sales Tax Rate
A93: Sales per Sq Ft
A96: New Infrastructure Costs (Capital Costs only) | B96: Unit | C96: Cost
A97: New Roadway | B97: Lane Mile
A98: Streetscape | B98: Lane Mile
A99: Sewerage | B99: Lineal Foot
A100: Utilities - above-ground | B100: Mile
A101: Water Lines | B101: Lineal Foot
A104: Electrical Energy Fuel Mix | B104: Fuel Mix (%) | C104: CO2 per Million BTU
C105: kg | D105: Pounds | E105: Tons
A106: Coal (anthracite) | C106: 103.69 | D106: =C106*2.20462 -> 228.5970478 | E106: =D106*0.00045359237 -> 0.1036898767
A107: Coal (bituminous) | C107: 93.28 | D107: 205.6469536 | E107: 0.09327988907
A108: Coal (subbituminous) | C108: 97.17 | D108: 214.2229254 | E108: 0.09716988444
A109: Coal (lignite) | C109: 97.72 | D109: 215.4354664 | E109: 0.09771988379
A110: Diesel fuel & heating oil | C110: 73.15 | D110: 161.267953 | E110: 0.07314991301
A111: Propane | C111: 63.07 | D111: 139.0453834 | E111: 0.06306992499
A112: Natural gas | C112: 53.06 | D112: 116.9771372 | E112: 0.0530599369
A113: Nuclear life-cycle (Gen I - IV Mix)* | C113: 225.03 | D113: 496.1056386 | E113: 0.2250297324
A114: Hydroelectric life-cycle* | C114: 34 | D114: 74.95708 | E114: 0.03399995957
A115: Renewable (Avg emission of Wind and soar pv)* | C115: 69 | D115: 152.11878 | E115: 0.06899991794
A116: http://www.eia.doe.gov/oiaf/1605/coefficients.html
A117: *Benjamin K. Sovacool. Valuing the greenhouse gas emissions from nuclear power: A critical survey. Energy Policy, Vol. 36, 2008, p. 2950.
A118: **Fuel Mix from USEIA Statewide Report Nebraska | B118: http://www.eia.gov/state/data.cfm?sid=NE#ConsumptionExpenditures
A120: Energy Costs | B120: $ / 1000 BTU
A121: Residential
A122: Commercial
A125: Landscaping Water Consumption
A126: Water per Sq Foot of Lawn Area | B126: 0.05 | C126: Gallons/Sq Ft
A127: Maximum Watered Lawn Area | B127: 0.25 | C127: Acres
A130: Internal Water Consumption
A131: Building Type/Use | B131: Water Use (G/Day)
B132: Resident | C132: Employee
A133: Multifamily Residential | B133: 60
A134: Townhome | B134: 80
A135: Typical Single Family | B135: 100
A136: Large Single Family | B136: 120
A137: Retail | C137: 68
A138: Office | C138: 106
A139: Industrial | C139: 133
A140: Vickers, Amy. Handbook of Water Use and Conservation. (2001)
A142: Waste Water Production
A143: Building Type/Use | B143: Water Waste (G/Day)
B144: Resident | C144: Employee
A145: Multifamily Residential | B145: 35
A146: Townhome | B146: 50
A147: Typical Single Family | B147: 70
A148: Large Single Family | B148: 90
A149: Retail | C149: 38
A150: Office | C150: 49
A151: Industrial | C151: 49
A152: Adapted from Metcalf and Eddy (1991) Wastewater Engineering. Treatment Disposal Reuse, G. Tchobanoglous and F.L. Burton (Eds.), 1820 pp. New York: McGraw-Hill.
A153: http://www.eolss.net/EolssSampleChapters/C06/E6-13-04-05/E6-13-04-05-T14.htm
A155: Solid Waste Production
A156: Building Type/Use | B156: Solid Waste (lbs/Day)
B157: Resident | C157: Employee
A158: Multifamily Residential | B158: 1.5
A159: Townhome | B159: 2
A160: Typical Single Family | B160: 3
A161: Large Single Family | B161: 4
A162: Retail | C162: 5
A163: Office | C163: 3.5
A164: Industrial | C164: 9
A165: http://www.calrecycle.ca.gov/wastechar/wastegenrates/default.htm
A168: Abandoned Structure Value | B168: Units (Jobs)/Acre Avg | C168: Value/Acre Avg | D168: Value/Unit (Job)
A169: MF | D169: =IFERROR(C169/B169,0) -> 0
A170: TH | D170: =IFERROR(C170/B170,0) -> 0
A171: SF | D171: 0
A172: MH | D172: 0
A173: RET | D173: 0
A174: OFF | D174: 0
A175: IND | D175: 0
A176: PUB | D176: 0
A177: EDU | D177: 0
A178: HOTEL | D178: 0
A181: Green Infrastructure Water Inputs
A182: Average annual rainfall (in) | B182: 33.65
A183: Green Infrastructure Energy Inputs
A184: Annual Cooling degree days | B184: 3016 | C184: http://www.ncdc.noaa.gov/oa/documentlibrary/hcs/hcs.html
A185: Annual Heating degree days | B185: 1688 | C185: http://www.ncdc.noaa.gov/oa/documentlibrary/hcs/hcs.html
A186: R conventional (SF F hrs/BTU) | B186: =11.34 -> 11.34 | C186: http://www.cnt.org/repository/gi-values-guide.pdf
A187: R green roof (SF F hrs/Btu) | B187: 23.4 | C187: http://www.cnt.org/repository/gi-values-guide.pdf
A188: Cost per kWh (electricity -- cooling) ($/kWh) | B188: 0.0959 | C188: 0.0959 | D188: US EIA 2010 national rate | E188: http://www.eia.gov/oiaf/aeo/pdf/0383(2010).pdf
A189: Cost per BUT (natural gas -- heating) ($/Btu) | B189: 1.23e-05 | C189: 0.0959 | D189: US EIA 2010 national rate | E189: http://www.eia.gov/oiaf/aeo/pdf/0383(2010).pdf
A190: Green Infrastructure Air Quality Inputs
A191: Avg Annual NO2 uptake/depositions (lbs/SF) | B191: 0.0003 | C191: Source: http://link.springer.com/article/10.1007%2Fs11252-008-0054-y?LI=true
A192: Avg Annual O3 uptake/depositions (lbs/SF) | B192: 0.000588 | C192: Source: http://link.springer.com/article/10.1007%2Fs11252-008-0054-y?LI=true
A193: Avg Annual SO2 uptake/depositions (lbs/SF) | B193: 0.000229 | C193: Source: http://link.springer.com/article/10.1007%2Fs11252-008-0054-y?LI=true
A194: Avg Annual PM-10 uptake/depositions (lbs/SF) | B194: 0.000114 | C194: Source: http://link.springer.com/article/10.1007%2Fs11252-008-0054-y?LI=true
A195: Electricity Emmission rates NO2 (lbs/KWh) | B195: =6.6835/1000 -> 0.0066835 | C195: 0.001937 | D195: USEPA national rate (for more localized rates, see eGRID) | E195: http://cfpub.epa.gov/egridweb/
A196: Electricity Emmission rates SO2 (lbs/KWh) | B196: =34.7566/1000 -> 0.0347566 | C196: 0.00525 | D196: USEPA national rate (for more localized rates, see eGRID) | E196: http://cfpub.epa.gov/egridweb/
A197: Natural Gas Emmission rates NO2 (lbs/BTU) | B197: =0.4565/1000000 -> 4.565e-07 | C197: 7.21e-07 | D197: USEPA national rate (for more localized rates, see eGRID) | E197: http://cfpub.epa.gov/egridweb/
A198: Natural Gas Emmission rates SO2 (lbs/BTU) | B198: =2.3739/1000000 -> 2.3739e-06 | C198: 2.66e-07 | D198: USEPA national rate (for more localized rates, see eGRID) | E198: http://cfpub.epa.gov/egridweb/
A199: US Forest Service NO2 ($/lb) Recommendations | B199: 3.34 | C199: http://www.cnt.org/repository/gi-values-guide.pdf
A200: US Forest Service O3 ($/lb) Recommendations | B200: 3.34 | C200: http://www.cnt.org/repository/gi-values-guide.pdf
A201: US Forest Service SO2 ($/lb) Recommendations | B201: 2.06 | C201: http://www.cnt.org/repository/gi-values-guide.pdf
A202: US Forest Service PM-10 ($/lb) Recommendations | B202: 2.84 | C202: http://www.cnt.org/repository/gi-values-guide.pdf
A203: Green Infrastructure Climate Change Inputs
A204: Avg amount of carbon sequestered by plants (lbs/SF) | B204: 0.0332 | C204: http://www.cnt.org/repository/gi-values-guide.pdf | D204: General study for species in midwest
A205: Electricity Emmission rate CO2 (lbs/Co2/kWh) | B205: =2962.84/1000 -> 2.96284 | C205: =1329.35/1000 -> 1.32935 | D205: USEPA national rate (for more localized rates, see eGRID) | E205: http://cfpub.epa.gov/egridweb/
A206: Natural Gas Emmission rate CO2 (lbs/Co2/BTU) | B206: =202.36/1000000 -> 0.00020236 | C206: =182.29/1000000 -> 0.00018229 | D206: USEPA national rate (for more localized rates, see eGRID) | E206: http://cfpub.epa.gov/egridweb/
A207: EU Emissions Trading System Price of CO2 ($/lb) lower bound | B207: 0.00756 | C207: http://www.cnt.org/repository/gi-values-guide.pdf
A208: based on Center for Neighborhood Technology Value of Green Infrastructure
A209: http://www.cnt.org/repository/gi-values-guide.pdf

Sheet Building Inputs
C1: 1. Load your Prototype buildings | EL1: Green Roofs | FI1: Biofiltration | FV1: Water Harvesting | FX1: TOTAL GREEN INFRASTRUCTURE
E2: Building and Site Characteristics | L2: Building Square Footage Mix (%) | AB2: Residential | AG2: Housing Type | AJ2: Residential Rent | AL2: Residential Sales Price | AO2: Household Characteristics | AV2: Employment | AY2: Retail | BB2: Office | BE2: Industrial | BH2: Public / Civic | BK2: Educational | BN2: Hotel / Hospitality | BU2: Commercial Parking | BX2: Parking | CB2: Residential Energy Use (Million BTU / Yr) | CF2: Commercial Energy Use (Million BTU / Yr) | CL2: Total Building Energy Use | CM2: Energy Cost | CN2: Carbon Emissions (Tons / Yr) | CQ2: Landscaping Water Consumption | CS2: Internal Water Consumption | CW2: Waste Water | DA2: Solid Waste | DE2: Land Cost | DH2: Project Value | DJ2: Subsidy | DM2: Property Tax Revenue | DP2: Sales Tax Revenue | DR2: Redevelopment Rate | DS2: Stormwater/ Green Infrastructure Water Quality | ED2: Stormwater/ Green Infrastructure Water Quality per Acre | EL2: Water | EN2: Energy | ER2: Air Quality | FE2: Climate Change | FI2: Water | FK2: Air Quality | FT2: Climate Change | FV2: Water | FX2: Water | FZ2: Energy | GA2: Air Quality | GK2: Climate Change | GM2: Water Quality Volume | GR2: Stormwater Pollution Capture | GZ2: Stormwater Pollution Capture per Acre | HH2: Trip Generation
B3: # | C3: Building Name | E3: Lot Size (Sq Ft) | F3: Building Lot Coverage | G3: Landscaping Lot Coverage | H3: Parking Lot Coverage | I3: Height (Stories) | J3: Floor Area Ratio (FAR) | K3: Bldg Sq Ft | L3: Residential | M3: Multifamily | N3: Townhome | O3: Single Family | P3: Small Lot Single Family | Q3: Medium Lot Single Family | R3: Large Lot Single Family | S3: Mobile Home | T3: Employment | U3: Retail | V3: Office | W3: Industrial | X3: Public / Civic | Y3: Educational | Z3: Hotel / Hospitality | AA3: Commercial Parking | AB3: Residential Sq Ft | AC3: Net Sq Ft per Unit | AD3: Gross Sq Ft per Unit | AE3: Dwelling Units / Building | AF3: Dwelling Units / Acre | AG3: Type of Housing | AH3: Percent Renter | AI3: Percent Owner | AJ3: Rent ($/SqFt) | AK3: Avg Rent ($/Mo.) | AL3: Sales Price ($/SqFt) | AM3: Avg Sales Price ($) | AN3: Avg Monthly Mortgage Payment ($) | AO3: Vacancy Rate | AP3: Households per Acre | AQ3: Average Household Size | AR3: Average Number of Workers in HH | AS3: Average School Age Children per Household | AT3: Estimated Household Income Based on Housing Costs | AU3: Estimated Average Employee Wage Based on Employment | AV3: Total Employment Sq Ft | AW3: Total Jobs / Building | AX3: Total Jobs / Acre | AY3: Retail Gross Sq Ft | AZ3: Space per Employee | BA3: Retail Employees / Acre | BB3: Office Gross Sq Ft | BC3: Space per Employee | BD3: Office Employees / Acre | BE3: Industrial Gross Sq Ft | BF3: Space per Employee | BG3: Industrial Employees / Acre | BH3: Public / Civic Gross Sq Ft | BI3: Space per Employee | BJ3: Public / Civic Employees / Acre | BK3: Educational Gross Sq Ft | BL3: Space per Employee | BM3: Educational Employees / Acre | BN3: Hospitality Gross Sq Ft | BO3: Space per Employee | BP3: Hospitality Employees / Acre | BQ3: Net Space per Hotel Room | BR3: Gross Space per Hotel Room | BS3: Hotel Rooms per Building | BT3: Hotel Rooms / Acre | BU3: Commercial Parking Gross Sq Ft | BV3: Space per Employee | BW3: Commercial Parking Employees / Acre | BX3: Parking Spaces | BY3: Parking SqFt | BZ3: Parking Cost ($) | CA3: % Parking Costs | CB3: Space Heating (per unit) | CC3: Space Cooling (per unit) | CD3: Other Energy (per unit) | CE3: Total per Unit | CF3: Space Heating (per building) | CG3: Space Cooling (per building) | CH3: Other Energy (per building) | CI3: Total per Commercial Area | CJ3: per Employee | CK3: per Sq Ft | CL3: Total Energy Use | CM3: Residential Energy Cost ($ / Mo) | CN3: Per Unit | CO3: Per Employee | CP3: Total CO2 Emissions per Building | CQ3: Landscaping Water Use (G/Unit/Day) | CR3: Landscaping Water Use (G/Building/Day) | CS3: Per Resident (G/Resident/Day) | CT3: Per Unit (G/Day) | CU3: Per Employee (G/Employee/Day) | CV3: Total Per Building (G/Day/Building) | CW3: Waste Water (G/Resident/Day) | CX3: Per Unit (G/Day) | CY3: Waste Water (G/Employee/Day) | CZ3: Waste Water (G/Day/Building) | DA3: Solid Waste (lbs/Resident/Day) | DB3: Per Unit (lbs/Day) | DC3: Solid Waste (lbs/Employee/Day) | DD3: Solid Waste (lbs/Day/Building) | DE3: Land Cost ($/SqFt) | DF3: Total Site Cost ($) | DG3: Site Cost ($/Acre) | DH3: Project Value ($) | DI3: Project Value per Acre ($/Acre) | DJ3: Project Subsidy ($) | DK3: Subsidy per Unit | DL3: Project Subsidy per Acre ($/Acre) | DM3: Property Tax Revenue ($/yr) | DN3: Property Tax Revenue ($/yr/Unit) | DO3: Property Tax Revenue ($/yr/Acre) | DP3: Sales Tax Revenue ($/yr) | DQ3: Sales Tax Revenue ($/yr/Acre) | DR3: Relative Value (0-1 scale) | DS3: Green Roof (Sq Ft) | DT3: Green Roof Efficiency | DU3: Green Roof Water Volume (gal) | DV3: Biofiltration (Sq Ft) | DW3: Biofiltration Efficiency | DX3: Biofiltration Water Volume (gal) | DY3: Green Roof Water Harvesting (Sq Ft) | DZ3: Green Roof Water Harvesting Efficiency | EA3: Rainwater Harvesting (Sq Ft) | EB3: Rainwater Harvesting Efficiency | EC3: Rainwater Harvesting Volume (gal) | ED3: Green Roof (Sq Ft/ Acre) | EE3: Biofiltration (Sq Ft/Acre) | EF3: Biofiltration % | EG3: Green Roof Water Harvesting (Sq Ft/Acre) | EH3: Rainwater Harvesting (Sq Ft/Acre) | EI3: Green Roof Volume (Gal/ Acre) | EJ3: Biofiltration Volume (Gal/Acre) | EK3: Rainwater Harvesting Volume (Gal/Acre) | EL3: Annual Reduction in Runoff (gal/ acre) | EM3: Avoided stormwater costs | EN3: Annual cooling (kWh/ acre) | EO3: Annual cooling savings ($/ acre) | EP3: Annual heating Savings (BTU/ acre) | EQ3: Annual heating savings ($/ acre) | ER3: Annual NO2 uptake/ deposition (lbs/ acre) | ES3: Annual O3 uptake/ deposition (lbs/ acre) | ET3: Annual SO2 uptake/ deposition (lbs/ acre) | EU3: Annual PM-10 uptake/ deposition (lbs/ acre) | EV3: NO2 Reduction from Lower Energy Production (lbs/ acre) | EW3: SO2 Reduction from Lower Energy Production (lbs/ acre) | EX3: Total NO2 Reduction (lbs/ acre) | EY3: Total SO2 Reduction (lbs/ acre) | EZ3: Value of NO2 Reduction per acre | FA3: Value of O3 Reduction per acre | FB3: Value of SO2 Reduction per acre | FC3: Value of PM-10 Reduction per acre | FD3: Total Value of Pollutant Reduction per acre | FE3: Annual Amount of CO2 Sequestered (lbs/ acre) | FF3: Avoided CO2 Emissions from Energy Savings (lbs/ acre) | FG3: Total CO2 Sequestered/ avoided per acre | FH3: Annual Climage Benefit ($/ acre) | FI3: Annual Reduction in Runoff (gal/ acre) | FJ3: Avoided stormwater costs | FK3: Annual NO2 uptake/ deposition (lbs/ acre) | FL3: Annual O3 uptake/ deposition (lbs/ acre) | FM3: Annual SO2 uptake/ deposition (lbs/ acre) | FN3: Annual PM-10 uptake/ deposition (lbs/ acre) | FO3: Value of NO2 Reduction per acre | FP3: Value of O3 Reduction per acre | FQ3: Value of SO2 Reduction per acre | FR3: Value of PM-10 Reduction per acre | FS3: Total Value of Pollutant Reduction per acre | FT3: Annual Amount of Carbon Sequestered (lbs/ acre) | FU3: Annual Climage Benefit ($/ acre) | FV3: Annual Reduction in Runoff (gal/ acre) | FW3: Avoided stormwater costs | FX3: Annual Reduction in Runoff (gal/ acre) | FY3: Avoided stormwater costs | FZ3: Total Energy Savings ($/ acre) | GA3: Total NO2 Reduction (lbs/ acre) | GB3: Total O3 reduction (lbs/ acre) | GC3: Total SO2 Reduction (lbs/ acre) | GD3: Total PM-10 reduction (lbs/ acre) | GE3: Total Pollutant reduction (lbs/ acre) | GF3: Value of NO2 Reduction per acre | GG3: Value of O3 Reduction per acre | GH3: Value of SO2 Reductionper acre | GI3: Value of PM-10 Reduction per acre | GJ3: Total Value of Pollutant Reduction ($/ acre) | GK3: Total CO2 Sequestered/ avoided (lbs/ acre) | GL3: Annual Climate Benefit ($/ acre) | GM3: Required Water Quality Volume (gal) | GN3: Conventional Water Quality Volume (gal) | GO3: Required Water Quality Volume (gal/ acre) | GP3: Conventional Facility Runoff Capture (gal/ acre) | GQ3: Green Infrastructure Runoff Capture (gal/ acre) | GR3: Total Suspended Solids load (lbs) | GS3: Total Nitrogen load (lbs) | GT3: Total Lead load (lbs) | GU3: F Coli load (1,000 colonies) | GV3: Total Suspended Solids removed (lbs) | GW3: Total Nitrogen removed (lbs) | GX3: Total Lead removed (lbs) | GY3: F Coli removed (1,000 colonies) | GZ3: Total Suspended Solids load (lbs/ acre) | HA3: Total Nitrogen load (lbs/ acre) | HB3: Total Lead load (lbs/ acre) | HC3: F Coli load (1,000 colonies/ acre) | HD3: Total Suspended Solids removed (lbs/ acre) | HE3: Total Nitrogen removed (lbs/ acre) | HF3: Total Lead removed (lbs/ acre) | HG3: F Coli removed (1,000 colonies/ acre) | HH3: EPA MXD Daily Residential Trips | HI3: EPA MXD Daily Retail Trips | HJ3: EPA MXD Daily Office/Public Trips | HK3: EPA MXD Daily Education Trips | HL3: EPA MXD Daily Other Trips | HM3: EPA MXD Daily Residential VMT | HN3: EPA MXD Daily Retail VMT | HO3: EPA MXD Daily Office/Public VMT | HP3: EPA MXD Daily Education VMT | HQ3: EPA MXD Daily Other VMT
B4: 1 | C4: Mixed-Use Residential Owner 40+ | D4: ECC Condo Towers | E4: =[1]!lot_size -> 217133 | F4: =[1]!Building_Lot_Coverage -> 0.2391072931 | G4: =[1]!Landscaping_Coverage -> 0.108 | H4: =[1]!Parking_Coverage -> 0.2528927069 | I4: =[1]!Height -> 36 | J4: =[1]!FAR -> 2.410201514 | K4: =B_Lot_Size*B_FAR -> 523334.2853 | L4: =[1]!ResPct -> 0.62 | M4: =IF(B_Housing_Type="MF",B_Res_per,0) -> 0.62 | N4: =IF(B_Housing_Type="TH",B_Res_per,0) -> 0 | O4: =IF(B_Housing_Type="SF",B_Res_per,0) -> 0 | P4: =IF(B_SF_per=1,IF(B_Lot_Size<=SF_Small_Lot_Size,1,0),0) -> 0 | Q4: =IF(B_SF_per=1,IF(AND(B_Lot_Size>SF_Small_Lot_Size,B_Lot_Size<SF_Large_Lot_Size),1,0),0) -> 0 | R4: =IF(B_SF_per=1,IF(B_Lot_Size>=SF_Large_Lot_Size,1,0),0) -> 0 | S4: =IF(B_Housing_Type="MH",B_Res_per,0) -> 0 | T4: =SUM(U4:AA4) -> 0.38 | U4: =[1]!RetPct -> 0.08 | V4: =[1]!OffPct -> 0.3 | W4: =[1]!IndPct -> 0 | X4: =[1]!PubPct -> 0 | Y4: =[1]!EduPct -> 0 | Z4: =[1]!HotelPct -> 0 | AA4: =[1]!ParkingPct -> 0 | AB4: =B_Gross_Bldg_Sq_Ft*B_Res_per -> 324467.2569 | AC4: =[1]!NetUnitSize -> 877 | AD4: =[1]!UnitSize -> 1031.764706 | AE4: =IF(B_Gross_Sq_Ft_per_Unit=0,0,(B_Residential_Sq_Ft/B_Gross_Sq_Ft_per_Unit)) -> 314.4779571 | AF4: =IF(B_Gross_Sq_Ft_per_Unit=0,0,(B_Residential_Sq_Ft/B_Gross_Sq_Ft_per_Unit)*(43560/B_Lot_Size)) -> 63.08879724 | AG4: =[1]!HousingType -> MF | AH4: =[1]!RentalPct -> 0 | AI4: =IF(B_Pct_Renter="",0,IF(B_HU_Acre=0,0,IF(B_Pct_Renter=1,0,IF(B_Pct_Renter=0,1,1-B_Pct_Renter)))) -> 1 | AJ4: =[1]!Rent -> 0 | AK4: =IF(B_Pct_Renter=0,0,B_Net_Sq_Ft_per_Unit*B_Rent_SqFt) -> 0 | AL4: =[1]!Sales_Price -> 500 | AM4: =IF(B_Pct_Owner=0,0,B_Sales_Price_SqFt*B_Net_Sq_Ft_per_Unit) -> 438500 | AN4: =IF(B_Avg_Sales_Price>0,(B_HH_Income*HCost_Max_per_Income_Owner)/12,0) -> 2629.029053 | AO4: =IF(B_Housing_Type="",0,IF(B_Housing_Type="MF",Info_Vac_Rate_MF,IF(B_Housing_Type="TH",Info_Vac_Rate_TH,IF(B_Housing_Type="SF",Info_Vac_Rate_SF,IF(B_Housing_Type="MH",Info_Vac_Rate_MH,0))))) -> 0.06 | AP4: =B_HU_Acre*(1-B_Vacancy_Rate) -> 59.3034694 | AQ4: =IF(B_Housing_Type="MF",IF((B_Net_Sq_Ft_per_Unit/Info_Sq_Ft_Res_MF)>Info_Max_HH_Size_MF,Info_Max_HH_Size_MF,B_Net_Sq_Ft_per_Unit/Info_Sq_Ft_Res_MF),IF(B_Housing_Type="TH",IF((B_Net_Sq_Ft_per_Unit/Info_Sq_Ft_Res_TH)>Info_Max_HH_Size_TH,Info_Max_HH_Size_TH,B_Net_Sq_Ft_per_Unit/Info_Sq_Ft_Res_TH),IF(B_Housing_Type="SF",IF((B_Net_Sq_Ft_per_Unit/Info_Sq_Ft_Res_SF)>Info_Max_HH_Size_SF,Info_Max_HH_Size_SF,B_Net_Sq_Ft_per_Unit/Info_Sq_Ft_Res_SF),IF(B_Housing_Type="MH",IF((B_Net_Sq_Ft_per_Unit/Info_Sq_Ft_Res_MH)>Info_Max_HH_Size_MH,Info_Max_HH_Size_MH,B_Net_Sq_Ft_per_Unit/Info_Sq_Ft_Res_MH),0)))) -> 1.75751503 | AR4: =B_HH_Size*0.6 -> 1.054509018 | AS4: =IF(B_HU_Acre=0,0,IF(B_HU_Acre<School_Children_SF_Den,SUM(School_Children_Pub_SF,School_Children_Priv_SF),IF(B_HU_Acre<School_Children_TH_Den,SUM(School_Children_Pub_TH,School_Children_Priv_TH),IF(B_HU_Acre>=School_Children_TH_Den,SUM(School_Children_Pub_MF,School_Children_Priv_MF),0)))) -> 0.1951 | AT4: =IF(B_Pct_Renter=1,B_Avg_Rent*12/HCost_Max_per_Income_Renter,IF(B_Pct_Renter=0,(12/HCost_Max_per_Income_Owner)*(B_Avg_Sales_Price*((HCost_Interest_Rate/12*POWER(1+HCost_Interest_Rate/12,12*HCost_Mortgage_Yrs))/(POWER(1+HCost_Interest_Rate/12,12*HCost_Mortgage_Yrs)-1))),IF(OR(B_Pct_Renter>0,B_Pct_Renter<1),(B_Pct_Renter*B_Avg_Rent*(12/HCost_Max_per_Income_Renter))+(B_Pct_Owner*(12/HCost_Max_per_Income_Owner)*(B_Avg_Sales_Price*((HCost_Interest_Rate/12*POWER(1+HCost_Interest_Rate/12,12*HCost_Mortgage_Yrs))/(POWER(1+HCost_Interest_Rate/12,12*HCost_Mortgage_Yrs)-1))))))) -> 121339.8024 | AU4: =IF(B_EMP_Acre=0,0,((B_Ret_Emp_Acre/B_EMP_Acre*Wage_RET)+(B_OFF_Emp_Acre/B_EMP_Acre*Wage_OFF)+(B_IND_Emp_Acre/B_EMP_Acre*Wage_IND)+(B_Pub_Emp_Acre/B_EMP_Acre*Wage_OFF)+(B_Edu_Emp_Acre/B_EMP_Acre*Wage_EDU)+(B_Hotel_Emp_Acre/B_EMP_Acre*Wage_HOTEL))) -> 0 | AV4: =B_RET_Gross_Sq_Ft+B_OFF_Gross_Sq_Ft+B_IND_Gross_Sq_Ft+B_PUB_Gross_Sq_Ft+B_EDU_Gross_Sq_Ft+B_Hotel_Gross_Sq_Ft+B_PRKG_Gross_Sq_Ft -> 198867.0284 | AW4: =B_EMP_Acre*(B_Lot_Size/43560) -> 434.3674568 | AX4: =B_Ret_Emp_Acre+B_OFF_Emp_Acre+B_IND_Emp_Acre+B_Pub_Emp_Acre+B_Edu_Emp_Acre+B_Hotel_Emp_Acre+B_PRKG_Emp_Acre -> 87.1403537 | AY4: =B_Ret_per*B_Gross_Bldg_Sq_Ft -> 41866.74283 | AZ4: =[1]!RetSpace -> 1000 | BA4: =IF(B_Ret_SqFt_per_EMP=0,0,(B_RET_Gross_Sq_Ft/B_Ret_SqFt_per_EMP)*(43560/B_Lot_Size)) -> 8.399070236 | BB4: =B_OFF_per*B_Gross_Bldg_Sq_Ft -> 157000.2856 | BC4: =[1]!OffSpace -> 400 | BD4: =IF(B_Off_SqFt_per_EMP=0,0,(B_OFF_Gross_Sq_Ft/B_Off_SqFt_per_EMP)*(43560/B_Lot_Size)) -> 78.74128346 | BE4: =B_IND_per*B_Gross_Bldg_Sq_Ft -> 0 | BF4: =[1]!IndSpace -> 972 | BG4: =IF(B_IND_SqFt_per_EMP=0,0,(B_IND_Gross_Sq_Ft/B_IND_SqFt_per_EMP)*(43560/B_Lot_Size)) -> 0 | BH4: =B_Pub_Per*B_Gross_Bldg_Sq_Ft -> 0 | BI4: =[1]!PubSpace -> 1000 | BJ4: =IF(B_Pub_SqFt_per_EMP=0,0,(B_PUB_Gross_Sq_Ft/B_Pub_SqFt_per_EMP)*(43560/B_Lot_Size)) -> 0 | BK4: =B_Edu_Per*B_Gross_Bldg_Sq_Ft -> 0 | BL4: =[1]!EduSpace -> 800 | BM4: =IF(B_Edu_SqFt_per_EMP=0,0,(B_EDU_Gross_Sq_Ft/B_Edu_SqFt_per_EMP)*(43560/B_Lot_Size)) -> 0 | BN4: =B_Hotel_Per*B_Gross_Bldg_Sq_Ft -> 0 | BO4: =[1]!HotelSpaceEmp -> 1000 | BP4: =IF(B_Hotel_SqFt_per_EMP=0,0,(B_Hotel_Gross_Sq_Ft/B_Hotel_SqFt_per_EMP)*(43560/B_Lot_Size)) -> 0 | BQ4: =[1]!HotelRoomNet -> 0 | BR4: =[1]!HotelRoomGross -> 0 | BS4: =IF(B_Hotel_Room_Gross=0,0,(B_Hotel_Gross_Sq_Ft/B_Hotel_Room_Gross)) -> 0 | BT4: =IF(B_Hotel_Room_Gross=0,0,(B_Hotel_Gross_Sq_Ft/B_Hotel_Room_Gross)*(43560/B_Lot_Size)) -> 0 | BU4: =B_PRKG_per*B_Gross_Bldg_Sq_Ft -> 0 | BV4: =[1]!ParkingSpace -> 0 | BW4: =IF(B_PRKG_SqFt_per_EMP=0,0,(B_PRKG_Gross_Sq_Ft/B_PRKG_SqFt_per_EMP)*(43560/B_Lot_Size)) -> 0 | BX4: =[1]!ParkingSpaces -> 1267.185049 | BY4: =[1]!ParkingArea -> 329468.1128 | BZ4: =[1]!ParkingCost -> 12671850.49 | CA4: =IF(B_Project_Value=0,0,B_Parking_Cost/B_Project_Value) -> 0.09206018222 | CB4: =IFERROR(IF(B_Housing_Type="SF",EXP('Residential Energy Coefficients'!$B$3+'Residential Energy Coefficients'!$B$4*LN(B_Net_Sq_Ft_per_Unit)+'Residential Energy Coefficients'!$B$9+'Residential Energy Coefficients'!$B$10*LN(B_HH_Income)+'Residential Energy Coefficients'!$B$16*LN(Residential_Energy_Cost)+'Residential Energy Coefficients'!$B$20+'Residential Energy Coefficients'!$B$24*IFERROR(LOOKUP(Metro_Select,Energy_Metro_Lookup,HDD),0)),IF(B_Housing_Type="TH",EXP('Residential Energy Coefficients'!$E$3+'Residential Energy Coefficients'!$E$4*LN(B_Net_Sq_Ft_per_Unit)+'Residential Energy Coefficients'!$E$9+'Residential Energy Coefficients'!$E$16*LN(Residential_Energy_Cost)+'Residential Energy Coefficients'!$E$19+'Residential Energy Coefficients'!$E$20+'Residential Energy Coefficients'!$E$24*IFERROR(LOOKUP(Metro_Select,Energy_Metro_Lookup,HDD),0)),IF(B_Housing_Type="MF",EXP('Residential Energy Coefficients'!$H$3+'Residential Energy Coefficients'!$H$4*LN(B_Net_Sq_Ft_per_Unit)+'Residential Energy Coefficients'!$H$9+IF(B_Pct_Owner=1,'Residential Energy Coefficients'!$H$12,0)+'Residential Energy Coefficients'!$H$16*LN(Residential_Energy_Cost)+'Residential Energy Coefficients'!$H$20+'Residential Energy Coefficients'!$H$24*IFERROR(LOOKUP(Metro_Select,Energy_Metro_Lookup,HDD),0)),IF(B_Hotel_Room_Acre>0,EXP('Residential Energy Coefficients'!$H$3+'Residential Energy Coefficients'!$H$4*LN(B_Hotel_Room_Net)+'Residential Energy Coefficients'!$H$9+'Residential Energy Coefficients'!$H$16*LN(Residential_Energy_Cost)+'Residential Energy Coefficients'!$H$20+'Residential Energy Coefficients'!$H$24*IFERROR(LOOKUP(Metro_Select,Energy_Metro_Lookup,HDD),0)),IF(B_Housing_Type="MH",EXP('Residential Energy Coefficients'!$K$3+'Residential Energy Coefficients'!$K$16*LN(Residential_Energy_Cost)+'Residential Energy Coefficients'!$K$24*IFERROR(LOOKUP(Metro_Select,Energy_Metro_Lookup,HDD),0)),0)))))/1000,0) -> 0 | CC4: =IFERROR(IF(B_Housing_Type="SF",EXP('Residential Energy Coefficients'!$C$3+'Residential Energy Coefficients'!$C$4*LN(B_Net_Sq_Ft_per_Unit)+'Residential Energy Coefficients'!$C$10*LN(B_HH_Income)+'Residential Energy Coefficients'!$C$11*B_HH_Size+'Residential Energy Coefficients'!$C$16*LN(Residential_Energy_Cost)+'Residential Energy Coefficients'!$C$19+'Residential Energy Coefficients'!$C$22+'Residential Energy Coefficients'!$C$25*IFERROR(LOOKUP(Metro_Select,Energy_Metro_Lookup,CDD),0)),IF(B_Housing_Type="TH",EXP('Residential Energy Coefficients'!$F$3+'Residential Energy Coefficients'!$F$4*LN(B_Net_Sq_Ft_per_Unit)+'Residential Energy Coefficients'!$F$10*LN(B_HH_Income)+'Residential Energy Coefficients'!$F$11*B_HH_Size+IF(B_Pct_Owner=1,'Residential Energy Coefficients'!$F$12,0)+'Residential Energy Coefficients'!$F$16*LN(Residential_Energy_Cost)+'Residential Energy Coefficients'!$F$22+'Residential Energy Coefficients'!$F$25*IFERROR(LOOKUP(Metro_Select,Energy_Metro_Lookup,CDD),0)),IF(B_Housing_Type="MF",EXP('Residential Energy Coefficients'!$I$3+'Residential Energy Coefficients'!$I$4*LN(B_Net_Sq_Ft_per_Unit)+'Residential Energy Coefficients'!$I$9+'Residential Energy Coefficients'!$I$11*B_HH_Size+'Residential Energy Coefficients'!$I$16*LN(Residential_Energy_Cost)+'Residential Energy Coefficients'!$I$22+'Residential Energy Coefficients'!$I$25*IFERROR(LOOKUP(Metro_Select,Energy_Metro_Lookup,CDD),0)),IF(B_Hotel_Room_Acre>0,EXP('Residential Energy Coefficients'!$I$3+'Residential Energy Coefficients'!$I$4*LN(B_Hotel_Room_Net)+'Residential Energy Coefficients'!$I$9+'Residential Energy Coefficients'!$I$11*1.25+'Residential Energy Coefficients'!$I$16*LN(Residential_Energy_Cost)+'Residential Energy Coefficients'!$I$22+'Residential Energy Coefficients'!$I$25*IFERROR(LOOKUP(Metro_Select,Energy_Metro_Lookup,CDD),0)),IF(B_Housing_Type="MH",EXP('Residential Energy Coefficients'!$L$3+'Residential Energy Coefficients'!$L$11*B_HH_Size+'Residential Energy Coefficients'!$L$16*LN(Residential_Energy_Cost)+'Residential Energy Coefficients'!$L$22+'Residential Energy Coefficients'!$L$25*IFERROR(LOOKUP(Metro_Select,Energy_Metro_Lookup,CDD),0)),0)))))/1000,0) -> 0 | CD4: =IFERROR(IF(B_Housing_Type="SF",EXP('Residential Energy Coefficients'!$D$3+'Residential Energy Coefficients'!$D$4*LN(B_Net_Sq_Ft_per_Unit)+'Residential Energy Coefficients'!$D$9+'Residential Energy Coefficients'!$D$10*LN(B_HH_Income)+'Residential Energy Coefficients'!$D$11*B_HH_Size+IF(B_Pct_Owner=1,'Residential Energy Coefficients'!$D$12,0)+'Residential Energy Coefficients'!$D$16*LN(Residential_Energy_Cost)),IF(B_Housing_Type="TH",EXP('Residential Energy Coefficients'!$G$3+'Residential Energy Coefficients'!$G$4*LN(B_Net_Sq_Ft_per_Unit)+'Residential Energy Coefficients'!$G$10*LN(B_HH_Income)+'Residential Energy Coefficients'!$G$11*B_HH_Size+'Residential Energy Coefficients'!$G$16*LN(Residential_Energy_Cost)),IF(B_Housing_Type="MF",EXP('Residential Energy Coefficients'!$J$3+'Residential Energy Coefficients'!$J$4*LN(B_Net_Sq_Ft_per_Unit)+'Residential Energy Coefficients'!$J$10*LN(B_HH_Income)+'Residential Energy Coefficients'!$J$11*B_HH_Size+IF(B_Pct_Owner=1,'Residential Energy Coefficients'!$J$12,0)+'Residential Energy Coefficients'!$J$16*LN(Residential_Energy_Cost)+'Residential Energy Coefficients'!$J$19),IF(B_Hotel_Room_Acre>0,EXP('Residential Energy Coefficients'!$J$3+'Residential Energy Coefficients'!$J$4*LN(B_Hotel_Room_Net)+'Residential Energy Coefficients'!$J$16*LN(Residential_Energy_Cost)+'Residential Energy Coefficients'!$J$19),IF(B_Housing_Type="MH",EXP('Residential Energy Coefficients'!$M$3+'Residential Energy Coefficients'!$M$4*LN(B_Net_Sq_Ft_per_Unit)+'Residential Energy Coefficients'!$M$11*B_HH_Size+'Residential Energy Coefficients'!$M$16*LN(Residential_Energy_Cost)+'Residential Energy Coefficients'!$M$19),0)))))/1000,0) -> 0 | CE4: =SUM(CB4:CD4) -> 0 | CF4: =(IFERROR(EXP('Commercial Energy Coefficients'!$B$3+LN(B_RET_Gross_Sq_Ft)*'Commercial Energy Coefficients'!$B$4+'Commercial Energy Coefficients'!$B$11+'Commercial Energy Coefficients'!$B$14+'Commercial Energy Coefficients'!$B$18*LN((B_Ret_Emp_Acre)*(B_Lot_Size/43560))+'Commercial Energy Coefficients'!$B$19*LN(40)+'Commercial Energy Coefficients'!$B$21+'Commercial Energy Coefficients'!$B$22*LN(Commercial_Energy_Cost)+'Commercial Energy Coefficients'!$B$23*IFERROR(LOOKUP(Metro_Select,Energy_Metro_Lookup,HDD),0)),0)+IFERROR(EXP('Commercial Energy Coefficients'!$E$3+LN(B_OFF_Gross_Sq_Ft)*'Commercial Energy Coefficients'!$E$4+'Commercial Energy Coefficients'!$E$11+'Commercial Energy Coefficients'!$E$14+'Commercial Energy Coefficients'!$E$18*LN((B_OFF_Emp_Acre)*(B_Lot_Size/43560))+'Commercial Energy Coefficients'!$E$19*LN(40)+'Commercial Energy Coefficients'!$E$21+'Commercial Energy Coefficients'!$E$22*LN(Commercial_Energy_Cost)+'Commercial Energy Coefficients'!$E$23*IFERROR(LOOKUP(Metro_Select,Energy_Metro_Lookup,HDD),0)),0)+IFERROR(EXP('Commercial Energy Coefficients'!$H$3+LN(B_PUB_Gross_Sq_Ft)*'Commercial Energy Coefficients'!$H$4+'Commercial Energy Coefficients'!$H$11+'Commercial Energy Coefficients'!$H$14+'Commercial Energy Coefficients'!$H$18*LN((B_Pub_Emp_Acre)*(B_Lot_Size/43560))+'Commercial Energy Coefficients'!$H$19*LN(40)+'Commercial Energy Coefficients'!$H$21+'Commercial Energy Coefficients'!$H$22*LN(Commercial_Energy_Cost)+'Commercial Energy Coefficients'!$H$23*IFERROR(LOOKUP(Metro_Select,Energy_Metro_Lookup,HDD),0)),0))/1000 -> 0 | CG4: =(IFERROR(EXP('Commercial Energy Coefficients'!$C$3+LN((B_RET_Gross_Sq_Ft))*'Commercial Energy Coefficients'!$C$4+'Commercial Energy Coefficients'!$C$11+'Commercial Energy Coefficients'!$C$14+'Commercial Energy Coefficients'!$C$18*LN((B_Ret_Emp_Acre)*(B_Lot_Size/43560))+'Commercial Energy Coefficients'!$C$19*LN(40)+'Commercial Energy Coefficients'!$C$21+'Commercial Energy Coefficients'!$C$22*LN(Commercial_Energy_Cost)+'Commercial Energy Coefficients'!$C$24*IFERROR(LOOKUP(Metro_Select,Energy_Metro_Lookup,CDD),0)),0)+IFERROR(EXP('Commercial Energy Coefficients'!$F$3+LN((B_OFF_Gross_Sq_Ft))*'Commercial Energy Coefficients'!$F$4+'Commercial Energy Coefficients'!$F$11+'Commercial Energy Coefficients'!$F$14+'Commercial Energy Coefficients'!$F$18*LN((B_OFF_Emp_Acre)*(B_Lot_Size/43560))+'Commercial Energy Coefficients'!$F$19*LN(40)+'Commercial Energy Coefficients'!$F$21+'Commercial Energy Coefficients'!$F$22*LN(Commercial_Energy_Cost)+'Commercial Energy Coefficients'!$F$24*IFERROR(LOOKUP(Metro_Select,Energy_Metro_Lookup,CDD),0)),0)+IFERROR(EXP('Commercial Energy Coefficients'!$I$3+LN((B_PUB_Gross_Sq_Ft))*'Commercial Energy Coefficients'!$I$4+'Commercial Energy Coefficients'!$I$11+'Commercial Energy Coefficients'!$I$14+'Commercial Energy Coefficients'!$I$18*LN((B_Pub_Emp_Acre)*(B_Lot_Size/43560))+'Commercial Energy Coefficients'!$I$19*LN(40)+'Commercial Energy Coefficients'!$I$21+'Commercial Energy Coefficients'!$I$22*LN(Commercial_Energy_Cost)+'Commercial Energy Coefficients'!$I$24*IFERROR(LOOKUP(Metro_Select,Energy_Metro_Lookup,CDD),0)),0))/1000 -> 0 | CH4: =(IFERROR(EXP('Commercial Energy Coefficients'!$D$3+LN((B_RET_Gross_Sq_Ft))*'Commercial Energy Coefficients'!$D$4+'Commercial Energy Coefficients'!$D$14+'Commercial Energy Coefficients'!$D$18*LN((B_Ret_Emp_Acre)*(B_Lot_Size/43560))+'Commercial Energy Coefficients'!$D$19*LN(40)+'Commercial Energy Coefficients'!$D$21+'Commercial Energy Coefficients'!$D$22*LN(Commercial_Energy_Cost)),0)+IFERROR(EXP('Commercial Energy Coefficients'!$G$3+LN((B_OFF_Gross_Sq_Ft))*'Commercial Energy Coefficients'!$G$4+'Commercial Energy Coefficients'!$G$14+'Commercial Energy Coefficients'!$G$18*LN((B_OFF_Emp_Acre)*(B_Lot_Size/43560))+'Commercial Energy Coefficients'!$G$19*LN(40)+'Commercial Energy Coefficients'!$G$21+'Commercial Energy Coefficients'!$G$22*LN(Commercial_Energy_Cost)),0)+IFERROR(EXP('Commercial Energy Coefficients'!$J$3+LN((B_PUB_Gross_Sq_Ft))*'Commercial Energy Coefficients'!$J$4+'Commercial Energy Coefficients'!$J$14+'Commercial Energy Coefficients'!$J$18*LN((B_Pub_Emp_Acre)*(B_Lot_Size/43560))+'Commercial Energy Coefficients'!$J$19*LN(40)+'Commercial Energy Coefficients'!$J$21+'Commercial Energy Coefficients'!$J$22*LN(Commercial_Energy_Cost)),0))/1000 -> 0 | CI4: =SUM(CF4:CH4) -> 0 | CJ4: =IFERROR(B_Com_Energy_Use/B_EMP_Building,0) -> 0 | CK4: =IFERROR(B_Com_Energy_Use/B_Tot_EMP_SqFt,0) -> 0 | CL4: =(B_res_energy_use*(B_Hotel_Rooms_per_Building+B_HU_Building))+B_Com_Energy_Use -> 0 | CM4: =(B_res_energy_use*Residential_Energy_Cost)/12 -> 0 | CN4: =IFERROR((B_res_energy_use*SUMPRODUCT(Energy_Carbon_perMMBTU,Energy_Fuel_Mix)),0) -> 0 | CO4: =IFERROR((B_Com_Energy_Use_per_Emp*SUMPRODUCT(Energy_Carbon_perMMBTU,Energy_Fuel_Mix)),0) -> 0 | CP4: =B_Total_Bldg_Energy_Use*SUMPRODUCT(Energy_Carbon_perMMBTU,Energy_Fuel_Mix) -> 0 | CQ4: =IFERROR(B_LW_Bldg/B_HU_Building,0) -> 1.731440909 | CR4: =IF((B_Lot_Size*B_Landscaping_Lot_Coverage)>Maximum_Watered_Lawn_Area*43560,Maximum_Watered_Lawn_Area*43560*Water_per_Sq_Foot_of_Lawn_Area,B_Lot_Size*B_Landscaping_Lot_Coverage*Water_per_Sq_Foot_of_Lawn_Area) -> 544.5 | CS4: =IF(OR(B_Housing_Type="MF",B_Hotel_Room_Acre>0),Info_IW_MF,IF(B_Housing_Type="TH",Info_IW_TH,IF(AND(OR(B_Housing_Type="SF",B_Housing_Type="MH"),B_Net_Sq_Ft_per_Unit>0,B_Net_Sq_Ft_per_Unit<3000),Info_IW_MD_SF,IF(AND(OR(B_Housing_Type="SF",B_Housing_Type="MH"),B_Net_Sq_Ft_per_Unit>=3000),Info_IW_LRG_SF,0)))) -> 60 | CT4: =(B_IW_Res*B_HH_Size) -> 105.4509018 | CU4: =IF(B_EMP_Acre=0,0,(B_Ret_Emp_Acre/B_EMP_Acre*Info_IW_RET)+(B_OFF_Emp_Acre/B_EMP_Acre*Info_IW_OFF)+(B_IND_Emp_Acre/B_EMP_Acre*Info_IW_IND)) -> 102.3373494 | CV4: =(B_HU_Building*B_IW_Res)+(B_EMP_Building*B_IW_Emp) -> 63320.69162 | CW4: =IF(B_Housing_Type="",0,IF(B_Housing_Type="MF",Info_WW_MF,IF(B_Housing_Type="TH",Info_WW_TH,IF(AND(B_Housing_Type="SF",B_Net_Sq_Ft_per_Unit>0,B_Net_Sq_Ft_per_Unit<3000),Info_WW_MD_SF,IF(AND(B_Housing_Type="SF",B_Net_Sq_Ft_per_Unit>=3000),Info_WW_LRG_SF))))) -> 35 | CX4: =(B_WW_Res*B_HH_Size) -> 61.51302605 | CY4: =IF(B_EMP_Acre=0,0,(B_Ret_Emp_Acre/B_EMP_Acre*Info_WW_RET)+(B_OFF_Emp_Acre/B_EMP_Acre*Info_WW_OFF)+(B_IND_Emp_Acre/B_EMP_Acre*Info_WW_IND)) -> 47.93975904 | CZ4: =(B_HU_Building*B_WW_Res)+(B_EMP_Building*B_WW_Emp) -> 31830.19971 | DA4: =IF(B_Housing_Type="",0,IF(B_Housing_Type="MF",'Project Info'!$B$158,IF(B_Housing_Type="TH",'Project Info'!$B$159,IF(AND(B_Housing_Type="SF",B_Net_Sq_Ft_per_Unit>0,B_Net_Sq_Ft_per_Unit<3000),'Project Info'!$B$160,IF(AND(B_Housing_Type="SF",B_Net_Sq_Ft_per_Unit>=3000),'Project Info'!$B$161))))) -> 1.5 | DB4: =(B_SW_Res*B_HH_Size) -> 2.636272545 | DC4: =IF(B_EMP_Acre=0,0,(B_Ret_Emp_Acre/B_EMP_Acre*Info_SW_RET)+(B_OFF_Emp_Acre/B_EMP_Acre*Info_SW_OFF)+(B_IND_Emp_Acre/B_EMP_Acre*Info_SW_IND)) -> 3.644578313 | DD4: =(B_HU_Building*B_SW_Res)+(B_EMP_Building*B_SW_Emp) -> 2054.803149 | DE4: =[1]!LandCost -> 66.77934722 | DF4: =B_Land_Cost_SqFt*B_Lot_Size -> 14500000 | DG4: =IF(B_Lot_Size=0,0,B_Land_Cost_Lot*(43560/B_Lot_Size)) -> 2908908.365 | DH4: =[1]!ProjectValue -> 137647462.7 | DI4: =IF(B_Lot_Size=0,0,B_Project_Value*(43560/B_Lot_Size)) -> 27614059 | DJ4: =[1]!Subsidy -> 0 | DK4: =IF(B_HU_Building=0,0,(B_Res_per*B_Subsidy)/B_HU_Building) -> 0 | DL4: =IF(B_Lot_Size=0,0,B_Project_Subsidy*(43560/B_Lot_Size)) -> 0 | DM4: =IFERROR((Prop_Tax_Rate_Res*Prop_Tax_Assess_Ratio_Res*B_Res_per*B_Project_Value)+(Prop_Tax_Rate_Com*Prop_Tax_Assess_Ratio_Com*(B_Ret_per+B_OFF_per+B_IND_per+B_Hotel_Per)*B_Project_Value),0) -> 0 | DN4: =IFERROR((Prop_Tax_Rate_Res*Prop_Tax_Assess_Ratio_Res*B_Res_per*B_Project_Value)/B_HU_Building,0) -> 0 | DO4: =IFERROR(B_Property_Tax_Revenue*(43560/B_Lot_Size),0) -> 0 | DP4: =Sales_Tax_Rate*Sales_per_SqFt*B_RET_Gross_Sq_Ft -> 0 | DQ4: =IFERROR(B_Sales_Tax_Revenue*(43560/B_Lot_Size),0) -> 0 | DR4: =IFERROR(B_FAR/MAX(B_FAR),0) -> 0.1794639995 | DS4: =[1]!GreenRoof -> 0 | DT4: =[1]!GreenRoofEff -> 0 | DU4: =[1]!GreenRoofVolume -> 0 | DV4: =[1]!Biofiltration -> 0 | DW4: =[1]!BiofiltrationEff -> 0 | DX4: =[1]!BiofiltrationVolume -> 0 | DY4: =[1]!GreenRoofHarvesting -> 0 | DZ4: =[1]!GreenRoofHarvestingEff -> 0 | EA4: =[1]!WaterHarvesting -> 0 | EB4: =[1]!WaterHarvestingEff -> 0 | EC4: =[1]!WaterHarvestingVolume -> 0 | ED4: =DS4*E4/43560 -> 0 | EE4: =DV4*$E4/43560 -> 0 | EG4: =DY4*$E4/43560 -> 0 | EH4: =EA4*$E4/43560 -> 0 | EI4: =DU4*I4/43560 -> 0 | EJ4: =DX4*$E4/43560 -> 0 | EK4: =EC4*$E4/43560 -> 0 | EL4: =Average_annual_rainfall_in*$ED4*$DT4*144*0.00433 -> 0 | EN4: =Annual_Cooling_degree_days*24*(1/R_conventional_SF_F_hrs_BTU-1/R_green_roof_SF_F_hrs_Btu)/3412*'Building Inputs'!$ED4 -> 0 | EO4: =EN4*Cost_per_kWh -> 0 | EP4: =Annual_Heating_degree_days*24*(1/R_conventional_SF_F_hrs_BTU-1/R_green_roof_SF_F_hrs_Btu)*'Building Inputs'!$ED4 -> 0 | EQ4: =EP4*Cost_per_BUT -> 0 | ER4: =Avg_Annual_NO2_uptake*'Building Inputs'!$ED4 -> 0 | ES4: =Avg_Annual_O3_uptake*'Building Inputs'!$ED4 -> 0 | ET4: =Avg_Annual_SO2_uptake*'Building Inputs'!$ED4 -> 0 | EU4: =Avg_Annual_PM_10_uptake*'Building Inputs'!$ED4 -> 0 | EV4: =EN4*Electricity_Emmission_rates_NO2+EP4*Natural_Gas_Emmission_rates_NO2 -> 0 | EW4: =EN4*Electricity_Emmission_rates_SO2+EP4*Natural_Gas_Emmission_rates_SO2 -> 0 | EX4: =ER4+EV4 -> 0 | EY4: =ET4+EW4 -> 0 | EZ4: =EX4*NO2_price_lb -> 0 | FA4: =ES4*O3_price_lb -> 0 | FB4: =EY4*SO2_price_lb -> 0 | FC4: =EU4*PM_10_price_lb -> 0 | FD4: =SUM(EZ4:FC4) -> 0 | FE4: =Avg_amount_of_carbon_sequestered_lbs_SF*'Building Inputs'!$ED4*3.67 -> 0 | FF4: =EN4*Electricity_Emmission_rate_CO2+EP4*Natural_gas_Emmission_rate_CO2 -> 0 | FG4: =FE4+FF4 -> 0 | FH4: =FG4*CO2_price_lb -> 0 | FI4: =Average_annual_rainfall_in*($E4*(1-$G4)+$DV4-$DS4-$EA4)*$E4/43560*'Building Inputs'!$DW4*144*0.00433 -> 0 | FK4: =Avg_Annual_NO2_uptake*'Building Inputs'!$EE4 -> 0 | FL4: =Avg_Annual_O3_uptake*'Building Inputs'!$EE4 -> 0 | FM4: =Avg_Annual_SO2_uptake*'Building Inputs'!$EE4 -> 0 | FN4: =Avg_Annual_PM_10_uptake*'Building Inputs'!$EE4 -> 0 | FO4: =FK4*NO2_price_lb -> 0 | FP4: =FL4*O3_price_lb -> 0 | FQ4: =FM4*SO2_price_lb -> 0 | FR4: =FN4*PM_10_price_lb -> 0 | FS4: =SUM(FO4:FR4) -> 0 | FT4: =Avg_amount_of_carbon_sequestered_lbs_SF*'Building Inputs'!$EE4*3.67 -> 0 | FU4: =FT4*CO2_price_lb -> 0 | FV4: =Average_annual_rainfall_in*('Building Inputs'!$EG4*'Building Inputs'!$DZ4+'Building Inputs'!$EH4*'Building Inputs'!$EB4)*144*0.00433 -> 0 | FW4: ? | FX4: =EL4+FI4+FV4 -> 0 | FZ4: =EO4+EQ4 -> 0 | GA4: =EX4+FK4 -> 0 | GB4: =ES4+FL4 -> 0 | GC4: =EY4+FM4 -> 0 | GD4: =EU4+FN4 -> 0 | GE4: =SUM(GA4:GD4) -> 0 | GF4: =GA4*NO2_price_lb -> 0 | GG4: =GB4*O3_price_lb -> 0 | GH4: =GC4*SO2_price_lb -> 0 | GI4: =GD4*PM_10_price_lb -> 0 | GJ4: =SUM(GF4:GI4) -> 0 | GK4: =FG4+FT4 -> 0 | GL4: =GK4*CO2_price_lb -> 0 | GM4: =[1]!RequiredWQV -> 66698.62543 | GN4: =[1]!ConventionalWQV -> 0 | GO4: =GM4*E4/43560 -> 332471.8236 | GP4: =GN4*E4/43560 -> 0 | GQ4: =(DU4+DX4+EC4)*E4/43560 -> 0 | GR4: =[1]!TSSload -> 210.7104659 | GS4: =[1]!TNload -> 15.95619057 | GT4: =[1]!TLload -> 0.2318488073 | GU4: =[1]!fColiLoad -> 80447.08005 | GV4: =[1]!TSSreduction -> 0 | GW4: =[1]!TNreduction -> 0 | GX4: =[1]!TLreduction -> 0 | GY4: =[1]!fColiReduction -> 0 | GZ4: =GR4*$E4/43560 -> 1050.325886 | HA4: 79.53662825 | HB4: 1.155693918 | HC4: 401003.5774 | HD4: =GV4*$E4/43560 -> 0 | HE4: =GW4*$E4/43560 -> 0 | HF4: =GX4*$E4/43560 -> 0 | HG4: =GY4*$E4/43560 -> 0 | HH4: =[1]!EPA_MXD_ResTrips -> 1216.846722 | HI4: =[1]!EPA_MXD_RetTrips -> 1664.181155 | HJ4: =[1]!EPA_MXD_OffTrips -> 1206.279424 | HK4: =[1]!EPA_MXD_EduTrips -> 0 | HL4: =[1]!EPA_MXD_OtherTrips -> 0 | HM4: =[1]!EPA_MXD_ResVMT -> 3467.853317 | HN4: =[1]!EPA_MXD_RetVMT -> 4344.916876 | HO4: =[1]!EPA_MXD_OffVMT -> 3892.459578 | HP4: =[1]!EPA_MXD_EduVMT -> 0 | HQ4: =[1]!EPA_MXD_OtherVMT -> 0
B5: 2 | C5: Mixed-Use Residential and Hotel 30+ | D5: W Block 21 | E5: =[2]!lot_size -> 76622 | F5: =[2]!Building_Lot_Coverage -> 0.5143423683 | G5: =[2]!Landscaping_Coverage -> 2.848773569e-16 | H5: =[2]!Parking_Coverage -> 0.4856576317 | I5: =[2]!Height -> 37 | J5: =[2]!FAR -> 10.84 | K5: 830582.48 | L5: =[2]!ResPct -> 0.51 | M5: 0.51 | N5: 0 | O5: 0 | P5: 0 | Q5: 0 | R5: 0 | S5: 0 | T5: =SUM(U5:AA5) -> 0.49 | U5: =[2]!RetPct -> 0.18 | V5: =[2]!OffPct -> 0 | W5: =[2]!IndPct -> 0 | X5: =[2]!PubPct -> 0 | Y5: =[2]!EduPct -> 0 | Z5: =[2]!HotelPct -> 0.31 | AA5: =[2]!ParkingPct -> 0 | AB5: 423597.0648 | AC5: =[2]!NetUnitSize -> 2205.25 | AD5: =[2]!UnitSize -> 2394.382254 | AE5: 176.9128818 | AF5: 100.5758807 | AG5: =[2]!HousingType -> MF | AH5: =[2]!RentalPct -> 0 | AI5: 1 | AJ5: =[2]!Rent -> 0 | AK5: 0 | AL5: =[2]!Sales_Price -> 600 | AM5: 1323150 | AN5: 7932.952774 | AO5: 0.06 | AP5: 94.54132788 | AQ5: 2 | AR5: 1.2 | AS5: 0.1951 | AT5: 366136.2819 | AU5: 0 | AV5: 406985.4152 | AW5: 406.9854152 | AX5: 231.373296 | AY5: 149504.8464 | AZ5: =[2]!RetSpace -> 1000 | BA5: 84.994272 | BB5: 0 | BC5: =[2]!OffSpace -> 250 | BD5: 0 | BE5: 0 | BF5: =[2]!IndSpace -> 972 | BG5: 0 | BH5: 0 | BI5: =[2]!PubSpace -> 1000 | BJ5: 0 | BK5: 0 | BL5: =[2]!EduSpace -> 800 | BM5: 0 | BN5: 257480.5688 | BO5: =[2]!HotelSpaceEmp -> 1000 | BP5: 146.379024 | BQ5: =[2]!HotelRoomNet -> 942.9043825 | BR5: =[2]!HotelRoomGross -> 1023.772144 | BS5: 251.501831 | BT5: 142.9800809 | BU5: 0 | BV5: =[2]!ParkingSpace -> 0 | BW5: 0 | BX5: =[2]!ParkingSpaces -> 468.0908031 | BY5: =[2]!ParkingArea -> 152129.511 | BZ5: =[2]!ParkingCost -> 12719221.52 | CA5: 0.05481673565 | CB5: =IFERROR(IF(B_Housing_Type="SF",EXP('Residential Energy Coefficients'!$B$3+'Residential Energy Coefficients'!$B$4*LN(B_Net_Sq_Ft_per_Unit)+'Residential Energy Coefficients'!$B$9+'Residential Energy Coefficients'!$B$10*LN(B_HH_Income)+'Residential Energy Coefficients'!$B$16*LN(Residential_Energy_Cost)+'Residential Energy Coefficients'!$B$20+'Residential Energy Coefficients'!$B$24*IFERROR(LOOKUP(Metro_Select,Energy_Metro_Lookup,HDD),0)),IF(B_Housing_Type="TH",EXP('Residential Energy Coefficients'!$E$3+'Residential Energy Coefficients'!$E$4*LN(B_Net_Sq_Ft_per_Unit)+'Residential Energy Coefficients'!$E$9+'Residential Energy Coefficients'!$E$16*LN(Residential_Energy_Cost)+'Residential Energy Coefficients'!$E$19+'Residential Energy Coefficients'!$E$20+'Residential Energy Coefficients'!$E$24*IFERROR(LOOKUP(Metro_Select,Energy_Metro_Lookup,HDD),0)),IF(B_Housing_Type="MF",EXP('Residential Energy Coefficients'!$H$3+'Residential Energy Coefficients'!$H$4*LN(B_Net_Sq_Ft_per_Unit)+'Residential Energy Coefficients'!$H$9+IF(B_Pct_Owner=1,'Residential Energy Coefficients'!$H$12,0)+'Residential Energy Coefficients'!$H$16*LN(Residential_Energy_Cost)+'Residential Energy Coefficients'!$H$20+'Residential Energy Coefficients'!$H$24*IFERROR(LOOKUP(Metro_Select,Energy_Metro_Lookup,HDD),0)),IF(B_Hotel_Room_Acre>0,EXP('Residential Energy Coefficients'!$H$3+'Residential Energy Coefficients'!$H$4*LN(B_Hotel_Room_Net)+'Residential Energy Coefficients'!$H$9+'Residential Energy Coefficients'!$H$16*LN(Residential_Energy_Cost)+'Residential Energy Coefficients'!$H$20+'Residential Energy Coefficients'!$H$24*IFERROR(LOOKUP(Metro_Select,Energy_Metro_Lookup,HDD),0)),IF(B_Housing_Type="MH",EXP('Residential Energy Coefficients'!$K$3+'Residential Energy Coefficients'!$K$16*LN(Residential_Energy_Cost)+'Residential Energy Coefficients'!$K$24*IFERROR(LOOKUP(Metro_Select,Energy_Metro_Lookup,HDD),0)),0)))))/1000,0) -> 0 | CC5: =IFERROR(IF(B_Housing_Type="SF",EXP('Residential Energy Coefficients'!$C$3+'Residential Energy Coefficients'!$C$4*LN(B_Net_Sq_Ft_per_Unit)+'Residential Energy Coefficients'!$C$10*LN(B_HH_Income)+'Residential Energy Coefficients'!$C$11*B_HH_Size+'Residential Energy Coefficients'!$C$16*LN(Residential_Energy_Cost)+'Residential Energy Coefficients'!$C$19+'Residential Energy Coefficients'!$C$22+'Residential Energy Coefficients'!$C$25*IFERROR(LOOKUP(Metro_Select,Energy_Metro_Lookup,CDD),0)),IF(B_Housing_Type="TH",EXP('Residential Energy Coefficients'!$F$3+'Residential Energy Coefficients'!$F$4*LN(B_Net_Sq_Ft_per_Unit)+'Residential Energy Coefficients'!$F$10*LN(B_HH_Income)+'Residential Energy Coefficients'!$F$11*B_HH_Size+IF(B_Pct_Owner=1,'Residential Energy Coefficients'!$F$12,0)+'Residential Energy Coefficients'!$F$16*LN(Residential_Energy_Cost)+'Residential Energy Coefficients'!$F$22+'Residential Energy Coefficients'!$F$25*IFERROR(LOOKUP(Metro_Select,Energy_Metro_Lookup,CDD),0)),IF(B_Housing_Type="MF",EXP('Residential Energy Coefficients'!$I$3+'Residential Energy Coefficients'!$I$4*LN(B_Net_Sq_Ft_per_Unit)+'Residential Energy Coefficients'!$I$9+'Residential Energy Coefficients'!$I$11*B_HH_Size+'Residential Energy Coefficients'!$I$16*LN(Residential_Energy_Cost)+'Residential Energy Coefficients'!$I$22+'Residential Energy Coefficients'!$I$25*IFERROR(LOOKUP(Metro_Select,Energy_Metro_Lookup,CDD),0)),IF(B_Hotel_Room_Acre>0,EXP('Residential Energy Coefficients'!$I$3+'Residential Energy Coefficients'!$I$4*LN(B_Hotel_Room_Net)+'Residential Energy Coefficients'!$I$9+'Residential Energy Coefficients'!$I$11*1.25+'Residential Energy Coefficients'!$I$16*LN(Residential_Energy_Cost)+'Residential Energy Coefficients'!$I$22+'Residential Energy Coefficients'!$I$25*IFERROR(LOOKUP(Metro_Select,Energy_Metro_Lookup,CDD),0)),IF(B_Housing_Type="MH",EXP('Residential Energy Coefficients'!$L$3+'Residential Energy Coefficients'!$L$11*B_HH_Size+'Residential Energy Coefficients'!$L$16*LN(Residential_Energy_Cost)+'Residential Energy Coefficients'!$L$22+'Residential Energy Coefficients'!$L$25*IFERROR(LOOKUP(Metro_Select,Energy_Metro_Lookup,CDD),0)),0)))))/1000,0) -> 0 | CD5: =IFERROR(IF(B_Housing_Type="SF",EXP('Residential Energy Coefficients'!$D$3+'Residential Energy Coefficients'!$D$4*LN(B_Net_Sq_Ft_per_Unit)+'Residential Energy Coefficients'!$D$9+'Residential Energy Coefficients'!$D$10*LN(B_HH_Income)+'Residential Energy Coefficients'!$D$11*B_HH_Size+IF(B_Pct_Owner=1,'Residential Energy Coefficients'!$D$12,0)+'Residential Energy Coefficients'!$D$16*LN(Residential_Energy_Cost)),IF(B_Housing_Type="TH",EXP('Residential Energy Coefficients'!$G$3+'Residential Energy Coefficients'!$G$4*LN(B_Net_Sq_Ft_per_Unit)+'Residential Energy Coefficients'!$G$10*LN(B_HH_Income)+'Residential Energy Coefficients'!$G$11*B_HH_Size+'Residential Energy Coefficients'!$G$16*LN(Residential_Energy_Cost)),IF(B_Housing_Type="MF",EXP('Residential Energy Coefficients'!$J$3+'Residential Energy Coefficients'!$J$4*LN(B_Net_Sq_Ft_per_Unit)+'Residential Energy Coefficients'!$J$10*LN(B_HH_Income)+'Residential Energy Coefficients'!$J$11*B_HH_Size+IF(B_Pct_Owner=1,'Residential Energy Coefficients'!$J$12,0)+'Residential Energy Coefficients'!$J$16*LN(Residential_Energy_Cost)+'Residential Energy Coefficients'!$J$19),IF(B_Hotel_Room_Acre>0,EXP('Residential Energy Coefficients'!$J$3+'Residential Energy Coefficients'!$J$4*LN(B_Hotel_Room_Net)+'Residential Energy Coefficients'!$J$16*LN(Residential_Energy_Cost)+'Residential Energy Coefficients'!$J$19),IF(B_Housing_Type="MH",EXP('Residential Energy Coefficients'!$M$3+'Residential Energy Coefficients'!$M$4*LN(B_Net_Sq_Ft_per_Unit)+'Residential Energy Coefficients'!$M$11*B_HH_Size+'Residential Energy Coefficients'!$M$16*LN(Residential_Energy_Cost)+'Residential Energy Coefficients'!$M$19),0)))))/1000,0) -> 0 | CE5: =SUM(CB5:CD5) -> 0 | CF5: =(IFERROR(EXP('Commercial Energy Coefficients'!$B$3+LN(B_RET_Gross_Sq_Ft)*'Commercial Energy Coefficients'!$B$4+'Commercial Energy Coefficients'!$B$11+'Commercial Energy Coefficients'!$B$14+'Commercial Energy Coefficients'!$B$18*LN((B_Ret_Emp_Acre)*(B_Lot_Size/43560))+'Commercial Energy Coefficients'!$B$19*LN(40)+'Commercial Energy Coefficients'!$B$21+'Commercial Energy Coefficients'!$B$22*LN(Commercial_Energy_Cost)+'Commercial Energy Coefficients'!$B$23*IFERROR(LOOKUP(Metro_Select,Energy_Metro_Lookup,HDD),0)),0)+IFERROR(EXP('Commercial Energy Coefficients'!$E$3+LN(B_OFF_Gross_Sq_Ft)*'Commercial Energy Coefficients'!$E$4+'Commercial Energy Coefficients'!$E$11+'Commercial Energy Coefficients'!$E$14+'Commercial Energy Coefficients'!$E$18*LN((B_OFF_Emp_Acre)*(B_Lot_Size/43560))+'Commercial Energy Coefficients'!$E$19*LN(40)+'Commercial Energy Coefficients'!$E$21+'Commercial Energy Coefficients'!$E$22*LN(Commercial_Energy_Cost)+'Commercial Energy Coefficients'!$E$23*IFERROR(LOOKUP(Metro_Select,Energy_Metro_Lookup,HDD),0)),0)+IFERROR(EXP('Commercial Energy Coefficients'!$H$3+LN(B_PUB_Gross_Sq_Ft)*'Commercial Energy Coefficients'!$H$4+'Commercial Energy Coefficients'!$H$11+'Commercial Energy Coefficients'!$H$14+'Commercial Energy Coefficients'!$H$18*LN((B_Pub_Emp_Acre)*(B_Lot_Size/43560))+'Commercial Energy Coefficients'!$H$19*LN(40)+'Commercial Energy Coefficients'!$H$21+'Commercial Energy Coefficients'!$H$22*LN(Commercial_Energy_Cost)+'Commercial Energy Coefficients'!$H$23*IFERROR(LOOKUP(Metro_Select,Energy_Metro_Lookup,HDD),0)),0))/1000 -> 0 | CG5: =(IFERROR(EXP('Commercial Energy Coefficients'!$C$3+LN((B_RET_Gross_Sq_Ft))*'Commercial Energy Coefficients'!$C$4+'Commercial Energy Coefficients'!$C$11+'Commercial Energy Coefficients'!$C$14+'Commercial Energy Coefficients'!$C$18*LN((B_Ret_Emp_Acre)*(B_Lot_Size/43560))+'Commercial Energy Coefficients'!$C$19*LN(40)+'Commercial Energy Coefficients'!$C$21+'Commercial Energy Coefficients'!$C$22*LN(Commercial_Energy_Cost)+'Commercial Energy Coefficients'!$C$24*IFERROR(LOOKUP(Metro_Select,Energy_Metro_Lookup,CDD),0)),0)+IFERROR(EXP('Commercial Energy Coefficients'!$F$3+LN((B_OFF_Gross_Sq_Ft))*'Commercial Energy Coefficients'!$F$4+'Commercial Energy Coefficients'!$F$11+'Commercial Energy Coefficients'!$F$14+'Commercial Energy Coefficients'!$F$18*LN((B_OFF_Emp_Acre)*(B_Lot_Size/43560))+'Commercial Energy Coefficients'!$F$19*LN(40)+'Commercial Energy Coefficients'!$F$21+'Commercial Energy Coefficients'!$F$22*LN(Commercial_Energy_Cost)+'Commercial Energy Coefficients'!$F$24*IFERROR(LOOKUP(Metro_Select,Energy_Metro_Lookup,CDD),0)),0)+IFERROR(EXP('Commercial Energy Coefficients'!$I$3+LN((B_PUB_Gross_Sq_Ft))*'Commercial Energy Coefficients'!$I$4+'Commercial Energy Coefficients'!$I$11+'Commercial Energy Coefficients'!$I$14+'Commercial Energy Coefficients'!$I$18*LN((B_Pub_Emp_Acre)*(B_Lot_Size/43560))+'Commercial Energy Coefficients'!$I$19*LN(40)+'Commercial Energy Coefficients'!$I$21+'Commercial Energy Coefficients'!$I$22*LN(Commercial_Energy_Cost)+'Commercial Energy Coefficients'!$I$24*IFERROR(LOOKUP(Metro_Select,Energy_Metro_Lookup,CDD),0)),0))/1000 -> 0 | CH5: =(IFERROR(EXP('Commercial Energy Coefficients'!$D$3+LN((B_RET_Gross_Sq_Ft))*'Commercial Energy Coefficients'!$D$4+'Commercial Energy Coefficients'!$D$14+'Commercial Energy Coefficients'!$D$18*LN((B_Ret_Emp_Acre)*(B_Lot_Size/43560))+'Commercial Energy Coefficients'!$D$19*LN(40)+'Commercial Energy Coefficients'!$D$21+'Commercial Energy Coefficients'!$D$22*LN(Commercial_Energy_Cost)),0)+IFERROR(EXP('Commercial Energy Coefficients'!$G$3+LN((B_OFF_Gross_Sq_Ft))*'Commercial Energy Coefficients'!$G$4+'Commercial Energy Coefficients'!$G$14+'Commercial Energy Coefficients'!$G$18*LN((B_OFF_Emp_Acre)*(B_Lot_Size/43560))+'Commercial Energy Coefficients'!$G$19*LN(40)+'Commercial Energy Coefficients'!$G$21+'Commercial Energy Coefficients'!$G$22*LN(Commercial_Energy_Cost)),0)+IFERROR(EXP('Commercial Energy Coefficients'!$J$3+LN((B_PUB_Gross_Sq_Ft))*'Commercial Energy Coefficients'!$J$4+'Commercial Energy Coefficients'!$J$14+'Commercial Energy Coefficients'!$J$18*LN((B_Pub_Emp_Acre)*(B_Lot_Size/43560))+'Commercial Energy Coefficients'!$J$19*LN(40)+'Commercial Energy Coefficients'!$J$21+'Commercial Energy Coefficients'!$J$22*LN(Commercial_Energy_Cost)),0))/1000 -> 0 | CI5: =SUM(CF5:CH5) -> 0 | CJ5: 0 | CK5: 0 | CL5: 0 | CM5: 0 | CN5: 0 | CO5: 0 | CP5: 0 | CQ5: 6.169102164e-15 | CR5: 1.091393642e-12 | CS5: 60 | CT5: 120 | CU5: 24.97959184 | CV5: 20781.10246 | CW5: 35 | CX5: 70 | CY5: 13.95918367 | CZ5: 11873.13503 | DA5: =IF(B_Housing_Type="",0,IF(B_Housing_Type="MF",'Project Info'!$B$158,IF(B_Housing_Type="TH",'Project Info'!$B$159,IF(AND(B_Housing_Type="SF",B_Net_Sq_Ft_per_Unit>0,B_Net_Sq_Ft_per_Unit<3000),'Project Info'!$B$160,IF(AND(B_Housing_Type="SF",B_Net_Sq_Ft_per_Unit>=3000),'Project Info'!$B$161))))) -> 1.5 | DB5: 3 | DC5: 1.836734694 | DD5: 1012.893555 | DE5: =[2]!LandCost -> 195.766229 | DF5: 15000000 | DG5: 8527576.936 | DH5: =[2]!ProjectValue -> 232031721.2 | DI5: 131911223.6 | DJ5: =[2]!Subsidy -> 0 | DK5: 0 | DL5: 0 | DM5: 0 | DN5: 0 | DO5: 0 | DP5: 0 | DQ5: 0 | DR5: =IFERROR(B_FAR/MAX(B_FAR),0) -> 0.8071481757 | DS5: =[2]!GreenRoof -> 0 | DT5: =[2]!GreenRoofEff -> 0 | DU5: =[2]!GreenRoofVolume -> 0 | DV5: =[2]!Biofiltration -> 0 | DW5: =[2]!BiofiltrationEff -> 0 | DX5: =[2]!BiofiltrationVolume -> 0 | DY5: =[2]!GreenRoofHarvesting -> 0 | DZ5: =[2]!GreenRoofHarvestingEff -> 0 | EA5: =[2]!WaterHarvesting -> 0 | EB5: =[2]!WaterHarvestingEff -> 0 | EC5: =[2]!WaterHarvestingVolume -> 0 | ED5: =DS5*E5/43560 -> 0 | EE5: 0 | EG5: 0 | EH5: =EA5*$E5/43560 -> 0 | EI5: =DU5*I5/43560 -> 0 | EJ5: =DX5*$E5/43560 -> 0 | EK5: =EC5*$E5/43560 -> 0 | EL5: 0 | EN5: =Annual_Cooling_degree_days*24*(1/R_conventional_SF_F_hrs_BTU-1/R_green_roof_SF_F_hrs_Btu)/3412*'Building Inputs'!$ED5 -> 0 | EO5: 0 | EP5: =Annual_Heating_degree_days*24*(1/R_conventional_SF_F_hrs_BTU-1/R_green_roof_SF_F_hrs_Btu)*'Building Inputs'!$ED5 -> 0 | EQ5: 0 | ER5: =Avg_Annual_NO2_uptake*'Building Inputs'!$ED5 -> 0 | ES5: =Avg_Annual_O3_uptake*'Building Inputs'!$ED5 -> 0 | ET5: =Avg_Annual_SO2_uptake*'Building Inputs'!$ED5 -> 0 | EU5: =Avg_Annual_PM_10_uptake*'Building Inputs'!$ED5 -> 0 | EV5: 0 | EW5: 0 | EX5: =ER5+EV5 -> 0 | EY5: =ET5+EW5 -> 0 | EZ5: 0 | FA5: 0 | FB5: 0 | FC5: 0 | FD5: =SUM(EZ5:FC5) -> 0 | FE5: =Avg_amount_of_carbon_sequestered_lbs_SF*'Building Inputs'!$ED5*3.67 -> 0 | FF5: 0 | FG5: =FE5+FF5 -> 0 | FH5: 0 | FI5: =Average_annual_rainfall_in*($E5*(1-$G5)+$DV5-$DS5-$EA5)*$E5/43560*'Building Inputs'!$DW5*144*0.00433 -> 0 | FK5: =Avg_Annual_NO2_uptake*'Building Inputs'!$EE5 -> 0 | FL5: =Avg_Annual_O3_uptake*'Building Inputs'!$EE5 -> 0 | FM5: =Avg_Annual_SO2_uptake*'Building Inputs'!$EE5 -> 0 | FN5: =Avg_Annual_PM_10_uptake*'Building Inputs'!$EE5 -> 0 | FO5: 0 | FP5: 0 | FQ5: 0 | FR5: 0 | FS5: =SUM(FO5:FR5) -> 0 | FT5: =Avg_amount_of_carbon_sequestered_lbs_SF*'Building Inputs'!$EE5*3.67 -> 0 | FU5: 0 | FV5: =Average_annual_rainfall_in*('Building Inputs'!$EG5*'Building Inputs'!$DZ5+'Building Inputs'!$EH5*'Building Inputs'!$EB5)*144*0.00433 -> 0 | FX5: =EL5+FI5+FV5 -> 0 | FZ5: =EO5+EQ5 -> 0 | GA5: 0 | GB5: =ES5+FP5 -> 0 | GC5: 0 | GD5: 0 | GE5: =SUM(GA5:GD5) -> 0 | GF5: 0 | GG5: 0 | GH5: 0 | GI5: 0 | GJ5: =SUM(GF5:GI5) -> 0 | GK5: 0 | GL5: 0 | GM5: =[2]!RequiredWQV -> 45372.99433 | GN5: =[2]!ConventionalWQV -> 0 | GO5: 79811.05537 | GP5: 0 | GQ5: 0 | GR5: =[2]!TSSload -> 195.9846788 | GS5: =[2]!TNload -> 22.12462703 | GT5: =[2]!TLload -> 0.2468028228 | GU5: =[2]!fColiLoad -> 7249.413038 | GV5: =[2]!TSSreduction -> 0 | GW5: =[2]!TNreduction -> 0 | GX5: =[2]!TLreduction -> 0 | GY5: =[2]!fColiReduction -> 0 | GZ5: 344.7368701 | HA5: 38.91719862 | HB5: 0.4341259387 | HC5: 12751.71088 | HD5: 0 | HE5: 0 | HF5: 0 | HG5: 0 | HH5: =[2]!EPA_MXD_ResTrips -> 693.8177648 | HI5: =[2]!EPA_MXD_RetTrips -> 6023.195893 | HJ5: =[2]!EPA_MXD_OffTrips -> 0 | HK5: =[2]!EPA_MXD_EduTrips -> 0 | HL5: =[2]!EPA_MXD_OtherTrips -> 1973.677513 | HM5: =[2]!EPA_MXD_ResVMT -> 1974.423687 | HN5: =[2]!EPA_MXD_RetVMT -> 15688.79302 | HO5: =[2]!EPA_MXD_OffVMT -> 0 | HP5: =[2]!EPA_MXD_EduVMT -> 0 | HQ5: =[2]!EPA_MXD_OtherVMT -> 7622.923623
B6: 3 | C6: Mixed-Use Residential Owner 30 | D6: Four Seasons Condos | E6: =[3]!lot_size -> 34715 | F6: =[3]!Building_Lot_Coverage -> 0.6278794158 | G6: =[3]!Landscaping_Coverage -> 0.141405822 | H6: =[3]!Parking_Coverage -> 0.2307147622 | I6: =[3]!Height -> 32 | J6: =[3]!FAR -> 10.51070142 | K6: 364878.9998 | L6: =[3]!ResPct -> 0.95 | M6: 0.95 | N6: 0 | O6: 0 | P6: 0 | Q6: 0 | R6: 0 | S6: 0 | T6: 0.05 | U6: =[3]!RetPct -> 0.05 | V6: =[3]!OffPct -> 0 | W6: =[3]!IndPct -> 0 | X6: =[3]!PubPct -> 0 | Y6: =[3]!EduPct -> 0 | Z6: =[3]!HotelPct -> 0 | AA6: =[3]!ParkingPct -> 0 | AB6: 346635.0498 | AC6: =[3]!NetUnitSize -> 2000 | AD6: =[3]!UnitSize -> 2352.941176 | AE6: 147.3198962 | AF6: 184.8553846 | AG6: =[3]!HousingType -> MF | AH6: =[3]!RentalPct -> 0 | AI6: 1 | AJ6: =[3]!Rent -> 0 | AK6: 0 | AL6: =[3]!Sales_Price -> 600 | AM6: 1200000 | AN6: 7194.606302 | AO6: 0.06 | AP6: 173.7640615 | AQ6: 2 | AR6: 1.2 | AS6: 0.1951 | AT6: 332058.7524 | AU6: 0 | AV6: 18243.94999 | AW6: 18.24394999 | AX6: 22.89230769 | AY6: 18243.94999 | AZ6: =[3]!RetSpace -> 1000 | BA6: 22.89230769 | BB6: 0 | BC6: =[3]!OffSpace -> 400 | BD6: 0 | BE6: 0 | BF6: =[3]!IndSpace -> 972 | BG6: 0 | BH6: 0 | BI6: =[3]!PubSpace -> 1000 | BJ6: 0 | BK6: 0 | BL6: =[3]!EduSpace -> 800 | BM6: 0 | BN6: 0 | BO6: =[3]!HotelSpaceEmp -> 1000 | BP6: 0 | BQ6: =[3]!HotelRoomNet -> 0 | BR6: =[3]!HotelRoomGross -> 0 | BS6: 0 | BT6: 0 | BU6: 0 | BV6: =[3]!ParkingSpace -> 0 | BW6: 0 | BX6: =[3]!ParkingSpaces -> 331.1276923 | BY6: =[3]!ParkingArea -> 107616.5 | BZ6: =[3]!ParkingCost -> 5390359.543 | CA6: 0.05196784992 | CB6: =IFERROR(IF(B_Housing_Type="SF",EXP('Residential Energy Coefficients'!$B$3+'Residential Energy Coefficients'!$B$4*LN(B_Net_Sq_Ft_per_Unit)+'Residential Energy Coefficients'!$B$9+'Residential Energy Coefficients'!$B$10*LN(B_HH_Income)+'Residential Energy Coefficients'!$B$16*LN(Residential_Energy_Cost)+'Residential Energy Coefficients'!$B$20+'Residential Energy Coefficients'!$B$24*IFERROR(LOOKUP(Metro_Select,Energy_Metro_Lookup,HDD),0)),IF(B_Housing_Type="TH",EXP('Residential Energy Coefficients'!$E$3+'Residential Energy Coefficients'!$E$4*LN(B_Net_Sq_Ft_per_Unit)+'Residential Energy Coefficients'!$E$9+'Residential Energy Coefficients'!$E$16*LN(Residential_Energy_Cost)+'Residential Energy Coefficients'!$E$19+'Residential Energy Coefficients'!$E$20+'Residential Energy Coefficients'!$E$24*IFERROR(LOOKUP(Metro_Select,Energy_Metro_Lookup,HDD),0)),IF(B_Housing_Type="MF",EXP('Residential Energy Coefficients'!$H$3+'Residential Energy Coefficients'!$H$4*LN(B_Net_Sq_Ft_per_Unit)+'Residential Energy Coefficients'!$H$9+IF(B_Pct_Owner=1,'Residential Energy Coefficients'!$H$12,0)+'Residential Energy Coefficients'!$H$16*LN(Residential_Energy_Cost)+'Residential Energy Coefficients'!$H$20+'Residential Energy Coefficients'!$H$24*IFERROR(LOOKUP(Metro_Select,Energy_Metro_Lookup,HDD),0)),IF(B_Hotel_Room_Acre>0,EXP('Residential Energy Coefficients'!$H$3+'Residential Energy Coefficients'!$H$4*LN(B_Hotel_Room_Net)+'Residential Energy Coefficients'!$H$9+'Residential Energy Coefficients'!$H$16*LN(Residential_Energy_Cost)+'Residential Energy Coefficients'!$H$20+'Residential Energy Coefficients'!$H$24*IFERROR(LOOKUP(Metro_Select,Energy_Metro_Lookup,HDD),0)),IF(B_Housing_Type="MH",EXP('Residential Energy Coefficients'!$K$3+'Residential Energy Coefficients'!$K$16*LN(Residential_Energy_Cost)+'Residential Energy Coefficients'!$K$24*IFERROR(LOOKUP(Metro_Select,Energy_Metro_Lookup,HDD),0)),0)))))/1000,0) -> 0 | CC6: =IFERROR(IF(B_Housing_Type="SF",EXP('Residential Energy Coefficients'!$C$3+'Residential Energy Coefficients'!$C$4*LN(B_Net_Sq_Ft_per_Unit)+'Residential Energy Coefficients'!$C$10*LN(B_HH_Income)+'Residential Energy Coefficients'!$C$11*B_HH_Size+'Residential Energy Coefficients'!$C$16*LN(Residential_Energy_Cost)+'Residential Energy Coefficients'!$C$19+'Residential Energy Coefficients'!$C$22+'Residential Energy Coefficients'!$C$25*IFERROR(LOOKUP(Metro_Select,Energy_Metro_Lookup,CDD),0)),IF(B_Housing_Type="TH",EXP('Residential Energy Coefficients'!$F$3+'Residential Energy Coefficients'!$F$4*LN(B_Net_Sq_Ft_per_Unit)+'Residential Energy Coefficients'!$F$10*LN(B_HH_Income)+'Residential Energy Coefficients'!$F$11*B_HH_Size+IF(B_Pct_Owner=1,'Residential Energy Coefficients'!$F$12,0)+'Residential Energy Coefficients'!$F$16*LN(Residential_Energy_Cost)+'Residential Energy Coefficients'!$F$22+'Residential Energy Coefficients'!$F$25*IFERROR(LOOKUP(Metro_Select,Energy_Metro_Lookup,CDD),0)),IF(B_Housing_Type="MF",EXP('Residential Energy Coefficients'!$I$3+'Residential Energy Coefficients'!$I$4*LN(B_Net_Sq_Ft_per_Unit)+'Residential Energy Coefficients'!$I$9+'Residential Energy Coefficients'!$I$11*B_HH_Size+'Residential Energy Coefficients'!$I$16*LN(Residential_Energy_Cost)+'Residential Energy Coefficients'!$I$22+'Residential Energy Coefficients'!$I$25*IFERROR(LOOKUP(Metro_Select,Energy_Metro_Lookup,CDD),0)),IF(B_Hotel_Room_Acre>0,EXP('Residential Energy Coefficients'!$I$3+'Residential Energy Coefficients'!$I$4*LN(B_Hotel_Room_Net)+'Residential Energy Coefficients'!$I$9+'Residential Energy Coefficients'!$I$11*1.25+'Residential Energy Coefficients'!$I$16*LN(Residential_Energy_Cost)+'Residential Energy Coefficients'!$I$22+'Residential Energy Coefficients'!$I$25*IFERROR(LOOKUP(Metro_Select,Energy_Metro_Lookup,CDD),0)),IF(B_Housing_Type="MH",EXP('Residential Energy Coefficients'!$L$3+'Residential Energy Coefficients'!$L$11*B_HH_Size+'Residential Energy Coefficients'!$L$16*LN(Residential_Energy_Cost)+'Residential Energy Coefficients'!$L$22+'Residential Energy Coefficients'!$L$25*IFERROR(LOOKUP(Metro_Select,Energy_Metro_Lookup,CDD),0)),0)))))/1000,0) -> 0 | CD6: =IFERROR(IF(B_Housing_Type="SF",EXP('Residential Energy Coefficients'!$D$3+'Residential Energy Coefficients'!$D$4*LN(B_Net_Sq_Ft_per_Unit)+'Residential Energy Coefficients'!$D$9+'Residential Energy Coefficients'!$D$10*LN(B_HH_Income)+'Residential Energy Coefficients'!$D$11*B_HH_Size+IF(B_Pct_Owner=1,'Residential Energy Coefficients'!$D$12,0)+'Residential Energy Coefficients'!$D$16*LN(Residential_Energy_Cost)),IF(B_Housing_Type="TH",EXP('Residential Energy Coefficients'!$G$3+'Residential Energy Coefficients'!$G$4*LN(B_Net_Sq_Ft_per_Unit)+'Residential Energy Coefficients'!$G$10*LN(B_HH_Income)+'Residential Energy Coefficients'!$G$11*B_HH_Size+'Residential Energy Coefficients'!$G$16*LN(Residential_Energy_Cost)),IF(B_Housing_Type="MF",EXP('Residential Energy Coefficients'!$J$3+'Residential Energy Coefficients'!$J$4*LN(B_Net_Sq_Ft_per_Unit)+'Residential Energy Coefficients'!$J$10*LN(B_HH_Income)+'Residential Energy Coefficients'!$J$11*B_HH_Size+IF(B_Pct_Owner=1,'Residential Energy Coefficients'!$J$12,0)+'Residential Energy Coefficients'!$J$16*LN(Residential_Energy_Cost)+'Residential Energy Coefficients'!$J$19),IF(B_Hotel_Room_Acre>0,EXP('Residential Energy Coefficients'!$J$3+'Residential Energy Coefficients'!$J$4*LN(B_Hotel_Room_Net)+'Residential Energy Coefficients'!$J$16*LN(Residential_Energy_Cost)+'Residential Energy Coefficients'!$J$19),IF(B_Housing_Type="MH",EXP('Residential Energy Coefficients'!$M$3+'Residential Energy Coefficients'!$M$4*LN(B_Net_Sq_Ft_per_Unit)+'Residential Energy Coefficients'!$M$11*B_HH_Size+'Residential Energy Coefficients'!$M$16*LN(Residential_Energy_Cost)+'Residential Energy Coefficients'!$M$19),0)))))/1000,0) -> 0 | CE6: 0 | CF6: =(IFERROR(EXP('Commercial Energy Coefficients'!$B$3+LN(B_RET_Gross_Sq_Ft)*'Commercial Energy Coefficients'!$B$4+'Commercial Energy Coefficients'!$B$11+'Commercial Energy Coefficients'!$B$14+'Commercial Energy Coefficients'!$B$18*LN((B_Ret_Emp_Acre)*(B_Lot_Size/43560))+'Commercial Energy Coefficients'!$B$19*LN(40)+'Commercial Energy Coefficients'!$B$21+'Commercial Energy Coefficients'!$B$22*LN(Commercial_Energy_Cost)+'Commercial Energy Coefficients'!$B$23*IFERROR(LOOKUP(Metro_Select,Energy_Metro_Lookup,HDD),0)),0)+IFERROR(EXP('Commercial Energy Coefficients'!$E$3+LN(B_OFF_Gross_Sq_Ft)*'Commercial Energy Coefficients'!$E$4+'Commercial Energy Coefficients'!$E$11+'Commercial Energy Coefficients'!$E$14+'Commercial Energy Coefficients'!$E$18*LN((B_OFF_Emp_Acre)*(B_Lot_Size/43560))+'Commercial Energy Coefficients'!$E$19*LN(40)+'Commercial Energy Coefficients'!$E$21+'Commercial Energy Coefficients'!$E$22*LN(Commercial_Energy_Cost)+'Commercial Energy Coefficients'!$E$23*IFERROR(LOOKUP(Metro_Select,Energy_Metro_Lookup,HDD),0)),0)+IFERROR(EXP('Commercial Energy Coefficients'!$H$3+LN(B_PUB_Gross_Sq_Ft)*'Commercial Energy Coefficients'!$H$4+'Commercial Energy Coefficients'!$H$11+'Commercial Energy Coefficients'!$H$14+'Commercial Energy Coefficients'!$H$18*LN((B_Pub_Emp_Acre)*(B_Lot_Size/43560))+'Commercial Energy Coefficients'!$H$19*LN(40)+'Commercial Energy Coefficients'!$H$21+'Commercial Energy Coefficients'!$H$22*LN(Commercial_Energy_Cost)+'Commercial Energy Coefficients'!$H$23*IFERROR(LOOKUP(Metro_Select,Energy_Metro_Lookup,HDD),0)),0))/1000 -> 0 | CG6: =(IFERROR(EXP('Commercial Energy Coefficients'!$C$3+LN((B_RET_Gross_Sq_Ft))*'Commercial Energy Coefficients'!$C$4+'Commercial Energy Coefficients'!$C$11+'Commercial Energy Coefficients'!$C$14+'Commercial Energy Coefficients'!$C$18*LN((B_Ret_Emp_Acre)*(B_Lot_Size/43560))+'Commercial Energy Coefficients'!$C$19*LN(40)+'Commercial Energy Coefficients'!$C$21+'Commercial Energy Coefficients'!$C$22*LN(Commercial_Energy_Cost)+'Commercial Energy Coefficients'!$C$24*IFERROR(LOOKUP(Metro_Select,Energy_Metro_Lookup,CDD),0)),0)+IFERROR(EXP('Commercial Energy Coefficients'!$F$3+LN((B_OFF_Gross_Sq_Ft))*'Commercial Energy Coefficients'!$F$4+'Commercial Energy Coefficients'!$F$11+'Commercial Energy Coefficients'!$F$14+'Commercial Energy Coefficients'!$F$18*LN((B_OFF_Emp_Acre)*(B_Lot_Size/43560))+'Commercial Energy Coefficients'!$F$19*LN(40)+'Commercial Energy Coefficients'!$F$21+'Commercial Energy Coefficients'!$F$22*LN(Commercial_Energy_Cost)+'Commercial Energy Coefficients'!$F$24*IFERROR(LOOKUP(Metro_Select,Energy_Metro_Lookup,CDD),0)),0)+IFERROR(EXP('Commercial Energy Coefficients'!$I$3+LN((B_PUB_Gross_Sq_Ft))*'Commercial Energy Coefficients'!$I$4+'Commercial Energy Coefficients'!$I$11+'Commercial Energy Coefficients'!$I$14+'Commercial Energy Coefficients'!$I$18*LN((B_Pub_Emp_Acre)*(B_Lot_Size/43560))+'Commercial Energy Coefficients'!$I$19*LN(40)+'Commercial Energy Coefficients'!$I$21+'Commercial Energy Coefficients'!$I$22*LN(Commercial_Energy_Cost)+'Commercial Energy Coefficients'!$I$24*IFERROR(LOOKUP(Metro_Select,Energy_Metro_Lookup,CDD),0)),0))/1000 -> 0 | CH6: =(IFERROR(EXP('Commercial Energy Coefficients'!$D$3+LN((B_RET_Gross_Sq_Ft))*'Commercial Energy Coefficients'!$D$4+'Commercial Energy Coefficients'!$D$14+'Commercial Energy Coefficients'!$D$18*LN((B_Ret_Emp_Acre)*(B_Lot_Size/43560))+'Commercial Energy Coefficients'!$D$19*LN(40)+'Commercial Energy Coefficients'!$D$21+'Commercial Energy Coefficients'!$D$22*LN(Commercial_Energy_Cost)),0)+IFERROR(EXP('Commercial Energy Coefficients'!$G$3+LN((B_OFF_Gross_Sq_Ft))*'Commercial Energy Coefficients'!$G$4+'Commercial Energy Coefficients'!$G$14+'Commercial Energy Coefficients'!$G$18*LN((B_OFF_Emp_Acre)*(B_Lot_Size/43560))+'Commercial Energy Coefficients'!$G$19*LN(40)+'Commercial Energy Coefficients'!$G$21+'Commercial Energy Coefficients'!$G$22*LN(Commercial_Energy_Cost)),0)+IFERROR(EXP('Commercial Energy Coefficients'!$J$3+LN((B_PUB_Gross_Sq_Ft))*'Commercial Energy Coefficients'!$J$4+'Commercial Energy Coefficients'!$J$14+'Commercial Energy Coefficients'!$J$18*LN((B_Pub_Emp_Acre)*(B_Lot_Size/43560))+'Commercial Energy Coefficients'!$J$19*LN(40)+'Commercial Energy Coefficients'!$J$21+'Commercial Energy Coefficients'!$J$22*LN(Commercial_Energy_Cost)),0))/1000 -> 0 | CI6: 0 | CJ6: 0 | CK6: 0 | CL6: 0 | CM6: 0 | CN6: 0 | CO6: 0 | CP6: 0 | CQ6: 1.666069295 | CR6: 245.4451556 | CS6: 60 | CT6: 120 | CU6: 68 | CV6: 10079.78237 | CW6: 35 | CX6: 70 | CY6: 38 | CZ6: 5849.466465 | DA6: =IF(B_Housing_Type="",0,IF(B_Housing_Type="MF",'Project Info'!$B$158,IF(B_Housing_Type="TH",'Project Info'!$B$159,IF(AND(B_Housing_Type="SF",B_Net_Sq_Ft_per_Unit>0,B_Net_Sq_Ft_per_Unit<3000),'Project Info'!$B$160,IF(AND(B_Housing_Type="SF",B_Net_Sq_Ft_per_Unit>=3000),'Project Info'!$B$161))))) -> 1.5 | DB6: 3 | DC6: 5 | DD6: 312.1995942 | DE6: =[3]!LandCost -> 243.6986893 | DF6: 8460000 | DG6: 10615514.91 | DH6: =[3]!ProjectValue -> 103724890.5 | DI6: 130152851.2 | DJ6: =[3]!Subsidy -> 0 | DK6: 0 | DL6: 0 | DM6: 0 | DN6: 0 | DO6: 0 | DP6: 0 | DQ6: 0 | DR6: 0.7826285495 | DS6: =[3]!GreenRoof -> 0 | DT6: =[3]!GreenRoofEff -> 0 | DU6: =[3]!GreenRoofVolume -> 0 | DV6: =[3]!Biofiltration -> 0 | DW6: =[3]!BiofiltrationEff -> 0 | DX6: =[3]!BiofiltrationVolume -> 0 | DY6: =[3]!GreenRoofHarvesting -> 0 | DZ6: =[3]!GreenRoofHarvestingEff -> 0 | EA6: =[3]!WaterHarvesting -> 0 | EB6: =[3]!WaterHarvestingEff -> 0 | EC6: =[3]!WaterHarvestingVolume -> 0 | ED6: 0 | EE6: 0 | EG6: 0 | EH6: 0 | EI6: 0 | EJ6: 0 | EK6: 0 | EL6: 0 | EN6: =Annual_Cooling_degree_days*24*(1/R_conventional_SF_F_hrs_BTU-1/R_green_roof_SF_F_hrs_Btu)/3412*'Building Inputs'!$ED6 -> 0 | EO6: 0 | EP6: =Annual_Heating_degree_days*24*(1/R_conventional_SF_F_hrs_BTU-1/R_green_roof_SF_F_hrs_Btu)*'Building Inputs'!$ED6 -> 0 | EQ6: 0 | ER6: =Avg_Annual_NO2_uptake*'Building Inputs'!$ED6 -> 0 | ES6: =Avg_Annual_O3_uptake*'Building Inputs'!$ED6 -> 0 | ET6: =Avg_Annual_SO2_uptake*'Building Inputs'!$ED6 -> 0 | EU6: =Avg_Annual_PM_10_uptake*'Building Inputs'!$ED6 -> 0 | EV6: 0 | EW6: 0 | EX6: 0 | EY6: 0 | EZ6: 0 | FA6: 0 | FB6: 0 | FC6: 0 | FD6: 0 | FE6: =Avg_amount_of_carbon_sequestered_lbs_SF*'Building Inputs'!$ED6*3.67 -> 0 | FF6: 0 | FG6: 0 | FH6: 0 | FI6: =Average_annual_rainfall_in*($E6*(1-$G6)+$DV6-$DS6-$EA6)*$E6/43560*'Building Inputs'!$DW6*144*0.00433 -> 0 | FK6: =Avg_Annual_NO2_uptake*'Building Inputs'!$EE6 -> 0 | FL6: =Avg_Annual_O3_uptake*'Building Inputs'!$EE6 -> 0 | FM6: =Avg_Annual_SO2_uptake*'Building Inputs'!$EE6 -> 0 | FN6: =Avg_Annual_PM_10_uptake*'Building Inputs'!$EE6 -> 0 | FO6: 0 | FP6: 0 | FQ6: 0 | FR6: 0 | FS6: 0 | FT6: =Avg_amount_of_carbon_sequestered_lbs_SF*'Building Inputs'!$EE6*3.67 -> 0 | FU6: 0 | FV6: =Average_annual_rainfall_in*('Building Inputs'!$EG6*'Building Inputs'!$DZ6+'Building Inputs'!$EH6*'Building Inputs'!$EB6)*144*0.00433 -> 0 | FX6: 0 | FZ6: 0 | GA6: 0 | GB6: 0 | GC6: 0 | GD6: 0 | GE6: 0 | GF6: 0 | GG6: 0 | GH6: 0 | GI6: 0 | GJ6: 0 | GK6: 0 | GL6: 0 | GM6: =[3]!RequiredWQV -> 17803.17119 | GN6: =[3]!ConventionalWQV -> 0 | GO6: 14188.17924 | GP6: 0 | GQ6: 0 | GR6: =[3]!TSSload -> 74.17029926 | GS6: =[3]!TNload -> 7.615031237 | GT6: =[3]!TLload -> 0.09203865082 | GU6: =[3]!fColiLoad -> 28441.82512 | GV6: =[3]!TSSreduction -> 0 | GW6: =[3]!TNreduction -> 0 | GX6: =[3]!TLreduction -> 0 | GY6: =[3]!fColiReduction -> 0 | GZ6: 59.10977821 | HA6: 6.06877432 | HB6: 0.07334990274 | HC6: 22666.61982 | HD6: 0 | HE6: 0 | HF6: 0 | HG6: 0 | HH6: =[3]!EPA_MXD_ResTrips -> 578.8661044 | HI6: =[3]!EPA_MXD_RetTrips -> 736.412832 | HJ6: =[3]!EPA_MXD_OffTrips -> 0 | HK6: =[3]!EPA_MXD_EduTrips -> 0 | HL6: =[3]!EPA_MXD_OtherTrips -> 0 | HM6: =[3]!EPA_MXD_ResVMT -> 1646.309295 | HN6: =[3]!EPA_MXD_RetVMT -> 1919.01209 | HO6: =[3]!EPA_MXD_OffVMT -> 0 | HP6: =[3]!EPA_MXD_EduVMT -> 0 | HQ6: =[3]!EPA_MXD_OtherVMT -> 0
B7: 4 | C7: Mixed-Use Residential Owner 15 | D7: DAP Core-1 Residential | E7: =[4]!lot_size -> 25481 | F7: =[4]!Building_Lot_Coverage -> 1 | G7: =[4]!Landscaping_Coverage -> 0 | H7: =[4]!Parking_Coverage -> 0 | I7: =[4]!Height -> 16 | J7: =[4]!FAR -> 8.01 | K7: 204102.81 | L7: =[4]!ResPct -> 0.96 | M7: 0.96 | N7: 0 | O7: 0 | P7: 0 | Q7: 0 | R7: 0 | S7: 0 | T7: 0.04 | U7: =[4]!RetPct -> 0.04 | V7: =[4]!OffPct -> 0 | W7: =[4]!IndPct -> 0 | X7: =[4]!PubPct -> 0 | Y7: =[4]!EduPct -> 0 | Z7: =[4]!HotelPct -> 0 | AA7: =[4]!ParkingPct -> 0 | AB7: 195938.6976 | AC7: =[4]!NetUnitSize -> 1154 | AD7: =[4]!UnitSize -> 1390.361446 | AE7: 140.9264463 | AF7: 240.9150347 | AG7: =[4]!HousingType -> MF | AH7: =[4]!RentalPct -> 0 | AI7: 1 | AJ7: =[4]!Rent -> 0 | AK7: 0 | AL7: =[4]!Sales_Price -> 380 | AM7: 438520 | AN7: 2629.148963 | AO7: 0.06 | AP7: 226.4601326 | AQ7: 2 | AR7: 1.2 | AS7: 0.1951 | AT7: 121345.3367 | AU7: 0 | AV7: 8164.1124 | AW7: 8.1641124 | AX7: 13.956624 | AY7: 8164.1124 | AZ7: =[4]!RetSpace -> 1000 | BA7: 13.956624 | BB7: 0 | BC7: =[4]!OffSpace -> 250 | BD7: 0 | BE7: 0 | BF7: =[4]!IndSpace -> 972 | BG7: 0 | BH7: 0 | BI7: =[4]!PubSpace -> 1000 | BJ7: 0 | BK7: 0 | BL7: =[4]!EduSpace -> 800 | BM7: 0 | BN7: 0 | BO7: =[4]!HotelSpaceEmp -> 1152 | BP7: 0 | BQ7: =[4]!HotelRoomNet -> 0 | BR7: =[4]!HotelRoomGross -> 0 | BS7: 0 | BT7: 0 | BU7: 0 | BV7: =[4]!ParkingSpace -> 0 | BW7: 0 | BX7: =[4]!ParkingSpaces -> 463.5999008 | BY7: =[4]!ParkingArea -> 180803.9613 | BZ7: =[4]!ParkingCost -> 12070389.87 | CA7: 0.1882154033 | CB7: =IFERROR(IF(B_Housing_Type="SF",EXP('Residential Energy Coefficients'!$B$3+'Residential Energy Coefficients'!$B$4*LN(B_Net_Sq_Ft_per_Unit)+'Residential Energy Coefficients'!$B$9+'Residential Energy Coefficients'!$B$10*LN(B_HH_Income)+'Residential Energy Coefficients'!$B$16*LN(Residential_Energy_Cost)+'Residential Energy Coefficients'!$B$20+'Residential Energy Coefficients'!$B$24*IFERROR(LOOKUP(Metro_Select,Energy_Metro_Lookup,HDD),0)),IF(B_Housing_Type="TH",EXP('Residential Energy Coefficients'!$E$3+'Residential Energy Coefficients'!$E$4*LN(B_Net_Sq_Ft_per_Unit)+'Residential Energy Coefficients'!$E$9+'Residential Energy Coefficients'!$E$16*LN(Residential_Energy_Cost)+'Residential Energy Coefficients'!$E$19+'Residential Energy Coefficients'!$E$20+'Residential Energy Coefficients'!$E$24*IFERROR(LOOKUP(Metro_Select,Energy_Metro_Lookup,HDD),0)),IF(B_Housing_Type="MF",EXP('Residential Energy Coefficients'!$H$3+'Residential Energy Coefficients'!$H$4*LN(B_Net_Sq_Ft_per_Unit)+'Residential Energy Coefficients'!$H$9+IF(B_Pct_Owner=1,'Residential Energy Coefficients'!$H$12,0)+'Residential Energy Coefficients'!$H$16*LN(Residential_Energy_Cost)+'Residential Energy Coefficients'!$H$20+'Residential Energy Coefficients'!$H$24*IFERROR(LOOKUP(Metro_Select,Energy_Metro_Lookup,HDD),0)),IF(B_Hotel_Room_Acre>0,EXP('Residential Energy Coefficients'!$H$3+'Residential Energy Coefficients'!$H$4*LN(B_Hotel_Room_Net)+'Residential Energy Coefficients'!$H$9+'Residential Energy Coefficients'!$H$16*LN(Residential_Energy_Cost)+'Residential Energy Coefficients'!$H$20+'Residential Energy Coefficients'!$H$24*IFERROR(LOOKUP(Metro_Select,Energy_Metro_Lookup,HDD),0)),IF(B_Housing_Type="MH",EXP('Residential Energy Coefficients'!$K$3+'Residential Energy Coefficients'!$K$16*LN(Residential_Energy_Cost)+'Residential Energy Coefficients'!$K$24*IFERROR(LOOKUP(Metro_Select,Energy_Metro_Lookup,HDD),0)),0)))))/1000,0) -> 0 | CC7: =IFERROR(IF(B_Housing_Type="SF",EXP('Residential Energy Coefficients'!$C$3+'Residential Energy Coefficients'!$C$4*LN(B_Net_Sq_Ft_per_Unit)+'Residential Energy Coefficients'!$C$10*LN(B_HH_Income)+'Residential Energy Coefficients'!$C$11*B_HH_Size+'Residential Energy Coefficients'!$C$16*LN(Residential_Energy_Cost)+'Residential Energy Coefficients'!$C$19+'Residential Energy Coefficients'!$C$22+'Residential Energy Coefficients'!$C$25*IFERROR(LOOKUP(Metro_Select,Energy_Metro_Lookup,CDD),0)),IF(B_Housing_Type="TH",EXP('Residential Energy Coefficients'!$F$3+'Residential Energy Coefficients'!$F$4*LN(B_Net_Sq_Ft_per_Unit)+'Residential Energy Coefficients'!$F$10*LN(B_HH_Income)+'Residential Energy Coefficients'!$F$11*B_HH_Size+IF(B_Pct_Owner=1,'Residential Energy Coefficients'!$F$12,0)+'Residential Energy Coefficients'!$F$16*LN(Residential_Energy_Cost)+'Residential Energy Coefficients'!$F$22+'Residential Energy Coefficients'!$F$25*IFERROR(LOOKUP(Metro_Select,Energy_Metro_Lookup,CDD),0)),IF(B_Housing_Type="MF",EXP('Residential Energy Coefficients'!$I$3+'Residential Energy Coefficients'!$I$4*LN(B_Net_Sq_Ft_per_Unit)+'Residential Energy Coefficients'!$I$9+'Residential Energy Coefficients'!$I$11*B_HH_Size+'Residential Energy Coefficients'!$I$16*LN(Residential_Energy_Cost)+'Residential Energy Coefficients'!$I$22+'Residential Energy Coefficients'!$I$25*IFERROR(LOOKUP(Metro_Select,Energy_Metro_Lookup,CDD),0)),IF(B_Hotel_Room_Acre>0,EXP('Residential Energy Coefficients'!$I$3+'Residential Energy Coefficients'!$I$4*LN(B_Hotel_Room_Net)+'Residential Energy Coefficients'!$I$9+'Residential Energy Coefficients'!$I$11*1.25+'Residential Energy Coefficients'!$I$16*LN(Residential_Energy_Cost)+'Residential Energy Coefficients'!$I$22+'Residential Energy Coefficients'!$I$25*IFERROR(LOOKUP(Metro_Select,Energy_Metro_Lookup,CDD),0)),IF(B_Housing_Type="MH",EXP('Residential Energy Coefficients'!$L$3+'Residential Energy Coefficients'!$L$11*B_HH_Size+'Residential Energy Coefficients'!$L$16*LN(Residential_Energy_Cost)+'Residential Energy Coefficients'!$L$22+'Residential Energy Coefficients'!$L$25*IFERROR(LOOKUP(Metro_Select,Energy_Metro_Lookup,CDD),0)),0)))))/1000,0) -> 0 | CD7: =IFERROR(IF(B_Housing_Type="SF",EXP('Residential Energy Coefficients'!$D$3+'Residential Energy Coefficients'!$D$4*LN(B_Net_Sq_Ft_per_Unit)+'Residential Energy Coefficients'!$D$9+'Residential Energy Coefficients'!$D$10*LN(B_HH_Income)+'Residential Energy Coefficients'!$D$11*B_HH_Size+IF(B_Pct_Owner=1,'Residential Energy Coefficients'!$D$12,0)+'Residential Energy Coefficients'!$D$16*LN(Residential_Energy_Cost)),IF(B_Housing_Type="TH",EXP('Residential Energy Coefficients'!$G$3+'Residential Energy Coefficients'!$G$4*LN(B_Net_Sq_Ft_per_Unit)+'Residential Energy Coefficients'!$G$10*LN(B_HH_Income)+'Residential Energy Coefficients'!$G$11*B_HH_Size+'Residential Energy Coefficients'!$G$16*LN(Residential_Energy_Cost)),IF(B_Housing_Type="MF",EXP('Residential Energy Coefficients'!$J$3+'Residential Energy Coefficients'!$J$4*LN(B_Net_Sq_Ft_per_Unit)+'Residential Energy Coefficients'!$J$10*LN(B_HH_Income)+'Residential Energy Coefficients'!$J$11*B_HH_Size+IF(B_Pct_Owner=1,'Residential Energy Coefficients'!$J$12,0)+'Residential Energy Coefficients'!$J$16*LN(Residential_Energy_Cost)+'Residential Energy Coefficients'!$J$19),IF(B_Hotel_Room_Acre>0,EXP('Residential Energy Coefficients'!$J$3+'Residential Energy Coefficients'!$J$4*LN(B_Hotel_Room_Net)+'Residential Energy Coefficients'!$J$16*LN(Residential_Energy_Cost)+'Residential Energy Coefficients'!$J$19),IF(B_Housing_Type="MH",EXP('Residential Energy Coefficients'!$M$3+'Residential Energy Coefficients'!$M$4*LN(B_Net_Sq_Ft_per_Unit)+'Residential Energy Coefficients'!$M$11*B_HH_Size+'Residential Energy Coefficients'!$M$16*LN(Residential_Energy_Cost)+'Residential Energy Coefficients'!$M$19),0)))))/1000,0) -> 0 | CE7: 0 | CF7: =(IFERROR(EXP('Commercial Energy Coefficients'!$B$3+LN(B_RET_Gross_Sq_Ft)*'Commercial Energy Coefficients'!$B$4+'Commercial Energy Coefficients'!$B$11+'Commercial Energy Coefficients'!$B$14+'Commercial Energy Coefficients'!$B$18*LN((B_Ret_Emp_Acre)*(B_Lot_Size/43560))+'Commercial Energy Coefficients'!$B$19*LN(40)+'Commercial Energy Coefficients'!$B$21+'Commercial Energy Coefficients'!$B$22*LN(Commercial_Energy_Cost)+'Commercial Energy Coefficients'!$B$23*IFERROR(LOOKUP(Metro_Select,Energy_Metro_Lookup,HDD),0)),0)+IFERROR(EXP('Commercial Energy Coefficients'!$E$3+LN(B_OFF_Gross_Sq_Ft)*'Commercial Energy Coefficients'!$E$4+'Commercial Energy Coefficients'!$E$11+'Commercial Energy Coefficients'!$E$14+'Commercial Energy Coefficients'!$E$18*LN((B_OFF_Emp_Acre)*(B_Lot_Size/43560))+'Commercial Energy Coefficients'!$E$19*LN(40)+'Commercial Energy Coefficients'!$E$21+'Commercial Energy Coefficients'!$E$22*LN(Commercial_Energy_Cost)+'Commercial Energy Coefficients'!$E$23*IFERROR(LOOKUP(Metro_Select,Energy_Metro_Lookup,HDD),0)),0)+IFERROR(EXP('Commercial Energy Coefficients'!$H$3+LN(B_PUB_Gross_Sq_Ft)*'Commercial Energy Coefficients'!$H$4+'Commercial Energy Coefficients'!$H$11+'Commercial Energy Coefficients'!$H$14+'Commercial Energy Coefficients'!$H$18*LN((B_Pub_Emp_Acre)*(B_Lot_Size/43560))+'Commercial Energy Coefficients'!$H$19*LN(40)+'Commercial Energy Coefficients'!$H$21+'Commercial Energy Coefficients'!$H$22*LN(Commercial_Energy_Cost)+'Commercial Energy Coefficients'!$H$23*IFERROR(LOOKUP(Metro_Select,Energy_Metro_Lookup,HDD),0)),0))/1000 -> 0 | CG7: =(IFERROR(EXP('Commercial Energy Coefficients'!$C$3+LN((B_RET_Gross_Sq_Ft))*'Commercial Energy Coefficients'!$C$4+'Commercial Energy Coefficients'!$C$11+'Commercial Energy Coefficients'!$C$14+'Commercial Energy Coefficients'!$C$18*LN((B_Ret_Emp_Acre)*(B_Lot_Size/43560))+'Commercial Energy Coefficients'!$C$19*LN(40)+'Commercial Energy Coefficients'!$C$21+'Commercial Energy Coefficients'!$C$22*LN(Commercial_Energy_Cost)+'Commercial Energy Coefficients'!$C$24*IFERROR(LOOKUP(Metro_Select,Energy_Metro_Lookup,CDD),0)),0)+IFERROR(EXP('Commercial Energy Coefficients'!$F$3+LN((B_OFF_Gross_Sq_Ft))*'Commercial Energy Coefficients'!$F$4+'Commercial Energy Coefficients'!$F$11+'Commercial Energy Coefficients'!$F$14+'Commercial Energy Coefficients'!$F$18*LN((B_OFF_Emp_Acre)*(B_Lot_Size/43560))+'Commercial Energy Coefficients'!$F$19*LN(40)+'Commercial Energy Coefficients'!$F$21+'Commercial Energy Coefficients'!$F$22*LN(Commercial_Energy_Cost)+'Commercial Energy Coefficients'!$F$24*IFERROR(LOOKUP(Metro_Select,Energy_Metro_Lookup,CDD),0)),0)+IFERROR(EXP('Commercial Energy Coefficients'!$I$3+LN((B_PUB_Gross_Sq_Ft))*'Commercial Energy Coefficients'!$I$4+'Commercial Energy Coefficients'!$I$11+'Commercial Energy Coefficients'!$I$14+'Commercial Energy Coefficients'!$I$18*LN((B_Pub_Emp_Acre)*(B_Lot_Size/43560))+'Commercial Energy Coefficients'!$I$19*LN(40)+'Commercial Energy Coefficients'!$I$21+'Commercial Energy Coefficients'!$I$22*LN(Commercial_Energy_Cost)+'Commercial Energy Coefficients'!$I$24*IFERROR(LOOKUP(Metro_Select,Energy_Metro_Lookup,CDD),0)),0))/1000 -> 0 | CH7: =(IFERROR(EXP('Commercial Energy Coefficients'!$D$3+LN((B_RET_Gross_Sq_Ft))*'Commercial Energy Coefficients'!$D$4+'Commercial Energy Coefficients'!$D$14+'Commercial Energy Coefficients'!$D$18*LN((B_Ret_Emp_Acre)*(B_Lot_Size/43560))+'Commercial Energy Coefficients'!$D$19*LN(40)+'Commercial Energy Coefficients'!$D$21+'Commercial Energy Coefficients'!$D$22*LN(Commercial_Energy_Cost)),0)+IFERROR(EXP('Commercial Energy Coefficients'!$G$3+LN((B_OFF_Gross_Sq_Ft))*'Commercial Energy Coefficients'!$G$4+'Commercial Energy Coefficients'!$G$14+'Commercial Energy Coefficients'!$G$18*LN((B_OFF_Emp_Acre)*(B_Lot_Size/43560))+'Commercial Energy Coefficients'!$G$19*LN(40)+'Commercial Energy Coefficients'!$G$21+'Commercial Energy Coefficients'!$G$22*LN(Commercial_Energy_Cost)),0)+IFERROR(EXP('Commercial Energy Coefficients'!$J$3+LN((B_PUB_Gross_Sq_Ft))*'Commercial Energy Coefficients'!$J$4+'Commercial Energy Coefficients'!$J$14+'Commercial Energy Coefficients'!$J$18*LN((B_Pub_Emp_Acre)*(B_Lot_Size/43560))+'Commercial Energy Coefficients'!$J$19*LN(40)+'Commercial Energy Coefficients'!$J$21+'Commercial Energy Coefficients'!$J$22*LN(Commercial_Energy_Cost)),0))/1000 -> 0 | CI7: 0 | CJ7: 0 | CK7: 0 | CL7: 0 | CM7: 0 | CN7: 0 | CO7: 0 | CP7: 0 | CQ7: 0 | CR7: 0 | CS7: 60 | CT7: 120 | CU7: 68 | CV7: 9010.74642 | CW7: 35 | CX7: 70 | CY7: 38 | CZ7: 5242.661891 | DA7: =IF(B_Housing_Type="",0,IF(B_Housing_Type="MF",'Project Info'!$B$158,IF(B_Housing_Type="TH",'Project Info'!$B$159,IF(AND(B_Housing_Type="SF",B_Net_Sq_Ft_per_Unit>0,B_Net_Sq_Ft_per_Unit<3000),'Project Info'!$B$160,IF(AND(B_Housing_Type="SF",B_Net_Sq_Ft_per_Unit>=3000),'Project Info'!$B$161))))) -> 1.5 | DB7: 3 | DC7: 5 | DD7: 252.2102314 | DE7: =[4]!LandCost -> 158.8713159 | DF7: 4048200 | DG7: 6920434.52 | DH7: =[4]!ProjectValue -> 64130722.89 | DI7: 109632050.9 | DJ7: =[4]!Subsidy -> 0 | DK7: 0 | DL7: 0 | DM7: 0 | DN7: 0 | DO7: 0 | DP7: 0 | DQ7: 0 | DR7: 0.5964259121 | DS7: =[4]!GreenRoof -> 0 | DT7: =[4]!GreenRoofEff -> 0 | DU7: =[4]!GreenRoofVolume -> 0 | DV7: =[4]!Biofiltration -> 0 | DW7: =[4]!BiofiltrationEff -> 0 | DX7: =[4]!BiofiltrationVolume -> 0 | DY7: =[4]!GreenRoofHarvesting -> 0 | DZ7: =[4]!GreenRoofHarvestingEff -> 0 | EA7: =[4]!WaterHarvesting -> 0 | EB7: =[4]!WaterHarvestingEff -> 0 | EC7: =[4]!WaterHarvestingVolume -> 0 | ED7: 0 | EE7: 0 | EG7: 0 | EH7: 0 | EI7: 0 | EJ7: 0 | EK7: 0 | EL7: 0 | EN7: =Annual_Cooling_degree_days*24*(1/R_conventional_SF_F_hrs_BTU-1/R_green_roof_SF_F_hrs_Btu)/3412*'Building Inputs'!$ED7 -> 0 | EO7: 0 | EP7: =Annual_Heating_degree_days*24*(1/R_conventional_SF_F_hrs_BTU-1/R_green_roof_SF_F_hrs_Btu)*'Building Inputs'!$ED7 -> 0 | EQ7: 0 | ER7: =Avg_Annual_NO2_uptake*'Building Inputs'!$ED7 -> 0 | ES7: =Avg_Annual_O3_uptake*'Building Inputs'!$ED7 -> 0 | ET7: =Avg_Annual_SO2_uptake*'Building Inputs'!$ED7 -> 0 | EU7: =Avg_Annual_PM_10_uptake*'Building Inputs'!$ED7 -> 0 | EV7: 0 | EW7: 0 | EX7: =ER7+EV7 -> 0 | EY7: =ET7+EW7 -> 0 | EZ7: 0 | FA7: 0 | FB7: 0 | FC7: 0 | FD7: =SUM(EZ7:FC7) -> 0 | FE7: =Avg_amount_of_carbon_sequestered_lbs_SF*'Building Inputs'!$ED7*3.67 -> 0 | FF7: 0 | FG7: =FE7+FF7 -> 0 | FH7: 0 | FI7: =Average_annual_rainfall_in*($E7*(1-$G7)+$DV7-$DS7-$EA7)*$E7/43560*'Building Inputs'!$DW7*144*0.00433 -> 0 | FK7: =Avg_Annual_NO2_uptake*'Building Inputs'!$EE7 -> 0 | FL7: =Avg_Annual_O3_uptake*'Building Inputs'!$EE7 -> 0 | FM7: =Avg_Annual_SO2_uptake*'Building Inputs'!$EE7 -> 0 | FN7: =Avg_Annual_PM_10_uptake*'Building Inputs'!$EE7 -> 0 | FO7: 0 | FP7: 0 | FQ7: 0 | FR7: 0 | FS7: 0 | FT7: =Avg_amount_of_carbon_sequestered_lbs_SF*'Building Inputs'!$EE7*3.67 -> 0 | FU7: 0 | FV7: =Average_annual_rainfall_in*('Building Inputs'!$EG7*'Building Inputs'!$DZ7+'Building Inputs'!$EH7*'Building Inputs'!$EB7)*144*0.00433 -> 0 | FX7: 0 | FZ7: 0 | GA7: 0 | GB7: 0 | GC7: 0 | GD7: 0 | GE7: 0 | GF7: 0 | GG7: 0 | GH7: 0 | GI7: 0 | GJ7: 0 | GK7: 0 | GL7: 0 | GM7: =[4]!RequiredWQV -> 15088.99883 | GN7: =[4]!ConventionalWQV -> 0 | GO7: 8826.510084 | GP7: 0 | GQ7: 0 | GR7: =[4]!TSSload -> 33.06199235 | GS7: =[4]!TNload -> 7.714464882 | GT7: =[4]!TLload -> 0.06245042999 | GU7: =[4]!fColiLoad -> 1841.653753 | GV7: =[4]!TSSreduction -> 0 | GW7: =[4]!TNreduction -> 0 | GX7: =[4]!TLreduction -> 0 | GY7: =[4]!fColiReduction -> 0 | GZ7: 19.34005113 | HA7: 4.512678596 | HB7: 0.03653120768 | HC7: 1077.2998 | HD7: 0 | HE7: 0 | HF7: 0 | HG7: 0 | HH7: =[4]!EPA_MXD_ResTrips -> 560.5262272 | HI7: =[4]!EPA_MXD_RetTrips -> 333.578592 | HJ7: =[4]!EPA_MXD_OffTrips -> 0 | HK7: =[4]!EPA_MXD_EduTrips -> 0 | HL7: =[4]!EPA_MXD_OtherTrips -> 0 | HM7: =[4]!EPA_MXD_ResVMT -> 1592.987356 | HN7: =[4]!EPA_MXD_RetVMT -> 867.7974855 | HO7: =[4]!EPA_MXD_OffVMT -> 0 | HP7: =[4]!EPA_MXD_EduVMT -> 0 | HQ7: =[4]!EPA_MXD_OtherVMT -> 0
B8: 5 | C8: Mixed-Use Residential Renter 30 | D8: 3Eleven Bowie | E8: =[5]!lot_size -> 42340 | F8: =[5]!Building_Lot_Coverage -> 0.49307867 | G8: =[5]!Landscaping_Coverage -> 0.1074224655 | H8: =[5]!Parking_Coverage -> 0.1994988645 | I8: =[5]!Height -> 37 | J8: =[5]!FAR -> 9.615034064 | K8: 407100.5423 | L8: =[5]!ResPct -> 0.89 | M8: 0.89 | N8: 0 | O8: 0 | P8: 0 | Q8: 0 | R8: 0 | S8: 0 | T8: 0.11 | U8: =[5]!RetPct -> 0.01 | V8: =[5]!OffPct -> 0.1 | W8: =[5]!IndPct -> 0 | X8: =[5]!PubPct -> 0 | Y8: =[5]!EduPct -> 0 | Z8: =[5]!HotelPct -> 0 | AA8: =[5]!ParkingPct -> 0 | AB8: 362319.4826 | AC8: =[5]!NetUnitSize -> 998.885 | AD8: =[5]!UnitSize -> 998.885 | AE8: 362.7239198 | AF8: 373.1755774 | AG8: =[5]!HousingType -> MF | AH8: =[5]!RentalPct -> 1 | AI8: 0 | AJ8: =[5]!Rent -> 2.35 | AK8: 2347.37975 | AL8: =[5]!Sales_Price -> 0 | AM8: 0 | AN8: 0 | AO8: 0.06 | AP8: 350.7850427 | AQ8: 2 | AR8: 1.2 | AS8: 0.1951 | AT8: 93895.19 | AU8: 0 | AV8: 44781.05965 | AW8: 166.9112223 | AX8: 171.7206624 | AY8: 4071.005423 | AZ8: =[5]!RetSpace -> 1000 | BA8: 4.188308838 | BB8: 40710.05423 | BC8: =[5]!OffSpace -> 250 | BD8: 167.5323535 | BE8: 0 | BF8: =[5]!IndSpace -> 972 | BG8: 0 | BH8: 0 | BI8: =[5]!PubSpace -> 1000 | BJ8: 0 | BK8: 0 | BL8: =[5]!EduSpace -> 800 | BM8: 0 | BN8: 0 | BO8: =[5]!HotelSpaceEmp -> 1000 | BP8: 0 | BQ8: =[5]!HotelRoomNet -> 0 | BR8: =[5]!HotelRoomGross -> 0 | BS8: 0 | BT8: 0 | BU8: 0 | BV8: =[5]!ParkingSpace -> 0 | BW8: 0 | BX8: =[5]!ParkingSpaces -> 770.588 | BY8: =[5]!ParkingArea -> 154117.6 | BZ8: =[5]!ParkingCost -> 12455386.33 | CA8: 0.1001359619 | CB8: =IFERROR(IF(B_Housing_Type="SF",EXP('Residential Energy Coefficients'!$B$3+'Residential Energy Coefficients'!$B$4*LN(B_Net_Sq_Ft_per_Unit)+'Residential Energy Coefficients'!$B$9+'Residential Energy Coefficients'!$B$10*LN(B_HH_Income)+'Residential Energy Coefficients'!$B$16*LN(Residential_Energy_Cost)+'Residential Energy Coefficients'!$B$20+'Residential Energy Coefficients'!$B$24*IFERROR(LOOKUP(Metro_Select,Energy_Metro_Lookup,HDD),0)),IF(B_Housing_Type="TH",EXP('Residential Energy Coefficients'!$E$3+'Residential Energy Coefficients'!$E$4*LN(B_Net_Sq_Ft_per_Unit)+'Residential Energy Coefficients'!$E$9+'Residential Energy Coefficients'!$E$16*LN(Residential_Energy_Cost)+'Residential Energy Coefficients'!$E$19+'Residential Energy Coefficients'!$E$20+'Residential Energy Coefficients'!$E$24*IFERROR(LOOKUP(Metro_Select,Energy_Metro_Lookup,HDD),0)),IF(B_Housing_Type="MF",EXP('Residential Energy Coefficients'!$H$3+'Residential Energy Coefficients'!$H$4*LN(B_Net_Sq_Ft_per_Unit)+'Residential Energy Coefficients'!$H$9+IF(B_Pct_Owner=1,'Residential Energy Coefficients'!$H$12,0)+'Residential Energy Coefficients'!$H$16*LN(Residential_Energy_Cost)+'Residential Energy Coefficients'!$H$20+'Residential Energy Coefficients'!$H$24*IFERROR(LOOKUP(Metro_Select,Energy_Metro_Lookup,HDD),0)),IF(B_Hotel_Room_Acre>0,EXP('Residential Energy Coefficients'!$H$3+'Residential Energy Coefficients'!$H$4*LN(B_Hotel_Room_Net)+'Residential Energy Coefficients'!$H$9+'Residential Energy Coefficients'!$H$16*LN(Residential_Energy_Cost)+'Residential Energy Coefficients'!$H$20+'Residential Energy Coefficients'!$H$24*IFERROR(LOOKUP(Metro_Select,Energy_Metro_Lookup,HDD),0)),IF(B_Housing_Type="MH",EXP('Residential Energy Coefficients'!$K$3+'Residential Energy Coefficients'!$K$16*LN(Residential_Energy_Cost)+'Residential Energy Coefficients'!$K$24*IFERROR(LOOKUP(Metro_Select,Energy_Metro_Lookup,HDD),0)),0)))))/1000,0) -> 0 | CC8: =IFERROR(IF(B_Housing_Type="SF",EXP('Residential Energy Coefficients'!$C$3+'Residential Energy Coefficients'!$C$4*LN(B_Net_Sq_Ft_per_Unit)+'Residential Energy Coefficients'!$C$10*LN(B_HH_Income)+'Residential Energy Coefficients'!$C$11*B_HH_Size+'Residential Energy Coefficients'!$C$16*LN(Residential_Energy_Cost)+'Residential Energy Coefficients'!$C$19+'Residential Energy Coefficients'!$C$22+'Residential Energy Coefficients'!$C$25*IFERROR(LOOKUP(Metro_Select,Energy_Metro_Lookup,CDD),0)),IF(B_Housing_Type="TH",EXP('Residential Energy Coefficients'!$F$3+'Residential Energy Coefficients'!$F$4*LN(B_Net_Sq_Ft_per_Unit)+'Residential Energy Coefficients'!$F$10*LN(B_HH_Income)+'Residential Energy Coefficients'!$F$11*B_HH_Size+IF(B_Pct_Owner=1,'Residential Energy Coefficients'!$F$12,0)+'Residential Energy Coefficients'!$F$16*LN(Residential_Energy_Cost)+'Residential Energy Coefficients'!$F$22+'Residential Energy Coefficients'!$F$25*IFERROR(LOOKUP(Metro_Select,Energy_Metro_Lookup,CDD),0)),IF(B_Housing_Type="MF",EXP('Residential Energy Coefficients'!$I$3+'Residential Energy Coefficients'!$I$4*LN(B_Net_Sq_Ft_per_Unit)+'Residential Energy Coefficients'!$I$9+'Residential Energy Coefficients'!$I$11*B_HH_Size+'Residential Energy Coefficients'!$I$16*LN(Residential_Energy_Cost)+'Residential Energy Coefficients'!$I$22+'Residential Energy Coefficients'!$I$25*IFERROR(LOOKUP(Metro_Select,Energy_Metro_Lookup,CDD),0)),IF(B_Hotel_Room_Acre>0,EXP('Residential Energy Coefficients'!$I$3+'Residential Energy Coefficients'!$I$4*LN(B_Hotel_Room_Net)+'Residential Energy Coefficients'!$I$9+'Residential Energy Coefficients'!$I$11*1.25+'Residential Energy Coefficients'!$I$16*LN(Residential_Energy_Cost)+'Residential Energy Coefficients'!$I$22+'Residential Energy Coefficients'!$I$25*IFERROR(LOOKUP(Metro_Select,Energy_Metro_Lookup,CDD),0)),IF(B_Housing_Type="MH",EXP('Residential Energy Coefficients'!$L$3+'Residential Energy Coefficients'!$L$11*B_HH_Size+'Residential Energy Coefficients'!$L$16*LN(Residential_Energy_Cost)+'Residential Energy Coefficients'!$L$22+'Residential Energy Coefficients'!$L$25*IFERROR(LOOKUP(Metro_Select,Energy_Metro_Lookup,CDD),0)),0)))))/1000,0) -> 0 | CD8: =IFERROR(IF(B_Housing_Type="SF",EXP('Residential Energy Coefficients'!$D$3+'Residential Energy Coefficients'!$D$4*LN(B_Net_Sq_Ft_per_Unit)+'Residential Energy Coefficients'!$D$9+'Residential Energy Coefficients'!$D$10*LN(B_HH_Income)+'Residential Energy Coefficients'!$D$11*B_HH_Size+IF(B_Pct_Owner=1,'Residential Energy Coefficients'!$D$12,0)+'Residential Energy Coefficients'!$D$16*LN(Residential_Energy_Cost)),IF(B_Housing_Type="TH",EXP('Residential Energy Coefficients'!$G$3+'Residential Energy Coefficients'!$G$4*LN(B_Net_Sq_Ft_per_Unit)+'Residential Energy Coefficients'!$G$10*LN(B_HH_Income)+'Residential Energy Coefficients'!$G$11*B_HH_Size+'Residential Energy Coefficients'!$G$16*LN(Residential_Energy_Cost)),IF(B_Housing_Type="MF",EXP('Residential Energy Coefficients'!$J$3+'Residential Energy Coefficients'!$J$4*LN(B_Net_Sq_Ft_per_Unit)+'Residential Energy Coefficients'!$J$10*LN(B_HH_Income)+'Residential Energy Coefficients'!$J$11*B_HH_Size+IF(B_Pct_Owner=1,'Residential Energy Coefficients'!$J$12,0)+'Residential Energy Coefficients'!$J$16*LN(Residential_Energy_Cost)+'Residential Energy Coefficients'!$J$19),IF(B_Hotel_Room_Acre>0,EXP('Residential Energy Coefficients'!$J$3+'Residential Energy Coefficients'!$J$4*LN(B_Hotel_Room_Net)+'Residential Energy Coefficients'!$J$16*LN(Residential_Energy_Cost)+'Residential Energy Coefficients'!$J$19),IF(B_Housing_Type="MH",EXP('Residential Energy Coefficients'!$M$3+'Residential Energy Coefficients'!$M$4*LN(B_Net_Sq_Ft_per_Unit)+'Residential Energy Coefficients'!$M$11*B_HH_Size+'Residential Energy Coefficients'!$M$16*LN(Residential_Energy_Cost)+'Residential Energy Coefficients'!$M$19),0)))))/1000,0) -> 0 | CE8: 0 | CF8: =(IFERROR(EXP('Commercial Energy Coefficients'!$B$3+LN(B_RET_Gross_Sq_Ft)*'Commercial Energy Coefficients'!$B$4+'Commercial Energy Coefficients'!$B$11+'Commercial Energy Coefficients'!$B$14+'Commercial Energy Coefficients'!$B$18*LN((B_Ret_Emp_Acre)*(B_Lot_Size/43560))+'Commercial Energy Coefficients'!$B$19*LN(40)+'Commercial Energy Coefficients'!$B$21+'Commercial Energy Coefficients'!$B$22*LN(Commercial_Energy_Cost)+'Commercial Energy Coefficients'!$B$23*IFERROR(LOOKUP(Metro_Select,Energy_Metro_Lookup,HDD),0)),0)+IFERROR(EXP('Commercial Energy Coefficients'!$E$3+LN(B_OFF_Gross_Sq_Ft)*'Commercial Energy Coefficients'!$E$4+'Commercial Energy Coefficients'!$E$11+'Commercial Energy Coefficients'!$E$14+'Commercial Energy Coefficients'!$E$18*LN((B_OFF_Emp_Acre)*(B_Lot_Size/43560))+'Commercial Energy Coefficients'!$E$19*LN(40)+'Commercial Energy Coefficients'!$E$21+'Commercial Energy Coefficients'!$E$22*LN(Commercial_Energy_Cost)+'Commercial Energy Coefficients'!$E$23*IFERROR(LOOKUP(Metro_Select,Energy_Metro_Lookup,HDD),0)),0)+IFERROR(EXP('Commercial Energy Coefficients'!$H$3+LN(B_PUB_Gross_Sq_Ft)*'Commercial Energy Coefficients'!$H$4+'Commercial Energy Coefficients'!$H$11+'Commercial Energy Coefficients'!$H$14+'Commercial Energy Coefficients'!$H$18*LN((B_Pub_Emp_Acre)*(B_Lot_Size/43560))+'Commercial Energy Coefficients'!$H$19*LN(40)+'Commercial Energy Coefficients'!$H$21+'Commercial Energy Coefficients'!$H$22*LN(Commercial_Energy_Cost)+'Commercial Energy Coefficients'!$H$23*IFERROR(LOOKUP(Metro_Select,Energy_Metro_Lookup,HDD),0)),0))/1000 -> 0 | CG8: =(IFERROR(EXP('Commercial Energy Coefficients'!$C$3+LN((B_RET_Gross_Sq_Ft))*'Commercial Energy Coefficients'!$C$4+'Commercial Energy Coefficients'!$C$11+'Commercial Energy Coefficients'!$C$14+'Commercial Energy Coefficients'!$C$18*LN((B_Ret_Emp_Acre)*(B_Lot_Size/43560))+'Commercial Energy Coefficients'!$C$19*LN(40)+'Commercial Energy Coefficients'!$C$21+'Commercial Energy Coefficients'!$C$22*LN(Commercial_Energy_Cost)+'Commercial Energy Coefficients'!$C$24*IFERROR(LOOKUP(Metro_Select,Energy_Metro_Lookup,CDD),0)),0)+IFERROR(EXP('Commercial Energy Coefficients'!$F$3+LN((B_OFF_Gross_Sq_Ft))*'Commercial Energy Coefficients'!$F$4+'Commercial Energy Coefficients'!$F$11+'Commercial Energy Coefficients'!$F$14+'Commercial Energy Coefficients'!$F$18*LN((B_OFF_Emp_Acre)*(B_Lot_Size/43560))+'Commercial Energy Coefficients'!$F$19*LN(40)+'Commercial Energy Coefficients'!$F$21+'Commercial Energy Coefficients'!$F$22*LN(Commercial_Energy_Cost)+'Commercial Energy Coefficients'!$F$24*IFERROR(LOOKUP(Metro_Select,Energy_Metro_Lookup,CDD),0)),0)+IFERROR(EXP('Commercial Energy Coefficients'!$I$3+LN((B_PUB_Gross_Sq_Ft))*'Commercial Energy Coefficients'!$I$4+'Commercial Energy Coefficients'!$I$11+'Commercial Energy Coefficients'!$I$14+'Commercial Energy Coefficients'!$I$18*LN((B_Pub_Emp_Acre)*(B_Lot_Size/43560))+'Commercial Energy Coefficients'!$I$19*LN(40)+'Commercial Energy Coefficients'!$I$21+'Commercial Energy Coefficients'!$I$22*LN(Commercial_Energy_Cost)+'Commercial Energy Coefficients'!$I$24*IFERROR(LOOKUP(Metro_Select,Energy_Metro_Lookup,CDD),0)),0))/1000 -> 0 | CH8: =(IFERROR(EXP('Commercial Energy Coefficients'!$D$3+LN((B_RET_Gross_Sq_Ft))*'Commercial Energy Coefficients'!$D$4+'Commercial Energy Coefficients'!$D$14+'Commercial Energy Coefficients'!$D$18*LN((B_Ret_Emp_Acre)*(B_Lot_Size/43560))+'Commercial Energy Coefficients'!$D$19*LN(40)+'Commercial Energy Coefficients'!$D$21+'Commercial Energy Coefficients'!$D$22*LN(Commercial_Energy_Cost)),0)+IFERROR(EXP('Commercial Energy Coefficients'!$G$3+LN((B_OFF_Gross_Sq_Ft))*'Commercial Energy Coefficients'!$G$4+'Commercial Energy Coefficients'!$G$14+'Commercial Energy Coefficients'!$G$18*LN((B_OFF_Emp_Acre)*(B_Lot_Size/43560))+'Commercial Energy Coefficients'!$G$19*LN(40)+'Commercial Energy Coefficients'!$G$21+'Commercial Energy Coefficients'!$G$22*LN(Commercial_Energy_Cost)),0)+IFERROR(EXP('Commercial Energy Coefficients'!$J$3+LN((B_PUB_Gross_Sq_Ft))*'Commercial Energy Coefficients'!$J$4+'Commercial Energy Coefficients'!$J$14+'Commercial Energy Coefficients'!$J$18*LN((B_Pub_Emp_Acre)*(B_Lot_Size/43560))+'Commercial Energy Coefficients'!$J$19*LN(40)+'Commercial Energy Coefficients'!$J$21+'Commercial Energy Coefficients'!$J$22*LN(Commercial_Energy_Cost)),0))/1000 -> 0 | CI8: 0 | CJ8: 0 | CK8: 0 | CL8: 0 | CM8: 0 | CN8: 0 | CO8: 0 | CP8: 0 | CQ8: 0.6269599193 | CR8: 227.4133595 | CS8: 60 | CT8: 120 | CU8: 105.0731707 | CV8: 39301.32655 | CW8: 35 | CX8: 70 | CY8: 48.73170732 | CZ8: 20829.20603 | DA8: =IF(B_Housing_Type="",0,IF(B_Housing_Type="MF",'Project Info'!$B$158,IF(B_Housing_Type="TH",'Project Info'!$B$159,IF(AND(B_Housing_Type="SF",B_Net_Sq_Ft_per_Unit>0,B_Net_Sq_Ft_per_Unit<3000),'Project Info'!$B$160,IF(AND(B_Housing_Type="SF",B_Net_Sq_Ft_per_Unit>=3000),'Project Info'!$B$161))))) -> 1.5 | DB8: 3 | DC8: 3.536585366 | DD8: 1134.381666 | DE8: =[5]!LandCost -> 236.1832782 | DF8: 10000000 | DG8: 10288143.6 | DH8: =[5]!ProjectValue -> 124384747.5 | DI8: 127968814.3 | DJ8: =[5]!Subsidy -> 0 | DK8: 0 | DL8: 0 | DM8: 0 | DN8: 0 | DO8: 0 | DP8: 0 | DQ8: 0 | DR8: 0.7159370115 | DS8: =[5]!GreenRoof -> 0 | DT8: =[5]!GreenRoofEff -> 0 | DU8: =[5]!GreenRoofVolume -> 0 | DV8: =[5]!Biofiltration -> 0 | DW8: =[5]!BiofiltrationEff -> 0 | DX8: =[5]!BiofiltrationVolume -> 0 | DY8: =[5]!GreenRoofHarvesting -> 0 | DZ8: =[5]!GreenRoofHarvestingEff -> 0 | EA8: =[5]!WaterHarvesting -> 0 | EB8: =[5]!WaterHarvestingEff -> 0 | EC8: =[5]!WaterHarvestingVolume -> 0 | ED8: 0 | EE8: 0 | EG8: 0 | EH8: 0 | EI8: 0 | EJ8: 0 | EK8: 0 | EL8: 0 | EN8: =Annual_Cooling_degree_days*24*(1/R_conventional_SF_F_hrs_BTU-1/R_green_roof_SF_F_hrs_Btu)/3412*'Building Inputs'!$ED8 -> 0 | EO8: 0 | EP8: =Annual_Heating_degree_days*24*(1/R_conventional_SF_F_hrs_BTU-1/R_green_roof_SF_F_hrs_Btu)*'Building Inputs'!$ED8 -> 0 | EQ8: 0 | ER8: =Avg_Annual_NO2_uptake*'Building Inputs'!$ED8 -> 0 | ES8: =Avg_Annual_O3_uptake*'Building Inputs'!$ED8 -> 0 | ET8: =Avg_Annual_SO2_uptake*'Building Inputs'!$ED8 -> 0 | EU8: =Avg_Annual_PM_10_uptake*'Building Inputs'!$ED8 -> 0 | EV8: 0 | EW8: 0 | EX8: =ER8+EV8 -> 0 | EY8: =ET8+EW8 -> 0 | EZ8: 0 | FA8: 0 | FB8: 0 | FC8: 0 | FD8: =SUM(EZ8:FC8) -> 0 | FE8: =Avg_amount_of_carbon_sequestered_lbs_SF*'Building Inputs'!$ED8*3.67 -> 0 | FF8: 0 | FG8: =FE8+FF8 -> 0 | FH8: 0 | FI8: =Average_annual_rainfall_in*($E8*(1-$G8)+$DV8-$DS8-$EA8)*$E8/43560*'Building Inputs'!$DW8*144*0.00433 -> 0 | FK8: =Avg_Annual_NO2_uptake*'Building Inputs'!$EE8 -> 0 | FL8: =Avg_Annual_O3_uptake*'Building Inputs'!$EE8 -> 0 | FM8: =Avg_Annual_SO2_uptake*'Building Inputs'!$EE8 -> 0 | FN8: =Avg_Annual_PM_10_uptake*'Building Inputs'!$EE8 -> 0 | FO8: 0 | FP8: 0 | FQ8: 0 | FR8: 0 | FS8: 0 | FT8: =Avg_amount_of_carbon_sequestered_lbs_SF*'Building Inputs'!$EE8*3.67 -> 0 | FU8: 0 | FV8: =Average_annual_rainfall_in*('Building Inputs'!$EG8*'Building Inputs'!$DZ8+'Building Inputs'!$EH8*'Building Inputs'!$EB8)*144*0.00433 -> 0 | FX8: 0 | FZ8: 0 | GA8: 0 | GB8: 0 | GC8: 0 | GD8: 0 | GE8: 0 | GF8: 0 | GG8: 0 | GH8: 0 | GI8: 0 | GJ8: 0 | GK8: 0 | GL8: 0 | GM8: =[5]!RequiredWQV -> 17770.21077 | GN8: =[5]!ConventionalWQV -> 0 | GO8: 17272.51433 | GP8: 0 | GQ8: 0 | GR8: =[5]!TSSload -> 59.69806524 | GS8: =[5]!TNload -> 6.119636469 | GT8: =[5]!TLload -> 0.07390893923 | GU8: =[5]!fColiLoad -> 21687.44557 | GV8: =[5]!TSSreduction -> 0 | GW8: =[5]!TNreduction -> 0 | GX8: =[5]!TLreduction -> 0 | GY8: =[5]!fColiReduction -> 0 | GZ8: 58.02608086 | HA8: 5.948241692 | HB8: 0.07183894599 | HC8: 21080.03778 | HD8: 0 | HE8: 0 | HF8: 0 | HG8: 0 | HH8: =[5]!EPA_MXD_ResTrips -> 2218.812398 | HI8: =[5]!EPA_MXD_RetTrips -> 160.8001552 | HJ8: =[5]!EPA_MXD_OffTrips -> 497.3046252 | HK8: =[5]!EPA_MXD_EduTrips -> 0 | HL8: =[5]!EPA_MXD_OtherTrips -> 0 | HM8: =[5]!EPA_MXD_ResVMT -> 6318.58027 | HN8: =[5]!EPA_MXD_RetVMT -> 420.1469989 | HO8: =[5]!EPA_MXD_OffVMT -> 1603.178686 | HP8: =[5]!EPA_MXD_EduVMT -> 0 | HQ8: =[5]!EPA_MXD_OtherVMT -> 0
B9: 6 | C9: Mixed-Use Residential Renter 15 | D9: The Whitley | E9: =[6]!lot_size -> 35344 | F9: =[6]!Building_Lot_Coverage -> 1 | G9: =[6]!Landscaping_Coverage -> 0 | H9: =[6]!Parking_Coverage -> 0 | I9: =[6]!Height -> 16 | J9: =[6]!FAR -> 8.503989362 | K9: 300565 | L9: =[6]!ResPct -> 0.968 | M9: 0.968 | N9: 0 | O9: 0 | P9: 0 | Q9: 0 | R9: 0 | S9: 0 | T9: 0.032 | U9: =[6]!RetPct -> 0.012 | V9: =[6]!OffPct -> 0.02 | W9: =[6]!IndPct -> 0 | X9: =[6]!PubPct -> 0 | Y9: =[6]!EduPct -> 0 | Z9: =[6]!HotelPct -> 0 | AA9: =[6]!ParkingPct -> 0 | AB9: 290946.92 | AC9: =[6]!NetUnitSize -> 1030 | AD9: =[6]!UnitSize -> 1144.444444 | AE9: 254.2254641 | AF9: 313.322239 | AG9: =[6]!HousingType -> MF | AH9: =[6]!RentalPct -> 1 | AI9: 0 | AJ9: =[6]!Rent -> 2.75 | AK9: 2832.5 | AL9: =[6]!Sales_Price -> 0 | AM9: 0 | AN9: 0 | AO9: 0.06 | AP9: 294.5229047 | AQ9: 2 | AR9: 1.2 | AS9: 0.1951 | AT9: 113300 | AU9: 0 | AV9: 9618.08 | AW9: 27.65198 | AX9: 34.07990745 | AY9: 3606.78 | AZ9: =[6]!RetSpace -> 1000 | BA9: 4.445205319 | BB9: 6011.3 | BC9: =[6]!OffSpace -> 250 | BD9: 29.63470213 | BE9: 0 | BF9: =[6]!IndSpace -> 972 | BG9: 0 | BH9: 0 | BI9: =[6]!PubSpace -> 1000 | BJ9: 0 | BK9: 0 | BL9: =[6]!EduSpace -> 800 | BM9: 0 | BN9: 0 | BO9: =[6]!HotelSpaceEmp -> 1000 | BP9: 0 | BQ9: =[6]!HotelRoomNet -> 0 | BR9: =[6]!HotelRoomGross -> 0 | BS9: 0 | BT9: 0 | BU9: 0 | BV9: =[6]!ParkingSpace -> 0 | BW9: 0 | BX9: =[6]!ParkingSpaces -> 337.44054 | BY9: =[6]!ParkingArea -> 96170.55389 | BZ9: =[6]!ParkingCost -> 7030760.234 | CA9: 0.08116228096 | CB9: =IFERROR(IF(B_Housing_Type="SF",EXP('Residential Energy Coefficients'!$B$3+'Residential Energy Coefficients'!$B$4*LN(B_Net_Sq_Ft_per_Unit)+'Residential Energy Coefficients'!$B$9+'Residential Energy Coefficients'!$B$10*LN(B_HH_Income)+'Residential Energy Coefficients'!$B$16*LN(Residential_Energy_Cost)+'Residential Energy Coefficients'!$B$20+'Residential Energy Coefficients'!$B$24*IFERROR(LOOKUP(Metro_Select,Energy_Metro_Lookup,HDD),0)),IF(B_Housing_Type="TH",EXP('Residential Energy Coefficients'!$E$3+'Residential Energy Coefficients'!$E$4*LN(B_Net_Sq_Ft_per_Unit)+'Residential Energy Coefficients'!$E$9+'Residential Energy Coefficients'!$E$16*LN(Residential_Energy_Cost)+'Residential Energy Coefficients'!$E$19+'Residential Energy Coefficients'!$E$20+'Residential Energy Coefficients'!$E$24*IFERROR(LOOKUP(Metro_Select,Energy_Metro_Lookup,HDD),0)),IF(B_Housing_Type="MF",EXP('Residential Energy Coefficients'!$H$3+'Residential Energy Coefficients'!$H$4*LN(B_Net_Sq_Ft_per_Unit)+'Residential Energy Coefficients'!$H$9+IF(B_Pct_Owner=1,'Residential Energy Coefficients'!$H$12,0)+'Residential Energy Coefficients'!$H$16*LN(Residential_Energy_Cost)+'Residential Energy Coefficients'!$H$20+'Residential Energy Coefficients'!$H$24*IFERROR(LOOKUP(Metro_Select,Energy_Metro_Lookup,HDD),0)),IF(B_Hotel_Room_Acre>0,EXP('Residential Energy Coefficients'!$H$3+'Residential Energy Coefficients'!$H$4*LN(B_Hotel_Room_Net)+'Residential Energy Coefficients'!$H$9+'Residential Energy Coefficients'!$H$16*LN(Residential_Energy_Cost)+'Residential Energy Coefficients'!$H$20+'Residential Energy Coefficients'!$H$24*IFERROR(LOOKUP(Metro_Select,Energy_Metro_Lookup,HDD),0)),IF(B_Housing_Type="MH",EXP('Residential Energy Coefficients'!$K$3+'Residential Energy Coefficients'!$K$16*LN(Residential_Energy_Cost)+'Residential Energy Coefficients'!$K$24*IFERROR(LOOKUP(Metro_Select,Energy_Metro_Lookup,HDD),0)),0)))))/1000,0) -> 0 | CC9: =IFERROR(IF(B_Housing_Type="SF",EXP('Residential Energy Coefficients'!$C$3+'Residential Energy Coefficients'!$C$4*LN(B_Net_Sq_Ft_per_Unit)+'Residential Energy Coefficients'!$C$10*LN(B_HH_Income)+'Residential Energy Coefficients'!$C$11*B_HH_Size+'Residential Energy Coefficients'!$C$16*LN(Residential_Energy_Cost)+'Residential Energy Coefficients'!$C$19+'Residential Energy Coefficients'!$C$22+'Residential Energy Coefficients'!$C$25*IFERROR(LOOKUP(Metro_Select,Energy_Metro_Lookup,CDD),0)),IF(B_Housing_Type="TH",EXP('Residential Energy Coefficients'!$F$3+'Residential Energy Coefficients'!$F$4*LN(B_Net_Sq_Ft_per_Unit)+'Residential Energy Coefficients'!$F$10*LN(B_HH_Income)+'Residential Energy Coefficients'!$F$11*B_HH_Size+IF(B_Pct_Owner=1,'Residential Energy Coefficients'!$F$12,0)+'Residential Energy Coefficients'!$F$16*LN(Residential_Energy_Cost)+'Residential Energy Coefficients'!$F$22+'Residential Energy Coefficients'!$F$25*IFERROR(LOOKUP(Metro_Select,Energy_Metro_Lookup,CDD),0)),IF(B_Housing_Type="MF",EXP('Residential Energy Coefficients'!$I$3+'Residential Energy Coefficients'!$I$4*LN(B_Net_Sq_Ft_per_Unit)+'Residential Energy Coefficients'!$I$9+'Residential Energy Coefficients'!$I$11*B_HH_Size+'Residential Energy Coefficients'!$I$16*LN(Residential_Energy_Cost)+'Residential Energy Coefficients'!$I$22+'Residential Energy Coefficients'!$I$25*IFERROR(LOOKUP(Metro_Select,Energy_Metro_Lookup,CDD),0)),IF(B_Hotel_Room_Acre>0,EXP('Residential Energy Coefficients'!$I$3+'Residential Energy Coefficients'!$I$4*LN(B_Hotel_Room_Net)+'Residential Energy Coefficients'!$I$9+'Residential Energy Coefficients'!$I$11*1.25+'Residential Energy Coefficients'!$I$16*LN(Residential_Energy_Cost)+'Residential Energy Coefficients'!$I$22+'Residential Energy Coefficients'!$I$25*IFERROR(LOOKUP(Metro_Select,Energy_Metro_Lookup,CDD),0)),IF(B_Housing_Type="MH",EXP('Residential Energy Coefficients'!$L$3+'Residential Energy Coefficients'!$L$11*B_HH_Size+'Residential Energy Coefficients'!$L$16*LN(Residential_Energy_Cost)+'Residential Energy Coefficients'!$L$22+'Residential Energy Coefficients'!$L$25*IFERROR(LOOKUP(Metro_Select,Energy_Metro_Lookup,CDD),0)),0)))))/1000,0) -> 0 | CD9: =IFERROR(IF(B_Housing_Type="SF",EXP('Residential Energy Coefficients'!$D$3+'Residential Energy Coefficients'!$D$4*LN(B_Net_Sq_Ft_per_Unit)+'Residential Energy Coefficients'!$D$9+'Residential Energy Coefficients'!$D$10*LN(B_HH_Income)+'Residential Energy Coefficients'!$D$11*B_HH_Size+IF(B_Pct_Owner=1,'Residential Energy Coefficients'!$D$12,0)+'Residential Energy Coefficients'!$D$16*LN(Residential_Energy_Cost)),IF(B_Housing_Type="TH",EXP('Residential Energy Coefficients'!$G$3+'Residential Energy Coefficients'!$G$4*LN(B_Net_Sq_Ft_per_Unit)+'Residential Energy Coefficients'!$G$10*LN(B_HH_Income)+'Residential Energy Coefficients'!$G$11*B_HH_Size+'Residential Energy Coefficients'!$G$16*LN(Residential_Energy_Cost)),IF(B_Housing_Type="MF",EXP('Residential Energy Coefficients'!$J$3+'Residential Energy Coefficients'!$J$4*LN(B_Net_Sq_Ft_per_Unit)+'Residential Energy Coefficients'!$J$10*LN(B_HH_Income)+'Residential Energy Coefficients'!$J$11*B_HH_Size+IF(B_Pct_Owner=1,'Residential Energy Coefficients'!$J$12,0)+'Residential Energy Coefficients'!$J$16*LN(Residential_Energy_Cost)+'Residential Energy Coefficients'!$J$19),IF(B_Hotel_Room_Acre>0,EXP('Residential Energy Coefficients'!$J$3+'Residential Energy Coefficients'!$J$4*LN(B_Hotel_Room_Net)+'Residential Energy Coefficients'!$J$16*LN(Residential_Energy_Cost)+'Residential Energy Coefficients'!$J$19),IF(B_Housing_Type="MH",EXP('Residential Energy Coefficients'!$M$3+'Residential Energy Coefficients'!$M$4*LN(B_Net_Sq_Ft_per_Unit)+'Residential Energy Coefficients'!$M$11*B_HH_Size+'Residential Energy Coefficients'!$M$16*LN(Residential_Energy_Cost)+'Residential Energy Coefficients'!$M$19),0)))))/1000,0) -> 0 | CE9: 0 | CF9: =(IFERROR(EXP('Commercial Energy Coefficients'!$B$3+LN(B_RET_Gross_Sq_Ft)*'Commercial Energy Coefficients'!$B$4+'Commercial Energy Coefficients'!$B$11+'Commercial Energy Coefficients'!$B$14+'Commercial Energy Coefficients'!$B$18*LN((B_Ret_Emp_Acre)*(B_Lot_Size/43560))+'Commercial Energy Coefficients'!$B$19*LN(40)+'Commercial Energy Coefficients'!$B$21+'Commercial Energy Coefficients'!$B$22*LN(Commercial_Energy_Cost)+'Commercial Energy Coefficients'!$B$23*IFERROR(LOOKUP(Metro_Select,Energy_Metro_Lookup,HDD),0)),0)+IFERROR(EXP('Commercial Energy Coefficients'!$E$3+LN(B_OFF_Gross_Sq_Ft)*'Commercial Energy Coefficients'!$E$4+'Commercial Energy Coefficients'!$E$11+'Commercial Energy Coefficients'!$E$14+'Commercial Energy Coefficients'!$E$18*LN((B_OFF_Emp_Acre)*(B_Lot_Size/43560))+'Commercial Energy Coefficients'!$E$19*LN(40)+'Commercial Energy Coefficients'!$E$21+'Commercial Energy Coefficients'!$E$22*LN(Commercial_Energy_Cost)+'Commercial Energy Coefficients'!$E$23*IFERROR(LOOKUP(Metro_Select,Energy_Metro_Lookup,HDD),0)),0)+IFERROR(EXP('Commercial Energy Coefficients'!$H$3+LN(B_PUB_Gross_Sq_Ft)*'Commercial Energy Coefficients'!$H$4+'Commercial Energy Coefficients'!$H$11+'Commercial Energy Coefficients'!$H$14+'Commercial Energy Coefficients'!$H$18*LN((B_Pub_Emp_Acre)*(B_Lot_Size/43560))+'Commercial Energy Coefficients'!$H$19*LN(40)+'Commercial Energy Coefficients'!$H$21+'Commercial Energy Coefficients'!$H$22*LN(Commercial_Energy_Cost)+'Commercial Energy Coefficients'!$H$23*IFERROR(LOOKUP(Metro_Select,Energy_Metro_Lookup,HDD),0)),0))/1000 -> 0 | CG9: =(IFERROR(EXP('Commercial Energy Coefficients'!$C$3+LN((B_RET_Gross_Sq_Ft))*'Commercial Energy Coefficients'!$C$4+'Commercial Energy Coefficients'!$C$11+'Commercial Energy Coefficients'!$C$14+'Commercial Energy Coefficients'!$C$18*LN((B_Ret_Emp_Acre)*(B_Lot_Size/43560))+'Commercial Energy Coefficients'!$C$19*LN(40)+'Commercial Energy Coefficients'!$C$21+'Commercial Energy Coefficients'!$C$22*LN(Commercial_Energy_Cost)+'Commercial Energy Coefficients'!$C$24*IFERROR(LOOKUP(Metro_Select,Energy_Metro_Lookup,CDD),0)),0)+IFERROR(EXP('Commercial Energy Coefficients'!$F$3+LN((B_OFF_Gross_Sq_Ft))*'Commercial Energy Coefficients'!$F$4+'Commercial Energy Coefficients'!$F$11+'Commercial Energy Coefficients'!$F$14+'Commercial Energy Coefficients'!$F$18*LN((B_OFF_Emp_Acre)*(B_Lot_Size/43560))+'Commercial Energy Coefficients'!$F$19*LN(40)+'Commercial Energy Coefficients'!$F$21+'Commercial Energy Coefficients'!$F$22*LN(Commercial_Energy_Cost)+'Commercial Energy Coefficients'!$F$24*IFERROR(LOOKUP(Metro_Select,Energy_Metro_Lookup,CDD),0)),0)+IFERROR(EXP('Commercial Energy Coefficients'!$I$3+LN((B_PUB_Gross_Sq_Ft))*'Commercial Energy Coefficients'!$I$4+'Commercial Energy Coefficients'!$I$11+'Commercial Energy Coefficients'!$I$14+'Commercial Energy Coefficients'!$I$18*LN((B_Pub_Emp_Acre)*(B_Lot_Size/43560))+'Commercial Energy Coefficients'!$I$19*LN(40)+'Commercial Energy Coefficients'!$I$21+'Commercial Energy Coefficients'!$I$22*LN(Commercial_Energy_Cost)+'Commercial Energy Coefficients'!$I$24*IFERROR(LOOKUP(Metro_Select,Energy_Metro_Lookup,CDD),0)),0))/1000 -> 0 | CH9: =(IFERROR(EXP('Commercial Energy Coefficients'!$D$3+LN((B_RET_Gross_Sq_Ft))*'Commercial Energy Coefficients'!$D$4+'Commercial Energy Coefficients'!$D$14+'Commercial Energy Coefficients'!$D$18*LN((B_Ret_Emp_Acre)*(B_Lot_Size/43560))+'Commercial Energy Coefficients'!$D$19*LN(40)+'Commercial Energy Coefficients'!$D$21+'Commercial Energy Coefficients'!$D$22*LN(Commercial_Energy_Cost)),0)+IFERROR(EXP('Commercial Energy Coefficients'!$G$3+LN((B_OFF_Gross_Sq_Ft))*'Commercial Energy Coefficients'!$G$4+'Commercial Energy Coefficients'!$G$14+'Commercial Energy Coefficients'!$G$18*LN((B_OFF_Emp_Acre)*(B_Lot_Size/43560))+'Commercial Energy Coefficients'!$G$19*LN(40)+'Commercial Energy Coefficients'!$G$21+'Commercial Energy Coefficients'!$G$22*LN(Commercial_Energy_Cost)),0)+IFERROR(EXP('Commercial Energy Coefficients'!$J$3+LN((B_PUB_Gross_Sq_Ft))*'Commercial Energy Coefficients'!$J$4+'Commercial Energy Coefficients'!$J$14+'Commercial Energy Coefficients'!$J$18*LN((B_Pub_Emp_Acre)*(B_Lot_Size/43560))+'Commercial Energy Coefficients'!$J$19*LN(40)+'Commercial Energy Coefficients'!$J$21+'Commercial Energy Coefficients'!$J$22*LN(Commercial_Energy_Cost)),0))/1000 -> 0 | CI9: 0 | CJ9: 0 | CK9: 0 | CL9: 0 | CM9: 0 | CN9: 0 | CO9: 0 | CP9: 0 | CQ9: 0 | CR9: 0 | CS9: 60 | CT9: 120 | CU9: 101.0434783 | CV9: 18047.58008 | CW9: 35 | CX9: 70 | CY9: 47.56521739 | CZ9: 10213.16368 | DA9: =IF(B_Housing_Type="",0,IF(B_Housing_Type="MF",'Project Info'!$B$158,IF(B_Housing_Type="TH",'Project Info'!$B$159,IF(AND(B_Housing_Type="SF",B_Net_Sq_Ft_per_Unit>0,B_Net_Sq_Ft_per_Unit<3000),'Project Info'!$B$160,IF(AND(B_Housing_Type="SF",B_Net_Sq_Ft_per_Unit>=3000),'Project Info'!$B$161))))) -> 1.5 | DB9: 3 | DC9: 3.695652174 | DD9: 483.5302961 | DE9: =[6]!LandCost -> 141.466727 | DF9: 5000000 | DG9: 6162290.629 | DH9: =[6]!ProjectValue -> 86625956.67 | DI9: 106762864.2 | DJ9: =[6]!Subsidy -> 0 | DK9: 0 | DL9: 0 | DM9: 0 | DN9: 0 | DO9: 0 | DP9: 0 | DQ9: 0 | DR9: 0.6332084409 | DS9: =[6]!GreenRoof -> 0 | DT9: =[6]!GreenRoofEff -> 0 | DU9: =[6]!GreenRoofVolume -> 0 | DV9: =[6]!Biofiltration -> 0 | DW9: =[6]!BiofiltrationEff -> 0 | DX9: =[6]!BiofiltrationVolume -> 0 | DY9: =[6]!GreenRoofHarvesting -> 0 | DZ9: =[6]!GreenRoofHarvestingEff -> 0 | EA9: =[6]!WaterHarvesting -> 0 | EB9: =[6]!WaterHarvestingEff -> 0 | EC9: =[6]!WaterHarvestingVolume -> 0 | ED9: 0 | EE9: 0 | EG9: 0 | EH9: 0 | EI9: 0 | EJ9: 0 | EK9: 0 | EL9: 0 | EN9: =Annual_Cooling_degree_days*24*(1/R_conventional_SF_F_hrs_BTU-1/R_green_roof_SF_F_hrs_Btu)/3412*'Building Inputs'!$ED9 -> 0 | EO9: 0 | EP9: =Annual_Heating_degree_days*24*(1/R_conventional_SF_F_hrs_BTU-1/R_green_roof_SF_F_hrs_Btu)*'Building Inputs'!$ED9 -> 0 | EQ9: 0 | ER9: =Avg_Annual_NO2_uptake*'Building Inputs'!$ED9 -> 0 | ES9: =Avg_Annual_O3_uptake*'Building Inputs'!$ED9 -> 0 | ET9: =Avg_Annual_SO2_uptake*'Building Inputs'!$ED9 -> 0 | EU9: =Avg_Annual_PM_10_uptake*'Building Inputs'!$ED9 -> 0 | EV9: 0 | EW9: 0 | EX9: 0 | EY9: 0 | EZ9: 0 | FA9: 0 | FB9: 0 | FC9: 0 | FD9: 0 | FE9: =Avg_amount_of_carbon_sequestered_lbs_SF*'Building Inputs'!$ED9*3.67 -> 0 | FF9: 0 | FG9: 0 | FH9: 0 | FI9: =Average_annual_rainfall_in*($E9*(1-$G9)+$DV9-$DS9-$EA9)*$E9/43560*'Building Inputs'!$DW9*144*0.00433 -> 0 | FK9: =Avg_Annual_NO2_uptake*'Building Inputs'!$EE9 -> 0 | FL9: =Avg_Annual_O3_uptake*'Building Inputs'!$EE9 -> 0 | FM9: =Avg_Annual_SO2_uptake*'Building Inputs'!$EE9 -> 0 | FN9: =Avg_Annual_PM_10_uptake*'Building Inputs'!$EE9 -> 0 | FO9: 0 | FP9: 0 | FQ9: 0 | FR9: 0 | FS9: 0 | FT9: =Avg_amount_of_carbon_sequestered_lbs_SF*'Building Inputs'!$EE9*3.67 -> 0 | FU9: 0 | FV9: =Average_annual_rainfall_in*('Building Inputs'!$EG9*'Building Inputs'!$DZ9+'Building Inputs'!$EH9*'Building Inputs'!$EB9)*144*0.00433 -> 0 | FX9: 0 | FZ9: 0 | GA9: 0 | GB9: 0 | GC9: 0 | GD9: 0 | GE9: 0 | GF9: 0 | GG9: 0 | GH9: 0 | GI9: 0 | GJ9: 0 | GK9: 0 | GL9: 0 | GM9: =[6]!RequiredWQV -> 20929.53867 | GN9: =[6]!ConventionalWQV -> 0 | GO9: 16981.94708 | GP9: 0 | GQ9: 0 | GR9: =[6]!TSSload -> 45.85938769 | GS9: =[6]!TNload -> 10.70052379 | GT9: =[6]!TLload -> 0.08662328785 | GU9: =[6]!fColiLoad -> 2554.507682 | GV9: =[6]!TSSreduction -> 0 | GW9: =[6]!TNreduction -> 0 | GX9: =[6]!TLreduction -> 0 | GY9: =[6]!fColiReduction -> 0 | GZ9: 37.20969234 | HA9: 8.682261546 | HB9: 0.07028497442 | HC9: 2072.693285 | HD9: 0 | HE9: 0 | HF9: 0 | HG9: 0 | HH9: =[6]!EPA_MXD_ResTrips -> 1592.142972 | HI9: =[6]!EPA_MXD_RetTrips -> 145.8555848 | HJ9: =[6]!EPA_MXD_OffTrips -> 75.18095663 | HK9: =[6]!EPA_MXD_EduTrips -> 0 | HL9: =[6]!EPA_MXD_OtherTrips -> 0 | HM9: =[6]!EPA_MXD_ResVMT -> 4527.753086 | HN9: =[6]!EPA_MXD_RetVMT -> 379.9418122 | HO9: =[6]!EPA_MXD_OffVMT -> 240.9338921 | HP9: =[6]!EPA_MXD_EduVMT -> 0 | HQ9: =[6]!EPA_MXD_OtherVMT -> 0
B10: 7 | C10: Mixed-Use Residential Renter 5 | D10: South Lamar Plaza | E10: =[7]!lot_size -> 390515 | F10: =[7]!Building_Lot_Coverage -> 0.6700210109 | G10: =[7]!Landscaping_Coverage -> 0.022 | H10: =[7]!Parking_Coverage -> 0.3079789891 | I10: =[7]!Height -> 5 | J10: =[7]!FAR -> 3.350105055 | K10: 1308266.275 | L10: =[7]!ResPct -> 0.9355671285 | M10: 0.9355671285 | N10: 0 | O10: 0 | P10: 0 | Q10: 0 | R10: 0 | S10: 0 | T10: 0.06443287154 | U10: =[7]!RetPct -> 0.06443287154 | V10: =[7]!OffPct -> 0 | W10: =[7]!IndPct -> 0 | X10: =[7]!PubPct -> 0 | Y10: =[7]!EduPct -> 0 | Z10: =[7]!HotelPct -> 0 | AA10: =[7]!ParkingPct -> 0 | AB10: 1223970.923 | AC10: =[7]!NetUnitSize -> 2776.455782 | AD10: =[7]!UnitSize -> 2776.455782 | AE10: 440.8393357 | AF10: 49.17342858 | AG10: =[7]!HousingType -> MF | AH10: =[7]!RentalPct -> 1 | AI10: 0 | AJ10: =[7]!Rent -> 2 | AK10: 5552.911565 | AL10: =[7]!Sales_Price -> 0 | AM10: 0 | AN10: 0 | AO10: 0.06 | AP10: 46.22302286 | AQ10: 2 | AR10: 1.2 | AS10: 0.1951 | AT10: 222116.4626 | AU10: 0 | AV10: 84295.35286 | AW10: 84.29535286 | AX10: 9.402726068 | AY10: 84295.35286 | AZ10: =[7]!RetSpace -> 1000 | BA10: 9.402726068 | BB10: 0 | BC10: =[7]!OffSpace -> 250 | BD10: 0 | BE10: 0 | BF10: =[7]!IndSpace -> 2306 | BG10: 0 | BH10: 0 | BI10: =[7]!PubSpace -> 1000 | BJ10: 0 | BK10: 0 | BL10: =[7]!EduSpace -> 800 | BM10: 0 | BN10: 0 | BO10: =[7]!HotelSpaceEmp -> 1000 | BP10: 0 | BQ10: =[7]!HotelRoomNet -> 0 | BR10: =[7]!HotelRoomGross -> 0 | BS10: 0 | BT10: 0 | BU10: 0 | BV10: =[7]!ParkingSpace -> 20000 | BW10: 0 | BX10: =[7]!ParkingSpaces -> 1394.439593 | BY10: =[7]!ParkingArea -> 481081.6597 | BZ10: =[7]!ParkingCost -> 27888791.86 | CA10: 0.1019811721 | CB10: =IFERROR(IF(B_Housing_Type="SF",EXP('Residential Energy Coefficients'!$B$3+'Residential Energy Coefficients'!$B$4*LN(B_Net_Sq_Ft_per_Unit)+'Residential Energy Coefficients'!$B$9+'Residential Energy Coefficients'!$B$10*LN(B_HH_Income)+'Residential Energy Coefficients'!$B$16*LN(Residential_Energy_Cost)+'Residential Energy Coefficients'!$B$20+'Residential Energy Coefficients'!$B$24*IFERROR(LOOKUP(Metro_Select,Energy_Metro_Lookup,HDD),0)),IF(B_Housing_Type="TH",EXP('Residential Energy Coefficients'!$E$3+'Residential Energy Coefficients'!$E$4*LN(B_Net_Sq_Ft_per_Unit)+'Residential Energy Coefficients'!$E$9+'Residential Energy Coefficients'!$E$16*LN(Residential_Energy_Cost)+'Residential Energy Coefficients'!$E$19+'Residential Energy Coefficients'!$E$20+'Residential Energy Coefficients'!$E$24*IFERROR(LOOKUP(Metro_Select,Energy_Metro_Lookup,HDD),0)),IF(B_Housing_Type="MF",EXP('Residential Energy Coefficients'!$H$3+'Residential Energy Coefficients'!$H$4*LN(B_Net_Sq_Ft_per_Unit)+'Residential Energy Coefficients'!$H$9+IF(B_Pct_Owner=1,'Residential Energy Coefficients'!$H$12,0)+'Residential Energy Coefficients'!$H$16*LN(Residential_Energy_Cost)+'Residential Energy Coefficients'!$H$20+'Residential Energy Coefficients'!$H$24*IFERROR(LOOKUP(Metro_Select,Energy_Metro_Lookup,HDD),0)),IF(B_Hotel_Room_Acre>0,EXP('Residential Energy Coefficients'!$H$3+'Residential Energy Coefficients'!$H$4*LN(B_Hotel_Room_Net)+'Residential Energy Coefficients'!$H$9+'Residential Energy Coefficients'!$H$16*LN(Residential_Energy_Cost)+'Residential Energy Coefficients'!$H$20+'Residential Energy Coefficients'!$H$24*IFERROR(LOOKUP(Metro_Select,Energy_Metro_Lookup,HDD),0)),IF(B_Housing_Type="MH",EXP('Residential Energy Coefficients'!$K$3+'Residential Energy Coefficients'!$K$16*LN(Residential_Energy_Cost)+'Residential Energy Coefficients'!$K$24*IFERROR(LOOKUP(Metro_Select,Energy_Metro_Lookup,HDD),0)),0)))))/1000,0) -> 0 | CC10: =IFERROR(IF(B_Housing_Type="SF",EXP('Residential Energy Coefficients'!$C$3+'Residential Energy Coefficients'!$C$4*LN(B_Net_Sq_Ft_per_Unit)+'Residential Energy Coefficients'!$C$10*LN(B_HH_Income)+'Residential Energy Coefficients'!$C$11*B_HH_Size+'Residential Energy Coefficients'!$C$16*LN(Residential_Energy_Cost)+'Residential Energy Coefficients'!$C$19+'Residential Energy Coefficients'!$C$22+'Residential Energy Coefficients'!$C$25*IFERROR(LOOKUP(Metro_Select,Energy_Metro_Lookup,CDD),0)),IF(B_Housing_Type="TH",EXP('Residential Energy Coefficients'!$F$3+'Residential Energy Coefficients'!$F$4*LN(B_Net_Sq_Ft_per_Unit)+'Residential Energy Coefficients'!$F$10*LN(B_HH_Income)+'Residential Energy Coefficients'!$F$11*B_HH_Size+IF(B_Pct_Owner=1,'Residential Energy Coefficients'!$F$12,0)+'Residential Energy Coefficients'!$F$16*LN(Residential_Energy_Cost)+'Residential Energy Coefficients'!$F$22+'Residential Energy Coefficients'!$F$25*IFERROR(LOOKUP(Metro_Select,Energy_Metro_Lookup,CDD),0)),IF(B_Housing_Type="MF",EXP('Residential Energy Coefficients'!$I$3+'Residential Energy Coefficients'!$I$4*LN(B_Net_Sq_Ft_per_Unit)+'Residential Energy Coefficients'!$I$9+'Residential Energy Coefficients'!$I$11*B_HH_Size+'Residential Energy Coefficients'!$I$16*LN(Residential_Energy_Cost)+'Residential Energy Coefficients'!$I$22+'Residential Energy Coefficients'!$I$25*IFERROR(LOOKUP(Metro_Select,Energy_Metro_Lookup,CDD),0)),IF(B_Hotel_Room_Acre>0,EXP('Residential Energy Coefficients'!$I$3+'Residential Energy Coefficients'!$I$4*LN(B_Hotel_Room_Net)+'Residential Energy Coefficients'!$I$9+'Residential Energy Coefficients'!$I$11*1.25+'Residential Energy Coefficients'!$I$16*LN(Residential_Energy_Cost)+'Residential Energy Coefficients'!$I$22+'Residential Energy Coefficients'!$I$25*IFERROR(LOOKUP(Metro_Select,Energy_Metro_Lookup,CDD),0)),IF(B_Housing_Type="MH",EXP('Residential Energy Coefficients'!$L$3+'Residential Energy Coefficients'!$L$11*B_HH_Size+'Residential Energy Coefficients'!$L$16*LN(Residential_Energy_Cost)+'Residential Energy Coefficients'!$L$22+'Residential Energy Coefficients'!$L$25*IFERROR(LOOKUP(Metro_Select,Energy_Metro_Lookup,CDD),0)),0)))))/1000,0) -> 0 | CD10: =IFERROR(IF(B_Housing_Type="SF",EXP('Residential Energy Coefficients'!$D$3+'Residential Energy Coefficients'!$D$4*LN(B_Net_Sq_Ft_per_Unit)+'Residential Energy Coefficients'!$D$9+'Residential Energy Coefficients'!$D$10*LN(B_HH_Income)+'Residential Energy Coefficients'!$D$11*B_HH_Size+IF(B_Pct_Owner=1,'Residential Energy Coefficients'!$D$12,0)+'Residential Energy Coefficients'!$D$16*LN(Residential_Energy_Cost)),IF(B_Housing_Type="TH",EXP('Residential Energy Coefficients'!$G$3+'Residential Energy Coefficients'!$G$4*LN(B_Net_Sq_Ft_per_Unit)+'Residential Energy Coefficients'!$G$10*LN(B_HH_Income)+'Residential Energy Coefficients'!$G$11*B_HH_Size+'Residential Energy Coefficients'!$G$16*LN(Residential_Energy_Cost)),IF(B_Housing_Type="MF",EXP('Residential Energy Coefficients'!$J$3+'Residential Energy Coefficients'!$J$4*LN(B_Net_Sq_Ft_per_Unit)+'Residential Energy Coefficients'!$J$10*LN(B_HH_Income)+'Residential Energy Coefficients'!$J$11*B_HH_Size+IF(B_Pct_Owner=1,'Residential Energy Coefficients'!$J$12,0)+'Residential Energy Coefficients'!$J$16*LN(Residential_Energy_Cost)+'Residential Energy Coefficients'!$J$19),IF(B_Hotel_Room_Acre>0,EXP('Residential Energy Coefficients'!$J$3+'Residential Energy Coefficients'!$J$4*LN(B_Hotel_Room_Net)+'Residential Energy Coefficients'!$J$16*LN(Residential_Energy_Cost)+'Residential Energy Coefficients'!$J$19),IF(B_Housing_Type="MH",EXP('Residential Energy Coefficients'!$M$3+'Residential Energy Coefficients'!$M$4*LN(B_Net_Sq_Ft_per_Unit)+'Residential Energy Coefficients'!$M$11*B_HH_Size+'Residential Energy Coefficients'!$M$16*LN(Residential_Energy_Cost)+'Residential Energy Coefficients'!$M$19),0)))))/1000,0) -> 0 | CE10: 0 | CF10: =(IFERROR(EXP('Commercial Energy Coefficients'!$B$3+LN(B_RET_Gross_Sq_Ft)*'Commercial Energy Coefficients'!$B$4+'Commercial Energy Coefficients'!$B$11+'Commercial Energy Coefficients'!$B$14+'Commercial Energy Coefficients'!$B$18*LN((B_Ret_Emp_Acre)*(B_Lot_Size/43560))+'Commercial Energy Coefficients'!$B$19*LN(40)+'Commercial Energy Coefficients'!$B$21+'Commercial Energy Coefficients'!$B$22*LN(Commercial_Energy_Cost)+'Commercial Energy Coefficients'!$B$23*IFERROR(LOOKUP(Metro_Select,Energy_Metro_Lookup,HDD),0)),0)+IFERROR(EXP('Commercial Energy Coefficients'!$E$3+LN(B_OFF_Gross_Sq_Ft)*'Commercial Energy Coefficients'!$E$4+'Commercial Energy Coefficients'!$E$11+'Commercial Energy Coefficients'!$E$14+'Commercial Energy Coefficients'!$E$18*LN((B_OFF_Emp_Acre)*(B_Lot_Size/43560))+'Commercial Energy Coefficients'!$E$19*LN(40)+'Commercial Energy Coefficients'!$E$21+'Commercial Energy Coefficients'!$E$22*LN(Commercial_Energy_Cost)+'Commercial Energy Coefficients'!$E$23*IFERROR(LOOKUP(Metro_Select,Energy_Metro_Lookup,HDD),0)),0)+IFERROR(EXP('Commercial Energy Coefficients'!$H$3+LN(B_PUB_Gross_Sq_Ft)*'Commercial Energy Coefficients'!$H$4+'Commercial Energy Coefficients'!$H$11+'Commercial Energy Coefficients'!$H$14+'Commercial Energy Coefficients'!$H$18*LN((B_Pub_Emp_Acre)*(B_Lot_Size/43560))+'Commercial Energy Coefficients'!$H$19*LN(40)+'Commercial Energy Coefficients'!$H$21+'Commercial Energy Coefficients'!$H$22*LN(Commercial_Energy_Cost)+'Commercial Energy Coefficients'!$H$23*IFERROR(LOOKUP(Metro_Select,Energy_Metro_Lookup,HDD),0)),0))/1000 -> 0 | CG10: =(IFERROR(EXP('Commercial Energy Coefficients'!$C$3+LN((B_RET_Gross_Sq_Ft))*'Commercial Energy Coefficients'!$C$4+'Commercial Energy Coefficients'!$C$11+'Commercial Energy Coefficients'!$C$14+'Commercial Energy Coefficients'!$C$18*LN((B_Ret_Emp_Acre)*(B_Lot_Size/43560))+'Commercial Energy Coefficients'!$C$19*LN(40)+'Commercial Energy Coefficients'!$C$21+'Commercial Energy Coefficients'!$C$22*LN(Commercial_Energy_Cost)+'Commercial Energy Coefficients'!$C$24*IFERROR(LOOKUP(Metro_Select,Energy_Metro_Lookup,CDD),0)),0)+IFERROR(EXP('Commercial Energy Coefficients'!$F$3+LN((B_OFF_Gross_Sq_Ft))*'Commercial Energy Coefficients'!$F$4+'Commercial Energy Coefficients'!$F$11+'Commercial Energy Coefficients'!$F$14+'Commercial Energy Coefficients'!$F$18*LN((B_OFF_Emp_Acre)*(B_Lot_Size/43560))+'Commercial Energy Coefficients'!$F$19*LN(40)+'Commercial Energy Coefficients'!$F$21+'Commercial Energy Coefficients'!$F$22*LN(Commercial_Energy_Cost)+'Commercial Energy Coefficients'!$F$24*IFERROR(LOOKUP(Metro_Select,Energy_Metro_Lookup,CDD),0)),0)+IFERROR(EXP('Commercial Energy Coefficients'!$I$3+LN((B_PUB_Gross_Sq_Ft))*'Commercial Energy Coefficients'!$I$4+'Commercial Energy Coefficients'!$I$11+'Commercial Energy Coefficients'!$I$14+'Commercial Energy Coefficients'!$I$18*LN((B_Pub_Emp_Acre)*(B_Lot_Size/43560))+'Commercial Energy Coefficients'!$I$19*LN(40)+'Commercial Energy Coefficients'!$I$21+'Commercial Energy Coefficients'!$I$22*LN(Commercial_Energy_Cost)+'Commercial Energy Coefficients'!$I$24*IFERROR(LOOKUP(Metro_Select,Energy_Metro_Lookup,CDD),0)),0))/1000 -> 0 | CH10: =(IFERROR(EXP('Commercial Energy Coefficients'!$D$3+LN((B_RET_Gross_Sq_Ft))*'Commercial Energy Coefficients'!$D$4+'Commercial Energy Coefficients'!$D$14+'Commercial Energy Coefficients'!$D$18*LN((B_Ret_Emp_Acre)*(B_Lot_Size/43560))+'Commercial Energy Coefficients'!$D$19*LN(40)+'Commercial Energy Coefficients'!$D$21+'Commercial Energy Coefficients'!$D$22*LN(Commercial_Energy_Cost)),0)+IFERROR(EXP('Commercial Energy Coefficients'!$G$3+LN((B_OFF_Gross_Sq_Ft))*'Commercial Energy Coefficients'!$G$4+'Commercial Energy Coefficients'!$G$14+'Commercial Energy Coefficients'!$G$18*LN((B_OFF_Emp_Acre)*(B_Lot_Size/43560))+'Commercial Energy Coefficients'!$G$19*LN(40)+'Commercial Energy Coefficients'!$G$21+'Commercial Energy Coefficients'!$G$22*LN(Commercial_Energy_Cost)),0)+IFERROR(EXP('Commercial Energy Coefficients'!$J$3+LN((B_PUB_Gross_Sq_Ft))*'Commercial Energy Coefficients'!$J$4+'Commercial Energy Coefficients'!$J$14+'Commercial Energy Coefficients'!$J$18*LN((B_Pub_Emp_Acre)*(B_Lot_Size/43560))+'Commercial Energy Coefficients'!$J$19*LN(40)+'Commercial Energy Coefficients'!$J$21+'Commercial Energy Coefficients'!$J$22*LN(Commercial_Energy_Cost)),0))/1000 -> 0 | CI10: 0 | CJ10: 0 | CK10: 0 | CL10: 0 | CM10: 0 | CN10: 0 | CO10: 0 | CP10: 0 | CQ10: 0.9744286983 | CR10: 429.5665 | CS10: 60 | CT10: 120 | CU10: 68 | CV10: 32182.44413 | CW10: 35 | CX10: 70 | CY10: 38 | CZ10: 18632.60016 | DA10: =IF(B_Housing_Type="",0,IF(B_Housing_Type="MF",'Project Info'!$B$158,IF(B_Housing_Type="TH",'Project Info'!$B$159,IF(AND(B_Housing_Type="SF",B_Net_Sq_Ft_per_Unit>0,B_Net_Sq_Ft_per_Unit<3000),'Project Info'!$B$160,IF(AND(B_Housing_Type="SF",B_Net_Sq_Ft_per_Unit>=3000),'Project Info'!$B$161))))) -> 1.5 | DB10: 3 | DC10: 5 | DD10: 1082.735768 | DE10: =[7]!LandCost -> 45.00054543 | DF10: 17573388 | DG10: 1960223.759 | DH10: =[7]!ProjectValue -> 273470007.2 | DI10: 30504214.98 | DJ10: =[7]!Subsidy -> 0 | DK10: 0 | DL10: 0 | DM10: 0 | DN10: 0 | DO10: 0 | DP10: 0 | DQ10: 0 | DR10: 0.2494493712 | DS10: =[7]!GreenRoof -> 0 | DT10: =[7]!GreenRoofEff -> 0 | DU10: =[7]!GreenRoofVolume -> 0 | DV10: =[7]!Biofiltration -> 0 | DW10: =[7]!BiofiltrationEff -> 0 | DX10: =[7]!BiofiltrationVolume -> 0 | DY10: =[7]!GreenRoofHarvesting -> 0 | DZ10: =[7]!GreenRoofHarvestingEff -> 0 | EA10: =[7]!WaterHarvesting -> 0 | EB10: =[7]!WaterHarvestingEff -> 0 | EC10: =[7]!WaterHarvestingVolume -> 0 | ED10: 0 | EE10: 0 | EG10: 0 | EH10: 0 | EI10: 0 | EJ10: 0 | EK10: 0 | EL10: 0 | EN10: =Annual_Cooling_degree_days*24*(1/R_conventional_SF_F_hrs_BTU-1/R_green_roof_SF_F_hrs_Btu)/3412*'Building Inputs'!$ED10 -> 0 | EO10: 0 | EP10: =Annual_Heating_degree_days*24*(1/R_conventional_SF_F_hrs_BTU-1/R_green_roof_SF_F_hrs_Btu)*'Building Inputs'!$ED10 -> 0 | EQ10: 0 | ER10: =Avg_Annual_NO2_uptake*'Building Inputs'!$ED10 -> 0 | ES10: =Avg_Annual_O3_uptake*'Building Inputs'!$ED10 -> 0 | ET10: =Avg_Annual_SO2_uptake*'Building Inputs'!$ED10 -> 0 | EU10: =Avg_Annual_PM_10_uptake*'Building Inputs'!$ED10 -> 0 | EV10: 0 | EW10: 0 | EX10: 0 | EY10: 0 | EZ10: 0 | FA10: 0 | FB10: 0 | FC10: 0 | FD10: 0 | FE10: =Avg_amount_of_carbon_sequestered_lbs_SF*'Building Inputs'!$ED10*3.67 -> 0 | FF10: 0 | FG10: 0 | FH10: 0 | FI10: =Average_annual_rainfall_in*($E10*(1-$G10)+$DV10-$DS10-$EA10)*$E10/43560*'Building Inputs'!$DW10*144*0.00433 -> 0 | FK10: =Avg_Annual_NO2_uptake*'Building Inputs'!$EE10 -> 0 | FL10: =Avg_Annual_O3_uptake*'Building Inputs'!$EE10 -> 0 | FM10: =Avg_Annual_SO2_uptake*'Building Inputs'!$EE10 -> 0 | FN10: =Avg_Annual_PM_10_uptake*'Building Inputs'!$EE10 -> 0 | FO10: 0 | FP10: 0 | FQ10: 0 | FR10: 0 | FS10: 0 | FT10: =Avg_amount_of_carbon_sequestered_lbs_SF*'Building Inputs'!$EE10*3.67 -> 0 | FU10: 0 | FV10: =Average_annual_rainfall_in*('Building Inputs'!$EG10*'Building Inputs'!$DZ10+'Building Inputs'!$EH10*'Building Inputs'!$EB10)*144*0.00433 -> 0 | FX10: 0 | FZ10: 0 | GA10: 0 | GB10: 0 | GC10: 0 | GD10: 0 | GE10: 0 | GF10: 0 | GG10: 0 | GH10: 0 | GI10: 0 | GJ10: 0 | GK10: 0 | GL10: 0 | GM10: =[7]!RequiredWQV -> 226430.2297 | GN10: =[7]!ConventionalWQV -> 0 | GO10: 2029944.93 | GP10: 0 | GQ10: 0 | GR10: =[7]!TSSload -> 835.6970336 | GS10: =[7]!TNload -> 109.8232637 | GT10: =[7]!TLload -> 1.138459931 | GU10: =[7]!fColiLoad -> 84401.29221 | GV10: =[7]!TSSreduction -> 0 | GW10: =[7]!TNreduction -> 0 | GX10: =[7]!TLreduction -> 0 | GY10: =[7]!fColiReduction -> 0 | GZ10: 7492.016232 | HA10: 984.5645502 | HB10: 10.20628283 | HC10: 756656.8096 | HD10: 0 | HE10: 0 | HF10: 0 | HG10: 0 | HH10: =[7]!EPA_MXD_ResTrips -> 2703.864987 | HI10: =[7]!EPA_MXD_RetTrips -> 3338.479322 | HJ10: =[7]!EPA_MXD_OffTrips -> 0 | HK10: =[7]!EPA_MXD_EduTrips -> 0 | HL10: =[7]!EPA_MXD_OtherTrips -> 0 | HM10: =[7]!EPA_MXD_ResVMT -> 7710.284716 | HN10: =[7]!EPA_MXD_RetVMT -> 8726.341214 | HO10: =[7]!EPA_MXD_OffVMT -> 0 | HP10: =[7]!EPA_MXD_EduVMT -> 0 | HQ10: =[7]!EPA_MXD_OtherVMT -> 0
B11: 8 | C11: Mixed-Use Residential Owner Townhomes | D11: Live-Work Austin | E11: =[8]!lot_size -> 14375 | F11: =[8]!Building_Lot_Coverage -> 0.4042531903 | G11: =[8]!Landscaping_Coverage -> 0.1 | H11: =[8]!Parking_Coverage -> 0.4957468097 | I11: =[8]!Height -> 3 | J11: =[8]!FAR -> 1.032735923 | K11: 14845.57889 | L11: =[8]!ResPct -> 0.8 | M11: 0 | N11: 0.8 | O11: 0 | P11: 0 | Q11: 0 | R11: 0 | S11: 0 | T11: 0.2 | U11: =[8]!RetPct -> 0.2 | V11: =[8]!OffPct -> 0 | W11: =[8]!IndPct -> 0 | X11: =[8]!PubPct -> 0 | Y11: =[8]!EduPct -> 0 | Z11: =[8]!HotelPct -> 0 | AA11: =[8]!ParkingPct -> 0 | AB11: 11876.46311 | AC11: =[8]!NetUnitSize -> 923 | AD11: =[8]!UnitSize -> 923 | AE11: 12.86724064 | AF11: 38.99109582 | AG11: =[8]!HousingType -> TH | AH11: =[8]!RentalPct -> 0 | AI11: 1 | AJ11: =[8]!Rent -> 0 | AK11: 0 | AL11: =[8]!Sales_Price -> 250 | AM11: 230750 | AN11: 1383.462837 | AO11: 0.06 | AP11: 36.65163007 | AQ11: 1.540901503 | AR11: 0.9245409015 | AS11: 0.1951 | AT11: 63852.13093 | AU11: 0 | AV11: 2969.115779 | AW11: 2.969115779 | AX11: 8.997195361 | AY11: 2969.115779 | AZ11: =[8]!RetSpace -> 1000 | BA11: 8.997195361 | BB11: 0 | BC11: =[8]!OffSpace -> 250 | BD11: 0 | BE11: 0 | BF11: =[8]!IndSpace -> 2306 | BG11: 0 | BH11: 0 | BI11: =[8]!PubSpace -> 1000 | BJ11: 0 | BK11: 0 | BL11: =[8]!EduSpace -> 800 | BM11: 0 | BN11: 0 | BO11: =[8]!HotelSpaceEmp -> 1000 | BP11: 0 | BQ11: =[8]!HotelRoomNet -> 0 | BR11: =[8]!HotelRoomGross -> 0 | BS11: 0 | BT11: 0 | BU11: 0 | BV11: =[8]!ParkingSpace -> 20000 | BW11: 0 | BX11: =[8]!ParkingSpaces -> 31.67271284 | BY11: =[8]!ParkingArea -> 7126.36039 | BZ11: =[8]!ParkingCost -> 95018.13853 | CA11: 0.04431603258 | CB11: =IFERROR(IF(B_Housing_Type="SF",EXP('Residential Energy Coefficients'!$B$3+'Residential Energy Coefficients'!$B$4*LN(B_Net_Sq_Ft_per_Unit)+'Residential Energy Coefficients'!$B$9+'Residential Energy Coefficients'!$B$10*LN(B_HH_Income)+'Residential Energy Coefficients'!$B$16*LN(Residential_Energy_Cost)+'Residential Energy Coefficients'!$B$20+'Residential Energy Coefficients'!$B$24*IFERROR(LOOKUP(Metro_Select,Energy_Metro_Lookup,HDD),0)),IF(B_Housing_Type="TH",EXP('Residential Energy Coefficients'!$E$3+'Residential Energy Coefficients'!$E$4*LN(B_Net_Sq_Ft_per_Unit)+'Residential Energy Coefficients'!$E$9+'Residential Energy Coefficients'!$E$16*LN(Residential_Energy_Cost)+'Residential Energy Coefficients'!$E$19+'Residential Energy Coefficients'!$E$20+'Residential Energy Coefficients'!$E$24*IFERROR(LOOKUP(Metro_Select,Energy_Metro_Lookup,HDD),0)),IF(B_Housing_Type="MF",EXP('Residential Energy Coefficients'!$H$3+'Residential Energy Coefficients'!$H$4*LN(B_Net_Sq_Ft_per_Unit)+'Residential Energy Coefficients'!$H$9+IF(B_Pct_Owner=1,'Residential Energy Coefficients'!$H$12,0)+'Residential Energy Coefficients'!$H$16*LN(Residential_Energy_Cost)+'Residential Energy Coefficients'!$H$20+'Residential Energy Coefficients'!$H$24*IFERROR(LOOKUP(Metro_Select,Energy_Metro_Lookup,HDD),0)),IF(B_Hotel_Room_Acre>0,EXP('Residential Energy Coefficients'!$H$3+'Residential Energy Coefficients'!$H$4*LN(B_Hotel_Room_Net)+'Residential Energy Coefficients'!$H$9+'Residential Energy Coefficients'!$H$16*LN(Residential_Energy_Cost)+'Residential Energy Coefficients'!$H$20+'Residential Energy Coefficients'!$H$24*IFERROR(LOOKUP(Metro_Select,Energy_Metro_Lookup,HDD),0)),IF(B_Housing_Type="MH",EXP('Residential Energy Coefficients'!$K$3+'Residential Energy Coefficients'!$K$16*LN(Residential_Energy_Cost)+'Residential Energy Coefficients'!$K$24*IFERROR(LOOKUP(Metro_Select,Energy_Metro_Lookup,HDD),0)),0)))))/1000,0) -> 0 | CC11: =IFERROR(IF(B_Housing_Type="SF",EXP('Residential Energy Coefficients'!$C$3+'Residential Energy Coefficients'!$C$4*LN(B_Net_Sq_Ft_per_Unit)+'Residential Energy Coefficients'!$C$10*LN(B_HH_Income)+'Residential Energy Coefficients'!$C$11*B_HH_Size+'Residential Energy Coefficients'!$C$16*LN(Residential_Energy_Cost)+'Residential Energy Coefficients'!$C$19+'Residential Energy Coefficients'!$C$22+'Residential Energy Coefficients'!$C$25*IFERROR(LOOKUP(Metro_Select,Energy_Metro_Lookup,CDD),0)),IF(B_Housing_Type="TH",EXP('Residential Energy Coefficients'!$F$3+'Residential Energy Coefficients'!$F$4*LN(B_Net_Sq_Ft_per_Unit)+'Residential Energy Coefficients'!$F$10*LN(B_HH_Income)+'Residential Energy Coefficients'!$F$11*B_HH_Size+IF(B_Pct_Owner=1,'Residential Energy Coefficients'!$F$12,0)+'Residential Energy Coefficients'!$F$16*LN(Residential_Energy_Cost)+'Residential Energy Coefficients'!$F$22+'Residential Energy Coefficients'!$F$25*IFERROR(LOOKUP(Metro_Select,Energy_Metro_Lookup,CDD),0)),IF(B_Housing_Type="MF",EXP('Residential Energy Coefficients'!$I$3+'Residential Energy Coefficients'!$I$4*LN(B_Net_Sq_Ft_per_Unit)+'Residential Energy Coefficients'!$I$9+'Residential Energy Coefficients'!$I$11*B_HH_Size+'Residential Energy Coefficients'!$I$16*LN(Residential_Energy_Cost)+'Residential Energy Coefficients'!$I$22+'Residential Energy Coefficients'!$I$25*IFERROR(LOOKUP(Metro_Select,Energy_Metro_Lookup,CDD),0)),IF(B_Hotel_Room_Acre>0,EXP('Residential Energy Coefficients'!$I$3+'Residential Energy Coefficients'!$I$4*LN(B_Hotel_Room_Net)+'Residential Energy Coefficients'!$I$9+'Residential Energy Coefficients'!$I$11*1.25+'Residential Energy Coefficients'!$I$16*LN(Residential_Energy_Cost)+'Residential Energy Coefficients'!$I$22+'Residential Energy Coefficients'!$I$25*IFERROR(LOOKUP(Metro_Select,Energy_Metro_Lookup,CDD),0)),IF(B_Housing_Type="MH",EXP('Residential Energy Coefficients'!$L$3+'Residential Energy Coefficients'!$L$11*B_HH_Size+'Residential Energy Coefficients'!$L$16*LN(Residential_Energy_Cost)+'Residential Energy Coefficients'!$L$22+'Residential Energy Coefficients'!$L$25*IFERROR(LOOKUP(Metro_Select,Energy_Metro_Lookup,CDD),0)),0)))))/1000,0) -> 0 | CD11: =IFERROR(IF(B_Housing_Type="SF",EXP('Residential Energy Coefficients'!$D$3+'Residential Energy Coefficients'!$D$4*LN(B_Net_Sq_Ft_per_Unit)+'Residential Energy Coefficients'!$D$9+'Residential Energy Coefficients'!$D$10*LN(B_HH_Income)+'Residential Energy Coefficients'!$D$11*B_HH_Size+IF(B_Pct_Owner=1,'Residential Energy Coefficients'!$D$12,0)+'Residential Energy Coefficients'!$D$16*LN(Residential_Energy_Cost)),IF(B_Housing_Type="TH",EXP('Residential Energy Coefficients'!$G$3+'Residential Energy Coefficients'!$G$4*LN(B_Net_Sq_Ft_per_Unit)+'Residential Energy Coefficients'!$G$10*LN(B_HH_Income)+'Residential Energy Coefficients'!$G$11*B_HH_Size+'Residential Energy Coefficients'!$G$16*LN(Residential_Energy_Cost)),IF(B_Housing_Type="MF",EXP('Residential Energy Coefficients'!$J$3+'Residential Energy Coefficients'!$J$4*LN(B_Net_Sq_Ft_per_Unit)+'Residential Energy Coefficients'!$J$10*LN(B_HH_Income)+'Residential Energy Coefficients'!$J$11*B_HH_Size+IF(B_Pct_Owner=1,'Residential Energy Coefficients'!$J$12,0)+'Residential Energy Coefficients'!$J$16*LN(Residential_Energy_Cost)+'Residential Energy Coefficients'!$J$19),IF(B_Hotel_Room_Acre>0,EXP('Residential Energy Coefficients'!$J$3+'Residential Energy Coefficients'!$J$4*LN(B_Hotel_Room_Net)+'Residential Energy Coefficients'!$J$16*LN(Residential_Energy_Cost)+'Residential Energy Coefficients'!$J$19),IF(B_Housing_Type="MH",EXP('Residential Energy Coefficients'!$M$3+'Residential Energy Coefficients'!$M$4*LN(B_Net_Sq_Ft_per_Unit)+'Residential Energy Coefficients'!$M$11*B_HH_Size+'Residential Energy Coefficients'!$M$16*LN(Residential_Energy_Cost)+'Residential Energy Coefficients'!$M$19),0)))))/1000,0) -> 0 | CE11: 0 | CF11: =(IFERROR(EXP('Commercial Energy Coefficients'!$B$3+LN(B_RET_Gross_Sq_Ft)*'Commercial Energy Coefficients'!$B$4+'Commercial Energy Coefficients'!$B$11+'Commercial Energy Coefficients'!$B$14+'Commercial Energy Coefficients'!$B$18*LN((B_Ret_Emp_Acre)*(B_Lot_Size/43560))+'Commercial Energy Coefficients'!$B$19*LN(40)+'Commercial Energy Coefficients'!$B$21+'Commercial Energy Coefficients'!$B$22*LN(Commercial_Energy_Cost)+'Commercial Energy Coefficients'!$B$23*IFERROR(LOOKUP(Metro_Select,Energy_Metro_Lookup,HDD),0)),0)+IFERROR(EXP('Commercial Energy Coefficients'!$E$3+LN(B_OFF_Gross_Sq_Ft)*'Commercial Energy Coefficients'!$E$4+'Commercial Energy Coefficients'!$E$11+'Commercial Energy Coefficients'!$E$14+'Commercial Energy Coefficients'!$E$18*LN((B_OFF_Emp_Acre)*(B_Lot_Size/43560))+'Commercial Energy Coefficients'!$E$19*LN(40)+'Commercial Energy Coefficients'!$E$21+'Commercial Energy Coefficients'!$E$22*LN(Commercial_Energy_Cost)+'Commercial Energy Coefficients'!$E$23*IFERROR(LOOKUP(Metro_Select,Energy_Metro_Lookup,HDD),0)),0)+IFERROR(EXP('Commercial Energy Coefficients'!$H$3+LN(B_PUB_Gross_Sq_Ft)*'Commercial Energy Coefficients'!$H$4+'Commercial Energy Coefficients'!$H$11+'Commercial Energy Coefficients'!$H$14+'Commercial Energy Coefficients'!$H$18*LN((B_Pub_Emp_Acre)*(B_Lot_Size/43560))+'Commercial Energy Coefficients'!$H$19*LN(40)+'Commercial Energy Coefficients'!$H$21+'Commercial Energy Coefficients'!$H$22*LN(Commercial_Energy_Cost)+'Commercial Energy Coefficients'!$H$23*IFERROR(LOOKUP(Metro_Select,Energy_Metro_Lookup,HDD),0)),0))/1000 -> 0 | CG11: =(IFERROR(EXP('Commercial Energy Coefficients'!$C$3+LN((B_RET_Gross_Sq_Ft))*'Commercial Energy Coefficients'!$C$4+'Commercial Energy Coefficients'!$C$11+'Commercial Energy Coefficients'!$C$14+'Commercial Energy Coefficients'!$C$18*LN((B_Ret_Emp_Acre)*(B_Lot_Size/43560))+'Commercial Energy Coefficients'!$C$19*LN(40)+'Commercial Energy Coefficients'!$C$21+'Commercial Energy Coefficients'!$C$22*LN(Commercial_Energy_Cost)+'Commercial Energy Coefficients'!$C$24*IFERROR(LOOKUP(Metro_Select,Energy_Metro_Lookup,CDD),0)),0)+IFERROR(EXP('Commercial Energy Coefficients'!$F$3+LN((B_OFF_Gross_Sq_Ft))*'Commercial Energy Coefficients'!$F$4+'Commercial Energy Coefficients'!$F$11+'Commercial Energy Coefficients'!$F$14+'Commercial Energy Coefficients'!$F$18*LN((B_OFF_Emp_Acre)*(B_Lot_Size/43560))+'Commercial Energy Coefficients'!$F$19*LN(40)+'Commercial Energy Coefficients'!$F$21+'Commercial Energy Coefficients'!$F$22*LN(Commercial_Energy_Cost)+'Commercial Energy Coefficients'!$F$24*IFERROR(LOOKUP(Metro_Select,Energy_Metro_Lookup,CDD),0)),0)+IFERROR(EXP('Commercial Energy Coefficients'!$I$3+LN((B_PUB_Gross_Sq_Ft))*'Commercial Energy Coefficients'!$I$4+'Commercial Energy Coefficients'!$I$11+'Commercial Energy Coefficients'!$I$14+'Commercial Energy Coefficients'!$I$18*LN((B_Pub_Emp_Acre)*(B_Lot_Size/43560))+'Commercial Energy Coefficients'!$I$19*LN(40)+'Commercial Energy Coefficients'!$I$21+'Commercial Energy Coefficients'!$I$22*LN(Commercial_Energy_Cost)+'Commercial Energy Coefficients'!$I$24*IFERROR(LOOKUP(Metro_Select,Energy_Metro_Lookup,CDD),0)),0))/1000 -> 0 | CH11: =(IFERROR(EXP('Commercial Energy Coefficients'!$D$3+LN((B_RET_Gross_Sq_Ft))*'Commercial Energy Coefficients'!$D$4+'Commercial Energy Coefficients'!$D$14+'Commercial Energy Coefficients'!$D$18*LN((B_Ret_Emp_Acre)*(B_Lot_Size/43560))+'Commercial Energy Coefficients'!$D$19*LN(40)+'Commercial Energy Coefficients'!$D$21+'Commercial Energy Coefficients'!$D$22*LN(Commercial_Energy_Cost)),0)+IFERROR(EXP('Commercial Energy Coefficients'!$G$3+LN((B_OFF_Gross_Sq_Ft))*'Commercial Energy Coefficients'!$G$4+'Commercial Energy Coefficients'!$G$14+'Commercial Energy Coefficients'!$G$18*LN((B_OFF_Emp_Acre)*(B_Lot_Size/43560))+'Commercial Energy Coefficients'!$G$19*LN(40)+'Commercial Energy Coefficients'!$G$21+'Commercial Energy Coefficients'!$G$22*LN(Commercial_Energy_Cost)),0)+IFERROR(EXP('Commercial Energy Coefficients'!$J$3+LN((B_PUB_Gross_Sq_Ft))*'Commercial Energy Coefficients'!$J$4+'Commercial Energy Coefficients'!$J$14+'Commercial Energy Coefficients'!$J$18*LN((B_Pub_Emp_Acre)*(B_Lot_Size/43560))+'Commercial Energy Coefficients'!$J$19*LN(40)+'Commercial Energy Coefficients'!$J$21+'Commercial Energy Coefficients'!$J$22*LN(Commercial_Energy_Cost)),0))/1000 -> 0 | CI11: 0 | CJ11: 0 | CK11: 0 | CL11: 0 | CM11: 0 | CN11: 0 | CO11: 0 | CP11: 0 | CQ11: 5.585890712 | CR11: 71.875 | CS11: 80 | CT11: 123.2721202 | CU11: 68 | CV11: 1231.279124 | CW11: 50 | CX11: 77.04507513 | CY11: 38 | CZ11: 756.1884318 | DA11: =IF(B_Housing_Type="",0,IF(B_Housing_Type="MF",'Project Info'!$B$158,IF(B_Housing_Type="TH",'Project Info'!$B$159,IF(AND(B_Housing_Type="SF",B_Net_Sq_Ft_per_Unit>0,B_Net_Sq_Ft_per_Unit<3000),'Project Info'!$B$160,IF(AND(B_Housing_Type="SF",B_Net_Sq_Ft_per_Unit>=3000),'Project Info'!$B$161))))) -> 2 | DB11: 3.081803005 | DC11: 5 | DD11: 40.58006018 | DE11: =[8]!LandCost -> 9.739130435 | DF11: 140000 | DG11: 424236.5217 | DH11: =[8]!ProjectValue -> 2144103.003 | DI11: 6497191.431 | DJ11: =[8]!Subsidy -> 0 | DK11: 0 | DL11: 0 | DM11: 0 | DN11: 0 | DO11: 0 | DP11: 0 | DQ11: 0 | DR11: 0.076897686 | DS11: =[8]!GreenRoof -> 0 | DT11: =[8]!GreenRoofEff -> 0 | DU11: =[8]!GreenRoofVolume -> 0 | DV11: =[8]!Biofiltration -> 0 | DW11: =[8]!BiofiltrationEff -> 0 | DX11: =[8]!BiofiltrationVolume -> 0 | DY11: =[8]!GreenRoofHarvesting -> 0 | DZ11: =[8]!GreenRoofHarvestingEff -> 0 | EA11: =[8]!WaterHarvesting -> 0 | EB11: =[8]!WaterHarvestingEff -> 0 | EC11: =[8]!WaterHarvestingVolume -> 0 | ED11: 0 | EE11: 0 | EG11: 0 | EH11: 0 | EI11: 0 | EJ11: 0 | EK11: 0 | EL11: 0 | EN11: =Annual_Cooling_degree_days*24*(1/R_conventional_SF_F_hrs_BTU-1/R_green_roof_SF_F_hrs_Btu)/3412*'Building Inputs'!$ED11 -> 0 | EO11: 0 | EP11: =Annual_Heating_degree_days*24*(1/R_conventional_SF_F_hrs_BTU-1/R_green_roof_SF_F_hrs_Btu)*'Building Inputs'!$ED11 -> 0 | EQ11: 0 | ER11: =Avg_Annual_NO2_uptake*'Building Inputs'!$ED11 -> 0 | ES11: =Avg_Annual_O3_uptake*'Building Inputs'!$ED11 -> 0 | ET11: =Avg_Annual_SO2_uptake*'Building Inputs'!$ED11 -> 0 | EU11: =Avg_Annual_PM_10_uptake*'Building Inputs'!$ED11 -> 0 | EV11: 0 | EW11: 0 | EX11: 0 | EY11: 0 | EZ11: 0 | FA11: 0 | FB11: 0 | FC11: 0 | FD11: 0 | FE11: =Avg_amount_of_carbon_sequestered_lbs_SF*'Building Inputs'!$ED11*3.67 -> 0 | FF11: 0 | FG11: 0 | FH11: 0 | FI11: =Average_annual_rainfall_in*($E11*(1-$G11)+$DV11-$DS11-$EA11)*$E11/43560*'Building Inputs'!$DW11*144*0.00433 -> 0 | FK11: =Avg_Annual_NO2_uptake*'Building Inputs'!$EE11 -> 0 | FL11: =Avg_Annual_O3_uptake*'Building Inputs'!$EE11 -> 0 | FM11: =Avg_Annual_SO2_uptake*'Building Inputs'!$EE11 -> 0 | FN11: =Avg_Annual_PM_10_uptake*'Building Inputs'!$EE11 -> 0 | FO11: 0 | FP11: 0 | FQ11: 0 | FR11: 0 | FS11: 0 | FT11: =Avg_amount_of_carbon_sequestered_lbs_SF*'Building Inputs'!$EE11*3.67 -> 0 | FU11: 0 | FV11: =Average_annual_rainfall_in*('Building Inputs'!$EG11*'Building Inputs'!$DZ11+'Building Inputs'!$EH11*'Building Inputs'!$EB11)*144*0.00433 -> 0 | FX11: 0 | FZ11: 0 | GA11: 0 | GB11: 0 | GC11: 0 | GD11: 0 | GE11: 0 | GF11: 0 | GG11: 0 | GH11: 0 | GI11: 0 | GJ11: 0 | GK11: 0 | GL11: 0 | GM11: =[8]!RequiredWQV -> 7705.958333 | GN11: =[8]!ConventionalWQV -> 0 | GO11: 2543.001631 | GP11: 0 | GQ11: 0 | GR11: =[8]!TSSload -> 288.2512501 | GS11: =[8]!TNload -> 4.797992555 | GT11: =[8]!TLload -> 0.01911603499 | GU11: =[8]!fColiLoad -> 9347.877131 | GV11: =[8]!TSSreduction -> 0 | GW11: =[8]!TNreduction -> 0 | GX11: =[8]!TLreduction -> 0 | GY11: =[8]!fColiReduction -> 0 | GZ11: 95.124236 | HA11: 1.583359572 | HB11: 0.006308379314 | HC11: 3084.842373 | HD11: 0 | HE11: 0 | HF11: 0 | HG11: 0 | HH11: =[8]!EPA_MXD_ResTrips -> 80.00690108 | HI11: =[8]!EPA_MXD_RetTrips -> 119.2091397 | HJ11: =[8]!EPA_MXD_OffTrips -> 0 | HK11: =[8]!EPA_MXD_EduTrips -> 0 | HL11: =[8]!EPA_MXD_OtherTrips -> 0 | HM11: =[8]!EPA_MXD_ResVMT -> 227.467046 | HN11: =[8]!EPA_MXD_RetVMT -> 310.9581368 | HO11: =[8]!EPA_MXD_OffVMT -> 0 | HP11: =[8]!EPA_MXD_EduVMT -> 0 | HQ11: =[8]!EPA_MXD_OtherVMT -> 0
B12: 9 | C12: Condo 8 | D12: DAP NW-3 Res Bonus | E12: =[9]!lot_size -> 34774 | F12: =[9]!Building_Lot_Coverage -> 1 | G12: =[9]!Landscaping_Coverage -> 0 | H12: =[9]!Parking_Coverage -> 0 | I12: =[9]!Height -> 10 | J12: =[9]!FAR -> 2.706044746 | K12: 94100 | L12: =[9]!ResPct -> 1 | M12: 1 | N12: 0 | O12: 0 | P12: 0 | Q12: 0 | R12: 0 | S12: 0 | T12: 0 | U12: =[9]!RetPct -> 0 | V12: =[9]!OffPct -> 0 | W12: =[9]!IndPct -> 0 | X12: =[9]!PubPct -> 0 | Y12: =[9]!EduPct -> 0 | Z12: =[9]!HotelPct -> 0 | AA12: =[9]!ParkingPct -> 0 | AB12: 94100 | AC12: =[9]!NetUnitSize -> 1194 | AD12: =[9]!UnitSize -> 1438.554217 | AE12: 65.41289782 | AF12: 81.94012277 | AG12: =[9]!HousingType -> MF | AH12: =[9]!RentalPct -> 0 | AI12: 1 | AJ12: =[9]!Rent -> 0 | AK12: 0 | AL12: =[9]!Sales_Price -> 380 | AM12: 453720 | AN12: 2720.280643 | AO12: 0.06 | AP12: 77.0237154 | AQ12: 2 | AR12: 1.2 | AS12: 0.1951 | AT12: 125551.4143 | AU12: 0 | AV12: 0 | AW12: 0 | AX12: 0 | AY12: 0 | AZ12: =[9]!RetSpace -> 1000 | BA12: 0 | BB12: 0 | BC12: =[9]!OffSpace -> 250 | BD12: 0 | BE12: 0 | BF12: =[9]!IndSpace -> 972 | BG12: 0 | BH12: 0 | BI12: =[9]!PubSpace -> 2050 | BJ12: 0 | BK12: 0 | BL12: =[9]!EduSpace -> 800 | BM12: 0 | BN12: 0 | BO12: =[9]!HotelSpaceEmp -> 1152 | BP12: 0 | BQ12: =[9]!HotelRoomNet -> 0 | BR12: =[9]!HotelRoomGross -> 0 | BS12: 0 | BT12: 0 | BU12: 0 | BV12: =[9]!ParkingSpace -> 0 | BW12: 0 | BX12: =[9]!ParkingSpaces -> 139.9836013 | BY12: =[9]!ParkingArea -> 47034.49005 | BZ12: =[9]!ParkingCost -> 5816470.202 | CA12: 0.1736605437 | CB12: =IFERROR(IF(B_Housing_Type="SF",EXP('Residential Energy Coefficients'!$B$3+'Residential Energy Coefficients'!$B$4*LN(B_Net_Sq_Ft_per_Unit)+'Residential Energy Coefficients'!$B$9+'Residential Energy Coefficients'!$B$10*LN(B_HH_Income)+'Residential Energy Coefficients'!$B$16*LN(Residential_Energy_Cost)+'Residential Energy Coefficients'!$B$20+'Residential Energy Coefficients'!$B$24*IFERROR(LOOKUP(Metro_Select,Energy_Metro_Lookup,HDD),0)),IF(B_Housing_Type="TH",EXP('Residential Energy Coefficients'!$E$3+'Residential Energy Coefficients'!$E$4*LN(B_Net_Sq_Ft_per_Unit)+'Residential Energy Coefficients'!$E$9+'Residential Energy Coefficients'!$E$16*LN(Residential_Energy_Cost)+'Residential Energy Coefficients'!$E$19+'Residential Energy Coefficients'!$E$20+'Residential Energy Coefficients'!$E$24*IFERROR(LOOKUP(Metro_Select,Energy_Metro_Lookup,HDD),0)),IF(B_Housing_Type="MF",EXP('Residential Energy Coefficients'!$H$3+'Residential Energy Coefficients'!$H$4*LN(B_Net_Sq_Ft_per_Unit)+'Residential Energy Coefficients'!$H$9+IF(B_Pct_Owner=1,'Residential Energy Coefficients'!$H$12,0)+'Residential Energy Coefficients'!$H$16*LN(Residential_Energy_Cost)+'Residential Energy Coefficients'!$H$20+'Residential Energy Coefficients'!$H$24*IFERROR(LOOKUP(Metro_Select,Energy_Metro_Lookup,HDD),0)),IF(B_Hotel_Room_Acre>0,EXP('Residential Energy Coefficients'!$H$3+'Residential Energy Coefficients'!$H$4*LN(B_Hotel_Room_Net)+'Residential Energy Coefficients'!$H$9+'Residential Energy Coefficients'!$H$16*LN(Residential_Energy_Cost)+'Residential Energy Coefficients'!$H$20+'Residential Energy Coefficients'!$H$24*IFERROR(LOOKUP(Metro_Select,Energy_Metro_Lookup,HDD),0)),IF(B_Housing_Type="MH",EXP('Residential Energy Coefficients'!$K$3+'Residential Energy Coefficients'!$K$16*LN(Residential_Energy_Cost)+'Residential Energy Coefficients'!$K$24*IFERROR(LOOKUP(Metro_Select,Energy_Metro_Lookup,HDD),0)),0)))))/1000,0) -> 0 | CC12: =IFERROR(IF(B_Housing_Type="SF",EXP('Residential Energy Coefficients'!$C$3+'Residential Energy Coefficients'!$C$4*LN(B_Net_Sq_Ft_per_Unit)+'Residential Energy Coefficients'!$C$10*LN(B_HH_Income)+'Residential Energy Coefficients'!$C$11*B_HH_Size+'Residential Energy Coefficients'!$C$16*LN(Residential_Energy_Cost)+'Residential Energy Coefficients'!$C$19+'Residential Energy Coefficients'!$C$22+'Residential Energy Coefficients'!$C$25*IFERROR(LOOKUP(Metro_Select,Energy_Metro_Lookup,CDD),0)),IF(B_Housing_Type="TH",EXP('Residential Energy Coefficients'!$F$3+'Residential Energy Coefficients'!$F$4*LN(B_Net_Sq_Ft_per_Unit)+'Residential Energy Coefficients'!$F$10*LN(B_HH_Income)+'Residential Energy Coefficients'!$F$11*B_HH_Size+IF(B_Pct_Owner=1,'Residential Energy Coefficients'!$F$12,0)+'Residential Energy Coefficients'!$F$16*LN(Residential_Energy_Cost)+'Residential Energy Coefficients'!$F$22+'Residential Energy Coefficients'!$F$25*IFERROR(LOOKUP(Metro_Select,Energy_Metro_Lookup,CDD),0)),IF(B_Housing_Type="MF",EXP('Residential Energy Coefficients'!$I$3+'Residential Energy Coefficients'!$I$4*LN(B_Net_Sq_Ft_per_Unit)+'Residential Energy Coefficients'!$I$9+'Residential Energy Coefficients'!$I$11*B_HH_Size+'Residential Energy Coefficients'!$I$16*LN(Residential_Energy_Cost)+'Residential Energy Coefficients'!$I$22+'Residential Energy Coefficients'!$I$25*IFERROR(LOOKUP(Metro_Select,Energy_Metro_Lookup,CDD),0)),IF(B_Hotel_Room_Acre>0,EXP('Residential Energy Coefficients'!$I$3+'Residential Energy Coefficients'!$I$4*LN(B_Hotel_Room_Net)+'Residential Energy Coefficients'!$I$9+'Residential Energy Coefficients'!$I$11*1.25+'Residential Energy Coefficients'!$I$16*LN(Residential_Energy_Cost)+'Residential Energy Coefficients'!$I$22+'Residential Energy Coefficients'!$I$25*IFERROR(LOOKUP(Metro_Select,Energy_Metro_Lookup,CDD),0)),IF(B_Housing_Type="MH",EXP('Residential Energy Coefficients'!$L$3+'Residential Energy Coefficients'!$L$11*B_HH_Size+'Residential Energy Coefficients'!$L$16*LN(Residential_Energy_Cost)+'Residential Energy Coefficients'!$L$22+'Residential Energy Coefficients'!$L$25*IFERROR(LOOKUP(Metro_Select,Energy_Metro_Lookup,CDD),0)),0)))))/1000,0) -> 0 | CD12: =IFERROR(IF(B_Housing_Type="SF",EXP('Residential Energy Coefficients'!$D$3+'Residential Energy Coefficients'!$D$4*LN(B_Net_Sq_Ft_per_Unit)+'Residential Energy Coefficients'!$D$9+'Residential Energy Coefficients'!$D$10*LN(B_HH_Income)+'Residential Energy Coefficients'!$D$11*B_HH_Size+IF(B_Pct_Owner=1,'Residential Energy Coefficients'!$D$12,0)+'Residential Energy Coefficients'!$D$16*LN(Residential_Energy_Cost)),IF(B_Housing_Type="TH",EXP('Residential Energy Coefficients'!$G$3+'Residential Energy Coefficients'!$G$4*LN(B_Net_Sq_Ft_per_Unit)+'Residential Energy Coefficients'!$G$10*LN(B_HH_Income)+'Residential Energy Coefficients'!$G$11*B_HH_Size+'Residential Energy Coefficients'!$G$16*LN(Residential_Energy_Cost)),IF(B_Housing_Type="MF",EXP('Residential Energy Coefficients'!$J$3+'Residential Energy Coefficients'!$J$4*LN(B_Net_Sq_Ft_per_Unit)+'Residential Energy Coefficients'!$J$10*LN(B_HH_Income)+'Residential Energy Coefficients'!$J$11*B_HH_Size+IF(B_Pct_Owner=1,'Residential Energy Coefficients'!$J$12,0)+'Residential Energy Coefficients'!$J$16*LN(Residential_Energy_Cost)+'Residential Energy Coefficients'!$J$19),IF(B_Hotel_Room_Acre>0,EXP('Residential Energy Coefficients'!$J$3+'Residential Energy Coefficients'!$J$4*LN(B_Hotel_Room_Net)+'Residential Energy Coefficients'!$J$16*LN(Residential_Energy_Cost)+'Residential Energy Coefficients'!$J$19),IF(B_Housing_Type="MH",EXP('Residential Energy Coefficients'!$M$3+'Residential Energy Coefficients'!$M$4*LN(B_Net_Sq_Ft_per_Unit)+'Residential Energy Coefficients'!$M$11*B_HH_Size+'Residential Energy Coefficients'!$M$16*LN(Residential_Energy_Cost)+'Residential Energy Coefficients'!$M$19),0)))))/1000,0) -> 0 | CE12: 0 | CF12: =(IFERROR(EXP('Commercial Energy Coefficients'!$B$3+LN(B_RET_Gross_Sq_Ft)*'Commercial Energy Coefficients'!$B$4+'Commercial Energy Coefficients'!$B$11+'Commercial Energy Coefficients'!$B$14+'Commercial Energy Coefficients'!$B$18*LN((B_Ret_Emp_Acre)*(B_Lot_Size/43560))+'Commercial Energy Coefficients'!$B$19*LN(40)+'Commercial Energy Coefficients'!$B$21+'Commercial Energy Coefficients'!$B$22*LN(Commercial_Energy_Cost)+'Commercial Energy Coefficients'!$B$23*IFERROR(LOOKUP(Metro_Select,Energy_Metro_Lookup,HDD),0)),0)+IFERROR(EXP('Commercial Energy Coefficients'!$E$3+LN(B_OFF_Gross_Sq_Ft)*'Commercial Energy Coefficients'!$E$4+'Commercial Energy Coefficients'!$E$11+'Commercial Energy Coefficients'!$E$14+'Commercial Energy Coefficients'!$E$18*LN((B_OFF_Emp_Acre)*(B_Lot_Size/43560))+'Commercial Energy Coefficients'!$E$19*LN(40)+'Commercial Energy Coefficients'!$E$21+'Commercial Energy Coefficients'!$E$22*LN(Commercial_Energy_Cost)+'Commercial Energy Coefficients'!$E$23*IFERROR(LOOKUP(Metro_Select,Energy_Metro_Lookup,HDD),0)),0)+IFERROR(EXP('Commercial Energy Coefficients'!$H$3+LN(B_PUB_Gross_Sq_Ft)*'Commercial Energy Coefficients'!$H$4+'Commercial Energy Coefficients'!$H$11+'Commercial Energy Coefficients'!$H$14+'Commercial Energy Coefficients'!$H$18*LN((B_Pub_Emp_Acre)*(B_Lot_Size/43560))+'Commercial Energy Coefficients'!$H$19*LN(40)+'Commercial Energy Coefficients'!$H$21+'Commercial Energy Coefficients'!$H$22*LN(Commercial_Energy_Cost)+'Commercial Energy Coefficients'!$H$23*IFERROR(LOOKUP(Metro_Select,Energy_Metro_Lookup,HDD),0)),0))/1000 -> 0 | CG12: =(IFERROR(EXP('Commercial Energy Coefficients'!$C$3+LN((B_RET_Gross_Sq_Ft))*'Commercial Energy Coefficients'!$C$4+'Commercial Energy Coefficients'!$C$11+'Commercial Energy Coefficients'!$C$14+'Commercial Energy Coefficients'!$C$18*LN((B_Ret_Emp_Acre)*(B_Lot_Size/43560))+'Commercial Energy Coefficients'!$C$19*LN(40)+'Commercial Energy Coefficients'!$C$21+'Commercial Energy Coefficients'!$C$22*LN(Commercial_Energy_Cost)+'Commercial Energy Coefficients'!$C$24*IFERROR(LOOKUP(Metro_Select,Energy_Metro_Lookup,CDD),0)),0)+IFERROR(EXP('Commercial Energy Coefficients'!$F$3+LN((B_OFF_Gross_Sq_Ft))*'Commercial Energy Coefficients'!$F$4+'Commercial Energy Coefficients'!$F$11+'Commercial Energy Coefficients'!$F$14+'Commercial Energy Coefficients'!$F$18*LN((B_OFF_Emp_Acre)*(B_Lot_Size/43560))+'Commercial Energy Coefficients'!$F$19*LN(40)+'Commercial Energy Coefficients'!$F$21+'Commercial Energy Coefficients'!$F$22*LN(Commercial_Energy_Cost)+'Commercial Energy Coefficients'!$F$24*IFERROR(LOOKUP(Metro_Select,Energy_Metro_Lookup,CDD),0)),0)+IFERROR(EXP('Commercial Energy Coefficients'!$I$3+LN((B_PUB_Gross_Sq_Ft))*'Commercial Energy Coefficients'!$I$4+'Commercial Energy Coefficients'!$I$11+'Commercial Energy Coefficients'!$I$14+'Commercial Energy Coefficients'!$I$18*LN((B_Pub_Emp_Acre)*(B_Lot_Size/43560))+'Commercial Energy Coefficients'!$I$19*LN(40)+'Commercial Energy Coefficients'!$I$21+'Commercial Energy Coefficients'!$I$22*LN(Commercial_Energy_Cost)+'Commercial Energy Coefficients'!$I$24*IFERROR(LOOKUP(Metro_Select,Energy_Metro_Lookup,CDD),0)),0))/1000 -> 0 | CH12: =(IFERROR(EXP('Commercial Energy Coefficients'!$D$3+LN((B_RET_Gross_Sq_Ft))*'Commercial Energy Coefficients'!$D$4+'Commercial Energy Coefficients'!$D$14+'Commercial Energy Coefficients'!$D$18*LN((B_Ret_Emp_Acre)*(B_Lot_Size/43560))+'Commercial Energy Coefficients'!$D$19*LN(40)+'Commercial Energy Coefficients'!$D$21+'Commercial Energy Coefficients'!$D$22*LN(Commercial_Energy_Cost)),0)+IFERROR(EXP('Commercial Energy Coefficients'!$G$3+LN((B_OFF_Gross_Sq_Ft))*'Commercial Energy Coefficients'!$G$4+'Commercial Energy Coefficients'!$G$14+'Commercial Energy Coefficients'!$G$18*LN((B_OFF_Emp_Acre)*(B_Lot_Size/43560))+'Commercial Energy Coefficients'!$G$19*LN(40)+'Commercial Energy Coefficients'!$G$21+'Commercial Energy Coefficients'!$G$22*LN(Commercial_Energy_Cost)),0)+IFERROR(EXP('Commercial Energy Coefficients'!$J$3+LN((B_PUB_Gross_Sq_Ft))*'Commercial Energy Coefficients'!$J$4+'Commercial Energy Coefficients'!$J$14+'Commercial Energy Coefficients'!$J$18*LN((B_Pub_Emp_Acre)*(B_Lot_Size/43560))+'Commercial Energy Coefficients'!$J$19*LN(40)+'Commercial Energy Coefficients'!$J$21+'Commercial Energy Coefficients'!$J$22*LN(Commercial_Energy_Cost)),0))/1000 -> 0 | CI12: 0 | CJ12: 0 | CK12: 0 | CL12: 0 | CM12: 0 | CN12: 0 | CO12: 0 | CP12: 0 | CQ12: 0 | CR12: 0 | CS12: 60 | CT12: 120 | CU12: 0 | CV12: 3924.773869 | CW12: 35 | CX12: 70 | CY12: 0 | CZ12: 2289.451424 | DA12: =IF(B_Housing_Type="",0,IF(B_Housing_Type="MF",'Project Info'!$B$158,IF(B_Housing_Type="TH",'Project Info'!$B$159,IF(AND(B_Housing_Type="SF",B_Net_Sq_Ft_per_Unit>0,B_Net_Sq_Ft_per_Unit<3000),'Project Info'!$B$160,IF(AND(B_Housing_Type="SF",B_Net_Sq_Ft_per_Unit>=3000),'Project Info'!$B$161))))) -> 1.5 | DB12: 3 | DC12: 0 | DD12: 98.11934673 | DE12: =[9]!LandCost -> 143.7855869 | DF12: 5000000 | DG12: 6263300.167 | DH12: =[9]!ProjectValue -> 33493331.74 | DI12: 41955758.05 | DJ12: =[9]!Subsidy -> 0 | DK12: 0 | DL12: 0 | DM12: 0 | DN12: 0 | DO12: 0 | DP12: 0 | DQ12: 0 | DR12: 0.2014925351 | DS12: =[9]!GreenRoof -> 0 | DT12: =[9]!GreenRoofEff -> 0 | DU12: =[9]!GreenRoofVolume -> 0 | DV12: =[9]!Biofiltration -> 0 | DW12: =[9]!BiofiltrationEff -> 0 | DX12: =[9]!BiofiltrationVolume -> 0 | DY12: =[9]!GreenRoofHarvesting -> 0 | DZ12: =[9]!GreenRoofHarvestingEff -> 0 | EA12: =[9]!WaterHarvesting -> 0 | EB12: =[9]!WaterHarvestingEff -> 0 | EC12: =[9]!WaterHarvestingVolume -> 0 | ED12: 0 | EE12: 0 | EG12: 0 | EH12: 0 | EI12: 0 | EJ12: 0 | EK12: 0 | EL12: 0 | EN12: =Annual_Cooling_degree_days*24*(1/R_conventional_SF_F_hrs_BTU-1/R_green_roof_SF_F_hrs_Btu)/3412*'Building Inputs'!$ED12 -> 0 | EO12: 0 | EP12: =Annual_Heating_degree_days*24*(1/R_conventional_SF_F_hrs_BTU-1/R_green_roof_SF_F_hrs_Btu)*'Building Inputs'!$ED12 -> 0 | EQ12: 0 | ER12: =Avg_Annual_NO2_uptake*'Building Inputs'!$ED12 -> 0 | ES12: =Avg_Annual_O3_uptake*'Building Inputs'!$ED12 -> 0 | ET12: =Avg_Annual_SO2_uptake*'Building Inputs'!$ED12 -> 0 | EU12: =Avg_Annual_PM_10_uptake*'Building Inputs'!$ED12 -> 0 | EV12: 0 | EW12: 0 | EX12: 0 | EY12: 0 | EZ12: 0 | FA12: 0 | FB12: 0 | FC12: 0 | FD12: 0 | FE12: =Avg_amount_of_carbon_sequestered_lbs_SF*'Building Inputs'!$ED12*3.67 -> 0 | FF12: 0 | FG12: 0 | FH12: 0 | FI12: =Average_annual_rainfall_in*($E12*(1-$G12)+$DV12-$DS12-$EA12)*$E12/43560*'Building Inputs'!$DW12*144*0.00433 -> 0 | FK12: =Avg_Annual_NO2_uptake*'Building Inputs'!$EE12 -> 0 | FL12: =Avg_Annual_O3_uptake*'Building Inputs'!$EE12 -> 0 | FM12: =Avg_Annual_SO2_uptake*'Building Inputs'!$EE12 -> 0 | FN12: =Avg_Annual_PM_10_uptake*'Building Inputs'!$EE12 -> 0 | FO12: 0 | FP12: 0 | FQ12: 0 | FR12: 0 | FS12: 0 | FT12: =Avg_amount_of_carbon_sequestered_lbs_SF*'Building Inputs'!$EE12*3.67 -> 0 | FU12: 0 | FV12: =Average_annual_rainfall_in*('Building Inputs'!$EG12*'Building Inputs'!$DZ12+'Building Inputs'!$EH12*'Building Inputs'!$EB12)*144*0.00433 -> 0 | FX12: 0 | FZ12: 0 | GA12: 0 | GB12: 0 | GC12: 0 | GD12: 0 | GE12: 0 | GF12: 0 | GG12: 0 | GH12: 0 | GI12: 0 | GJ12: 0 | GK12: 0 | GL12: 0 | GM12: =[9]!RequiredWQV -> 20592.00367 | GN12: =[9]!ConventionalWQV -> 0 | GO12: 16438.62111 | GP12: 0 | GQ12: 0 | GR12: =[9]!TSSload -> 45.11980385 | GS12: =[9]!TNload -> 10.52795423 | GT12: =[9]!TLload -> 0.08522629617 | GU12: =[9]!fColiLoad -> 2513.310608 | GV12: =[9]!TSSreduction -> 0 | GW12: =[9]!TNreduction -> 0 | GX12: =[9]!TLreduction -> 0 | GY12: =[9]!fColiReduction -> 0 | GZ12: 36.01919328 | HA12: 8.404478432 | HB12: 0.06803625397 | HC12: 2006.378859 | HD12: 0 | HE12: 0 | HF12: 0 | HG12: 0 | HH12: =[9]!EPA_MXD_ResTrips -> 267.3021206 | HI12: =[9]!EPA_MXD_RetTrips -> 0 | HJ12: =[9]!EPA_MXD_OffTrips -> 0 | HK12: =[9]!EPA_MXD_EduTrips -> 0 | HL12: =[9]!EPA_MXD_OtherTrips -> 0 | HM12: =[9]!EPA_MXD_ResVMT -> 758.8890855 | HN12: =[9]!EPA_MXD_RetVMT -> 0 | HO12: =[9]!EPA_MXD_OffVMT -> 0 | HP12: =[9]!EPA_MXD_EduVMT -> 0 | HQ12: =[9]!EPA_MXD_OtherVMT -> 0
B13: 10 | C13: Condo 5 | D13: 1155 Barton Springs | E13: =[10]!lot_size -> 65340 | F13: =[10]!Building_Lot_Coverage -> 0.6629870883 | G13: =[10]!Landscaping_Coverage -> 0.3370129117 | H13: =[10]!Parking_Coverage -> 0 | I13: =[10]!Height -> 6 | J13: =[10]!FAR -> 1.170348764 | K13: 76470.58824 | L13: =[10]!ResPct -> 1 | M13: 1 | N13: 0 | O13: 0 | P13: 0 | Q13: 0 | R13: 0 | S13: 0 | T13: 0 | U13: =[10]!RetPct -> 0 | V13: =[10]!OffPct -> 0 | W13: =[10]!IndPct -> 0 | X13: =[10]!PubPct -> 0 | Y13: =[10]!EduPct -> 0 | Z13: =[10]!HotelPct -> 0 | AA13: =[10]!ParkingPct -> 0 | AB13: 76470.58824 | AC13: =[10]!NetUnitSize -> 1000 | AD13: =[10]!UnitSize -> 1176.470588 | AE13: 65 | AF13: 43.33333333 | AG13: =[10]!HousingType -> MF | AH13: =[10]!RentalPct -> 0 | AI13: 1 | AJ13: =[10]!Rent -> 0 | AK13: 0 | AL13: =[10]!Sales_Price -> 250 | AM13: 250000 | AN13: 1498.876313 | AO13: 0.06 | AP13: 40.73333333 | AQ13: 2 | AR13: 1.2 | AS13: 0.1951 | AT13: 69178.90675 | AU13: 0 | AV13: 0 | AW13: 0 | AX13: 0 | AY13: 0 | AZ13: =[10]!RetSpace -> 1000 | BA13: 0 | BB13: 0 | BC13: =[10]!OffSpace -> 250 | BD13: 0 | BE13: 0 | BF13: =[10]!IndSpace -> 2306 | BG13: 0 | BH13: 0 | BI13: =[10]!PubSpace -> 1000 | BJ13: 0 | BK13: 0 | BL13: =[10]!EduSpace -> 800 | BM13: 0 | BN13: 0 | BO13: =[10]!HotelSpaceEmp -> 1000 | BP13: 0 | BQ13: =[10]!HotelRoomNet -> 0 | BR13: =[10]!HotelRoomGross -> 0 | BS13: 0 | BT13: 0 | BU13: 0 | BV13: =[10]!ParkingSpace -> 20000 | BW13: 0 | BX13: =[10]!ParkingSpaces -> 118.3 | BY13: =[10]!ParkingArea -> 38447.5 | BZ13: =[10]!ParkingCost -> 6506500 | CA13: 0.2939794073 | CB13: =IFERROR(IF(B_Housing_Type="SF",EXP('Residential Energy Coefficients'!$B$3+'Residential Energy Coefficients'!$B$4*LN(B_Net_Sq_Ft_per_Unit)+'Residential Energy Coefficients'!$B$9+'Residential Energy Coefficients'!$B$10*LN(B_HH_Income)+'Residential Energy Coefficients'!$B$16*LN(Residential_Energy_Cost)+'Residential Energy Coefficients'!$B$20+'Residential Energy Coefficients'!$B$24*IFERROR(LOOKUP(Metro_Select,Energy_Metro_Lookup,HDD),0)),IF(B_Housing_Type="TH",EXP('Residential Energy Coefficients'!$E$3+'Residential Energy Coefficients'!$E$4*LN(B_Net_Sq_Ft_per_Unit)+'Residential Energy Coefficients'!$E$9+'Residential Energy Coefficients'!$E$16*LN(Residential_Energy_Cost)+'Residential Energy Coefficients'!$E$19+'Residential Energy Coefficients'!$E$20+'Residential Energy Coefficients'!$E$24*IFERROR(LOOKUP(Metro_Select,Energy_Metro_Lookup,HDD),0)),IF(B_Housing_Type="MF",EXP('Residential Energy Coefficients'!$H$3+'Residential Energy Coefficients'!$H$4*LN(B_Net_Sq_Ft_per_Unit)+'Residential Energy Coefficients'!$H$9+IF(B_Pct_Owner=1,'Residential Energy Coefficients'!$H$12,0)+'Residential Energy Coefficients'!$H$16*LN(Residential_Energy_Cost)+'Residential Energy Coefficients'!$H$20+'Residential Energy Coefficients'!$H$24*IFERROR(LOOKUP(Metro_Select,Energy_Metro_Lookup,HDD),0)),IF(B_Hotel_Room_Acre>0,EXP('Residential Energy Coefficients'!$H$3+'Residential Energy Coefficients'!$H$4*LN(B_Hotel_Room_Net)+'Residential Energy Coefficients'!$H$9+'Residential Energy Coefficients'!$H$16*LN(Residential_Energy_Cost)+'Residential Energy Coefficients'!$H$20+'Residential Energy Coefficients'!$H$24*IFERROR(LOOKUP(Metro_Select,Energy_Metro_Lookup,HDD),0)),IF(B_Housing_Type="MH",EXP('Residential Energy Coefficients'!$K$3+'Residential Energy Coefficients'!$K$16*LN(Residential_Energy_Cost)+'Residential Energy Coefficients'!$K$24*IFERROR(LOOKUP(Metro_Select,Energy_Metro_Lookup,HDD),0)),0)))))/1000,0) -> 0 | CC13: =IFERROR(IF(B_Housing_Type="SF",EXP('Residential Energy Coefficients'!$C$3+'Residential Energy Coefficients'!$C$4*LN(B_Net_Sq_Ft_per_Unit)+'Residential Energy Coefficients'!$C$10*LN(B_HH_Income)+'Residential Energy Coefficients'!$C$11*B_HH_Size+'Residential Energy Coefficients'!$C$16*LN(Residential_Energy_Cost)+'Residential Energy Coefficients'!$C$19+'Residential Energy Coefficients'!$C$22+'Residential Energy Coefficients'!$C$25*IFERROR(LOOKUP(Metro_Select,Energy_Metro_Lookup,CDD),0)),IF(B_Housing_Type="TH",EXP('Residential Energy Coefficients'!$F$3+'Residential Energy Coefficients'!$F$4*LN(B_Net_Sq_Ft_per_Unit)+'Residential Energy Coefficients'!$F$10*LN(B_HH_Income)+'Residential Energy Coefficients'!$F$11*B_HH_Size+IF(B_Pct_Owner=1,'Residential Energy Coefficients'!$F$12,0)+'Residential Energy Coefficients'!$F$16*LN(Residential_Energy_Cost)+'Residential Energy Coefficients'!$F$22+'Residential Energy Coefficients'!$F$25*IFERROR(LOOKUP(Metro_Select,Energy_Metro_Lookup,CDD),0)),IF(B_Housing_Type="MF",EXP('Residential Energy Coefficients'!$I$3+'Residential Energy Coefficients'!$I$4*LN(B_Net_Sq_Ft_per_Unit)+'Residential Energy Coefficients'!$I$9+'Residential Energy Coefficients'!$I$11*B_HH_Size+'Residential Energy Coefficients'!$I$16*LN(Residential_Energy_Cost)+'Residential Energy Coefficients'!$I$22+'Residential Energy Coefficients'!$I$25*IFERROR(LOOKUP(Metro_Select,Energy_Metro_Lookup,CDD),0)),IF(B_Hotel_Room_Acre>0,EXP('Residential Energy Coefficients'!$I$3+'Residential Energy Coefficients'!$I$4*LN(B_Hotel_Room_Net)+'Residential Energy Coefficients'!$I$9+'Residential Energy Coefficients'!$I$11*1.25+'Residential Energy Coefficients'!$I$16*LN(Residential_Energy_Cost)+'Residential Energy Coefficients'!$I$22+'Residential Energy Coefficients'!$I$25*IFERROR(LOOKUP(Metro_Select,Energy_Metro_Lookup,CDD),0)),IF(B_Housing_Type="MH",EXP('Residential Energy Coefficients'!$L$3+'Residential Energy Coefficients'!$L$11*B_HH_Size+'Residential Energy Coefficients'!$L$16*LN(Residential_Energy_Cost)+'Residential Energy Coefficients'!$L$22+'Residential Energy Coefficients'!$L$25*IFERROR(LOOKUP(Metro_Select,Energy_Metro_Lookup,CDD),0)),0)))))/1000,0) -> 0 | CD13: =IFERROR(IF(B_Housing_Type="SF",EXP('Residential Energy Coefficients'!$D$3+'Residential Energy Coefficients'!$D$4*LN(B_Net_Sq_Ft_per_Unit)+'Residential Energy Coefficients'!$D$9+'Residential Energy Coefficients'!$D$10*LN(B_HH_Income)+'Residential Energy Coefficients'!$D$11*B_HH_Size+IF(B_Pct_Owner=1,'Residential Energy Coefficients'!$D$12,0)+'Residential Energy Coefficients'!$D$16*LN(Residential_Energy_Cost)),IF(B_Housing_Type="TH",EXP('Residential Energy Coefficients'!$G$3+'Residential Energy Coefficients'!$G$4*LN(B_Net_Sq_Ft_per_Unit)+'Residential Energy Coefficients'!$G$10*LN(B_HH_Income)+'Residential Energy Coefficients'!$G$11*B_HH_Size+'Residential Energy Coefficients'!$G$16*LN(Residential_Energy_Cost)),IF(B_Housing_Type="MF",EXP('Residential Energy Coefficients'!$J$3+'Residential Energy Coefficients'!$J$4*LN(B_Net_Sq_Ft_per_Unit)+'Residential Energy Coefficients'!$J$10*LN(B_HH_Income)+'Residential Energy Coefficients'!$J$11*B_HH_Size+IF(B_Pct_Owner=1,'Residential Energy Coefficients'!$J$12,0)+'Residential Energy Coefficients'!$J$16*LN(Residential_Energy_Cost)+'Residential Energy Coefficients'!$J$19),IF(B_Hotel_Room_Acre>0,EXP('Residential Energy Coefficients'!$J$3+'Residential Energy Coefficients'!$J$4*LN(B_Hotel_Room_Net)+'Residential Energy Coefficients'!$J$16*LN(Residential_Energy_Cost)+'Residential Energy Coefficients'!$J$19),IF(B_Housing_Type="MH",EXP('Residential Energy Coefficients'!$M$3+'Residential Energy Coefficients'!$M$4*LN(B_Net_Sq_Ft_per_Unit)+'Residential Energy Coefficients'!$M$11*B_HH_Size+'Residential Energy Coefficients'!$M$16*LN(Residential_Energy_Cost)+'Residential Energy Coefficients'!$M$19),0)))))/1000,0) -> 0 | CE13: 0 | CF13: =(IFERROR(EXP('Commercial Energy Coefficients'!$B$3+LN(B_RET_Gross_Sq_Ft)*'Commercial Energy Coefficients'!$B$4+'Commercial Energy Coefficients'!$B$11+'Commercial Energy Coefficients'!$B$14+'Commercial Energy Coefficients'!$B$18*LN((B_Ret_Emp_Acre)*(B_Lot_Size/43560))+'Commercial Energy Coefficients'!$B$19*LN(40)+'Commercial Energy Coefficients'!$B$21+'Commercial Energy Coefficients'!$B$22*LN(Commercial_Energy_Cost)+'Commercial Energy Coefficients'!$B$23*IFERROR(LOOKUP(Metro_Select,Energy_Metro_Lookup,HDD),0)),0)+IFERROR(EXP('Commercial Energy Coefficients'!$E$3+LN(B_OFF_Gross_Sq_Ft)*'Commercial Energy Coefficients'!$E$4+'Commercial Energy Coefficients'!$E$11+'Commercial Energy Coefficients'!$E$14+'Commercial Energy Coefficients'!$E$18*LN((B_OFF_Emp_Acre)*(B_Lot_Size/43560))+'Commercial Energy Coefficients'!$E$19*LN(40)+'Commercial Energy Coefficients'!$E$21+'Commercial Energy Coefficients'!$E$22*LN(Commercial_Energy_Cost)+'Commercial Energy Coefficients'!$E$23*IFERROR(LOOKUP(Metro_Select,Energy_Metro_Lookup,HDD),0)),0)+IFERROR(EXP('Commercial Energy Coefficients'!$H$3+LN(B_PUB_Gross_Sq_Ft)*'Commercial Energy Coefficients'!$H$4+'Commercial Energy Coefficients'!$H$11+'Commercial Energy Coefficients'!$H$14+'Commercial Energy Coefficients'!$H$18*LN((B_Pub_Emp_Acre)*(B_Lot_Size/43560))+'Commercial Energy Coefficients'!$H$19*LN(40)+'Commercial Energy Coefficients'!$H$21+'Commercial Energy Coefficients'!$H$22*LN(Commercial_Energy_Cost)+'Commercial Energy Coefficients'!$H$23*IFERROR(LOOKUP(Metro_Select,Energy_Metro_Lookup,HDD),0)),0))/1000 -> 0 | CG13: =(IFERROR(EXP('Commercial Energy Coefficients'!$C$3+LN((B_RET_Gross_Sq_Ft))*'Commercial Energy Coefficients'!$C$4+'Commercial Energy Coefficients'!$C$11+'Commercial Energy Coefficients'!$C$14+'Commercial Energy Coefficients'!$C$18*LN((B_Ret_Emp_Acre)*(B_Lot_Size/43560))+'Commercial Energy Coefficients'!$C$19*LN(40)+'Commercial Energy Coefficients'!$C$21+'Commercial Energy Coefficients'!$C$22*LN(Commercial_Energy_Cost)+'Commercial Energy Coefficients'!$C$24*IFERROR(LOOKUP(Metro_Select,Energy_Metro_Lookup,CDD),0)),0)+IFERROR(EXP('Commercial Energy Coefficients'!$F$3+LN((B_OFF_Gross_Sq_Ft))*'Commercial Energy Coefficients'!$F$4+'Commercial Energy Coefficients'!$F$11+'Commercial Energy Coefficients'!$F$14+'Commercial Energy Coefficients'!$F$18*LN((B_OFF_Emp_Acre)*(B_Lot_Size/43560))+'Commercial Energy Coefficients'!$F$19*LN(40)+'Commercial Energy Coefficients'!$F$21+'Commercial Energy Coefficients'!$F$22*LN(Commercial_Energy_Cost)+'Commercial Energy Coefficients'!$F$24*IFERROR(LOOKUP(Metro_Select,Energy_Metro_Lookup,CDD),0)),0)+IFERROR(EXP('Commercial Energy Coefficients'!$I$3+LN((B_PUB_Gross_Sq_Ft))*'Commercial Energy Coefficients'!$I$4+'Commercial Energy Coefficients'!$I$11+'Commercial Energy Coefficients'!$I$14+'Commercial Energy Coefficients'!$I$18*LN((B_Pub_Emp_Acre)*(B_Lot_Size/43560))+'Commercial Energy Coefficients'!$I$19*LN(40)+'Commercial Energy Coefficients'!$I$21+'Commercial Energy Coefficients'!$I$22*LN(Commercial_Energy_Cost)+'Commercial Energy Coefficients'!$I$24*IFERROR(LOOKUP(Metro_Select,Energy_Metro_Lookup,CDD),0)),0))/1000 -> 0 | CH13: =(IFERROR(EXP('Commercial Energy Coefficients'!$D$3+LN((B_RET_Gross_Sq_Ft))*'Commercial Energy Coefficients'!$D$4+'Commercial Energy Coefficients'!$D$14+'Commercial Energy Coefficients'!$D$18*LN((B_Ret_Emp_Acre)*(B_Lot_Size/43560))+'Commercial Energy Coefficients'!$D$19*LN(40)+'Commercial Energy Coefficients'!$D$21+'Commercial Energy Coefficients'!$D$22*LN(Commercial_Energy_Cost)),0)+IFERROR(EXP('Commercial Energy Coefficients'!$G$3+LN((B_OFF_Gross_Sq_Ft))*'Commercial Energy Coefficients'!$G$4+'Commercial Energy Coefficients'!$G$14+'Commercial Energy Coefficients'!$G$18*LN((B_OFF_Emp_Acre)*(B_Lot_Size/43560))+'Commercial Energy Coefficients'!$G$19*LN(40)+'Commercial Energy Coefficients'!$G$21+'Commercial Energy Coefficients'!$G$22*LN(Commercial_Energy_Cost)),0)+IFERROR(EXP('Commercial Energy Coefficients'!$J$3+LN((B_PUB_Gross_Sq_Ft))*'Commercial Energy Coefficients'!$J$4+'Commercial Energy Coefficients'!$J$14+'Commercial Energy Coefficients'!$J$18*LN((B_Pub_Emp_Acre)*(B_Lot_Size/43560))+'Commercial Energy Coefficients'!$J$19*LN(40)+'Commercial Energy Coefficients'!$J$21+'Commercial Energy Coefficients'!$J$22*LN(Commercial_Energy_Cost)),0))/1000 -> 0 | CI13: 0 | CJ13: 0 | CK13: 0 | CL13: 0 | CM13: 0 | CN13: 0 | CO13: 0 | CP13: 0 | CQ13: 8.376923077 | CR13: 544.5 | CS13: 60 | CT13: 120 | CU13: 0 | CV13: 3900 | CW13: 35 | CX13: 70 | CY13: 0 | CZ13: 2275 | DA13: =IF(B_Housing_Type="",0,IF(B_Housing_Type="MF",'Project Info'!$B$158,IF(B_Housing_Type="TH",'Project Info'!$B$159,IF(AND(B_Housing_Type="SF",B_Net_Sq_Ft_per_Unit>0,B_Net_Sq_Ft_per_Unit<3000),'Project Info'!$B$160,IF(AND(B_Housing_Type="SF",B_Net_Sq_Ft_per_Unit>=3000),'Project Info'!$B$161))))) -> 1.5 | DB13: 3 | DC13: 0 | DD13: 97.5 | DE13: =[10]!LandCost -> 18.8181206 | DF13: 1229576 | DG13: 819717.3333 | DH13: =[10]!ProjectValue -> 22132502.61 | DI13: 14755001.74 | DJ13: =[10]!Subsidy -> 0 | DK13: 0 | DL13: 0 | DM13: 0 | DN13: 0 | DO13: 0 | DP13: 0 | DQ13: 0 | DR13: 0.08714436068 | DS13: =[10]!GreenRoof -> 0 | DT13: =[10]!GreenRoofEff -> 0 | DU13: =[10]!GreenRoofVolume -> 0 | DV13: =[10]!Biofiltration -> 0 | DW13: =[10]!BiofiltrationEff -> 0 | DX13: =[10]!BiofiltrationVolume -> 0 | DY13: =[10]!GreenRoofHarvesting -> 0 | DZ13: =[10]!GreenRoofHarvestingEff -> 0 | EA13: =[10]!WaterHarvesting -> 0 | EB13: =[10]!WaterHarvestingEff -> 0 | EC13: =[10]!WaterHarvestingVolume -> 0 | ED13: 0 | EE13: 0 | EG13: 0 | EH13: 0 | EI13: 0 | EJ13: 0 | EK13: 0 | EL13: 0 | EN13: =Annual_Cooling_degree_days*24*(1/R_conventional_SF_F_hrs_BTU-1/R_green_roof_SF_F_hrs_Btu)/3412*'Building Inputs'!$ED13 -> 0 | EO13: 0 | EP13: =Annual_Heating_degree_days*24*(1/R_conventional_SF_F_hrs_BTU-1/R_green_roof_SF_F_hrs_Btu)*'Building Inputs'!$ED13 -> 0 | EQ13: 0 | ER13: =Avg_Annual_NO2_uptake*'Building Inputs'!$ED13 -> 0 | ES13: =Avg_Annual_O3_uptake*'Building Inputs'!$ED13 -> 0 | ET13: =Avg_Annual_SO2_uptake*'Building Inputs'!$ED13 -> 0 | EU13: =Avg_Annual_PM_10_uptake*'Building Inputs'!$ED13 -> 0 | EV13: 0 | EW13: 0 | EX13: 0 | EY13: 0 | EZ13: 0 | FA13: 0 | FB13: 0 | FC13: 0 | FD13: 0 | FE13: =Avg_amount_of_carbon_sequestered_lbs_SF*'Building Inputs'!$ED13*3.67 -> 0 | FF13: 0 | FG13: 0 | FH13: 0 | FI13: =Average_annual_rainfall_in*($E13*(1-$G13)+$DV13-$DS13-$EA13)*$E13/43560*'Building Inputs'!$DW13*144*0.00433 -> 0 | FK13: =Avg_Annual_NO2_uptake*'Building Inputs'!$EE13 -> 0 | FL13: =Avg_Annual_O3_uptake*'Building Inputs'!$EE13 -> 0 | FM13: =Avg_Annual_SO2_uptake*'Building Inputs'!$EE13 -> 0 | FN13: =Avg_Annual_PM_10_uptake*'Building Inputs'!$EE13 -> 0 | FO13: 0 | FP13: 0 | FQ13: 0 | FR13: 0 | FS13: 0 | FT13: =Avg_amount_of_carbon_sequestered_lbs_SF*'Building Inputs'!$EE13*3.67 -> 0 | FU13: 0 | FV13: =Average_annual_rainfall_in*('Building Inputs'!$EG13*'Building Inputs'!$DZ13+'Building Inputs'!$EH13*'Building Inputs'!$EB13)*144*0.00433 -> 0 | FX13: 0 | FZ13: 0 | GA13: 0 | GB13: 0 | GC13: 0 | GD13: 0 | GE13: 0 | GF13: 0 | GG13: 0 | GH13: 0 | GI13: 0 | GJ13: 0 | GK13: 0 | GL13: 0 | GM13: =[10]!RequiredWQV -> 26338.71233 | GN13: =[10]!ConventionalWQV -> 0 | GO13: 39508.0685 | GP13: 0 | GQ13: 0 | GR13: =[10]!TSSload -> 118.2213302 | GS13: =[10]!TNload -> 8.927811067 | GT13: =[10]!TLload -> 0.1349435454 | GU13: =[10]!fColiLoad -> 94712.72566 | GV13: =[10]!TSSreduction -> 0 | GW13: =[10]!TNreduction -> 0 | GX13: =[10]!TLreduction -> 0 | GY13: =[10]!fColiReduction -> 0 | GZ13: 177.3319953 | HA13: 13.3917166 | HB13: 0.2024153181 | HC13: 142069.0885 | HD13: 0 | HE13: 0 | HF13: 0 | HG13: 0 | HH13: =[10]!EPA_MXD_ResTrips -> 265.4644327 | HI13: =[10]!EPA_MXD_RetTrips -> 0 | HJ13: =[10]!EPA_MXD_OffTrips -> 0 | HK13: =[10]!EPA_MXD_EduTrips -> 0 | HL13: =[10]!EPA_MXD_OtherTrips -> 0 | HM13: =[10]!EPA_MXD_ResVMT -> 753.7535261 | HN13: =[10]!EPA_MXD_RetVMT -> 0 | HO13: =[10]!EPA_MXD_OffVMT -> 0 | HP13: =[10]!EPA_MXD_EduVMT -> 0 | HQ13: =[10]!EPA_MXD_OtherVMT -> 0
B14: 11 | C14: Condo 3 | D14: DAP NW-3 Residential | E14: =[11]!lot_size -> 34525 | F14: =[11]!Building_Lot_Coverage -> 1 | G14: =[11]!Landscaping_Coverage -> 0 | H14: =[11]!Parking_Coverage -> 0 | I14: =[11]!Height -> 4 | J14: =[11]!FAR -> 1 | K14: 34525 | L14: =[11]!ResPct -> 1 | M14: 1 | N14: 0 | O14: 0 | P14: 0 | Q14: 0 | R14: 0 | S14: 0 | T14: =SUM(U14:AA14) -> 0 | U14: =[11]!RetPct -> 0 | V14: =[11]!OffPct -> 0 | W14: =[11]!IndPct -> 0 | X14: =[11]!PubPct -> 0 | Y14: =[11]!EduPct -> 0 | Z14: =[11]!HotelPct -> 0 | AA14: =[11]!ParkingPct -> 0 | AB14: 34525 | AC14: =[11]!NetUnitSize -> 1194 | AD14: =[11]!UnitSize -> 1438.554217 | AE14: 23.99979062 | AF14: 30.28040201 | AG14: =[11]!HousingType -> MF | AH14: =[11]!RentalPct -> 0 | AI14: 1 | AJ14: =[11]!Rent -> 0 | AK14: 0 | AL14: =[11]!Sales_Price -> 200 | AM14: 238800 | AN14: 1431.726654 | AO14: 0.06 | AP14: 28.46357789 | AQ14: 2 | AR14: 1.2 | AS14: 0.1951 | AT14: 66079.69173 | AU14: 0 | AV14: 0 | AW14: 0 | AX14: 0 | AY14: 0 | AZ14: =[11]!RetSpace -> 1000 | BA14: 0 | BB14: 0 | BC14: =[11]!OffSpace -> 250 | BD14: 0 | BE14: 0 | BF14: =[11]!IndSpace -> 972 | BG14: 0 | BH14: 0 | BI14: =[11]!PubSpace -> 1000 | BJ14: 0 | BK14: 0 | BL14: =[11]!EduSpace -> 800 | BM14: 0 | BN14: 0 | BO14: =[11]!HotelSpaceEmp -> 1152 | BP14: 0 | BQ14: =[11]!HotelRoomNet -> 0 | BR14: =[11]!HotelRoomGross -> 0 | BS14: 0 | BT14: 0 | BU14: 0 | BV14: =[11]!ParkingSpace -> 0 | BW14: 0 | BX14: =[11]!ParkingSpaces -> 59.99947655 | BY14: =[11]!ParkingArea -> 19499.82988 | BZ14: =[11]!ParkingCost -> 2124615.385 | CA14: 0.1747001385 | CB14: =IFERROR(IF(B_Housing_Type="SF",EXP('Residential Energy Coefficients'!$B$3+'Residential Energy Coefficients'!$B$4*LN(B_Net_Sq_Ft_per_Unit)+'Residential Energy Coefficients'!$B$9+'Residential Energy Coefficients'!$B$10*LN(B_HH_Income)+'Residential Energy Coefficients'!$B$16*LN(Residential_Energy_Cost)+'Residential Energy Coefficients'!$B$20+'Residential Energy Coefficients'!$B$24*IFERROR(LOOKUP(Metro_Select,Energy_Metro_Lookup,HDD),0)),IF(B_Housing_Type="TH",EXP('Residential Energy Coefficients'!$E$3+'Residential Energy Coefficients'!$E$4*LN(B_Net_Sq_Ft_per_Unit)+'Residential Energy Coefficients'!$E$9+'Residential Energy Coefficients'!$E$16*LN(Residential_Energy_Cost)+'Residential Energy Coefficients'!$E$19+'Residential Energy Coefficients'!$E$20+'Residential Energy Coefficients'!$E$24*IFERROR(LOOKUP(Metro_Select,Energy_Metro_Lookup,HDD),0)),IF(B_Housing_Type="MF",EXP('Residential Energy Coefficients'!$H$3+'Residential Energy Coefficients'!$H$4*LN(B_Net_Sq_Ft_per_Unit)+'Residential Energy Coefficients'!$H$9+IF(B_Pct_Owner=1,'Residential Energy Coefficients'!$H$12,0)+'Residential Energy Coefficients'!$H$16*LN(Residential_Energy_Cost)+'Residential Energy Coefficients'!$H$20+'Residential Energy Coefficients'!$H$24*IFERROR(LOOKUP(Metro_Select,Energy_Metro_Lookup,HDD),0)),IF(B_Hotel_Room_Acre>0,EXP('Residential Energy Coefficients'!$H$3+'Residential Energy Coefficients'!$H$4*LN(B_Hotel_Room_Net)+'Residential Energy Coefficients'!$H$9+'Residential Energy Coefficients'!$H$16*LN(Residential_Energy_Cost)+'Residential Energy Coefficients'!$H$20+'Residential Energy Coefficients'!$H$24*IFERROR(LOOKUP(Metro_Select,Energy_Metro_Lookup,HDD),0)),IF(B_Housing_Type="MH",EXP('Residential Energy Coefficients'!$K$3+'Residential Energy Coefficients'!$K$16*LN(Residential_Energy_Cost)+'Residential Energy Coefficients'!$K$24*IFERROR(LOOKUP(Metro_Select,Energy_Metro_Lookup,HDD),0)),0)))))/1000,0) -> 0 | CC14: =IFERROR(IF(B_Housing_Type="SF",EXP('Residential Energy Coefficients'!$C$3+'Residential Energy Coefficients'!$C$4*LN(B_Net_Sq_Ft_per_Unit)+'Residential Energy Coefficients'!$C$10*LN(B_HH_Income)+'Residential Energy Coefficients'!$C$11*B_HH_Size+'Residential Energy Coefficients'!$C$16*LN(Residential_Energy_Cost)+'Residential Energy Coefficients'!$C$19+'Residential Energy Coefficients'!$C$22+'Residential Energy Coefficients'!$C$25*IFERROR(LOOKUP(Metro_Select,Energy_Metro_Lookup,CDD),0)),IF(B_Housing_Type="TH",EXP('Residential Energy Coefficients'!$F$3+'Residential Energy Coefficients'!$F$4*LN(B_Net_Sq_Ft_per_Unit)+'Residential Energy Coefficients'!$F$10*LN(B_HH_Income)+'Residential Energy Coefficients'!$F$11*B_HH_Size+IF(B_Pct_Owner=1,'Residential Energy Coefficients'!$F$12,0)+'Residential Energy Coefficients'!$F$16*LN(Residential_Energy_Cost)+'Residential Energy Coefficients'!$F$22+'Residential Energy Coefficients'!$F$25*IFERROR(LOOKUP(Metro_Select,Energy_Metro_Lookup,CDD),0)),IF(B_Housing_Type="MF",EXP('Residential Energy Coefficients'!$I$3+'Residential Energy Coefficients'!$I$4*LN(B_Net_Sq_Ft_per_Unit)+'Residential Energy Coefficients'!$I$9+'Residential Energy Coefficients'!$I$11*B_HH_Size+'Residential Energy Coefficients'!$I$16*LN(Residential_Energy_Cost)+'Residential Energy Coefficients'!$I$22+'Residential Energy Coefficients'!$I$25*IFERROR(LOOKUP(Metro_Select,Energy_Metro_Lookup,CDD),0)),IF(B_Hotel_Room_Acre>0,EXP('Residential Energy Coefficients'!$I$3+'Residential Energy Coefficients'!$I$4*LN(B_Hotel_Room_Net)+'Residential Energy Coefficients'!$I$9+'Residential Energy Coefficients'!$I$11*1.25+'Residential Energy Coefficients'!$I$16*LN(Residential_Energy_Cost)+'Residential Energy Coefficients'!$I$22+'Residential Energy Coefficients'!$I$25*IFERROR(LOOKUP(Metro_Select,Energy_Metro_Lookup,CDD),0)),IF(B_Housing_Type="MH",EXP('Residential Energy Coefficients'!$L$3+'Residential Energy Coefficients'!$L$11*B_HH_Size+'Residential Energy Coefficients'!$L$16*LN(Residential_Energy_Cost)+'Residential Energy Coefficients'!$L$22+'Residential Energy Coefficients'!$L$25*IFERROR(LOOKUP(Metro_Select,Energy_Metro_Lookup,CDD),0)),0)))))/1000,0) -> 0 | CD14: =IFERROR(IF(B_Housing_Type="SF",EXP('Residential Energy Coefficients'!$D$3+'Residential Energy Coefficients'!$D$4*LN(B_Net_Sq_Ft_per_Unit)+'Residential Energy Coefficients'!$D$9+'Residential Energy Coefficients'!$D$10*LN(B_HH_Income)+'Residential Energy Coefficients'!$D$11*B_HH_Size+IF(B_Pct_Owner=1,'Residential Energy Coefficients'!$D$12,0)+'Residential Energy Coefficients'!$D$16*LN(Residential_Energy_Cost)),IF(B_Housing_Type="TH",EXP('Residential Energy Coefficients'!$G$3+'Residential Energy Coefficients'!$G$4*LN(B_Net_Sq_Ft_per_Unit)+'Residential Energy Coefficients'!$G$10*LN(B_HH_Income)+'Residential Energy Coefficients'!$G$11*B_HH_Size+'Residential Energy Coefficients'!$G$16*LN(Residential_Energy_Cost)),IF(B_Housing_Type="MF",EXP('Residential Energy Coefficients'!$J$3+'Residential Energy Coefficients'!$J$4*LN(B_Net_Sq_Ft_per_Unit)+'Residential Energy Coefficients'!$J$10*LN(B_HH_Income)+'Residential Energy Coefficients'!$J$11*B_HH_Size+IF(B_Pct_Owner=1,'Residential Energy Coefficients'!$J$12,0)+'Residential Energy Coefficients'!$J$16*LN(Residential_Energy_Cost)+'Residential Energy Coefficients'!$J$19),IF(B_Hotel_Room_Acre>0,EXP('Residential Energy Coefficients'!$J$3+'Residential Energy Coefficients'!$J$4*LN(B_Hotel_Room_Net)+'Residential Energy Coefficients'!$J$16*LN(Residential_Energy_Cost)+'Residential Energy Coefficients'!$J$19),IF(B_Housing_Type="MH",EXP('Residential Energy Coefficients'!$M$3+'Residential Energy Coefficients'!$M$4*LN(B_Net_Sq_Ft_per_Unit)+'Residential Energy Coefficients'!$M$11*B_HH_Size+'Residential Energy Coefficients'!$M$16*LN(Residential_Energy_Cost)+'Residential Energy Coefficients'!$M$19),0)))))/1000,0) -> 0 | CE14: =SUM(CB14:CD14) -> 0 | CF14: =(IFERROR(EXP('Commercial Energy Coefficients'!$B$3+LN(B_RET_Gross_Sq_Ft)*'Commercial Energy Coefficients'!$B$4+'Commercial Energy Coefficients'!$B$11+'Commercial Energy Coefficients'!$B$14+'Commercial Energy Coefficients'!$B$18*LN((B_Ret_Emp_Acre)*(B_Lot_Size/43560))+'Commercial Energy Coefficients'!$B$19*LN(40)+'Commercial Energy Coefficients'!$B$21+'Commercial Energy Coefficients'!$B$22*LN(Commercial_Energy_Cost)+'Commercial Energy Coefficients'!$B$23*IFERROR(LOOKUP(Metro_Select,Energy_Metro_Lookup,HDD),0)),0)+IFERROR(EXP('Commercial Energy Coefficients'!$E$3+LN(B_OFF_Gross_Sq_Ft)*'Commercial Energy Coefficients'!$E$4+'Commercial Energy Coefficients'!$E$11+'Commercial Energy Coefficients'!$E$14+'Commercial Energy Coefficients'!$E$18*LN((B_OFF_Emp_Acre)*(B_Lot_Size/43560))+'Commercial Energy Coefficients'!$E$19*LN(40)+'Commercial Energy Coefficients'!$E$21+'Commercial Energy Coefficients'!$E$22*LN(Commercial_Energy_Cost)+'Commercial Energy Coefficients'!$E$23*IFERROR(LOOKUP(Metro_Select,Energy_Metro_Lookup,HDD),0)),0)+IFERROR(EXP('Commercial Energy Coefficients'!$H$3+LN(B_PUB_Gross_Sq_Ft)*'Commercial Energy Coefficients'!$H$4+'Commercial Energy Coefficients'!$H$11+'Commercial Energy Coefficients'!$H$14+'Commercial Energy Coefficients'!$H$18*LN((B_Pub_Emp_Acre)*(B_Lot_Size/43560))+'Commercial Energy Coefficients'!$H$19*LN(40)+'Commercial Energy Coefficients'!$H$21+'Commercial Energy Coefficients'!$H$22*LN(Commercial_Energy_Cost)+'Commercial Energy Coefficients'!$H$23*IFERROR(LOOKUP(Metro_Select,Energy_Metro_Lookup,HDD),0)),0))/1000 -> 0 | CG14: =(IFERROR(EXP('Commercial Energy Coefficients'!$C$3+LN((B_RET_Gross_Sq_Ft))*'Commercial Energy Coefficients'!$C$4+'Commercial Energy Coefficients'!$C$11+'Commercial Energy Coefficients'!$C$14+'Commercial Energy Coefficients'!$C$18*LN((B_Ret_Emp_Acre)*(B_Lot_Size/43560))+'Commercial Energy Coefficients'!$C$19*LN(40)+'Commercial Energy Coefficients'!$C$21+'Commercial Energy Coefficients'!$C$22*LN(Commercial_Energy_Cost)+'Commercial Energy Coefficients'!$C$24*IFERROR(LOOKUP(Metro_Select,Energy_Metro_Lookup,CDD),0)),0)+IFERROR(EXP('Commercial Energy Coefficients'!$F$3+LN((B_OFF_Gross_Sq_Ft))*'Commercial Energy Coefficients'!$F$4+'Commercial Energy Coefficients'!$F$11+'Commercial Energy Coefficients'!$F$14+'Commercial Energy Coefficients'!$F$18*LN((B_OFF_Emp_Acre)*(B_Lot_Size/43560))+'Commercial Energy Coefficients'!$F$19*LN(40)+'Commercial Energy Coefficients'!$F$21+'Commercial Energy Coefficients'!$F$22*LN(Commercial_Energy_Cost)+'Commercial Energy Coefficients'!$F$24*IFERROR(LOOKUP(Metro_Select,Energy_Metro_Lookup,CDD),0)),0)+IFERROR(EXP('Commercial Energy Coefficients'!$I$3+LN((B_PUB_Gross_Sq_Ft))*'Commercial Energy Coefficients'!$I$4+'Commercial Energy Coefficients'!$I$11+'Commercial Energy Coefficients'!$I$14+'Commercial Energy Coefficients'!$I$18*LN((B_Pub_Emp_Acre)*(B_Lot_Size/43560))+'Commercial Energy Coefficients'!$I$19*LN(40)+'Commercial Energy Coefficients'!$I$21+'Commercial Energy Coefficients'!$I$22*LN(Commercial_Energy_Cost)+'Commercial Energy Coefficients'!$I$24*IFERROR(LOOKUP(Metro_Select,Energy_Metro_Lookup,CDD),0)),0))/1000 -> 0 | CH14: =(IFERROR(EXP('Commercial Energy Coefficients'!$D$3+LN((B_RET_Gross_Sq_Ft))*'Commercial Energy Coefficients'!$D$4+'Commercial Energy Coefficients'!$D$14+'Commercial Energy Coefficients'!$D$18*LN((B_Ret_Emp_Acre)*(B_Lot_Size/43560))+'Commercial Energy Coefficients'!$D$19*LN(40)+'Commercial Energy Coefficients'!$D$21+'Commercial Energy Coefficients'!$D$22*LN(Commercial_Energy_Cost)),0)+IFERROR(EXP('Commercial Energy Coefficients'!$G$3+LN((B_OFF_Gross_Sq_Ft))*'Commercial Energy Coefficients'!$G$4+'Commercial Energy Coefficients'!$G$14+'Commercial Energy Coefficients'!$G$18*LN((B_OFF_Emp_Acre)*(B_Lot_Size/43560))+'Commercial Energy Coefficients'!$G$19*LN(40)+'Commercial Energy Coefficients'!$G$21+'Commercial Energy Coefficients'!$G$22*LN(Commercial_Energy_Cost)),0)+IFERROR(EXP('Commercial Energy Coefficients'!$J$3+LN((B_PUB_Gross_Sq_Ft))*'Commercial Energy Coefficients'!$J$4+'Commercial Energy Coefficients'!$J$14+'Commercial Energy Coefficients'!$J$18*LN((B_Pub_Emp_Acre)*(B_Lot_Size/43560))+'Commercial Energy Coefficients'!$J$19*LN(40)+'Commercial Energy Coefficients'!$J$21+'Commercial Energy Coefficients'!$J$22*LN(Commercial_Energy_Cost)),0))/1000 -> 0 | CI14: =SUM(CF14:CH14) -> 0 | CJ14: 0 | CK14: 0 | CL14: 0 | CM14: 0 | CN14: 0 | CO14: 0 | CP14: 0 | CQ14: 0 | CR14: 0 | CS14: 60 | CT14: 120 | CU14: 0 | CV14: 1439.987437 | CW14: 35 | CX14: 70 | CY14: 0 | CZ14: 839.9926717 | DA14: =IF(B_Housing_Type="",0,IF(B_Housing_Type="MF",'Project Info'!$B$158,IF(B_Housing_Type="TH",'Project Info'!$B$159,IF(AND(B_Housing_Type="SF",B_Net_Sq_Ft_per_Unit>0,B_Net_Sq_Ft_per_Unit<3000),'Project Info'!$B$160,IF(AND(B_Housing_Type="SF",B_Net_Sq_Ft_per_Unit>=3000),'Project Info'!$B$161))))) -> 1.5 | DB14: 3 | DC14: 0 | DD14: 35.99968593 | DE14: =[11]!LandCost -> 115.8580739 | DF14: 4000000 | DG14: 5046777.697 | DH14: =[11]!ProjectValue -> 12161498 | DI14: 15344094.22 | DJ14: =[11]!Subsidy -> 0 | DK14: 0 | DL14: 0 | DM14: 0 | DN14: 0 | DO14: 0 | DP14: 0 | DQ14: 0 | DR14: 0.07446016381 | DS14: =[11]!GreenRoof -> 0 | DT14: =[11]!GreenRoofEff -> 0 | DU14: =[11]!GreenRoofVolume -> 0 | DV14: =[11]!Biofiltration -> 0 | DW14: =[11]!BiofiltrationEff -> 0 | DX14: =[11]!BiofiltrationVolume -> 0 | DY14: =[11]!GreenRoofHarvesting -> 0 | DZ14: =[11]!GreenRoofHarvestingEff -> 0 | EA14: =[11]!WaterHarvesting -> 0 | EB14: =[11]!WaterHarvestingEff -> 0 | EC14: =[11]!WaterHarvestingVolume -> 0 | ED14: 0 | EE14: 0 | EG14: 0 | EH14: 0 | EI14: 0 | EJ14: 0 | EK14: 0 | EL14: 0 | EN14: =Annual_Cooling_degree_days*24*(1/R_conventional_SF_F_hrs_BTU-1/R_green_roof_SF_F_hrs_Btu)/3412*'Building Inputs'!$ED14 -> 0 | EO14: 0 | EP14: =Annual_Heating_degree_days*24*(1/R_conventional_SF_F_hrs_BTU-1/R_green_roof_SF_F_hrs_Btu)*'Building Inputs'!$ED14 -> 0 | EQ14: 0 | ER14: =Avg_Annual_NO2_uptake*'Building Inputs'!$ED14 -> 0 | ES14: =Avg_Annual_O3_uptake*'Building Inputs'!$ED14 -> 0 | ET14: =Avg_Annual_SO2_uptake*'Building Inputs'!$ED14 -> 0 | EU14: =Avg_Annual_PM_10_uptake*'Building Inputs'!$ED14 -> 0 | EV14: 0 | EW14: 0 | EX14: 0 | EY14: 0 | EZ14: 0 | FA14: 0 | FB14: 0 | FC14: 0 | FD14: 0 | FE14: =Avg_amount_of_carbon_sequestered_lbs_SF*'Building Inputs'!$ED14*3.67 -> 0 | FF14: 0 | FG14: 0 | FH14: 0 | FI14: =Average_annual_rainfall_in*($E14*(1-$G14)+$DV14-$DS14-$EA14)*$E14/43560*'Building Inputs'!$DW14*144*0.00433 -> 0 | FK14: =Avg_Annual_NO2_uptake*'Building Inputs'!$EE14 -> 0 | FL14: =Avg_Annual_O3_uptake*'Building Inputs'!$EE14 -> 0 | FM14: =Avg_Annual_SO2_uptake*'Building Inputs'!$EE14 -> 0 | FN14: =Avg_Annual_PM_10_uptake*'Building Inputs'!$EE14 -> 0 | FO14: 0 | FP14: 0 | FQ14: 0 | FR14: 0 | FS14: 0 | FT14: =Avg_amount_of_carbon_sequestered_lbs_SF*'Building Inputs'!$EE14*3.67 -> 0 | FU14: 0 | FV14: =Average_annual_rainfall_in*('Building Inputs'!$EG14*'Building Inputs'!$DZ14+'Building Inputs'!$EH14*'Building Inputs'!$EB14)*144*0.00433 -> 0 | FX14: 0 | FZ14: 0 | GA14: 0 | GB14: 0 | GC14: 0 | GD14: 0 | GE14: 0 | GF14: 0 | GG14: 0 | GH14: 0 | GI14: 0 | GJ14: 0 | GK14: 0 | GL14: 0 | GM14: =[11]!RequiredWQV -> 20444.55417 | GN14: =[11]!ConventionalWQV -> 0 | GO14: 16204.04574 | GP14: 0 | GQ14: 0 | GR14: =[11]!TSSload -> 44.79672249 | GS14: =[11]!TNload -> 10.45256858 | GT14: =[11]!TLload -> 0.08461603138 | GU14: =[11]!fColiLoad -> 2495.313991 | GV14: =[11]!TSSreduction -> 0 | GW14: =[11]!TNreduction -> 0 | GX14: =[11]!TLreduction -> 0 | GY14: =[11]!fColiReduction -> 0 | GZ14: 35.50520762 | HA14: 8.284548446 | HB14: 0.06706539218 | HC14: 1977.748291 | HD14: 0 | HE14: 0 | HF14: 0 | HG14: 0 | HH14: =[11]!EPA_MXD_ResTrips -> 98.07455897 | HI14: =[11]!EPA_MXD_RetTrips -> 0 | HJ14: =[11]!EPA_MXD_OffTrips -> 0 | HK14: =[11]!EPA_MXD_EduTrips -> 0 | HL14: =[11]!EPA_MXD_OtherTrips -> 0 | HM14: =[11]!EPA_MXD_ResVMT -> 278.4392204 | HN14: =[11]!EPA_MXD_RetVMT -> 0 | HO14: =[11]!EPA_MXD_OffVMT -> 0 | HP14: =[11]!EPA_MXD_EduVMT -> 0 | HQ14: =[11]!EPA_MXD_OtherVMT -> 0
B15: 12 | C15: Apartment 8 | D15: Cityview | E15: =[12]!lot_size -> 175265 | F15: =[12]!Building_Lot_Coverage -> 0.8149040213 | G15: =[12]!Landscaping_Coverage -> -1.452991279e-16 | H15: =[12]!Parking_Coverage -> 0.1850959787 | I15: =[12]!Height -> 8 | J15: =[12]!FAR -> 2.116364357 | K15: 370924.599 | L15: =[12]!ResPct -> 1 | M15: 1 | N15: 0 | O15: 0 | P15: 0 | Q15: 0 | R15: 0 | S15: 0 | T15: 0 | U15: =[12]!RetPct -> 0 | V15: =[12]!OffPct -> 0 | W15: =[12]!IndPct -> 0 | X15: =[12]!PubPct -> 0 | Y15: =[12]!EduPct -> 0 | Z15: =[12]!HotelPct -> 0 | AA15: =[12]!ParkingPct -> 0 | AB15: 370924.599 | AC15: =[12]!NetUnitSize -> 983.3202956 | AD15: =[12]!UnitSize -> 1156.847407 | AE15: 320.6339893 | AF15: 79.68970744 | AG15: =[12]!HousingType -> MF | AH15: =[12]!RentalPct -> 1 | AI15: 0 | AJ15: =[12]!Rent -> 2.35 | AK15: 2310.802695 | AL15: =[12]!Sales_Price -> 0 | AM15: 0 | AN15: 0 | AO15: 0.06 | AP15: 74.90832499 | AQ15: 1.970581755 | AR15: 1.182349053 | AS15: 0.1951 | AT15: 92432.10779 | AU15: 0 | AV15: 0 | AW15: 0 | AX15: 0 | AY15: 0 | AZ15: =[12]!RetSpace -> 1000 | BA15: 0 | BB15: 0 | BC15: =[12]!OffSpace -> 250 | BD15: 0 | BE15: 0 | BF15: =[12]!IndSpace -> 2306 | BG15: 0 | BH15: 0 | BI15: =[12]!PubSpace -> 1000 | BJ15: 0 | BK15: 0 | BL15: =[12]!EduSpace -> 800 | BM15: 0 | BN15: 0 | BO15: =[12]!HotelSpaceEmp -> 1000 | BP15: 0 | BQ15: =[12]!HotelRoomNet -> 0 | BR15: =[12]!HotelRoomGross -> 0 | BS15: 0 | BT15: 0 | BU15: 0 | BV15: =[12]!ParkingSpace -> 20000 | BW15: 0 | BX15: =[12]!ParkingSpaces -> 577.1411807 | BY15: =[12]!ParkingArea -> 181222.3308 | BZ15: =[12]!ParkingCost -> 26370395.42 | CA15: 0.2485719785 | CB15: =IFERROR(IF(B_Housing_Type="SF",EXP('Residential Energy Coefficients'!$B$3+'Residential Energy Coefficients'!$B$4*LN(B_Net_Sq_Ft_per_Unit)+'Residential Energy Coefficients'!$B$9+'Residential Energy Coefficients'!$B$10*LN(B_HH_Income)+'Residential Energy Coefficients'!$B$16*LN(Residential_Energy_Cost)+'Residential Energy Coefficients'!$B$20+'Residential Energy Coefficients'!$B$24*IFERROR(LOOKUP(Metro_Select,Energy_Metro_Lookup,HDD),0)),IF(B_Housing_Type="TH",EXP('Residential Energy Coefficients'!$E$3+'Residential Energy Coefficients'!$E$4*LN(B_Net_Sq_Ft_per_Unit)+'Residential Energy Coefficients'!$E$9+'Residential Energy Coefficients'!$E$16*LN(Residential_Energy_Cost)+'Residential Energy Coefficients'!$E$19+'Residential Energy Coefficients'!$E$20+'Residential Energy Coefficients'!$E$24*IFERROR(LOOKUP(Metro_Select,Energy_Metro_Lookup,HDD),0)),IF(B_Housing_Type="MF",EXP('Residential Energy Coefficients'!$H$3+'Residential Energy Coefficients'!$H$4*LN(B_Net_Sq_Ft_per_Unit)+'Residential Energy Coefficients'!$H$9+IF(B_Pct_Owner=1,'Residential Energy Coefficients'!$H$12,0)+'Residential Energy Coefficients'!$H$16*LN(Residential_Energy_Cost)+'Residential Energy Coefficients'!$H$20+'Residential Energy Coefficients'!$H$24*IFERROR(LOOKUP(Metro_Select,Energy_Metro_Lookup,HDD),0)),IF(B_Hotel_Room_Acre>0,EXP('Residential Energy Coefficients'!$H$3+'Residential Energy Coefficients'!$H$4*LN(B_Hotel_Room_Net)+'Residential Energy Coefficients'!$H$9+'Residential Energy Coefficients'!$H$16*LN(Residential_Energy_Cost)+'Residential Energy Coefficients'!$H$20+'Residential Energy Coefficients'!$H$24*IFERROR(LOOKUP(Metro_Select,Energy_Metro_Lookup,HDD),0)),IF(B_Housing_Type="MH",EXP('Residential Energy Coefficients'!$K$3+'Residential Energy Coefficients'!$K$16*LN(Residential_Energy_Cost)+'Residential Energy Coefficients'!$K$24*IFERROR(LOOKUP(Metro_Select,Energy_Metro_Lookup,HDD),0)),0)))))/1000,0) -> 0 | CC15: =IFERROR(IF(B_Housing_Type="SF",EXP('Residential Energy Coefficients'!$C$3+'Residential Energy Coefficients'!$C$4*LN(B_Net_Sq_Ft_per_Unit)+'Residential Energy Coefficients'!$C$10*LN(B_HH_Income)+'Residential Energy Coefficients'!$C$11*B_HH_Size+'Residential Energy Coefficients'!$C$16*LN(Residential_Energy_Cost)+'Residential Energy Coefficients'!$C$19+'Residential Energy Coefficients'!$C$22+'Residential Energy Coefficients'!$C$25*IFERROR(LOOKUP(Metro_Select,Energy_Metro_Lookup,CDD),0)),IF(B_Housing_Type="TH",EXP('Residential Energy Coefficients'!$F$3+'Residential Energy Coefficients'!$F$4*LN(B_Net_Sq_Ft_per_Unit)+'Residential Energy Coefficients'!$F$10*LN(B_HH_Income)+'Residential Energy Coefficients'!$F$11*B_HH_Size+IF(B_Pct_Owner=1,'Residential Energy Coefficients'!$F$12,0)+'Residential Energy Coefficients'!$F$16*LN(Residential_Energy_Cost)+'Residential Energy Coefficients'!$F$22+'Residential Energy Coefficients'!$F$25*IFERROR(LOOKUP(Metro_Select,Energy_Metro_Lookup,CDD),0)),IF(B_Housing_Type="MF",EXP('Residential Energy Coefficients'!$I$3+'Residential Energy Coefficients'!$I$4*LN(B_Net_Sq_Ft_per_Unit)+'Residential Energy Coefficients'!$I$9+'Residential Energy Coefficients'!$I$11*B_HH_Size+'Residential Energy Coefficients'!$I$16*LN(Residential_Energy_Cost)+'Residential Energy Coefficients'!$I$22+'Residential Energy Coefficients'!$I$25*IFERROR(LOOKUP(Metro_Select,Energy_Metro_Lookup,CDD),0)),IF(B_Hotel_Room_Acre>0,EXP('Residential Energy Coefficients'!$I$3+'Residential Energy Coefficients'!$I$4*LN(B_Hotel_Room_Net)+'Residential Energy Coefficients'!$I$9+'Residential Energy Coefficients'!$I$11*1.25+'Residential Energy Coefficients'!$I$16*LN(Residential_Energy_Cost)+'Residential Energy Coefficients'!$I$22+'Residential Energy Coefficients'!$I$25*IFERROR(LOOKUP(Metro_Select,Energy_Metro_Lookup,CDD),0)),IF(B_Housing_Type="MH",EXP('Residential Energy Coefficients'!$L$3+'Residential Energy Coefficients'!$L$11*B_HH_Size+'Residential Energy Coefficients'!$L$16*LN(Residential_Energy_Cost)+'Residential Energy Coefficients'!$L$22+'Residential Energy Coefficients'!$L$25*IFERROR(LOOKUP(Metro_Select,Energy_Metro_Lookup,CDD),0)),0)))))/1000,0) -> 0 | CD15: =IFERROR(IF(B_Housing_Type="SF",EXP('Residential Energy Coefficients'!$D$3+'Residential Energy Coefficients'!$D$4*LN(B_Net_Sq_Ft_per_Unit)+'Residential Energy Coefficients'!$D$9+'Residential Energy Coefficients'!$D$10*LN(B_HH_Income)+'Residential Energy Coefficients'!$D$11*B_HH_Size+IF(B_Pct_Owner=1,'Residential Energy Coefficients'!$D$12,0)+'Residential Energy Coefficients'!$D$16*LN(Residential_Energy_Cost)),IF(B_Housing_Type="TH",EXP('Residential Energy Coefficients'!$G$3+'Residential Energy Coefficients'!$G$4*LN(B_Net_Sq_Ft_per_Unit)+'Residential Energy Coefficients'!$G$10*LN(B_HH_Income)+'Residential Energy Coefficients'!$G$11*B_HH_Size+'Residential Energy Coefficients'!$G$16*LN(Residential_Energy_Cost)),IF(B_Housing_Type="MF",EXP('Residential Energy Coefficients'!$J$3+'Residential Energy Coefficients'!$J$4*LN(B_Net_Sq_Ft_per_Unit)+'Residential Energy Coefficients'!$J$10*LN(B_HH_Income)+'Residential Energy Coefficients'!$J$11*B_HH_Size+IF(B_Pct_Owner=1,'Residential Energy Coefficients'!$J$12,0)+'Residential Energy Coefficients'!$J$16*LN(Residential_Energy_Cost)+'Residential Energy Coefficients'!$J$19),IF(B_Hotel_Room_Acre>0,EXP('Residential Energy Coefficients'!$J$3+'Residential Energy Coefficients'!$J$4*LN(B_Hotel_Room_Net)+'Residential Energy Coefficients'!$J$16*LN(Residential_Energy_Cost)+'Residential Energy Coefficients'!$J$19),IF(B_Housing_Type="MH",EXP('Residential Energy Coefficients'!$M$3+'Residential Energy Coefficients'!$M$4*LN(B_Net_Sq_Ft_per_Unit)+'Residential Energy Coefficients'!$M$11*B_HH_Size+'Residential Energy Coefficients'!$M$16*LN(Residential_Energy_Cost)+'Residential Energy Coefficients'!$M$19),0)))))/1000,0) -> 0 | CE15: 0 | CF15: =(IFERROR(EXP('Commercial Energy Coefficients'!$B$3+LN(B_RET_Gross_Sq_Ft)*'Commercial Energy Coefficients'!$B$4+'Commercial Energy Coefficients'!$B$11+'Commercial Energy Coefficients'!$B$14+'Commercial Energy Coefficients'!$B$18*LN((B_Ret_Emp_Acre)*(B_Lot_Size/43560))+'Commercial Energy Coefficients'!$B$19*LN(40)+'Commercial Energy Coefficients'!$B$21+'Commercial Energy Coefficients'!$B$22*LN(Commercial_Energy_Cost)+'Commercial Energy Coefficients'!$B$23*IFERROR(LOOKUP(Metro_Select,Energy_Metro_Lookup,HDD),0)),0)+IFERROR(EXP('Commercial Energy Coefficients'!$E$3+LN(B_OFF_Gross_Sq_Ft)*'Commercial Energy Coefficients'!$E$4+'Commercial Energy Coefficients'!$E$11+'Commercial Energy Coefficients'!$E$14+'Commercial Energy Coefficients'!$E$18*LN((B_OFF_Emp_Acre)*(B_Lot_Size/43560))+'Commercial Energy Coefficients'!$E$19*LN(40)+'Commercial Energy Coefficients'!$E$21+'Commercial Energy Coefficients'!$E$22*LN(Commercial_Energy_Cost)+'Commercial Energy Coefficients'!$E$23*IFERROR(LOOKUP(Metro_Select,Energy_Metro_Lookup,HDD),0)),0)+IFERROR(EXP('Commercial Energy Coefficients'!$H$3+LN(B_PUB_Gross_Sq_Ft)*'Commercial Energy Coefficients'!$H$4+'Commercial Energy Coefficients'!$H$11+'Commercial Energy Coefficients'!$H$14+'Commercial Energy Coefficients'!$H$18*LN((B_Pub_Emp_Acre)*(B_Lot_Size/43560))+'Commercial Energy Coefficients'!$H$19*LN(40)+'Commercial Energy Coefficients'!$H$21+'Commercial Energy Coefficients'!$H$22*LN(Commercial_Energy_Cost)+'Commercial Energy Coefficients'!$H$23*IFERROR(LOOKUP(Metro_Select,Energy_Metro_Lookup,HDD),0)),0))/1000 -> 0 | CG15: =(IFERROR(EXP('Commercial Energy Coefficients'!$C$3+LN((B_RET_Gross_Sq_Ft))*'Commercial Energy Coefficients'!$C$4+'Commercial Energy Coefficients'!$C$11+'Commercial Energy Coefficients'!$C$14+'Commercial Energy Coefficients'!$C$18*LN((B_Ret_Emp_Acre)*(B_Lot_Size/43560))+'Commercial Energy Coefficients'!$C$19*LN(40)+'Commercial Energy Coefficients'!$C$21+'Commercial Energy Coefficients'!$C$22*LN(Commercial_Energy_Cost)+'Commercial Energy Coefficients'!$C$24*IFERROR(LOOKUP(Metro_Select,Energy_Metro_Lookup,CDD),0)),0)+IFERROR(EXP('Commercial Energy Coefficients'!$F$3+LN((B_OFF_Gross_Sq_Ft))*'Commercial Energy Coefficients'!$F$4+'Commercial Energy Coefficients'!$F$11+'Commercial Energy Coefficients'!$F$14+'Commercial Energy Coefficients'!$F$18*LN((B_OFF_Emp_Acre)*(B_Lot_Size/43560))+'Commercial Energy Coefficients'!$F$19*LN(40)+'Commercial Energy Coefficients'!$F$21+'Commercial Energy Coefficients'!$F$22*LN(Commercial_Energy_Cost)+'Commercial Energy Coefficients'!$F$24*IFERROR(LOOKUP(Metro_Select,Energy_Metro_Lookup,CDD),0)),0)+IFERROR(EXP('Commercial Energy Coefficients'!$I$3+LN((B_PUB_Gross_Sq_Ft))*'Commercial Energy Coefficients'!$I$4+'Commercial Energy Coefficients'!$I$11+'Commercial Energy Coefficients'!$I$14+'Commercial Energy Coefficients'!$I$18*LN((B_Pub_Emp_Acre)*(B_Lot_Size/43560))+'Commercial Energy Coefficients'!$I$19*LN(40)+'Commercial Energy Coefficients'!$I$21+'Commercial Energy Coefficients'!$I$22*LN(Commercial_Energy_Cost)+'Commercial Energy Coefficients'!$I$24*IFERROR(LOOKUP(Metro_Select,Energy_Metro_Lookup,CDD),0)),0))/1000 -> 0 | CH15: =(IFERROR(EXP('Commercial Energy Coefficients'!$D$3+LN((B_RET_Gross_Sq_Ft))*'Commercial Energy Coefficients'!$D$4+'Commercial Energy Coefficients'!$D$14+'Commercial Energy Coefficients'!$D$18*LN((B_Ret_Emp_Acre)*(B_Lot_Size/43560))+'Commercial Energy Coefficients'!$D$19*LN(40)+'Commercial Energy Coefficients'!$D$21+'Commercial Energy Coefficients'!$D$22*LN(Commercial_Energy_Cost)),0)+IFERROR(EXP('Commercial Energy Coefficients'!$G$3+LN((B_OFF_Gross_Sq_Ft))*'Commercial Energy Coefficients'!$G$4+'Commercial Energy Coefficients'!$G$14+'Commercial Energy Coefficients'!$G$18*LN((B_OFF_Emp_Acre)*(B_Lot_Size/43560))+'Commercial Energy Coefficients'!$G$19*LN(40)+'Commercial Energy Coefficients'!$G$21+'Commercial Energy Coefficients'!$G$22*LN(Commercial_Energy_Cost)),0)+IFERROR(EXP('Commercial Energy Coefficients'!$J$3+LN((B_PUB_Gross_Sq_Ft))*'Commercial Energy Coefficients'!$J$4+'Commercial Energy Coefficients'!$J$14+'Commercial Energy Coefficients'!$J$18*LN((B_Pub_Emp_Acre)*(B_Lot_Size/43560))+'Commercial Energy Coefficients'!$J$19*LN(40)+'Commercial Energy Coefficients'!$J$21+'Commercial Energy Coefficients'!$J$22*LN(Commercial_Energy_Cost)),0))/1000 -> 0 | CI15: 0 | CJ15: 0 | CK15: 0 | CL15: 0 | CM15: 0 | CN15: 0 | CO15: 0 | CP15: 0 | CQ15: -3.971171569e-15 | CR15: -1.273292582e-12 | CS15: 60 | CT15: 118.2349053 | CU15: 0 | CV15: 19238.03936 | CW15: 35 | CX15: 68.97036142 | CY15: 0 | CZ15: 11222.18963 | DA15: =IF(B_Housing_Type="",0,IF(B_Housing_Type="MF",'Project Info'!$B$158,IF(B_Housing_Type="TH",'Project Info'!$B$159,IF(AND(B_Housing_Type="SF",B_Net_Sq_Ft_per_Unit>0,B_Net_Sq_Ft_per_Unit<3000),'Project Info'!$B$160,IF(AND(B_Housing_Type="SF",B_Net_Sq_Ft_per_Unit>=3000),'Project Info'!$B$161))))) -> 1.5 | DB15: 2.955872632 | DC15: 0 | DD15: 480.950984 | DE15: =[12]!LandCost -> 59.99208627 | DF15: 10514513 | DG15: 2613255.278 | DH15: =[12]!ProjectValue -> 106087563 | DI15: 26366783.12 | DJ15: =[12]!Subsidy -> 0 | DK15: 0 | DL15: 0 | DM15: 0 | DN15: 0 | DO15: 0 | DP15: 0 | DQ15: 0 | DR15: 0.1575848367 | DS15: =[12]!GreenRoof -> 0 | DT15: =[12]!GreenRoofEff -> 0 | DU15: =[12]!GreenRoofVolume -> 0 | DV15: =[12]!Biofiltration -> 0 | DW15: =[12]!BiofiltrationEff -> 0 | DX15: =[12]!BiofiltrationVolume -> 0 | DY15: =[12]!GreenRoofHarvesting -> 0 | DZ15: =[12]!GreenRoofHarvestingEff -> 0 | EA15: =[12]!WaterHarvesting -> 0 | EB15: =[12]!WaterHarvestingEff -> 0 | EC15: =[12]!WaterHarvestingVolume -> 0 | ED15: 0 | EE15: 0 | EG15: 0 | EH15: 0 | EI15: 0 | EJ15: 0 | EK15: 0 | EL15: 0 | EN15: =Annual_Cooling_degree_days*24*(1/R_conventional_SF_F_hrs_BTU-1/R_green_roof_SF_F_hrs_Btu)/3412*'Building Inputs'!$ED15 -> 0 | EO15: 0 | EP15: =Annual_Heating_degree_days*24*(1/R_conventional_SF_F_hrs_BTU-1/R_green_roof_SF_F_hrs_Btu)*'Building Inputs'!$ED15 -> 0 | EQ15: 0 | ER15: =Avg_Annual_NO2_uptake*'Building Inputs'!$ED15 -> 0 | ES15: =Avg_Annual_O3_uptake*'Building Inputs'!$ED15 -> 0 | ET15: =Avg_Annual_SO2_uptake*'Building Inputs'!$ED15 -> 0 | EU15: =Avg_Annual_PM_10_uptake*'Building Inputs'!$ED15 -> 0 | EV15: 0 | EW15: 0 | EX15: 0 | EY15: 0 | EZ15: 0 | FA15: 0 | FB15: 0 | FC15: 0 | FD15: 0 | FE15: =Avg_amount_of_carbon_sequestered_lbs_SF*'Building Inputs'!$ED15*3.67 -> 0 | FF15: 0 | FG15: 0 | FH15: 0 | FI15: =Average_annual_rainfall_in*($E15*(1-$G15)+$DV15-$DS15-$EA15)*$E15/43560*'Building Inputs'!$DW15*144*0.00433 -> 0 | FK15: =Avg_Annual_NO2_uptake*'Building Inputs'!$EE15 -> 0 | FL15: =Avg_Annual_O3_uptake*'Building Inputs'!$EE15 -> 0 | FM15: =Avg_Annual_SO2_uptake*'Building Inputs'!$EE15 -> 0 | FN15: =Avg_Annual_PM_10_uptake*'Building Inputs'!$EE15 -> 0 | FO15: 0 | FP15: 0 | FQ15: 0 | FR15: 0 | FS15: 0 | FT15: =Avg_amount_of_carbon_sequestered_lbs_SF*'Building Inputs'!$EE15*3.67 -> 0 | FU15: 0 | FV15: =Average_annual_rainfall_in*('Building Inputs'!$EG15*'Building Inputs'!$DZ15+'Building Inputs'!$EH15*'Building Inputs'!$EB15)*144*0.00433 -> 0 | FX15: 0 | FZ15: 0 | GA15: 0 | GB15: 0 | GC15: 0 | GD15: 0 | GE15: 0 | GF15: 0 | GG15: 0 | GH15: 0 | GI15: 0 | GJ15: 0 | GK15: 0 | GL15: 0 | GM15: =[12]!RequiredWQV -> 103786.0908 | GN15: =[12]!ConventionalWQV -> 0 | GO15: 417586.5292 | GP15: 0 | GQ15: 0 | GR15: =[12]!TSSload -> 311.594056 | GS15: =[12]!TNload -> 52.12672354 | GT15: =[12]!TLload -> 0.4809968246 | GU15: =[12]!fColiLoad -> 14159.44695 | GV15: =[12]!TSSreduction -> 0 | GW15: =[12]!TNreduction -> 0 | GX15: =[12]!TLreduction -> 0 | GY15: =[12]!fColiReduction -> 0 | GZ15: 1253.70827 | HA15: 209.7334757 | HB15: 1.93530552 | HC15: 56970.97037 | HD15: 0 | HE15: 0 | HF15: 0 | HG15: 0 | HH15: =[12]!EPA_MXD_ResTrips -> 2081.176334 | HI15: =[12]!EPA_MXD_RetTrips -> 0 | HJ15: =[12]!EPA_MXD_OffTrips -> 0 | HK15: =[12]!EPA_MXD_EduTrips -> 0 | HL15: =[12]!EPA_MXD_OtherTrips -> 0 | HM15: =[12]!EPA_MXD_ResVMT -> 5910.3811 | HN15: =[12]!EPA_MXD_RetVMT -> 0 | HO15: =[12]!EPA_MXD_OffVMT -> 0 | HP15: =[12]!EPA_MXD_EduVMT -> 0 | HQ15: =[12]!EPA_MXD_OtherVMT -> 0
B16: 13 | C16: Apartment 5 | D16: Zilker Park Lofts | E16: =[13]!lot_size -> 63875 | F16: =[13]!Building_Lot_Coverage -> 0.5484135159 | G16: =[13]!Landscaping_Coverage -> 0.3296868521 | H16: =[13]!Parking_Coverage -> 0.121899632 | I16: =[13]!Height -> 5 | J16: =[13]!FAR -> 1.256391389 | K16: 80252 | L16: =[13]!ResPct -> 1 | M16: 1 | N16: 0 | O16: 0 | P16: 0 | Q16: 0 | R16: 0 | S16: 0 | T16: 0 | U16: =[13]!RetPct -> 0 | V16: =[13]!OffPct -> 0 | W16: =[13]!IndPct -> 0 | X16: =[13]!PubPct -> 0 | Y16: =[13]!EduPct -> 0 | Z16: =[13]!HotelPct -> 0 | AA16: =[13]!ParkingPct -> 0 | AB16: 80252 | AC16: =[13]!NetUnitSize -> 1833.646 | AD16: =[13]!UnitSize -> 1833.646 | AE16: 43.76635403 | AF16: 29.84676918 | AG16: =[13]!HousingType -> MF | AH16: =[13]!RentalPct -> 0 | AI16: 1 | AJ16: =[13]!Rent -> 0 | AK16: 0 | AL16: =[13]!Sales_Price -> 250 | AM16: 458411.5 | AN16: 2748.408556 | AO16: 0.06 | AP16: 28.05596303 | AQ16: 2 | AR16: 1.2 | AS16: 0.1951 | AT16: 126849.6256 | AU16: 0 | AV16: 0 | AW16: 0 | AX16: 0 | AY16: 0 | AZ16: =[13]!RetSpace -> 1000 | BA16: 0 | BB16: 0 | BC16: =[13]!OffSpace -> 250 | BD16: 0 | BE16: 0 | BF16: =[13]!IndSpace -> 2306 | BG16: 0 | BH16: 0 | BI16: =[13]!PubSpace -> 1000 | BJ16: 0 | BK16: 0 | BL16: =[13]!EduSpace -> 800 | BM16: 0 | BN16: 0 | BO16: =[13]!HotelSpaceEmp -> 1000 | BP16: 0 | BQ16: =[13]!HotelRoomNet -> 0 | BR16: =[13]!HotelRoomGross -> 0 | BS16: 0 | BT16: 0 | BU16: 0 | BV16: =[13]!ParkingSpace -> 20000 | BW16: 0 | BX16: =[13]!ParkingSpaces -> 86.51487773 | BY16: =[13]!ParkingArea -> 38931.69498 | BZ16: =[13]!ParkingCost -> 1730297.555 | CA16: 0.09462334693 | CB16: =IFERROR(IF(B_Housing_Type="SF",EXP('Residential Energy Coefficients'!$B$3+'Residential Energy Coefficients'!$B$4*LN(B_Net_Sq_Ft_per_Unit)+'Residential Energy Coefficients'!$B$9+'Residential Energy Coefficients'!$B$10*LN(B_HH_Income)+'Residential Energy Coefficients'!$B$16*LN(Residential_Energy_Cost)+'Residential Energy Coefficients'!$B$20+'Residential Energy Coefficients'!$B$24*IFERROR(LOOKUP(Metro_Select,Energy_Metro_Lookup,HDD),0)),IF(B_Housing_Type="TH",EXP('Residential Energy Coefficients'!$E$3+'Residential Energy Coefficients'!$E$4*LN(B_Net_Sq_Ft_per_Unit)+'Residential Energy Coefficients'!$E$9+'Residential Energy Coefficients'!$E$16*LN(Residential_Energy_Cost)+'Residential Energy Coefficients'!$E$19+'Residential Energy Coefficients'!$E$20+'Residential Energy Coefficients'!$E$24*IFERROR(LOOKUP(Metro_Select,Energy_Metro_Lookup,HDD),0)),IF(B_Housing_Type="MF",EXP('Residential Energy Coefficients'!$H$3+'Residential Energy Coefficients'!$H$4*LN(B_Net_Sq_Ft_per_Unit)+'Residential Energy Coefficients'!$H$9+IF(B_Pct_Owner=1,'Residential Energy Coefficients'!$H$12,0)+'Residential Energy Coefficients'!$H$16*LN(Residential_Energy_Cost)+'Residential Energy Coefficients'!$H$20+'Residential Energy Coefficients'!$H$24*IFERROR(LOOKUP(Metro_Select,Energy_Metro_Lookup,HDD),0)),IF(B_Hotel_Room_Acre>0,EXP('Residential Energy Coefficients'!$H$3+'Residential Energy Coefficients'!$H$4*LN(B_Hotel_Room_Net)+'Residential Energy Coefficients'!$H$9+'Residential Energy Coefficients'!$H$16*LN(Residential_Energy_Cost)+'Residential Energy Coefficients'!$H$20+'Residential Energy Coefficients'!$H$24*IFERROR(LOOKUP(Metro_Select,Energy_Metro_Lookup,HDD),0)),IF(B_Housing_Type="MH",EXP('Residential Energy Coefficients'!$K$3+'Residential Energy Coefficients'!$K$16*LN(Residential_Energy_Cost)+'Residential Energy Coefficients'!$K$24*IFERROR(LOOKUP(Metro_Select,Energy_Metro_Lookup,HDD),0)),0)))))/1000,0) -> 0 | CC16: =IFERROR(IF(B_Housing_Type="SF",EXP('Residential Energy Coefficients'!$C$3+'Residential Energy Coefficients'!$C$4*LN(B_Net_Sq_Ft_per_Unit)+'Residential Energy Coefficients'!$C$10*LN(B_HH_Income)+'Residential Energy Coefficients'!$C$11*B_HH_Size+'Residential Energy Coefficients'!$C$16*LN(Residential_Energy_Cost)+'Residential Energy Coefficients'!$C$19+'Residential Energy Coefficients'!$C$22+'Residential Energy Coefficients'!$C$25*IFERROR(LOOKUP(Metro_Select,Energy_Metro_Lookup,CDD),0)),IF(B_Housing_Type="TH",EXP('Residential Energy Coefficients'!$F$3+'Residential Energy Coefficients'!$F$4*LN(B_Net_Sq_Ft_per_Unit)+'Residential Energy Coefficients'!$F$10*LN(B_HH_Income)+'Residential Energy Coefficients'!$F$11*B_HH_Size+IF(B_Pct_Owner=1,'Residential Energy Coefficients'!$F$12,0)+'Residential Energy Coefficients'!$F$16*LN(Residential_Energy_Cost)+'Residential Energy Coefficients'!$F$22+'Residential Energy Coefficients'!$F$25*IFERROR(LOOKUP(Metro_Select,Energy_Metro_Lookup,CDD),0)),IF(B_Housing_Type="MF",EXP('Residential Energy Coefficients'!$I$3+'Residential Energy Coefficients'!$I$4*LN(B_Net_Sq_Ft_per_Unit)+'Residential Energy Coefficients'!$I$9+'Residential Energy Coefficients'!$I$11*B_HH_Size+'Residential Energy Coefficients'!$I$16*LN(Residential_Energy_Cost)+'Residential Energy Coefficients'!$I$22+'Residential Energy Coefficients'!$I$25*IFERROR(LOOKUP(Metro_Select,Energy_Metro_Lookup,CDD),0)),IF(B_Hotel_Room_Acre>0,EXP('Residential Energy Coefficients'!$I$3+'Residential Energy Coefficients'!$I$4*LN(B_Hotel_Room_Net)+'Residential Energy Coefficients'!$I$9+'Residential Energy Coefficients'!$I$11*1.25+'Residential Energy Coefficients'!$I$16*LN(Residential_Energy_Cost)+'Residential Energy Coefficients'!$I$22+'Residential Energy Coefficients'!$I$25*IFERROR(LOOKUP(Metro_Select,Energy_Metro_Lookup,CDD),0)),IF(B_Housing_Type="MH",EXP('Residential Energy Coefficients'!$L$3+'Residential Energy Coefficients'!$L$11*B_HH_Size+'Residential Energy Coefficients'!$L$16*LN(Residential_Energy_Cost)+'Residential Energy Coefficients'!$L$22+'Residential Energy Coefficients'!$L$25*IFERROR(LOOKUP(Metro_Select,Energy_Metro_Lookup,CDD),0)),0)))))/1000,0) -> 0 | CD16: =IFERROR(IF(B_Housing_Type="SF",EXP('Residential Energy Coefficients'!$D$3+'Residential Energy Coefficients'!$D$4*LN(B_Net_Sq_Ft_per_Unit)+'Residential Energy Coefficients'!$D$9+'Residential Energy Coefficients'!$D$10*LN(B_HH_Income)+'Residential Energy Coefficients'!$D$11*B_HH_Size+IF(B_Pct_Owner=1,'Residential Energy Coefficients'!$D$12,0)+'Residential Energy Coefficients'!$D$16*LN(Residential_Energy_Cost)),IF(B_Housing_Type="TH",EXP('Residential Energy Coefficients'!$G$3+'Residential Energy Coefficients'!$G$4*LN(B_Net_Sq_Ft_per_Unit)+'Residential Energy Coefficients'!$G$10*LN(B_HH_Income)+'Residential Energy Coefficients'!$G$11*B_HH_Size+'Residential Energy Coefficients'!$G$16*LN(Residential_Energy_Cost)),IF(B_Housing_Type="MF",EXP('Residential Energy Coefficients'!$J$3+'Residential Energy Coefficients'!$J$4*LN(B_Net_Sq_Ft_per_Unit)+'Residential Energy Coefficients'!$J$10*LN(B_HH_Income)+'Residential Energy Coefficients'!$J$11*B_HH_Size+IF(B_Pct_Owner=1,'Residential Energy Coefficients'!$J$12,0)+'Residential Energy Coefficients'!$J$16*LN(Residential_Energy_Cost)+'Residential Energy Coefficients'!$J$19),IF(B_Hotel_Room_Acre>0,EXP('Residential Energy Coefficients'!$J$3+'Residential Energy Coefficients'!$J$4*LN(B_Hotel_Room_Net)+'Residential Energy Coefficients'!$J$16*LN(Residential_Energy_Cost)+'Residential Energy Coefficients'!$J$19),IF(B_Housing_Type="MH",EXP('Residential Energy Coefficients'!$M$3+'Residential Energy Coefficients'!$M$4*LN(B_Net_Sq_Ft_per_Unit)+'Residential Energy Coefficients'!$M$11*B_HH_Size+'Residential Energy Coefficients'!$M$16*LN(Residential_Energy_Cost)+'Residential Energy Coefficients'!$M$19),0)))))/1000,0) -> 0 | CE16: 0 | CF16: =(IFERROR(EXP('Commercial Energy Coefficients'!$B$3+LN(B_RET_Gross_Sq_Ft)*'Commercial Energy Coefficients'!$B$4+'Commercial Energy Coefficients'!$B$11+'Commercial Energy Coefficients'!$B$14+'Commercial Energy Coefficients'!$B$18*LN((B_Ret_Emp_Acre)*(B_Lot_Size/43560))+'Commercial Energy Coefficients'!$B$19*LN(40)+'Commercial Energy Coefficients'!$B$21+'Commercial Energy Coefficients'!$B$22*LN(Commercial_Energy_Cost)+'Commercial Energy Coefficients'!$B$23*IFERROR(LOOKUP(Metro_Select,Energy_Metro_Lookup,HDD),0)),0)+IFERROR(EXP('Commercial Energy Coefficients'!$E$3+LN(B_OFF_Gross_Sq_Ft)*'Commercial Energy Coefficients'!$E$4+'Commercial Energy Coefficients'!$E$11+'Commercial Energy Coefficients'!$E$14+'Commercial Energy Coefficients'!$E$18*LN((B_OFF_Emp_Acre)*(B_Lot_Size/43560))+'Commercial Energy Coefficients'!$E$19*LN(40)+'Commercial Energy Coefficients'!$E$21+'Commercial Energy Coefficients'!$E$22*LN(Commercial_Energy_Cost)+'Commercial Energy Coefficients'!$E$23*IFERROR(LOOKUP(Metro_Select,Energy_Metro_Lookup,HDD),0)),0)+IFERROR(EXP('Commercial Energy Coefficients'!$H$3+LN(B_PUB_Gross_Sq_Ft)*'Commercial Energy Coefficients'!$H$4+'Commercial Energy Coefficients'!$H$11+'Commercial Energy Coefficients'!$H$14+'Commercial Energy Coefficients'!$H$18*LN((B_Pub_Emp_Acre)*(B_Lot_Size/43560))+'Commercial Energy Coefficients'!$H$19*LN(40)+'Commercial Energy Coefficients'!$H$21+'Commercial Energy Coefficients'!$H$22*LN(Commercial_Energy_Cost)+'Commercial Energy Coefficients'!$H$23*IFERROR(LOOKUP(Metro_Select,Energy_Metro_Lookup,HDD),0)),0))/1000 -> 0 | CG16: =(IFERROR(EXP('Commercial Energy Coefficients'!$C$3+LN((B_RET_Gross_Sq_Ft))*'Commercial Energy Coefficients'!$C$4+'Commercial Energy Coefficients'!$C$11+'Commercial Energy Coefficients'!$C$14+'Commercial Energy Coefficients'!$C$18*LN((B_Ret_Emp_Acre)*(B_Lot_Size/43560))+'Commercial Energy Coefficients'!$C$19*LN(40)+'Commercial Energy Coefficients'!$C$21+'Commercial Energy Coefficients'!$C$22*LN(Commercial_Energy_Cost)+'Commercial Energy Coefficients'!$C$24*IFERROR(LOOKUP(Metro_Select,Energy_Metro_Lookup,CDD),0)),0)+IFERROR(EXP('Commercial Energy Coefficients'!$F$3+LN((B_OFF_Gross_Sq_Ft))*'Commercial Energy Coefficients'!$F$4+'Commercial Energy Coefficients'!$F$11+'Commercial Energy Coefficients'!$F$14+'Commercial Energy Coefficients'!$F$18*LN((B_OFF_Emp_Acre)*(B_Lot_Size/43560))+'Commercial Energy Coefficients'!$F$19*LN(40)+'Commercial Energy Coefficients'!$F$21+'Commercial Energy Coefficients'!$F$22*LN(Commercial_Energy_Cost)+'Commercial Energy Coefficients'!$F$24*IFERROR(LOOKUP(Metro_Select,Energy_Metro_Lookup,CDD),0)),0)+IFERROR(EXP('Commercial Energy Coefficients'!$I$3+LN((B_PUB_Gross_Sq_Ft))*'Commercial Energy Coefficients'!$I$4+'Commercial Energy Coefficients'!$I$11+'Commercial Energy Coefficients'!$I$14+'Commercial Energy Coefficients'!$I$18*LN((B_Pub_Emp_Acre)*(B_Lot_Size/43560))+'Commercial Energy Coefficients'!$I$19*LN(40)+'Commercial Energy Coefficients'!$I$21+'Commercial Energy Coefficients'!$I$22*LN(Commercial_Energy_Cost)+'Commercial Energy Coefficients'!$I$24*IFERROR(LOOKUP(Metro_Select,Energy_Metro_Lookup,CDD),0)),0))/1000 -> 0 | CH16: =(IFERROR(EXP('Commercial Energy Coefficients'!$D$3+LN((B_RET_Gross_Sq_Ft))*'Commercial Energy Coefficients'!$D$4+'Commercial Energy Coefficients'!$D$14+'Commercial Energy Coefficients'!$D$18*LN((B_Ret_Emp_Acre)*(B_Lot_Size/43560))+'Commercial Energy Coefficients'!$D$19*LN(40)+'Commercial Energy Coefficients'!$D$21+'Commercial Energy Coefficients'!$D$22*LN(Commercial_Energy_Cost)),0)+IFERROR(EXP('Commercial Energy Coefficients'!$G$3+LN((B_OFF_Gross_Sq_Ft))*'Commercial Energy Coefficients'!$G$4+'Commercial Energy Coefficients'!$G$14+'Commercial Energy Coefficients'!$G$18*LN((B_OFF_Emp_Acre)*(B_Lot_Size/43560))+'Commercial Energy Coefficients'!$G$19*LN(40)+'Commercial Energy Coefficients'!$G$21+'Commercial Energy Coefficients'!$G$22*LN(Commercial_Energy_Cost)),0)+IFERROR(EXP('Commercial Energy Coefficients'!$J$3+LN((B_PUB_Gross_Sq_Ft))*'Commercial Energy Coefficients'!$J$4+'Commercial Energy Coefficients'!$J$14+'Commercial Energy Coefficients'!$J$18*LN((B_Pub_Emp_Acre)*(B_Lot_Size/43560))+'Commercial Energy Coefficients'!$J$19*LN(40)+'Commercial Energy Coefficients'!$J$21+'Commercial Energy Coefficients'!$J$22*LN(Commercial_Energy_Cost)),0))/1000 -> 0 | CI16: 0 | CJ16: 0 | CK16: 0 | CL16: 0 | CM16: 0 | CN16: 0 | CO16: 0 | CP16: 0 | CQ16: 12.44106374 | CR16: 544.5 | CS16: 60 | CT16: 120 | CU16: 0 | CV16: 2625.981242 | CW16: 35 | CX16: 70 | CY16: 0 | CZ16: 1531.822391 | DA16: =IF(B_Housing_Type="",0,IF(B_Housing_Type="MF",'Project Info'!$B$158,IF(B_Housing_Type="TH",'Project Info'!$B$159,IF(AND(B_Housing_Type="SF",B_Net_Sq_Ft_per_Unit>0,B_Net_Sq_Ft_per_Unit<3000),'Project Info'!$B$160,IF(AND(B_Housing_Type="SF",B_Net_Sq_Ft_per_Unit>=3000),'Project Info'!$B$161))))) -> 1.5 | DB16: 3 | DC16: 0 | DD16: 65.64953104 | DE16: =[13]!LandCost -> 36.79060665 | DF16: 2350000 | DG16: 1602598.826 | DH16: =[13]!ProjectValue -> 18286158.87 | DI16: 12470373.08 | DJ16: =[13]!Subsidy -> 0 | DK16: 0 | DL16: 0 | DM16: 0 | DN16: 0 | DO16: 0 | DP16: 0 | DQ16: 0 | DR16: 0.09355110867 | DS16: =[13]!GreenRoof -> 0 | DT16: =[13]!GreenRoofEff -> 0 | DU16: =[13]!GreenRoofVolume -> 0 | DV16: =[13]!Biofiltration -> 0 | DW16: =[13]!BiofiltrationEff -> 0 | DX16: =[13]!BiofiltrationVolume -> 0 | DY16: =[13]!GreenRoofHarvesting -> 0 | DZ16: =[13]!GreenRoofHarvestingEff -> 0 | EA16: =[13]!WaterHarvesting -> 0 | EB16: =[13]!WaterHarvestingEff -> 0 | EC16: =[13]!WaterHarvestingVolume -> 0 | ED16: 0 | EE16: 0 | EG16: 0 | EH16: 0 | EI16: 0 | EJ16: 0 | EK16: 0 | EL16: 0 | EN16: =Annual_Cooling_degree_days*24*(1/R_conventional_SF_F_hrs_BTU-1/R_green_roof_SF_F_hrs_Btu)/3412*'Building Inputs'!$ED16 -> 0 | EO16: 0 | EP16: =Annual_Heating_degree_days*24*(1/R_conventional_SF_F_hrs_BTU-1/R_green_roof_SF_F_hrs_Btu)*'Building Inputs'!$ED16 -> 0 | EQ16: 0 | ER16: =Avg_Annual_NO2_uptake*'Building Inputs'!$ED16 -> 0 | ES16: =Avg_Annual_O3_uptake*'Building Inputs'!$ED16 -> 0 | ET16: =Avg_Annual_SO2_uptake*'Building Inputs'!$ED16 -> 0 | EU16: =Avg_Annual_PM_10_uptake*'Building Inputs'!$ED16 -> 0 | EV16: 0 | EW16: 0 | EX16: 0 | EY16: 0 | EZ16: 0 | FA16: 0 | FB16: 0 | FC16: 0 | FD16: 0 | FE16: =Avg_amount_of_carbon_sequestered_lbs_SF*'Building Inputs'!$ED16*3.67 -> 0 | FF16: 0 | FG16: 0 | FH16: 0 | FI16: =Average_annual_rainfall_in*($E16*(1-$G16)+$DV16-$DS16-$EA16)*$E16/43560*'Building Inputs'!$DW16*144*0.00433 -> 0 | FK16: =Avg_Annual_NO2_uptake*'Building Inputs'!$EE16 -> 0 | FL16: =Avg_Annual_O3_uptake*'Building Inputs'!$EE16 -> 0 | FM16: =Avg_Annual_SO2_uptake*'Building Inputs'!$EE16 -> 0 | FN16: =Avg_Annual_PM_10_uptake*'Building Inputs'!$EE16 -> 0 | FO16: 0 | FP16: 0 | FQ16: 0 | FR16: 0 | FS16: 0 | FT16: =Avg_amount_of_carbon_sequestered_lbs_SF*'Building Inputs'!$EE16*3.67 -> 0 | FU16: 0 | FV16: =Average_annual_rainfall_in*('Building Inputs'!$EG16*'Building Inputs'!$DZ16+'Building Inputs'!$EH16*'Building Inputs'!$EB16)*144*0.00433 -> 0 | FX16: 0 | FZ16: 0 | GA16: 0 | GB16: 0 | GC16: 0 | GD16: 0 | GE16: 0 | GF16: 0 | GG16: 0 | GH16: 0 | GI16: 0 | GJ16: 0 | GK16: 0 | GL16: 0 | GM16: =[13]!RequiredWQV -> 26010.68839 | GN16: =[13]!ConventionalWQV -> 0 | GO16: 38141.24703 | GP16: 0 | GQ16: 0 | GR16: =[13]!TSSload -> 129.3448197 | GS16: =[13]!TNload -> 8.759661088 | GT16: =[13]!TLload -> 0.1411975165 | GU16: =[13]!fColiLoad -> 91815.20263 | GV16: =[13]!TSSreduction -> 0 | GW16: =[13]!TNreduction -> 0 | GX16: =[13]!TLreduction -> 0 | GY16: =[13]!fColiReduction -> 0 | GZ16: 189.667134 | HA16: 12.8448887 | HB16: 0.207047552 | HC16: 134634.896 | HD16: 0 | HE16: 0 | HF16: 0 | HG16: 0 | HH16: =[13]!EPA_MXD_ResTrips -> 178.7494184 | HI16: =[13]!EPA_MXD_RetTrips -> 0 | HJ16: =[13]!EPA_MXD_OffTrips -> 0 | HK16: =[13]!EPA_MXD_EduTrips -> 0 | HL16: =[13]!EPA_MXD_OtherTrips -> 0 | HM16: =[13]!EPA_MXD_ResVMT -> 507.5344268 | HN16: =[13]!EPA_MXD_RetVMT -> 0 | HO16: =[13]!EPA_MXD_OffVMT -> 0 | HP16: =[13]!EPA_MXD_EduVMT -> 0 | HQ16: =[13]!EPA_MXD_OtherVMT -> 0
B17: 14 | C17: Apartment 5 - Wrapped Parking | D17: East Avenue Parcel 7 | E17: =[14]!lot_size -> 111753.5675 | F17: =[14]!Building_Lot_Coverage -> 0.8393876844 | G17: =[14]!Landscaping_Coverage -> 0.032 | H17: =[14]!Parking_Coverage -> 0.1286123156 | I17: =[14]!Height -> 5 | J17: =[14]!FAR -> 2.773065834 | K17: 309900 | L17: =[14]!ResPct -> 1 | M17: 1 | N17: 0 | O17: 0 | P17: 0 | Q17: 0 | R17: 0 | S17: 0 | T17: 0 | U17: =[14]!RetPct -> 0 | V17: =[14]!OffPct -> 0 | W17: =[14]!IndPct -> 0 | X17: =[14]!PubPct -> 0 | Y17: =[14]!EduPct -> 0 | Z17: =[14]!HotelPct -> 0 | AA17: =[14]!ParkingPct -> 0 | AB17: 309900 | AC17: =[14]!NetUnitSize -> 890 | AD17: =[14]!UnitSize -> 1047.058824 | AE17: 295.9719101 | AF17: 115.3657703 | AG17: =[14]!HousingType -> MF | AH17: =[14]!RentalPct -> 1 | AI17: 0 | AJ17: =[14]!Rent -> 2 | AK17: 1780 | AL17: =[14]!Sales_Price -> 0 | AM17: 0 | AN17: 0 | AO17: 0.06 | AP17: 108.4438241 | AQ17: 1.783567134 | AR17: 1.070140281 | AS17: 0.1951 | AT17: 71200 | AU17: 0 | AV17: 0 | AW17: 0 | AX17: 0 | AY17: 0 | AZ17: =[14]!RetSpace -> 1000 | BA17: 0 | BB17: 0 | BC17: =[14]!OffSpace -> 250 | BD17: 0 | BE17: 0 | BF17: =[14]!IndSpace -> 2306 | BG17: 0 | BH17: 0 | BI17: =[14]!PubSpace -> 1000 | BJ17: 0 | BK17: 0 | BL17: =[14]!EduSpace -> 800 | BM17: 0 | BN17: 0 | BO17: =[14]!HotelSpaceEmp -> 1000 | BP17: 0 | BQ17: =[14]!HotelRoomNet -> 0 | BR17: =[14]!HotelRoomGross -> 0 | BS17: 0 | BT17: 0 | BU17: 0 | BV17: =[14]!ParkingSpace -> 20000 | BW17: 0 | BX17: =[14]!ParkingSpaces -> 402.5217978 | BY17: =[14]!ParkingArea -> 130819.5843 | BZ17: =[14]!ParkingCost -> 9422198.222 | CA17: 0.1416688481 | CB17: =IFERROR(IF(B_Housing_Type="SF",EXP('Residential Energy Coefficients'!$B$3+'Residential Energy Coefficients'!$B$4*LN(B_Net_Sq_Ft_per_Unit)+'Residential Energy Coefficients'!$B$9+'Residential Energy Coefficients'!$B$10*LN(B_HH_Income)+'Residential Energy Coefficients'!$B$16*LN(Residential_Energy_Cost)+'Residential Energy Coefficients'!$B$20+'Residential Energy Coefficients'!$B$24*IFERROR(LOOKUP(Metro_Select,Energy_Metro_Lookup,HDD),0)),IF(B_Housing_Type="TH",EXP('Residential Energy Coefficients'!$E$3+'Residential Energy Coefficients'!$E$4*LN(B_Net_Sq_Ft_per_Unit)+'Residential Energy Coefficients'!$E$9+'Residential Energy Coefficients'!$E$16*LN(Residential_Energy_Cost)+'Residential Energy Coefficients'!$E$19+'Residential Energy Coefficients'!$E$20+'Residential Energy Coefficients'!$E$24*IFERROR(LOOKUP(Metro_Select,Energy_Metro_Lookup,HDD),0)),IF(B_Housing_Type="MF",EXP('Residential Energy Coefficients'!$H$3+'Residential Energy Coefficients'!$H$4*LN(B_Net_Sq_Ft_per_Unit)+'Residential Energy Coefficients'!$H$9+IF(B_Pct_Owner=1,'Residential Energy Coefficients'!$H$12,0)+'Residential Energy Coefficients'!$H$16*LN(Residential_Energy_Cost)+'Residential Energy Coefficients'!$H$20+'Residential Energy Coefficients'!$H$24*IFERROR(LOOKUP(Metro_Select,Energy_Metro_Lookup,HDD),0)),IF(B_Hotel_Room_Acre>0,EXP('Residential Energy Coefficients'!$H$3+'Residential Energy Coefficients'!$H$4*LN(B_Hotel_Room_Net)+'Residential Energy Coefficients'!$H$9+'Residential Energy Coefficients'!$H$16*LN(Residential_Energy_Cost)+'Residential Energy Coefficients'!$H$20+'Residential Energy Coefficients'!$H$24*IFERROR(LOOKUP(Metro_Select,Energy_Metro_Lookup,HDD),0)),IF(B_Housing_Type="MH",EXP('Residential Energy Coefficients'!$K$3+'Residential Energy Coefficients'!$K$16*LN(Residential_Energy_Cost)+'Residential Energy Coefficients'!$K$24*IFERROR(LOOKUP(Metro_Select,Energy_Metro_Lookup,HDD),0)),0)))))/1000,0) -> 0 | CC17: =IFERROR(IF(B_Housing_Type="SF",EXP('Residential Energy Coefficients'!$C$3+'Residential Energy Coefficients'!$C$4*LN(B_Net_Sq_Ft_per_Unit)+'Residential Energy Coefficients'!$C$10*LN(B_HH_Income)+'Residential Energy Coefficients'!$C$11*B_HH_Size+'Residential Energy Coefficients'!$C$16*LN(Residential_Energy_Cost)+'Residential Energy Coefficients'!$C$19+'Residential Energy Coefficients'!$C$22+'Residential Energy Coefficients'!$C$25*IFERROR(LOOKUP(Metro_Select,Energy_Metro_Lookup,CDD),0)),IF(B_Housing_Type="TH",EXP('Residential Energy Coefficients'!$F$3+'Residential Energy Coefficients'!$F$4*LN(B_Net_Sq_Ft_per_Unit)+'Residential Energy Coefficients'!$F$10*LN(B_HH_Income)+'Residential Energy Coefficients'!$F$11*B_HH_Size+IF(B_Pct_Owner=1,'Residential Energy Coefficients'!$F$12,0)+'Residential Energy Coefficients'!$F$16*LN(Residential_Energy_Cost)+'Residential Energy Coefficients'!$F$22+'Residential Energy Coefficients'!$F$25*IFERROR(LOOKUP(Metro_Select,Energy_Metro_Lookup,CDD),0)),IF(B_Housing_Type="MF",EXP('Residential Energy Coefficients'!$I$3+'Residential Energy Coefficients'!$I$4*LN(B_Net_Sq_Ft_per_Unit)+'Residential Energy Coefficients'!$I$9+'Residential Energy Coefficients'!$I$11*B_HH_Size+'Residential Energy Coefficients'!$I$16*LN(Residential_Energy_Cost)+'Residential Energy Coefficients'!$I$22+'Residential Energy Coefficients'!$I$25*IFERROR(LOOKUP(Metro_Select,Energy_Metro_Lookup,CDD),0)),IF(B_Hotel_Room_Acre>0,EXP('Residential Energy Coefficients'!$I$3+'Residential Energy Coefficients'!$I$4*LN(B_Hotel_Room_Net)+'Residential Energy Coefficients'!$I$9+'Residential Energy Coefficients'!$I$11*1.25+'Residential Energy Coefficients'!$I$16*LN(Residential_Energy_Cost)+'Residential Energy Coefficients'!$I$22+'Residential Energy Coefficients'!$I$25*IFERROR(LOOKUP(Metro_Select,Energy_Metro_Lookup,CDD),0)),IF(B_Housing_Type="MH",EXP('Residential Energy Coefficients'!$L$3+'Residential Energy Coefficients'!$L$11*B_HH_Size+'Residential Energy Coefficients'!$L$16*LN(Residential_Energy_Cost)+'Residential Energy Coefficients'!$L$22+'Residential Energy Coefficients'!$L$25*IFERROR(LOOKUP(Metro_Select,Energy_Metro_Lookup,CDD),0)),0)))))/1000,0) -> 0 | CD17: =IFERROR(IF(B_Housing_Type="SF",EXP('Residential Energy Coefficients'!$D$3+'Residential Energy Coefficients'!$D$4*LN(B_Net_Sq_Ft_per_Unit)+'Residential Energy Coefficients'!$D$9+'Residential Energy Coefficients'!$D$10*LN(B_HH_Income)+'Residential Energy Coefficients'!$D$11*B_HH_Size+IF(B_Pct_Owner=1,'Residential Energy Coefficients'!$D$12,0)+'Residential Energy Coefficients'!$D$16*LN(Residential_Energy_Cost)),IF(B_Housing_Type="TH",EXP('Residential Energy Coefficients'!$G$3+'Residential Energy Coefficients'!$G$4*LN(B_Net_Sq_Ft_per_Unit)+'Residential Energy Coefficients'!$G$10*LN(B_HH_Income)+'Residential Energy Coefficients'!$G$11*B_HH_Size+'Residential Energy Coefficients'!$G$16*LN(Residential_Energy_Cost)),IF(B_Housing_Type="MF",EXP('Residential Energy Coefficients'!$J$3+'Residential Energy Coefficients'!$J$4*LN(B_Net_Sq_Ft_per_Unit)+'Residential Energy Coefficients'!$J$10*LN(B_HH_Income)+'Residential Energy Coefficients'!$J$11*B_HH_Size+IF(B_Pct_Owner=1,'Residential Energy Coefficients'!$J$12,0)+'Residential Energy Coefficients'!$J$16*LN(Residential_Energy_Cost)+'Residential Energy Coefficients'!$J$19),IF(B_Hotel_Room_Acre>0,EXP('Residential Energy Coefficients'!$J$3+'Residential Energy Coefficients'!$J$4*LN(B_Hotel_Room_Net)+'Residential Energy Coefficients'!$J$16*LN(Residential_Energy_Cost)+'Residential Energy Coefficients'!$J$19),IF(B_Housing_Type="MH",EXP('Residential Energy Coefficients'!$M$3+'Residential Energy Coefficients'!$M$4*LN(B_Net_Sq_Ft_per_Unit)+'Residential Energy Coefficients'!$M$11*B_HH_Size+'Residential Energy Coefficients'!$M$16*LN(Residential_Energy_Cost)+'Residential Energy Coefficients'!$M$19),0)))))/1000,0) -> 0 | CE17: 0 | CF17: =(IFERROR(EXP('Commercial Energy Coefficients'!$B$3+LN(B_RET_Gross_Sq_Ft)*'Commercial Energy Coefficients'!$B$4+'Commercial Energy Coefficients'!$B$11+'Commercial Energy Coefficients'!$B$14+'Commercial Energy Coefficients'!$B$18*LN((B_Ret_Emp_Acre)*(B_Lot_Size/43560))+'Commercial Energy Coefficients'!$B$19*LN(40)+'Commercial Energy Coefficients'!$B$21+'Commercial Energy Coefficients'!$B$22*LN(Commercial_Energy_Cost)+'Commercial Energy Coefficients'!$B$23*IFERROR(LOOKUP(Metro_Select,Energy_Metro_Lookup,HDD),0)),0)+IFERROR(EXP('Commercial Energy Coefficients'!$E$3+LN(B_OFF_Gross_Sq_Ft)*'Commercial Energy Coefficients'!$E$4+'Commercial Energy Coefficients'!$E$11+'Commercial Energy Coefficients'!$E$14+'Commercial Energy Coefficients'!$E$18*LN((B_OFF_Emp_Acre)*(B_Lot_Size/43560))+'Commercial Energy Coefficients'!$E$19*LN(40)+'Commercial Energy Coefficients'!$E$21+'Commercial Energy Coefficients'!$E$22*LN(Commercial_Energy_Cost)+'Commercial Energy Coefficients'!$E$23*IFERROR(LOOKUP(Metro_Select,Energy_Metro_Lookup,HDD),0)),0)+IFERROR(EXP('Commercial Energy Coefficients'!$H$3+LN(B_PUB_Gross_Sq_Ft)*'Commercial Energy Coefficients'!$H$4+'Commercial Energy Coefficients'!$H$11+'Commercial Energy Coefficients'!$H$14+'Commercial Energy Coefficients'!$H$18*LN((B_Pub_Emp_Acre)*(B_Lot_Size/43560))+'Commercial Energy Coefficients'!$H$19*LN(40)+'Commercial Energy Coefficients'!$H$21+'Commercial Energy Coefficients'!$H$22*LN(Commercial_Energy_Cost)+'Commercial Energy Coefficients'!$H$23*IFERROR(LOOKUP(Metro_Select,Energy_Metro_Lookup,HDD),0)),0))/1000 -> 0 | CG17: =(IFERROR(EXP('Commercial Energy Coefficients'!$C$3+LN((B_RET_Gross_Sq_Ft))*'Commercial Energy Coefficients'!$C$4+'Commercial Energy Coefficients'!$C$11+'Commercial Energy Coefficients'!$C$14+'Commercial Energy Coefficients'!$C$18*LN((B_Ret_Emp_Acre)*(B_Lot_Size/43560))+'Commercial Energy Coefficients'!$C$19*LN(40)+'Commercial Energy Coefficients'!$C$21+'Commercial Energy Coefficients'!$C$22*LN(Commercial_Energy_Cost)+'Commercial Energy Coefficients'!$C$24*IFERROR(LOOKUP(Metro_Select,Energy_Metro_Lookup,CDD),0)),0)+IFERROR(EXP('Commercial Energy Coefficients'!$F$3+LN((B_OFF_Gross_Sq_Ft))*'Commercial Energy Coefficients'!$F$4+'Commercial Energy Coefficients'!$F$11+'Commercial Energy Coefficients'!$F$14+'Commercial Energy Coefficients'!$F$18*LN((B_OFF_Emp_Acre)*(B_Lot_Size/43560))+'Commercial Energy Coefficients'!$F$19*LN(40)+'Commercial Energy Coefficients'!$F$21+'Commercial Energy Coefficients'!$F$22*LN(Commercial_Energy_Cost)+'Commercial Energy Coefficients'!$F$24*IFERROR(LOOKUP(Metro_Select,Energy_Metro_Lookup,CDD),0)),0)+IFERROR(EXP('Commercial Energy Coefficients'!$I$3+LN((B_PUB_Gross_Sq_Ft))*'Commercial Energy Coefficients'!$I$4+'Commercial Energy Coefficients'!$I$11+'Commercial Energy Coefficients'!$I$14+'Commercial Energy Coefficients'!$I$18*LN((B_Pub_Emp_Acre)*(B_Lot_Size/43560))+'Commercial Energy Coefficients'!$I$19*LN(40)+'Commercial Energy Coefficients'!$I$21+'Commercial Energy Coefficients'!$I$22*LN(Commercial_Energy_Cost)+'Commercial Energy Coefficients'!$I$24*IFERROR(LOOKUP(Metro_Select,Energy_Metro_Lookup,CDD),0)),0))/1000 -> 0 | CH17: =(IFERROR(EXP('Commercial Energy Coefficients'!$D$3+LN((B_RET_Gross_Sq_Ft))*'Commercial Energy Coefficients'!$D$4+'Commercial Energy Coefficients'!$D$14+'Commercial Energy Coefficients'!$D$18*LN((B_Ret_Emp_Acre)*(B_Lot_Size/43560))+'Commercial Energy Coefficients'!$D$19*LN(40)+'Commercial Energy Coefficients'!$D$21+'Commercial Energy Coefficients'!$D$22*LN(Commercial_Energy_Cost)),0)+IFERROR(EXP('Commercial Energy Coefficients'!$G$3+LN((B_OFF_Gross_Sq_Ft))*'Commercial Energy Coefficients'!$G$4+'Commercial Energy Coefficients'!$G$14+'Commercial Energy Coefficients'!$G$18*LN((B_OFF_Emp_Acre)*(B_Lot_Size/43560))+'Commercial Energy Coefficients'!$G$19*LN(40)+'Commercial Energy Coefficients'!$G$21+'Commercial Energy Coefficients'!$G$22*LN(Commercial_Energy_Cost)),0)+IFERROR(EXP('Commercial Energy Coefficients'!$J$3+LN((B_PUB_Gross_Sq_Ft))*'Commercial Energy Coefficients'!$J$4+'Commercial Energy Coefficients'!$J$14+'Commercial Energy Coefficients'!$J$18*LN((B_Pub_Emp_Acre)*(B_Lot_Size/43560))+'Commercial Energy Coefficients'!$J$19*LN(40)+'Commercial Energy Coefficients'!$J$21+'Commercial Energy Coefficients'!$J$22*LN(Commercial_Energy_Cost)),0))/1000 -> 0 | CI17: 0 | CJ17: 0 | CK17: 0 | CL17: 0 | CM17: 0 | CN17: 0 | CO17: 0 | CP17: 0 | CQ17: 0.6041306691 | CR17: 178.8057081 | CS17: 60 | CT17: 107.0140281 | CU17: 0 | CV17: 17758.31461 | CW17: 35 | CX17: 62.4248497 | CY17: 0 | CZ17: 10359.01685 | DA17: =IF(B_Housing_Type="",0,IF(B_Housing_Type="MF",'Project Info'!$B$158,IF(B_Housing_Type="TH",'Project Info'!$B$159,IF(AND(B_Housing_Type="SF",B_Net_Sq_Ft_per_Unit>0,B_Net_Sq_Ft_per_Unit<3000),'Project Info'!$B$160,IF(AND(B_Housing_Type="SF",B_Net_Sq_Ft_per_Unit>=3000),'Project Info'!$B$161))))) -> 1.5 | DB17: 2.675350701 | DC17: 0 | DD17: 443.9578652 | DE17: =[14]!LandCost -> 20.99583084 | DF17: 2346359 | DG17: 914578.3914 | DH17: =[14]!ProjectValue -> 66508610.38 | DI17: 25924139.44 | DJ17: =[14]!Subsidy -> 0 | DK17: 0 | DL17: 0 | DM17: 0 | DN17: 0 | DO17: 0 | DP17: 0 | DQ17: 0 | DR17: 0.2064829363 | DS17: =[14]!GreenRoof -> 0 | DT17: =[14]!GreenRoofEff -> 0 | DU17: =[14]!GreenRoofVolume -> 0 | DV17: =[14]!Biofiltration -> 0 | DW17: =[14]!BiofiltrationEff -> 0 | DX17: =[14]!BiofiltrationVolume -> 0 | DY17: =[14]!GreenRoofHarvesting -> 0 | DZ17: =[14]!GreenRoofHarvestingEff -> 0 | EA17: =[14]!WaterHarvesting -> 0 | EB17: =[14]!WaterHarvestingEff -> 0 | EC17: =[14]!WaterHarvestingVolume -> 0 | ED17: 0 | EE17: 0 | EG17: 0 | EH17: 0 | EI17: 0 | EJ17: 0 | EK17: 0 | EL17: 0 | EN17: =Annual_Cooling_degree_days*24*(1/R_conventional_SF_F_hrs_BTU-1/R_green_roof_SF_F_hrs_Btu)/3412*'Building Inputs'!$ED17 -> 0 | EO17: 0 | EP17: =Annual_Heating_degree_days*24*(1/R_conventional_SF_F_hrs_BTU-1/R_green_roof_SF_F_hrs_Btu)*'Building Inputs'!$ED17 -> 0 | EQ17: 0 | ER17: =Avg_Annual_NO2_uptake*'Building Inputs'!$ED17 -> 0 | ES17: =Avg_Annual_O3_uptake*'Building Inputs'!$ED17 -> 0 | ET17: =Avg_Annual_SO2_uptake*'Building Inputs'!$ED17 -> 0 | EU17: =Avg_Annual_PM_10_uptake*'Building Inputs'!$ED17 -> 0 | EV17: 0 | EW17: 0 | EX17: 0 | EY17: 0 | EZ17: 0 | FA17: 0 | FB17: 0 | FC17: 0 | FD17: 0 | FE17: =Avg_amount_of_carbon_sequestered_lbs_SF*'Building Inputs'!$ED17*3.67 -> 0 | FF17: 0 | FG17: 0 | FH17: 0 | FI17: =Average_annual_rainfall_in*($E17*(1-$G17)+$DV17-$DS17-$EA17)*$E17/43560*'Building Inputs'!$DW17*144*0.00433 -> 0 | FK17: =Avg_Annual_NO2_uptake*'Building Inputs'!$EE17 -> 0 | FL17: =Avg_Annual_O3_uptake*'Building Inputs'!$EE17 -> 0 | FM17: =Avg_Annual_SO2_uptake*'Building Inputs'!$EE17 -> 0 | FN17: =Avg_Annual_PM_10_uptake*'Building Inputs'!$EE17 -> 0 | FO17: 0 | FP17: 0 | FQ17: 0 | FR17: 0 | FS17: 0 | FT17: =Avg_amount_of_carbon_sequestered_lbs_SF*'Building Inputs'!$EE17*3.67 -> 0 | FU17: 0 | FV17: =Average_annual_rainfall_in*('Building Inputs'!$EG17*'Building Inputs'!$DZ17+'Building Inputs'!$EH17*'Building Inputs'!$EB17)*144*0.00433 -> 0 | FX17: 0 | FZ17: 0 | GA17: 0 | GB17: 0 | GC17: 0 | GD17: 0 | GE17: 0 | GF17: 0 | GG17: 0 | GH17: 0 | GI17: 0 | GJ17: 0 | GK17: 0 | GL17: 0 | GM17: =[14]!RequiredWQV -> 64170.53754 | GN17: =[14]!ConventionalWQV -> 0 | GO17: 164630.085 | GP17: 0 | GQ17: 0 | GR17: =[14]!TSSload -> 190.7716194 | GS17: =[14]!TNload -> 31.35637967 | GT17: =[14]!TLload -> 0.2936908395 | GU17: =[14]!fColiLoad -> 29640.0602 | GV17: =[14]!TSSreduction -> 0 | GW17: =[14]!TNreduction -> 0 | GX17: =[14]!TLreduction -> 0 | GY17: =[14]!fColiReduction -> 0 | GZ17: 489.4262868 | HA17: 80.44507101 | HB17: 0.7534664616 | HC17: 76041.83814 | HD17: 0 | HE17: 0 | HF17: 0 | HG17: 0 | HH17: =[14]!EPA_MXD_ResTrips -> 1921.999087 | HI17: =[14]!EPA_MXD_RetTrips -> 0 | HJ17: =[14]!EPA_MXD_OffTrips -> 0 | HK17: =[14]!EPA_MXD_EduTrips -> 0 | HL17: =[14]!EPA_MXD_OtherTrips -> 0 | HM17: =[14]!EPA_MXD_ResVMT -> 5457.843792 | HN17: =[14]!EPA_MXD_RetVMT -> 0 | HO17: =[14]!EPA_MXD_OffVMT -> 0 | HP17: =[14]!EPA_MXD_EduVMT -> 0 | HQ17: =[14]!EPA_MXD_OtherVMT -> 0
B18: 15 | C18: Apartment 4 - Wrapped Parking | D18: 2416 E 6th | E18: =[15]!lot_size -> 176897 | F18: =[15]!Building_Lot_Coverage -> 0.6725279067 | G18: =[15]!Landscaping_Coverage -> 0.07749242245 | H18: =[15]!Parking_Coverage -> 0.2499796708 | I18: =[15]!Height -> 4 | J18: =[15]!FAR -> 2.053528324 | K18: 363263 | L18: =[15]!ResPct -> 1 | M18: 1 | N18: 0 | O18: 0 | P18: 0 | Q18: 0 | R18: 0 | S18: 0 | T18: 0 | U18: =[15]!RetPct -> 0 | V18: =[15]!OffPct -> 0 | W18: =[15]!IndPct -> 0 | X18: =[15]!PubPct -> 0 | Y18: =[15]!EduPct -> 0 | Z18: =[15]!HotelPct -> 0 | AA18: =[15]!ParkingPct -> 0 | AB18: 363263 | AC18: =[15]!NetUnitSize -> 851 | AD18: =[15]!UnitSize -> 1001.176471 | AE18: 362.836134 | AF18: 89.34658019 | AG18: =[15]!HousingType -> MF | AH18: =[15]!RentalPct -> 1 | AI18: 0 | AJ18: =[15]!Rent -> 1.5 | AK18: 1276.5 | AL18: =[15]!Sales_Price -> 0 | AM18: 0 | AN18: 0 | AO18: 0.06 | AP18: 83.98578538 | AQ18: 1.705410822 | AR18: 1.023246493 | AS18: 0.1951 | AT18: 51060 | AU18: 0 | AV18: 0 | AW18: 0 | AX18: 0 | AY18: 0 | AZ18: =[15]!RetSpace -> 1000 | BA18: 0 | BB18: 0 | BC18: =[15]!OffSpace -> 250 | BD18: 0 | BE18: 0 | BF18: =[15]!IndSpace -> 972 | BG18: 0 | BH18: 0 | BI18: =[15]!PubSpace -> 2050 | BJ18: 0 | BK18: 0 | BL18: =[15]!EduSpace -> 800 | BM18: 0 | BN18: 0 | BO18: =[15]!HotelSpaceEmp -> 1152 | BP18: 0 | BQ18: =[15]!HotelRoomNet -> 0 | BR18: =[15]!HotelRoomGross -> 0 | BS18: 0 | BT18: 0 | BU18: 0 | BV18: =[15]!ParkingSpace -> 20000 | BW18: 0 | BX18: =[15]!ParkingSpaces -> 544.2542009 | BY18: =[15]!ParkingArea -> 176882.6153 | BZ18: =[15]!ParkingCost -> 10885084.02 | CA18: 0.1391561366 | CB18: =IFERROR(IF(B_Housing_Type="SF",EXP('Residential Energy Coefficients'!$B$3+'Residential Energy Coefficients'!$B$4*LN(B_Net_Sq_Ft_per_Unit)+'Residential Energy Coefficients'!$B$9+'Residential Energy Coefficients'!$B$10*LN(B_HH_Income)+'Residential Energy Coefficients'!$B$16*LN(Residential_Energy_Cost)+'Residential Energy Coefficients'!$B$20+'Residential Energy Coefficients'!$B$24*IFERROR(LOOKUP(Metro_Select,Energy_Metro_Lookup,HDD),0)),IF(B_Housing_Type="TH",EXP('Residential Energy Coefficients'!$E$3+'Residential Energy Coefficients'!$E$4*LN(B_Net_Sq_Ft_per_Unit)+'Residential Energy Coefficients'!$E$9+'Residential Energy Coefficients'!$E$16*LN(Residential_Energy_Cost)+'Residential Energy Coefficients'!$E$19+'Residential Energy Coefficients'!$E$20+'Residential Energy Coefficients'!$E$24*IFERROR(LOOKUP(Metro_Select,Energy_Metro_Lookup,HDD),0)),IF(B_Housing_Type="MF",EXP('Residential Energy Coefficients'!$H$3+'Residential Energy Coefficients'!$H$4*LN(B_Net_Sq_Ft_per_Unit)+'Residential Energy Coefficients'!$H$9+IF(B_Pct_Owner=1,'Residential Energy Coefficients'!$H$12,0)+'Residential Energy Coefficients'!$H$16*LN(Residential_Energy_Cost)+'Residential Energy Coefficients'!$H$20+'Residential Energy Coefficients'!$H$24*IFERROR(LOOKUP(Metro_Select,Energy_Metro_Lookup,HDD),0)),IF(B_Hotel_Room_Acre>0,EXP('Residential Energy Coefficients'!$H$3+'Residential Energy Coefficients'!$H$4*LN(B_Hotel_Room_Net)+'Residential Energy Coefficients'!$H$9+'Residential Energy Coefficients'!$H$16*LN(Residential_Energy_Cost)+'Residential Energy Coefficients'!$H$20+'Residential Energy Coefficients'!$H$24*IFERROR(LOOKUP(Metro_Select,Energy_Metro_Lookup,HDD),0)),IF(B_Housing_Type="MH",EXP('Residential Energy Coefficients'!$K$3+'Residential Energy Coefficients'!$K$16*LN(Residential_Energy_Cost)+'Residential Energy Coefficients'!$K$24*IFERROR(LOOKUP(Metro_Select,Energy_Metro_Lookup,HDD),0)),0)))))/1000,0) -> 0 | CC18: =IFERROR(IF(B_Housing_Type="SF",EXP('Residential Energy Coefficients'!$C$3+'Residential Energy Coefficients'!$C$4*LN(B_Net_Sq_Ft_per_Unit)+'Residential Energy Coefficients'!$C$10*LN(B_HH_Income)+'Residential Energy Coefficients'!$C$11*B_HH_Size+'Residential Energy Coefficients'!$C$16*LN(Residential_Energy_Cost)+'Residential Energy Coefficients'!$C$19+'Residential Energy Coefficients'!$C$22+'Residential Energy Coefficients'!$C$25*IFERROR(LOOKUP(Metro_Select,Energy_Metro_Lookup,CDD),0)),IF(B_Housing_Type="TH",EXP('Residential Energy Coefficients'!$F$3+'Residential Energy Coefficients'!$F$4*LN(B_Net_Sq_Ft_per_Unit)+'Residential Energy Coefficients'!$F$10*LN(B_HH_Income)+'Residential Energy Coefficients'!$F$11*B_HH_Size+IF(B_Pct_Owner=1,'Residential Energy Coefficients'!$F$12,0)+'Residential Energy Coefficients'!$F$16*LN(Residential_Energy_Cost)+'Residential Energy Coefficients'!$F$22+'Residential Energy Coefficients'!$F$25*IFERROR(LOOKUP(Metro_Select,Energy_Metro_Lookup,CDD),0)),IF(B_Housing_Type="MF",EXP('Residential Energy Coefficients'!$I$3+'Residential Energy Coefficients'!$I$4*LN(B_Net_Sq_Ft_per_Unit)+'Residential Energy Coefficients'!$I$9+'Residential Energy Coefficients'!$I$11*B_HH_Size+'Residential Energy Coefficients'!$I$16*LN(Residential_Energy_Cost)+'Residential Energy Coefficients'!$I$22+'Residential Energy Coefficients'!$I$25*IFERROR(LOOKUP(Metro_Select,Energy_Metro_Lookup,CDD),0)),IF(B_Hotel_Room_Acre>0,EXP('Residential Energy Coefficients'!$I$3+'Residential Energy Coefficients'!$I$4*LN(B_Hotel_Room_Net)+'Residential Energy Coefficients'!$I$9+'Residential Energy Coefficients'!$I$11*1.25+'Residential Energy Coefficients'!$I$16*LN(Residential_Energy_Cost)+'Residential Energy Coefficients'!$I$22+'Residential Energy Coefficients'!$I$25*IFERROR(LOOKUP(Metro_Select,Energy_Metro_Lookup,CDD),0)),IF(B_Housing_Type="MH",EXP('Residential Energy Coefficients'!$L$3+'Residential Energy Coefficients'!$L$11*B_HH_Size+'Residential Energy Coefficients'!$L$16*LN(Residential_Energy_Cost)+'Residential Energy Coefficients'!$L$22+'Residential Energy Coefficients'!$L$25*IFERROR(LOOKUP(Metro_Select,Energy_Metro_Lookup,CDD),0)),0)))))/1000,0) -> 0 | CD18: =IFERROR(IF(B_Housing_Type="SF",EXP('Residential Energy Coefficients'!$D$3+'Residential Energy Coefficients'!$D$4*LN(B_Net_Sq_Ft_per_Unit)+'Residential Energy Coefficients'!$D$9+'Residential Energy Coefficients'!$D$10*LN(B_HH_Income)+'Residential Energy Coefficients'!$D$11*B_HH_Size+IF(B_Pct_Owner=1,'Residential Energy Coefficients'!$D$12,0)+'Residential Energy Coefficients'!$D$16*LN(Residential_Energy_Cost)),IF(B_Housing_Type="TH",EXP('Residential Energy Coefficients'!$G$3+'Residential Energy Coefficients'!$G$4*LN(B_Net_Sq_Ft_per_Unit)+'Residential Energy Coefficients'!$G$10*LN(B_HH_Income)+'Residential Energy Coefficients'!$G$11*B_HH_Size+'Residential Energy Coefficients'!$G$16*LN(Residential_Energy_Cost)),IF(B_Housing_Type="MF",EXP('Residential Energy Coefficients'!$J$3+'Residential Energy Coefficients'!$J$4*LN(B_Net_Sq_Ft_per_Unit)+'Residential Energy Coefficients'!$J$10*LN(B_HH_Income)+'Residential Energy Coefficients'!$J$11*B_HH_Size+IF(B_Pct_Owner=1,'Residential Energy Coefficients'!$J$12,0)+'Residential Energy Coefficients'!$J$16*LN(Residential_Energy_Cost)+'Residential Energy Coefficients'!$J$19),IF(B_Hotel_Room_Acre>0,EXP('Residential Energy Coefficients'!$J$3+'Residential Energy Coefficients'!$J$4*LN(B_Hotel_Room_Net)+'Residential Energy Coefficients'!$J$16*LN(Residential_Energy_Cost)+'Residential Energy Coefficients'!$J$19),IF(B_Housing_Type="MH",EXP('Residential Energy Coefficients'!$M$3+'Residential Energy Coefficients'!$M$4*LN(B_Net_Sq_Ft_per_Unit)+'Residential Energy Coefficients'!$M$11*B_HH_Size+'Residential Energy Coefficients'!$M$16*LN(Residential_Energy_Cost)+'Residential Energy Coefficients'!$M$19),0)))))/1000,0) -> 0 | CE18: 0 | CF18: =(IFERROR(EXP('Commercial Energy Coefficients'!$B$3+LN(B_RET_Gross_Sq_Ft)*'Commercial Energy Coefficients'!$B$4+'Commercial Energy Coefficients'!$B$11+'Commercial Energy Coefficients'!$B$14+'Commercial Energy Coefficients'!$B$18*LN((B_Ret_Emp_Acre)*(B_Lot_Size/43560))+'Commercial Energy Coefficients'!$B$19*LN(40)+'Commercial Energy Coefficients'!$B$21+'Commercial Energy Coefficients'!$B$22*LN(Commercial_Energy_Cost)+'Commercial Energy Coefficients'!$B$23*IFERROR(LOOKUP(Metro_Select,Energy_Metro_Lookup,HDD),0)),0)+IFERROR(EXP('Commercial Energy Coefficients'!$E$3+LN(B_OFF_Gross_Sq_Ft)*'Commercial Energy Coefficients'!$E$4+'Commercial Energy Coefficients'!$E$11+'Commercial Energy Coefficients'!$E$14+'Commercial Energy Coefficients'!$E$18*LN((B_OFF_Emp_Acre)*(B_Lot_Size/43560))+'Commercial Energy Coefficients'!$E$19*LN(40)+'Commercial Energy Coefficients'!$E$21+'Commercial Energy Coefficients'!$E$22*LN(Commercial_Energy_Cost)+'Commercial Energy Coefficients'!$E$23*IFERROR(LOOKUP(Metro_Select,Energy_Metro_Lookup,HDD),0)),0)+IFERROR(EXP('Commercial Energy Coefficients'!$H$3+LN(B_PUB_Gross_Sq_Ft)*'Commercial Energy Coefficients'!$H$4+'Commercial Energy Coefficients'!$H$11+'Commercial Energy Coefficients'!$H$14+'Commercial Energy Coefficients'!$H$18*LN((B_Pub_Emp_Acre)*(B_Lot_Size/43560))+'Commercial Energy Coefficients'!$H$19*LN(40)+'Commercial Energy Coefficients'!$H$21+'Commercial Energy Coefficients'!$H$22*LN(Commercial_Energy_Cost)+'Commercial Energy Coefficients'!$H$23*IFERROR(LOOKUP(Metro_Select,Energy_Metro_Lookup,HDD),0)),0))/1000 -> 0 | CG18: =(IFERROR(EXP('Commercial Energy Coefficients'!$C$3+LN((B_RET_Gross_Sq_Ft))*'Commercial Energy Coefficients'!$C$4+'Commercial Energy Coefficients'!$C$11+'Commercial Energy Coefficients'!$C$14+'Commercial Energy Coefficients'!$C$18*LN((B_Ret_Emp_Acre)*(B_Lot_Size/43560))+'Commercial Energy Coefficients'!$C$19*LN(40)+'Commercial Energy Coefficients'!$C$21+'Commercial Energy Coefficients'!$C$22*LN(Commercial_Energy_Cost)+'Commercial Energy Coefficients'!$C$24*IFERROR(LOOKUP(Metro_Select,Energy_Metro_Lookup,CDD),0)),0)+IFERROR(EXP('Commercial Energy Coefficients'!$F$3+LN((B_OFF_Gross_Sq_Ft))*'Commercial Energy Coefficients'!$F$4+'Commercial Energy Coefficients'!$F$11+'Commercial Energy Coefficients'!$F$14+'Commercial Energy Coefficients'!$F$18*LN((B_OFF_Emp_Acre)*(B_Lot_Size/43560))+'Commercial Energy Coefficients'!$F$19*LN(40)+'Commercial Energy Coefficients'!$F$21+'Commercial Energy Coefficients'!$F$22*LN(Commercial_Energy_Cost)+'Commercial Energy Coefficients'!$F$24*IFERROR(LOOKUP(Metro_Select,Energy_Metro_Lookup,CDD),0)),0)+IFERROR(EXP('Commercial Energy Coefficients'!$I$3+LN((B_PUB_Gross_Sq_Ft))*'Commercial Energy Coefficients'!$I$4+'Commercial Energy Coefficients'!$I$11+'Commercial Energy Coefficients'!$I$14+'Commercial Energy Coefficients'!$I$18*LN((B_Pub_Emp_Acre)*(B_Lot_Size/43560))+'Commercial Energy Coefficients'!$I$19*LN(40)+'Commercial Energy Coefficients'!$I$21+'Commercial Energy Coefficients'!$I$22*LN(Commercial_Energy_Cost)+'Commercial Energy Coefficients'!$I$24*IFERROR(LOOKUP(Metro_Select,Energy_Metro_Lookup,CDD),0)),0))/1000 -> 0 | CH18: =(IFERROR(EXP('Commercial Energy Coefficients'!$D$3+LN((B_RET_Gross_Sq_Ft))*'Commercial Energy Coefficients'!$D$4+'Commercial Energy Coefficients'!$D$14+'Commercial Energy Coefficients'!$D$18*LN((B_Ret_Emp_Acre)*(B_Lot_Size/43560))+'Commercial Energy Coefficients'!$D$19*LN(40)+'Commercial Energy Coefficients'!$D$21+'Commercial Energy Coefficients'!$D$22*LN(Commercial_Energy_Cost)),0)+IFERROR(EXP('Commercial Energy Coefficients'!$G$3+LN((B_OFF_Gross_Sq_Ft))*'Commercial Energy Coefficients'!$G$4+'Commercial Energy Coefficients'!$G$14+'Commercial Energy Coefficients'!$G$18*LN((B_OFF_Emp_Acre)*(B_Lot_Size/43560))+'Commercial Energy Coefficients'!$G$19*LN(40)+'Commercial Energy Coefficients'!$G$21+'Commercial Energy Coefficients'!$G$22*LN(Commercial_Energy_Cost)),0)+IFERROR(EXP('Commercial Energy Coefficients'!$J$3+LN((B_PUB_Gross_Sq_Ft))*'Commercial Energy Coefficients'!$J$4+'Commercial Energy Coefficients'!$J$14+'Commercial Energy Coefficients'!$J$18*LN((B_Pub_Emp_Acre)*(B_Lot_Size/43560))+'Commercial Energy Coefficients'!$J$19*LN(40)+'Commercial Energy Coefficients'!$J$21+'Commercial Energy Coefficients'!$J$22*LN(Commercial_Energy_Cost)),0))/1000 -> 0 | CI18: 0 | CJ18: 0 | CK18: 0 | CL18: 0 | CM18: 0 | CN18: 0 | CO18: 0 | CP18: 0 | CQ18: 1.500677438 | CR18: 544.5 | CS18: 60 | CT18: 102.3246493 | CU18: 0 | CV18: 21770.16804 | CW18: 35 | CX18: 59.68937876 | CY18: 0 | CZ18: 12699.26469 | DA18: =IF(B_Housing_Type="",0,IF(B_Housing_Type="MF",'Project Info'!$B$158,IF(B_Housing_Type="TH",'Project Info'!$B$159,IF(AND(B_Housing_Type="SF",B_Net_Sq_Ft_per_Unit>0,B_Net_Sq_Ft_per_Unit<3000),'Project Info'!$B$160,IF(AND(B_Housing_Type="SF",B_Net_Sq_Ft_per_Unit>=3000),'Project Info'!$B$161))))) -> 1.5 | DB18: 2.558116232 | DC18: 0 | DD18: 544.2542009 | DE18: =[15]!LandCost -> 11.30601423 | DF18: 2000000 | DG18: 492489.98 | DH18: =[15]!ProjectValue -> 78222091.27 | DI18: 19261798.08 | DJ18: =[15]!Subsidy -> 0 | DK18: 0 | DL18: 0 | DM18: 0 | DN18: 0 | DO18: 0 | DP18: 0 | DQ18: 0 | DR18: 0.1529060554 | DS18: =[15]!GreenRoof -> 0 | DT18: =[15]!GreenRoofEff -> 0 | DU18: =[15]!GreenRoofVolume -> 0 | DV18: =[15]!Biofiltration -> 0 | DW18: =[15]!BiofiltrationEff -> 0 | DX18: =[15]!BiofiltrationVolume -> 0 | DY18: =[15]!GreenRoofHarvesting -> 0 | DZ18: =[15]!GreenRoofHarvestingEff -> 0 | EA18: =[15]!WaterHarvesting -> 0 | EB18: =[15]!WaterHarvestingEff -> 0 | EC18: =[15]!WaterHarvestingVolume -> 0 | ED18: 0 | EE18: 0 | EG18: 0 | EH18: 0 | EI18: 0 | EJ18: 0 | EK18: 0 | EL18: 0 | EN18: =Annual_Cooling_degree_days*24*(1/R_conventional_SF_F_hrs_BTU-1/R_green_roof_SF_F_hrs_Btu)/3412*'Building Inputs'!$ED18 -> 0 | EO18: 0 | EP18: =Annual_Heating_degree_days*24*(1/R_conventional_SF_F_hrs_BTU-1/R_green_roof_SF_F_hrs_Btu)*'Building Inputs'!$ED18 -> 0 | EQ18: 0 | ER18: =Avg_Annual_NO2_uptake*'Building Inputs'!$ED18 -> 0 | ES18: =Avg_Annual_O3_uptake*'Building Inputs'!$ED18 -> 0 | ET18: =Avg_Annual_SO2_uptake*'Building Inputs'!$ED18 -> 0 | EU18: =Avg_Annual_PM_10_uptake*'Building Inputs'!$ED18 -> 0 | EV18: 0 | EW18: 0 | EX18: 0 | EY18: 0 | EZ18: 0 | FA18: 0 | FB18: 0 | FC18: 0 | FD18: 0 | FE18: =Avg_amount_of_carbon_sequestered_lbs_SF*'Building Inputs'!$ED18*3.67 -> 0 | FF18: 0 | FG18: 0 | FH18: 0 | FI18: =Average_annual_rainfall_in*($E18*(1-$G18)+$DV18-$DS18-$EA18)*$E18/43560*'Building Inputs'!$DW18*144*0.00433 -> 0 | FK18: =Avg_Annual_NO2_uptake*'Building Inputs'!$EE18 -> 0 | FL18: =Avg_Annual_O3_uptake*'Building Inputs'!$EE18 -> 0 | FM18: =Avg_Annual_SO2_uptake*'Building Inputs'!$EE18 -> 0 | FN18: =Avg_Annual_PM_10_uptake*'Building Inputs'!$EE18 -> 0 | FO18: 0 | FP18: 0 | FQ18: 0 | FR18: 0 | FS18: 0 | FT18: =Avg_amount_of_carbon_sequestered_lbs_SF*'Building Inputs'!$EE18*3.67 -> 0 | FU18: 0 | FV18: =Average_annual_rainfall_in*('Building Inputs'!$EG18*'Building Inputs'!$DZ18+'Building Inputs'!$EH18*'Building Inputs'!$EB18)*144*0.00433 -> 0 | FX18: 0 | FZ18: 0 | GA18: 0 | GB18: 0 | GC18: 0 | GD18: 0 | GE18: 0 | GF18: 0 | GG18: 0 | GH18: 0 | GI18: 0 | GJ18: 0 | GK18: 0 | GL18: 0 | GM18: =[15]!RequiredWQV -> 97062.21951 | GN18: =[15]!ConventionalWQV -> 0 | GO18: 394169.3169 | GP18: 0 | GQ18: 0 | GR18: =[15]!TSSload -> 370.2791677 | GS18: =[15]!TNload -> 44.59748173 | GT18: =[15]!TLload -> 0.4886751256 | GU18: =[15]!fColiLoad -> 91263.09238 | GV18: =[15]!TSSreduction -> 0 | GW18: =[15]!TNreduction -> 0 | GX18: =[15]!TLreduction -> 0 | GY18: =[15]!fColiReduction -> 0 | GZ18: 1503.70234 | HA18: 181.1102095 | HB18: 1.98450789 | HC18: 370619.083 | HD18: 0 | HE18: 0 | HF18: 0 | HG18: 0 | HH18: =[15]!EPA_MXD_ResTrips -> 2355.076309 | HI18: =[15]!EPA_MXD_RetTrips -> 0 | HJ18: =[15]!EPA_MXD_OffTrips -> 0 | HK18: =[15]!EPA_MXD_EduTrips -> 0 | HL18: =[15]!EPA_MXD_OtherTrips -> 0 | HM18: =[15]!EPA_MXD_ResVMT -> 6688.250225 | HN18: =[15]!EPA_MXD_RetVMT -> 0 | HO18: =[15]!EPA_MXD_OffVMT -> 0 | HP18: =[15]!EPA_MXD_EduVMT -> 0 | HQ18: =[15]!EPA_MXD_OtherVMT -> 0
B19: 16 | C19: Apartment 3 | D19: 4th & Navasota | E19: =[16]!lot_size -> 14331 | F19: =[16]!Building_Lot_Coverage -> 0.8 | G19: =[16]!Landscaping_Coverage -> 0.2 | H19: =[16]!Parking_Coverage -> 0 | I19: =[16]!Height -> 3 | J19: =[16]!FAR -> 2 | K19: 28662 | L19: =[16]!ResPct -> 1 | M19: 1 | N19: 0 | O19: 0 | P19: 0 | Q19: 0 | R19: 0 | S19: 0 | T19: 0 | U19: =[16]!RetPct -> 0 | V19: =[16]!OffPct -> 0 | W19: =[16]!IndPct -> 0 | X19: =[16]!PubPct -> 0 | Y19: =[16]!EduPct -> 0 | Z19: =[16]!HotelPct -> 0 | AA19: =[16]!ParkingPct -> 0 | AB19: 28662 | AC19: =[16]!NetUnitSize -> 990.444 | AD19: =[16]!UnitSize -> 1100.493333 | AE19: 26.04468299 | AF19: 79.16449592 | AG19: =[16]!HousingType -> MF | AH19: =[16]!RentalPct -> 1 | AI19: 0 | AJ19: =[16]!Rent -> 2 | AK19: 1980.888 | AL19: =[16]!Sales_Price -> 0 | AM19: 0 | AN19: 0 | AO19: 0.06 | AP19: 74.41462617 | AQ19: 1.984857715 | AR19: 1.190914629 | AS19: 0.1951 | AT19: 79235.52 | AU19: 0 | AV19: 0 | AW19: 0 | AX19: 0 | AY19: 0 | AZ19: =[16]!RetSpace -> 1000 | BA19: 0 | BB19: 0 | BC19: =[16]!OffSpace -> 250 | BD19: 0 | BE19: 0 | BF19: =[16]!IndSpace -> 2306 | BG19: 0 | BH19: 0 | BI19: =[16]!PubSpace -> 1000 | BJ19: 0 | BK19: 0 | BL19: =[16]!EduSpace -> 800 | BM19: 0 | BN19: 0 | BO19: =[16]!HotelSpaceEmp -> 1000 | BP19: 0 | BQ19: =[16]!HotelRoomNet -> 0 | BR19: =[16]!HotelRoomGross -> 0 | BS19: 0 | BT19: 0 | BU19: 0 | BV19: =[16]!ParkingSpace -> 20000 | BW19: 0 | BX19: =[16]!ParkingSpaces -> 26.04468299 | BY19: =[16]!ParkingArea -> 5729.830258 | BZ19: =[16]!ParkingCost -> 521127.2727 | CA19: 0.1220837546 | CB19: =IFERROR(IF(B_Housing_Type="SF",EXP('Residential Energy Coefficients'!$B$3+'Residential Energy Coefficients'!$B$4*LN(B_Net_Sq_Ft_per_Unit)+'Residential Energy Coefficients'!$B$9+'Residential Energy Coefficients'!$B$10*LN(B_HH_Income)+'Residential Energy Coefficients'!$B$16*LN(Residential_Energy_Cost)+'Residential Energy Coefficients'!$B$20+'Residential Energy Coefficients'!$B$24*IFERROR(LOOKUP(Metro_Select,Energy_Metro_Lookup,HDD),0)),IF(B_Housing_Type="TH",EXP('Residential Energy Coefficients'!$E$3+'Residential Energy Coefficients'!$E$4*LN(B_Net_Sq_Ft_per_Unit)+'Residential Energy Coefficients'!$E$9+'Residential Energy Coefficients'!$E$16*LN(Residential_Energy_Cost)+'Residential Energy Coefficients'!$E$19+'Residential Energy Coefficients'!$E$20+'Residential Energy Coefficients'!$E$24*IFERROR(LOOKUP(Metro_Select,Energy_Metro_Lookup,HDD),0)),IF(B_Housing_Type="MF",EXP('Residential Energy Coefficients'!$H$3+'Residential Energy Coefficients'!$H$4*LN(B_Net_Sq_Ft_per_Unit)+'Residential Energy Coefficients'!$H$9+IF(B_Pct_Owner=1,'Residential Energy Coefficients'!$H$12,0)+'Residential Energy Coefficients'!$H$16*LN(Residential_Energy_Cost)+'Residential Energy Coefficients'!$H$20+'Residential Energy Coefficients'!$H$24*IFERROR(LOOKUP(Metro_Select,Energy_Metro_Lookup,HDD),0)),IF(B_Hotel_Room_Acre>0,EXP('Residential Energy Coefficients'!$H$3+'Residential Energy Coefficients'!$H$4*LN(B_Hotel_Room_Net)+'Residential Energy Coefficients'!$H$9+'Residential Energy Coefficients'!$H$16*LN(Residential_Energy_Cost)+'Residential Energy Coefficients'!$H$20+'Residential Energy Coefficients'!$H$24*IFERROR(LOOKUP(Metro_Select,Energy_Metro_Lookup,HDD),0)),IF(B_Housing_Type="MH",EXP('Residential Energy Coefficients'!$K$3+'Residential Energy Coefficients'!$K$16*LN(Residential_Energy_Cost)+'Residential Energy Coefficients'!$K$24*IFERROR(LOOKUP(Metro_Select,Energy_Metro_Lookup,HDD),0)),0)))))/1000,0) -> 0 | CC19: =IFERROR(IF(B_Housing_Type="SF",EXP('Residential Energy Coefficients'!$C$3+'Residential Energy Coefficients'!$C$4*LN(B_Net_Sq_Ft_per_Unit)+'Residential Energy Coefficients'!$C$10*LN(B_HH_Income)+'Residential Energy Coefficients'!$C$11*B_HH_Size+'Residential Energy Coefficients'!$C$16*LN(Residential_Energy_Cost)+'Residential Energy Coefficients'!$C$19+'Residential Energy Coefficients'!$C$22+'Residential Energy Coefficients'!$C$25*IFERROR(LOOKUP(Metro_Select,Energy_Metro_Lookup,CDD),0)),IF(B_Housing_Type="TH",EXP('Residential Energy Coefficients'!$F$3+'Residential Energy Coefficients'!$F$4*LN(B_Net_Sq_Ft_per_Unit)+'Residential Energy Coefficients'!$F$10*LN(B_HH_Income)+'Residential Energy Coefficients'!$F$11*B_HH_Size+IF(B_Pct_Owner=1,'Residential Energy Coefficients'!$F$12,0)+'Residential Energy Coefficients'!$F$16*LN(Residential_Energy_Cost)+'Residential Energy Coefficients'!$F$22+'Residential Energy Coefficients'!$F$25*IFERROR(LOOKUP(Metro_Select,Energy_Metro_Lookup,CDD),0)),IF(B_Housing_Type="MF",EXP('Residential Energy Coefficients'!$I$3+'Residential Energy Coefficients'!$I$4*LN(B_Net_Sq_Ft_per_Unit)+'Residential Energy Coefficients'!$I$9+'Residential Energy Coefficients'!$I$11*B_HH_Size+'Residential Energy Coefficients'!$I$16*LN(Residential_Energy_Cost)+'Residential Energy Coefficients'!$I$22+'Residential Energy Coefficients'!$I$25*IFERROR(LOOKUP(Metro_Select,Energy_Metro_Lookup,CDD),0)),IF(B_Hotel_Room_Acre>0,EXP('Residential Energy Coefficients'!$I$3+'Residential Energy Coefficients'!$I$4*LN(B_Hotel_Room_Net)+'Residential Energy Coefficients'!$I$9+'Residential Energy Coefficients'!$I$11*1.25+'Residential Energy Coefficients'!$I$16*LN(Residential_Energy_Cost)+'Residential Energy Coefficients'!$I$22+'Residential Energy Coefficients'!$I$25*IFERROR(LOOKUP(Metro_Select,Energy_Metro_Lookup,CDD),0)),IF(B_Housing_Type="MH",EXP('Residential Energy Coefficients'!$L$3+'Residential Energy Coefficients'!$L$11*B_HH_Size+'Residential Energy Coefficients'!$L$16*LN(Residential_Energy_Cost)+'Residential Energy Coefficients'!$L$22+'Residential Energy Coefficients'!$L$25*IFERROR(LOOKUP(Metro_Select,Energy_Metro_Lookup,CDD),0)),0)))))/1000,0) -> 0 | CD19: =IFERROR(IF(B_Housing_Type="SF",EXP('Residential Energy Coefficients'!$D$3+'Residential Energy Coefficients'!$D$4*LN(B_Net_Sq_Ft_per_Unit)+'Residential Energy Coefficients'!$D$9+'Residential Energy Coefficients'!$D$10*LN(B_HH_Income)+'Residential Energy Coefficients'!$D$11*B_HH_Size+IF(B_Pct_Owner=1,'Residential Energy Coefficients'!$D$12,0)+'Residential Energy Coefficients'!$D$16*LN(Residential_Energy_Cost)),IF(B_Housing_Type="TH",EXP('Residential Energy Coefficients'!$G$3+'Residential Energy Coefficients'!$G$4*LN(B_Net_Sq_Ft_per_Unit)+'Residential Energy Coefficients'!$G$10*LN(B_HH_Income)+'Residential Energy Coefficients'!$G$11*B_HH_Size+'Residential Energy Coefficients'!$G$16*LN(Residential_Energy_Cost)),IF(B_Housing_Type="MF",EXP('Residential Energy Coefficients'!$J$3+'Residential Energy Coefficients'!$J$4*LN(B_Net_Sq_Ft_per_Unit)+'Residential Energy Coefficients'!$J$10*LN(B_HH_Income)+'Residential Energy Coefficients'!$J$11*B_HH_Size+IF(B_Pct_Owner=1,'Residential Energy Coefficients'!$J$12,0)+'Residential Energy Coefficients'!$J$16*LN(Residential_Energy_Cost)+'Residential Energy Coefficients'!$J$19),IF(B_Hotel_Room_Acre>0,EXP('Residential Energy Coefficients'!$J$3+'Residential Energy Coefficients'!$J$4*LN(B_Hotel_Room_Net)+'Residential Energy Coefficients'!$J$16*LN(Residential_Energy_Cost)+'Residential Energy Coefficients'!$J$19),IF(B_Housing_Type="MH",EXP('Residential Energy Coefficients'!$M$3+'Residential Energy Coefficients'!$M$4*LN(B_Net_Sq_Ft_per_Unit)+'Residential Energy Coefficients'!$M$11*B_HH_Size+'Residential Energy Coefficients'!$M$16*LN(Residential_Energy_Cost)+'Residential Energy Coefficients'!$M$19),0)))))/1000,0) -> 0 | CE19: 0 | CF19: =(IFERROR(EXP('Commercial Energy Coefficients'!$B$3+LN(B_RET_Gross_Sq_Ft)*'Commercial Energy Coefficients'!$B$4+'Commercial Energy Coefficients'!$B$11+'Commercial Energy Coefficients'!$B$14+'Commercial Energy Coefficients'!$B$18*LN((B_Ret_Emp_Acre)*(B_Lot_Size/43560))+'Commercial Energy Coefficients'!$B$19*LN(40)+'Commercial Energy Coefficients'!$B$21+'Commercial Energy Coefficients'!$B$22*LN(Commercial_Energy_Cost)+'Commercial Energy Coefficients'!$B$23*IFERROR(LOOKUP(Metro_Select,Energy_Metro_Lookup,HDD),0)),0)+IFERROR(EXP('Commercial Energy Coefficients'!$E$3+LN(B_OFF_Gross_Sq_Ft)*'Commercial Energy Coefficients'!$E$4+'Commercial Energy Coefficients'!$E$11+'Commercial Energy Coefficients'!$E$14+'Commercial Energy Coefficients'!$E$18*LN((B_OFF_Emp_Acre)*(B_Lot_Size/43560))+'Commercial Energy Coefficients'!$E$19*LN(40)+'Commercial Energy Coefficients'!$E$21+'Commercial Energy Coefficients'!$E$22*LN(Commercial_Energy_Cost)+'Commercial Energy Coefficients'!$E$23*IFERROR(LOOKUP(Metro_Select,Energy_Metro_Lookup,HDD),0)),0)+IFERROR(EXP('Commercial Energy Coefficients'!$H$3+LN(B_PUB_Gross_Sq_Ft)*'Commercial Energy Coefficients'!$H$4+'Commercial Energy Coefficients'!$H$11+'Commercial Energy Coefficients'!$H$14+'Commercial Energy Coefficients'!$H$18*LN((B_Pub_Emp_Acre)*(B_Lot_Size/43560))+'Commercial Energy Coefficients'!$H$19*LN(40)+'Commercial Energy Coefficients'!$H$21+'Commercial Energy Coefficients'!$H$22*LN(Commercial_Energy_Cost)+'Commercial Energy Coefficients'!$H$23*IFERROR(LOOKUP(Metro_Select,Energy_Metro_Lookup,HDD),0)),0))/1000 -> 0 | CG19: =(IFERROR(EXP('Commercial Energy Coefficients'!$C$3+LN((B_RET_Gross_Sq_Ft))*'Commercial Energy Coefficients'!$C$4+'Commercial Energy Coefficients'!$C$11+'Commercial Energy Coefficients'!$C$14+'Commercial Energy Coefficients'!$C$18*LN((B_Ret_Emp_Acre)*(B_Lot_Size/43560))+'Commercial Energy Coefficients'!$C$19*LN(40)+'Commercial Energy Coefficients'!$C$21+'Commercial Energy Coefficients'!$C$22*LN(Commercial_Energy_Cost)+'Commercial Energy Coefficients'!$C$24*IFERROR(LOOKUP(Metro_Select,Energy_Metro_Lookup,CDD),0)),0)+IFERROR(EXP('Commercial Energy Coefficients'!$F$3+LN((B_OFF_Gross_Sq_Ft))*'Commercial Energy Coefficients'!$F$4+'Commercial Energy Coefficients'!$F$11+'Commercial Energy Coefficients'!$F$14+'Commercial Energy Coefficients'!$F$18*LN((B_OFF_Emp_Acre)*(B_Lot_Size/43560))+'Commercial Energy Coefficients'!$F$19*LN(40)+'Commercial Energy Coefficients'!$F$21+'Commercial Energy Coefficients'!$F$22*LN(Commercial_Energy_Cost)+'Commercial Energy Coefficients'!$F$24*IFERROR(LOOKUP(Metro_Select,Energy_Metro_Lookup,CDD),0)),0)+IFERROR(EXP('Commercial Energy Coefficients'!$I$3+LN((B_PUB_Gross_Sq_Ft))*'Commercial Energy Coefficients'!$I$4+'Commercial Energy Coefficients'!$I$11+'Commercial Energy Coefficients'!$I$14+'Commercial Energy Coefficients'!$I$18*LN((B_Pub_Emp_Acre)*(B_Lot_Size/43560))+'Commercial Energy Coefficients'!$I$19*LN(40)+'Commercial Energy Coefficients'!$I$21+'Commercial Energy Coefficients'!$I$22*LN(Commercial_Energy_Cost)+'Commercial Energy Coefficients'!$I$24*IFERROR(LOOKUP(Metro_Select,Energy_Metro_Lookup,CDD),0)),0))/1000 -> 0 | CH19: =(IFERROR(EXP('Commercial Energy Coefficients'!$D$3+LN((B_RET_Gross_Sq_Ft))*'Commercial Energy Coefficients'!$D$4+'Commercial Energy Coefficients'!$D$14+'Commercial Energy Coefficients'!$D$18*LN((B_Ret_Emp_Acre)*(B_Lot_Size/43560))+'Commercial Energy Coefficients'!$D$19*LN(40)+'Commercial Energy Coefficients'!$D$21+'Commercial Energy Coefficients'!$D$22*LN(Commercial_Energy_Cost)),0)+IFERROR(EXP('Commercial Energy Coefficients'!$G$3+LN((B_OFF_Gross_Sq_Ft))*'Commercial Energy Coefficients'!$G$4+'Commercial Energy Coefficients'!$G$14+'Commercial Energy Coefficients'!$G$18*LN((B_OFF_Emp_Acre)*(B_Lot_Size/43560))+'Commercial Energy Coefficients'!$G$19*LN(40)+'Commercial Energy Coefficients'!$G$21+'Commercial Energy Coefficients'!$G$22*LN(Commercial_Energy_Cost)),0)+IFERROR(EXP('Commercial Energy Coefficients'!$J$3+LN((B_PUB_Gross_Sq_Ft))*'Commercial Energy Coefficients'!$J$4+'Commercial Energy Coefficients'!$J$14+'Commercial Energy Coefficients'!$J$18*LN((B_Pub_Emp_Acre)*(B_Lot_Size/43560))+'Commercial Energy Coefficients'!$J$19*LN(40)+'Commercial Energy Coefficients'!$J$21+'Commercial Energy Coefficients'!$J$22*LN(Commercial_Energy_Cost)),0))/1000 -> 0 | CI19: 0 | CJ19: 0 | CK19: 0 | CL19: 0 | CM19: 0 | CN19: 0 | CO19: 0 | CP19: 0 | CQ19: 5.502466667 | CR19: 143.31 | CS19: 60 | CT19: 119.0914629 | CU19: 0 | CV19: 1562.680979 | CW19: 35 | CX19: 69.47002004 | CY19: 0 | CZ19: 911.5639047 | DA19: =IF(B_Housing_Type="",0,IF(B_Housing_Type="MF",'Project Info'!$B$158,IF(B_Housing_Type="TH",'Project Info'!$B$159,IF(AND(B_Housing_Type="SF",B_Net_Sq_Ft_per_Unit>0,B_Net_Sq_Ft_per_Unit<3000),'Project Info'!$B$160,IF(AND(B_Housing_Type="SF",B_Net_Sq_Ft_per_Unit>=3000),'Project Info'!$B$161))))) -> 1.5 | DB19: 2.977286573 | DC19: 0 | DD19: 39.06702449 | DE19: =[16]!LandCost -> 20.23027004 | DF19: 289920 | DG19: 881230.5631 | DH19: =[16]!ProjectValue -> 4268604.568 | DI19: 12974699.25 | DJ19: =[16]!Subsidy -> 0 | DK19: 0 | DL19: 0 | DM19: 0 | DN19: 0 | DO19: 0 | DP19: 0 | DQ19: 0 | DR19: 0.1489203276 | DS19: =[16]!GreenRoof -> 0 | DT19: =[16]!GreenRoofEff -> 0 | DU19: =[16]!GreenRoofVolume -> 0 | DV19: =[16]!Biofiltration -> 0 | DW19: =[16]!BiofiltrationEff -> 0 | DX19: =[16]!BiofiltrationVolume -> 0 | DY19: =[16]!GreenRoofHarvesting -> 0 | DZ19: =[16]!GreenRoofHarvestingEff -> 0 | EA19: =[16]!WaterHarvesting -> 0 | EB19: =[16]!WaterHarvestingEff -> 0 | EC19: =[16]!WaterHarvestingVolume -> 0 | ED19: 0 | EE19: 0 | EG19: 0 | EH19: 0 | EI19: 0 | EJ19: 0 | EK19: 0 | EL19: 0 | EN19: =Annual_Cooling_degree_days*24*(1/R_conventional_SF_F_hrs_BTU-1/R_green_roof_SF_F_hrs_Btu)/3412*'Building Inputs'!$ED19 -> 0 | EO19: 0 | EP19: =Annual_Heating_degree_days*24*(1/R_conventional_SF_F_hrs_BTU-1/R_green_roof_SF_F_hrs_Btu)*'Building Inputs'!$ED19 -> 0 | EQ19: 0 | ER19: =Avg_Annual_NO2_uptake*'Building Inputs'!$ED19 -> 0 | ES19: =Avg_Annual_O3_uptake*'Building Inputs'!$ED19 -> 0 | ET19: =Avg_Annual_SO2_uptake*'Building Inputs'!$ED19 -> 0 | EU19: =Avg_Annual_PM_10_uptake*'Building Inputs'!$ED19 -> 0 | EV19: 0 | EW19: 0 | EX19: 0 | EY19: 0 | EZ19: 0 | FA19: 0 | FB19: 0 | FC19: 0 | FD19: 0 | FE19: =Avg_amount_of_carbon_sequestered_lbs_SF*'Building Inputs'!$ED19*3.67 -> 0 | FF19: 0 | FG19: 0 | FH19: 0 | FI19: =Average_annual_rainfall_in*($E19*(1-$G19)+$DV19-$DS19-$EA19)*$E19/43560*'Building Inputs'!$DW19*144*0.00433 -> 0 | FK19: =Avg_Annual_NO2_uptake*'Building Inputs'!$EE19 -> 0 | FL19: =Avg_Annual_O3_uptake*'Building Inputs'!$EE19 -> 0 | FM19: =Avg_Annual_SO2_uptake*'Building Inputs'!$EE19 -> 0 | FN19: =Avg_Annual_PM_10_uptake*'Building Inputs'!$EE19 -> 0 | FO19: 0 | FP19: 0 | FQ19: 0 | FR19: 0 | FS19: 0 | FT19: =Avg_amount_of_carbon_sequestered_lbs_SF*'Building Inputs'!$EE19*3.67 -> 0 | FU19: 0 | FV19: =Average_annual_rainfall_in*('Building Inputs'!$EG19*'Building Inputs'!$DZ19+'Building Inputs'!$EH19*'Building Inputs'!$EB19)*144*0.00433 -> 0 | FX19: 0 | FZ19: 0 | GA19: 0 | GB19: 0 | GC19: 0 | GD19: 0 | GE19: 0 | GF19: 0 | GG19: 0 | GH19: 0 | GI19: 0 | GJ19: 0 | GK19: 0 | GL19: 0 | GM19: =[16]!RequiredWQV -> 6878.4023 | GN19: =[16]!ConventionalWQV -> 0 | GO19: 2262.956459 | GP19: 0 | GQ19: 0 | GR19: =[16]!TSSload -> 24.44930484 | GS19: =[16]!TNload -> 2.813344666 | GT19: =[16]!TLload -> 0.03248743246 | GU19: =[16]!fColiLoad -> 15019.91723 | GV19: =[16]!TSSreduction -> 0 | GW19: =[16]!TNreduction -> 0 | GX19: =[16]!TLreduction -> 0 | GY19: =[16]!fColiReduction -> 0 | GZ19: 8.043686585 | HA19: 0.9255748947 | HB19: 0.01068818628 | HC19: 4941.470013 | HD19: 0 | HE19: 0 | HF19: 0 | HG19: 0 | HH19: =[16]!EPA_MXD_ResTrips -> 169.4409238 | HI19: =[16]!EPA_MXD_RetTrips -> 0 | HJ19: =[16]!EPA_MXD_OffTrips -> 0 | HK19: =[16]!EPA_MXD_EduTrips -> 0 | HL19: =[16]!EPA_MXD_OtherTrips -> 0 | HM19: =[16]!EPA_MXD_ResVMT -> 480.9872223 | HN19: =[16]!EPA_MXD_RetVMT -> 0 | HO19: =[16]!EPA_MXD_OffVMT -> 0 | HP19: =[16]!EPA_MXD_EduVMT -> 0 | HQ19: =[16]!EPA_MXD_OtherVMT -> 0
B20: 17 | C20: Garden Apartment | D20: 12th & Hargrave | E20: =[17]!lot_size -> 243936 | F20: =[17]!Building_Lot_Coverage -> 0.4774914635 | G20: =[17]!Landscaping_Coverage -> 0.16 | H20: =[17]!Parking_Coverage -> 0.1625085365 | I20: =[17]!Height -> 2 | J20: =[17]!FAR -> 0.7435031082 | K20: 181367.1742 | L20: =[17]!ResPct -> 1 | M20: 1 | N20: 0 | O20: 0 | P20: 0 | Q20: 0 | R20: 0 | S20: 0 | T20: 0 | U20: =[17]!RetPct -> 0 | V20: =[17]!OffPct -> 0 | W20: =[17]!IndPct -> 0 | X20: =[17]!PubPct -> 0 | Y20: =[17]!EduPct -> 0 | Z20: =[17]!HotelPct -> 0 | AA20: =[17]!ParkingPct -> 0 | AB20: 181367.1742 | AC20: =[17]!NetUnitSize -> 1750 | AD20: =[17]!UnitSize -> 2058.823529 | AE20: 88.09262747 | AF20: 15.73082633 | AG20: =[17]!HousingType -> MF | AH20: =[17]!RentalPct -> 0 | AI20: 1 | AJ20: =[17]!Rent -> 0 | AK20: 0 | AL20: =[17]!Sales_Price -> 200 | AM20: 350000 | AN20: 2098.426838 | AO20: 0.06 | AP20: 14.78697675 | AQ20: 2 | AR20: 1.2 | AS20: 0.1951 | AT20: 96850.46945 | AU20: 0 | AV20: 0 | AW20: 0 | AX20: 0 | AY20: 0 | AZ20: =[17]!RetSpace -> 1000 | BA20: 0 | BB20: 0 | BC20: =[17]!OffSpace -> 250 | BD20: 0 | BE20: 0 | BF20: =[17]!IndSpace -> 2306 | BG20: 0 | BH20: 0 | BI20: =[17]!PubSpace -> 1000 | BJ20: 0 | BK20: 0 | BL20: =[17]!EduSpace -> 800 | BM20: 0 | BN20: 0 | BO20: =[17]!HotelSpaceEmp -> 1000 | BP20: 0 | BQ20: =[17]!HotelRoomNet -> 0 | BR20: =[17]!HotelRoomGross -> 0 | BS20: 0 | BT20: 0 | BU20: 0 | BV20: =[17]!ParkingSpace -> 20000 | BW20: 0 | BX20: =[17]!ParkingSpaces -> 176.1852549 | BY20: =[17]!ParkingArea -> 39641.68236 | BZ20: =[17]!ParkingCost -> 528555.7648 | CA20: 0.02104943276 | CB20: =IFERROR(IF(B_Housing_Type="SF",EXP('Residential Energy Coefficients'!$B$3+'Residential Energy Coefficients'!$B$4*LN(B_Net_Sq_Ft_per_Unit)+'Residential Energy Coefficients'!$B$9+'Residential Energy Coefficients'!$B$10*LN(B_HH_Income)+'Residential Energy Coefficients'!$B$16*LN(Residential_Energy_Cost)+'Residential Energy Coefficients'!$B$20+'Residential Energy Coefficients'!$B$24*IFERROR(LOOKUP(Metro_Select,Energy_Metro_Lookup,HDD),0)),IF(B_Housing_Type="TH",EXP('Residential Energy Coefficients'!$E$3+'Residential Energy Coefficients'!$E$4*LN(B_Net_Sq_Ft_per_Unit)+'Residential Energy Coefficients'!$E$9+'Residential Energy Coefficients'!$E$16*LN(Residential_Energy_Cost)+'Residential Energy Coefficients'!$E$19+'Residential Energy Coefficients'!$E$20+'Residential Energy Coefficients'!$E$24*IFERROR(LOOKUP(Metro_Select,Energy_Metro_Lookup,HDD),0)),IF(B_Housing_Type="MF",EXP('Residential Energy Coefficients'!$H$3+'Residential Energy Coefficients'!$H$4*LN(B_Net_Sq_Ft_per_Unit)+'Residential Energy Coefficients'!$H$9+IF(B_Pct_Owner=1,'Residential Energy Coefficients'!$H$12,0)+'Residential Energy Coefficients'!$H$16*LN(Residential_Energy_Cost)+'Residential Energy Coefficients'!$H$20+'Residential Energy Coefficients'!$H$24*IFERROR(LOOKUP(Metro_Select,Energy_Metro_Lookup,HDD),0)),IF(B_Hotel_Room_Acre>0,EXP('Residential Energy Coefficients'!$H$3+'Residential Energy Coefficients'!$H$4*LN(B_Hotel_Room_Net)+'Residential Energy Coefficients'!$H$9+'Residential Energy Coefficients'!$H$16*LN(Residential_Energy_Cost)+'Residential Energy Coefficients'!$H$20+'Residential Energy Coefficients'!$H$24*IFERROR(LOOKUP(Metro_Select,Energy_Metro_Lookup,HDD),0)),IF(B_Housing_Type="MH",EXP('Residential Energy Coefficients'!$K$3+'Residential Energy Coefficients'!$K$16*LN(Residential_Energy_Cost)+'Residential Energy Coefficients'!$K$24*IFERROR(LOOKUP(Metro_Select,Energy_Metro_Lookup,HDD),0)),0)))))/1000,0) -> 0 | CC20: =IFERROR(IF(B_Housing_Type="SF",EXP('Residential Energy Coefficients'!$C$3+'Residential Energy Coefficients'!$C$4*LN(B_Net_Sq_Ft_per_Unit)+'Residential Energy Coefficients'!$C$10*LN(B_HH_Income)+'Residential Energy Coefficients'!$C$11*B_HH_Size+'Residential Energy Coefficients'!$C$16*LN(Residential_Energy_Cost)+'Residential Energy Coefficients'!$C$19+'Residential Energy Coefficients'!$C$22+'Residential Energy Coefficients'!$C$25*IFERROR(LOOKUP(Metro_Select,Energy_Metro_Lookup,CDD),0)),IF(B_Housing_Type="TH",EXP('Residential Energy Coefficients'!$F$3+'Residential Energy Coefficients'!$F$4*LN(B_Net_Sq_Ft_per_Unit)+'Residential Energy Coefficients'!$F$10*LN(B_HH_Income)+'Residential Energy Coefficients'!$F$11*B_HH_Size+IF(B_Pct_Owner=1,'Residential Energy Coefficients'!$F$12,0)+'Residential Energy Coefficients'!$F$16*LN(Residential_Energy_Cost)+'Residential Energy Coefficients'!$F$22+'Residential Energy Coefficients'!$F$25*IFERROR(LOOKUP(Metro_Select,Energy_Metro_Lookup,CDD),0)),IF(B_Housing_Type="MF",EXP('Residential Energy Coefficients'!$I$3+'Residential Energy Coefficients'!$I$4*LN(B_Net_Sq_Ft_per_Unit)+'Residential Energy Coefficients'!$I$9+'Residential Energy Coefficients'!$I$11*B_HH_Size+'Residential Energy Coefficients'!$I$16*LN(Residential_Energy_Cost)+'Residential Energy Coefficients'!$I$22+'Residential Energy Coefficients'!$I$25*IFERROR(LOOKUP(Metro_Select,Energy_Metro_Lookup,CDD),0)),IF(B_Hotel_Room_Acre>0,EXP('Residential Energy Coefficients'!$I$3+'Residential Energy Coefficients'!$I$4*LN(B_Hotel_Room_Net)+'Residential Energy Coefficients'!$I$9+'Residential Energy Coefficients'!$I$11*1.25+'Residential Energy Coefficients'!$I$16*LN(Residential_Energy_Cost)+'Residential Energy Coefficients'!$I$22+'Residential Energy Coefficients'!$I$25*IFERROR(LOOKUP(Metro_Select,Energy_Metro_Lookup,CDD),0)),IF(B_Housing_Type="MH",EXP('Residential Energy Coefficients'!$L$3+'Residential Energy Coefficients'!$L$11*B_HH_Size+'Residential Energy Coefficients'!$L$16*LN(Residential_Energy_Cost)+'Residential Energy Coefficients'!$L$22+'Residential Energy Coefficients'!$L$25*IFERROR(LOOKUP(Metro_Select,Energy_Metro_Lookup,CDD),0)),0)))))/1000,0) -> 0 | CD20: =IFERROR(IF(B_Housing_Type="SF",EXP('Residential Energy Coefficients'!$D$3+'Residential Energy Coefficients'!$D$4*LN(B_Net_Sq_Ft_per_Unit)+'Residential Energy Coefficients'!$D$9+'Residential Energy Coefficients'!$D$10*LN(B_HH_Income)+'Residential Energy Coefficients'!$D$11*B_HH_Size+IF(B_Pct_Owner=1,'Residential Energy Coefficients'!$D$12,0)+'Residential Energy Coefficients'!$D$16*LN(Residential_Energy_Cost)),IF(B_Housing_Type="TH",EXP('Residential Energy Coefficients'!$G$3+'Residential Energy Coefficients'!$G$4*LN(B_Net_Sq_Ft_per_Unit)+'Residential Energy Coefficients'!$G$10*LN(B_HH_Income)+'Residential Energy Coefficients'!$G$11*B_HH_Size+'Residential Energy Coefficients'!$G$16*LN(Residential_Energy_Cost)),IF(B_Housing_Type="MF",EXP('Residential Energy Coefficients'!$J$3+'Residential Energy Coefficients'!$J$4*LN(B_Net_Sq_Ft_per_Unit)+'Residential Energy Coefficients'!$J$10*LN(B_HH_Income)+'Residential Energy Coefficients'!$J$11*B_HH_Size+IF(B_Pct_Owner=1,'Residential Energy Coefficients'!$J$12,0)+'Residential Energy Coefficients'!$J$16*LN(Residential_Energy_Cost)+'Residential Energy Coefficients'!$J$19),IF(B_Hotel_Room_Acre>0,EXP('Residential Energy Coefficients'!$J$3+'Residential Energy Coefficients'!$J$4*LN(B_Hotel_Room_Net)+'Residential Energy Coefficients'!$J$16*LN(Residential_Energy_Cost)+'Residential Energy Coefficients'!$J$19),IF(B_Housing_Type="MH",EXP('Residential Energy Coefficients'!$M$3+'Residential Energy Coefficients'!$M$4*LN(B_Net_Sq_Ft_per_Unit)+'Residential Energy Coefficients'!$M$11*B_HH_Size+'Residential Energy Coefficients'!$M$16*LN(Residential_Energy_Cost)+'Residential Energy Coefficients'!$M$19),0)))))/1000,0) -> 0 | CE20: 0 | CF20: =(IFERROR(EXP('Commercial Energy Coefficients'!$B$3+LN(B_RET_Gross_Sq_Ft)*'Commercial Energy Coefficients'!$B$4+'Commercial Energy Coefficients'!$B$11+'Commercial Energy Coefficients'!$B$14+'Commercial Energy Coefficients'!$B$18*LN((B_Ret_Emp_Acre)*(B_Lot_Size/43560))+'Commercial Energy Coefficients'!$B$19*LN(40)+'Commercial Energy Coefficients'!$B$21+'Commercial Energy Coefficients'!$B$22*LN(Commercial_Energy_Cost)+'Commercial Energy Coefficients'!$B$23*IFERROR(LOOKUP(Metro_Select,Energy_Metro_Lookup,HDD),0)),0)+IFERROR(EXP('Commercial Energy Coefficients'!$E$3+LN(B_OFF_Gross_Sq_Ft)*'Commercial Energy Coefficients'!$E$4+'Commercial Energy Coefficients'!$E$11+'Commercial Energy Coefficients'!$E$14+'Commercial Energy Coefficients'!$E$18*LN((B_OFF_Emp_Acre)*(B_Lot_Size/43560))+'Commercial Energy Coefficients'!$E$19*LN(40)+'Commercial Energy Coefficients'!$E$21+'Commercial Energy Coefficients'!$E$22*LN(Commercial_Energy_Cost)+'Commercial Energy Coefficients'!$E$23*IFERROR(LOOKUP(Metro_Select,Energy_Metro_Lookup,HDD),0)),0)+IFERROR(EXP('Commercial Energy Coefficients'!$H$3+LN(B_PUB_Gross_Sq_Ft)*'Commercial Energy Coefficients'!$H$4+'Commercial Energy Coefficients'!$H$11+'Commercial Energy Coefficients'!$H$14+'Commercial Energy Coefficients'!$H$18*LN((B_Pub_Emp_Acre)*(B_Lot_Size/43560))+'Commercial Energy Coefficients'!$H$19*LN(40)+'Commercial Energy Coefficients'!$H$21+'Commercial Energy Coefficients'!$H$22*LN(Commercial_Energy_Cost)+'Commercial Energy Coefficients'!$H$23*IFERROR(LOOKUP(Metro_Select,Energy_Metro_Lookup,HDD),0)),0))/1000 -> 0 | CG20: =(IFERROR(EXP('Commercial Energy Coefficients'!$C$3+LN((B_RET_Gross_Sq_Ft))*'Commercial Energy Coefficients'!$C$4+'Commercial Energy Coefficients'!$C$11+'Commercial Energy Coefficients'!$C$14+'Commercial Energy Coefficients'!$C$18*LN((B_Ret_Emp_Acre)*(B_Lot_Size/43560))+'Commercial Energy Coefficients'!$C$19*LN(40)+'Commercial Energy Coefficients'!$C$21+'Commercial Energy Coefficients'!$C$22*LN(Commercial_Energy_Cost)+'Commercial Energy Coefficients'!$C$24*IFERROR(LOOKUP(Metro_Select,Energy_Metro_Lookup,CDD),0)),0)+IFERROR(EXP('Commercial Energy Coefficients'!$F$3+LN((B_OFF_Gross_Sq_Ft))*'Commercial Energy Coefficients'!$F$4+'Commercial Energy Coefficients'!$F$11+'Commercial Energy Coefficients'!$F$14+'Commercial Energy Coefficients'!$F$18*LN((B_OFF_Emp_Acre)*(B_Lot_Size/43560))+'Commercial Energy Coefficients'!$F$19*LN(40)+'Commercial Energy Coefficients'!$F$21+'Commercial Energy Coefficients'!$F$22*LN(Commercial_Energy_Cost)+'Commercial Energy Coefficients'!$F$24*IFERROR(LOOKUP(Metro_Select,Energy_Metro_Lookup,CDD),0)),0)+IFERROR(EXP('Commercial Energy Coefficients'!$I$3+LN((B_PUB_Gross_Sq_Ft))*'Commercial Energy Coefficients'!$I$4+'Commercial Energy Coefficients'!$I$11+'Commercial Energy Coefficients'!$I$14+'Commercial Energy Coefficients'!$I$18*LN((B_Pub_Emp_Acre)*(B_Lot_Size/43560))+'Commercial Energy Coefficients'!$I$19*LN(40)+'Commercial Energy Coefficients'!$I$21+'Commercial Energy Coefficients'!$I$22*LN(Commercial_Energy_Cost)+'Commercial Energy Coefficients'!$I$24*IFERROR(LOOKUP(Metro_Select,Energy_Metro_Lookup,CDD),0)),0))/1000 -> 0 | CH20: =(IFERROR(EXP('Commercial Energy Coefficients'!$D$3+LN((B_RET_Gross_Sq_Ft))*'Commercial Energy Coefficients'!$D$4+'Commercial Energy Coefficients'!$D$14+'Commercial Energy Coefficients'!$D$18*LN((B_Ret_Emp_Acre)*(B_Lot_Size/43560))+'Commercial Energy Coefficients'!$D$19*LN(40)+'Commercial Energy Coefficients'!$D$21+'Commercial Energy Coefficients'!$D$22*LN(Commercial_Energy_Cost)),0)+IFERROR(EXP('Commercial Energy Coefficients'!$G$3+LN((B_OFF_Gross_Sq_Ft))*'Commercial Energy Coefficients'!$G$4+'Commercial Energy Coefficients'!$G$14+'Commercial Energy Coefficients'!$G$18*LN((B_OFF_Emp_Acre)*(B_Lot_Size/43560))+'Commercial Energy Coefficients'!$G$19*LN(40)+'Commercial Energy Coefficients'!$G$21+'Commercial Energy Coefficients'!$G$22*LN(Commercial_Energy_Cost)),0)+IFERROR(EXP('Commercial Energy Coefficients'!$J$3+LN((B_PUB_Gross_Sq_Ft))*'Commercial Energy Coefficients'!$J$4+'Commercial Energy Coefficients'!$J$14+'Commercial Energy Coefficients'!$J$18*LN((B_Pub_Emp_Acre)*(B_Lot_Size/43560))+'Commercial Energy Coefficients'!$J$19*LN(40)+'Commercial Energy Coefficients'!$J$21+'Commercial Energy Coefficients'!$J$22*LN(Commercial_Energy_Cost)),0))/1000 -> 0 | CI20: 0 | CJ20: 0 | CK20: 0 | CL20: 0 | CM20: 0 | CN20: 0 | CO20: 0 | CP20: 0 | CQ20: 6.180993979 | CR20: 544.5 | CS20: 60 | CT20: 120 | CU20: 0 | CV20: 5285.557648 | CW20: 35 | CX20: 70 | CY20: 0 | CZ20: 3083.241962 | DA20: =IF(B_Housing_Type="",0,IF(B_Housing_Type="MF",'Project Info'!$B$158,IF(B_Housing_Type="TH",'Project Info'!$B$159,IF(AND(B_Housing_Type="SF",B_Net_Sq_Ft_per_Unit>0,B_Net_Sq_Ft_per_Unit<3000),'Project Info'!$B$160,IF(AND(B_Housing_Type="SF",B_Net_Sq_Ft_per_Unit>=3000),'Project Info'!$B$161))))) -> 1.5 | DB20: 3 | DC20: 0 | DD20: 132.1389412 | DE20: =[17]!LandCost -> 13.52813853 | DF20: 3300000 | DG20: 589285.7143 | DH20: =[17]!ProjectValue -> 25110214.17 | DI20: 4483966.817 | DJ20: =[17]!Subsidy -> 0 | DK20: 0 | DL20: 0 | DM20: 0 | DN20: 0 | DO20: 0 | DP20: 0 | DQ20: 0 | DR20: 0.05536136323 | DS20: =[17]!GreenRoof -> 0 | DT20: =[17]!GreenRoofEff -> 0 | DU20: =[17]!GreenRoofVolume -> 0 | DV20: =[17]!Biofiltration -> 0 | DW20: =[17]!BiofiltrationEff -> 0 | DX20: =[17]!BiofiltrationVolume -> 0 | DY20: =[17]!GreenRoofHarvesting -> 0 | DZ20: =[17]!GreenRoofHarvestingEff -> 0 | EA20: =[17]!WaterHarvesting -> 0 | EB20: =[17]!WaterHarvestingEff -> 0 | EC20: =[17]!WaterHarvestingVolume -> 0 | ED20: 0 | EE20: 0 | EG20: 0 | EH20: 0 | EI20: 0 | EJ20: 0 | EK20: 0 | EL20: 0 | EN20: =Annual_Cooling_degree_days*24*(1/R_conventional_SF_F_hrs_BTU-1/R_green_roof_SF_F_hrs_Btu)/3412*'Building Inputs'!$ED20 -> 0 | EO20: 0 | EP20: =Annual_Heating_degree_days*24*(1/R_conventional_SF_F_hrs_BTU-1/R_green_roof_SF_F_hrs_Btu)*'Building Inputs'!$ED20 -> 0 | EQ20: 0 | ER20: =Avg_Annual_NO2_uptake*'Building Inputs'!$ED20 -> 0 | ES20: =Avg_Annual_O3_uptake*'Building Inputs'!$ED20 -> 0 | ET20: =Avg_Annual_SO2_uptake*'Building Inputs'!$ED20 -> 0 | EU20: =Avg_Annual_PM_10_uptake*'Building Inputs'!$ED20 -> 0 | EV20: 0 | EW20: 0 | EX20: 0 | EY20: 0 | EZ20: 0 | FA20: 0 | FB20: 0 | FC20: 0 | FD20: 0 | FE20: =Avg_amount_of_carbon_sequestered_lbs_SF*'Building Inputs'!$ED20*3.67 -> 0 | FF20: 0 | FG20: 0 | FH20: 0 | FI20: =Average_annual_rainfall_in*($E20*(1-$G20)+$DV20-$DS20-$EA20)*$E20/43560*'Building Inputs'!$DW20*144*0.00433 -> 0 | FK20: =Avg_Annual_NO2_uptake*'Building Inputs'!$EE20 -> 0 | FL20: =Avg_Annual_O3_uptake*'Building Inputs'!$EE20 -> 0 | FM20: =Avg_Annual_SO2_uptake*'Building Inputs'!$EE20 -> 0 | FN20: =Avg_Annual_PM_10_uptake*'Building Inputs'!$EE20 -> 0 | FO20: 0 | FP20: 0 | FQ20: 0 | FR20: 0 | FS20: 0 | FT20: =Avg_amount_of_carbon_sequestered_lbs_SF*'Building Inputs'!$EE20*3.67 -> 0 | FU20: 0 | FV20: =Average_annual_rainfall_in*('Building Inputs'!$EG20*'Building Inputs'!$DZ20+'Building Inputs'!$EH20*'Building Inputs'!$EB20)*144*0.00433 -> 0 | FX20: 0 | FZ20: 0 | GA20: 0 | GB20: 0 | GC20: 0 | GD20: 0 | GE20: 0 | GF20: 0 | GG20: 0 | GH20: 0 | GI20: 0 | GJ20: 0 | GK20: 0 | GL20: 0 | GM20: =[17]!RequiredWQV -> 95185.45344 | GN20: =[17]!ConventionalWQV -> 0 | GO20: 533038.5393 | GP20: 0 | GQ20: 0 | GR20: =[17]!TSSload -> 338.4564541 | GS20: =[17]!TNload -> 30.39235822 | GT20: =[17]!TLload -> 0.4010821796 | GU20: =[17]!fColiLoad -> 167481.6326 | GV20: =[17]!TSSreduction -> 0 | GW20: =[17]!TNreduction -> 0 | GX20: =[17]!TLreduction -> 0 | GY20: =[17]!fColiReduction -> 0 | GZ20: =GR20*$E20/43560 -> 1895.356143 | HA20: 170.197206 | HB20: 2.246060206 | HC20: 937897.1428 | HD20: 0 | HE20: 0 | HF20: 0 | HG20: 0 | HH20: =[17]!EPA_MXD_ResTrips -> 359.2857524 | HI20: =[17]!EPA_MXD_RetTrips -> 0 | HJ20: =[17]!EPA_MXD_OffTrips -> 0 | HK20: =[17]!EPA_MXD_EduTrips -> 0 | HL20: =[17]!EPA_MXD_OtherTrips -> 0 | HM20: =[17]!EPA_MXD_ResVMT -> 1020.412486 | HN20: =[17]!EPA_MXD_RetVMT -> 0 | HO20: =[17]!EPA_MXD_OffVMT -> 0 | HP20: =[17]!EPA_MXD_EduVMT -> 0 | HQ20: =[17]!EPA_MXD_OtherVMT -> 0
